Workbook

Sheet Menu
F2: This file contains the excel tables of the rates contained in the published Schedule of Standard Prices for Eskom tariffs.
F4: 2022/23 SCHEDULE OF STANDARD PRICES FOR ESKOM TARIFFS 1 April 2022 to 31 March 2023 for Non-Local Authority supplies, and 1 July 2022 to 30 June 2023 for Local Authority supplies.
H6: Click on the arrow to select the tariff
H7: Non-local authority (NLA) | J7: Local Authority (Munic)
G8: WEPS | H8: u | J8: u
F9: ê | G9: Megaflex | H9: u | J9: u
F10: ê | G10: Nightsave Large Urban | H10: u | J10: u
F11: ê | G11: Miniflex | H11: u | J11: u
F12: ê | G12: Nightsave Small Urban | H12: u | J12: u
F13: ê | G13: Businessrate | H13: u | J13: u
F14: ê | G14: Public lighting | H14: u | J14: u
F15: ê | G15: Ruraflex | H15: u | J15: u
F16: ê | G16: Nightsave Rural | H16: u | J16: u
F17: ê | G17: Landrate tariffs | H17: u | J17: u
F18: ê | G18: Homepower tariffs | H18: u | J18: u
F19: ê | G19: Homelight tariffs | H19: u | J19: n/a
F20: ê | G20: Excess NCC charges | H20: u | J20: u
F21: ê | G21: Loss factors | H21: u | J21: u
F22: ê | G22: Transmission use of system charges | H22: u | J22: n/a
F23: ê | G23: Distribution use of system charges | H23: u | J23: n/a
F24: ê | G24: Megaflex Gen | H24: u | J24: n/a
F25: ê | G25: Ruraflex Gen | H25: u | J25: n/a
F26: ê | G26: Gen Reconciliations | H26: u | J26: n/a

Sheet WEPS NLA
G1: Back to menu
A2: Non-municipal | G2: WEPS – Non-local Authority
J4: Active energy charge [c/kWh] | V4: Transmission network charges [R/kVA/m]
H5: Transmission zone | J5: High demand season [Jun - Aug] | P5: Low demand season [Sep - May]
I6: Voltage | J6: Peak | L6: Standard | N6: Off Peak | P6: Peak | R6: Standard | T6: Off Peak
A7: Tariff | B7: Tariff nameBillcode | C7: Tx zone | D7: Voltage | E7: Billcode | K7: VAT incl | M7: VAT incl | O7: VAT incl | Q7: VAT incl | S7: VAT incl | U7: VAT incl | W7: VAT incl
A8: WEPS | B8: We | C8: 0 | D8: 1 | E8: =B8&C8&D8&IF($A$2="Non-municipal","N",IF($A$2="Municiple","Y","error")) -> We01N | H8: ≤ 300km | I8: < 500V | J8: 457.47 | K8: =ROUND(J8 * (1 + VAT), 2) -> 526.09 | L8: 139.18 | M8: =ROUND(L8 * (1 + VAT), 2) -> 160.06 | N8: 76 | O8: =ROUND(N8 * (1 + VAT), 2) -> 87.4 | P8: 149.8 | Q8: =ROUND(P8 * (1 + VAT), 2) -> 172.27 | R8: 103.36 | S8: =ROUND(R8 * (1 + VAT), 2) -> 118.86 | T8: 65.9 | U8: =ROUND(T8 * (1 + VAT), 2) -> 75.79 | V8: 13.09 | W8: =ROUND(V8 * (1 + VAT), 2) -> 15.05
A9: WEPS | B9: We | C9: 0 | D9: 2 | E9: We02N | I9: ≥ 500V & < 66kV | J9: 450.29 | K9: =ROUND(J9 * (1 + VAT), 2) -> 517.83 | L9: 136.41 | M9: 156.87 | N9: 74.09 | O9: 85.2 | P9: 146.87 | Q9: 168.9 | R9: 101.1 | S9: 116.27 | T9: 64.14 | U9: 73.76 | V9: 11.96 | W9: 13.75
A10: WEPS | B10: We | C10: 0 | D10: 3 | E10: We03N | I10: ≥ 66kV & ≤ 132kV | J10: 436.03 | K10: 501.43 | L10: 132.08 | M10: 151.89 | N10: 71.74 | O10: 82.5 | P10: 142.25 | Q10: 163.59 | R10: 97.88 | S10: 112.56 | T10: 62.13 | U10: 71.45 | V10: 11.64 | W10: 13.39
A11: WEPS | B11: We | C11: 0 | D11: 4 | E11: We04N | I11: > 132kV* | J11: 410.94 | K11: 472.58 | L11: 124.47 | M11: 143.14 | N11: 67.61 | O11: 77.75 | P11: 134.09 | Q11: 154.2 | R11: 92.26 | S11: 106.1 | T11: 58.54 | U11: 67.32 | V11: 14.72 | W11: 16.93
A12: WEPS | B12: We | C12: 1 | D12: 1 | E12: We11N | H12: > 300km and ≤ 600km | I12: < 500V | J12: 461.2 | K12: 530.38 | L12: 139.74 | M12: 160.7 | N12: 75.87 | O12: 87.25 | P12: 150.46 | Q12: 173.03 | R12: 103.59 | S12: 119.13 | T12: 65.72 | U12: 75.58 | V12: 13.18 | W12: 15.16
A13: WEPS | B13: We | C13: 1 | D13: 2 | E13: We12N | I13: ≥ 500V & < 66kV | J13: 454.78 | K13: 523 | L13: 137.76 | M13: 158.42 | N13: 74.81 | O13: 86.03 | P13: 148.38 | Q13: 170.64 | R13: 102.1 | S13: 117.42 | T13: 64.77 | U13: 74.49 | V13: 12.07 | W13: 13.88
A14: WEPS | B14: We | C14: 1 | D14: 3 | E14: We13N | I14: ≥ 66kV & ≤ 132kV | J14: 440.31 | K14: 506.36 | L14: 133.37 | M14: 153.38 | N14: 72.41 | O14: 83.27 | P14: 143.62 | Q14: 165.16 | R14: 98.85 | S14: 113.68 | T14: 62.72 | U14: 72.13 | V14: 11.73 | W14: 13.49
A15: WEPS | B15: We | C15: 1 | D15: 4 | E15: We14N | I15: > 132kV* | J15: 415.06 | K15: 477.32 | L15: 125.76 | M15: 144.62 | N15: 68.24 | O15: 78.48 | P15: 135.38 | Q15: 155.69 | R15: 93.16 | S15: 107.13 | T15: 59.09 | U15: 67.95 | V15: 14.85 | W15: 17.08
A16: WEPS | B16: We | C16: 2 | D16: 1 | E16: We21N | H16: > 600km and ≤ 900km | I16: < 500V | J16: 465.79 | K16: 535.66 | L16: 141.1 | M16: 162.27 | N16: 76.6 | O16: 88.09 | P16: 151.94 | Q16: 174.73 | R16: 104.59 | S16: 120.28 | T16: 66.33 | U16: 76.28 | V16: 13.33 | W16: 15.33
A17: WEPS | B17: We | C17: 2 | D17: 2 | E17: We22N | I17: ≥ 500V & < 66kV | J17: 459.35 | K17: 528.25 | L17: 139.17 | M17: 160.05 | N17: 75.57 | O17: 86.91 | P17: 149.84 | Q17: 172.32 | R17: 103.14 | S17: 118.61 | T17: 65.43 | U17: 75.24 | V17: 12.18 | W17: 14.01
A18: WEPS | B18: We | C18: 2 | D18: 3 | E18: We23N | I18: ≥ 66kV & ≤ 132kV | J18: 444.81 | K18: 511.53 | L18: 134.75 | M18: 154.96 | N18: 73.16 | O18: 84.13 | P18: 145.09 | Q18: 166.85 | R18: 99.88 | S18: 114.86 | T18: 63.37 | U18: 72.88 | V18: 11.8 | W18: 13.57
A19: WEPS | B19: We | C19: 2 | D19: 4 | E19: We24N | I19: > 132kV* | J19: 419.24 | K19: 482.13 | L19: 126.98 | M19: 146.03 | N19: 69 | O19: 79.35 | P19: 136.75 | Q19: 157.26 | R19: 94.11 | S19: 108.23 | T19: 59.72 | U19: 68.68 | V19: 15.07 | W19: 17.33
A20: WEPS | B20: We | C20: 3 | D20: 1 | E20: We31N | H20: > 900km | I20: < 500V | J20: 470.48 | K20: 541.05 | L20: 142.58 | M20: 163.97 | N20: 77.38 | O20: 88.99 | P20: 153.49 | Q20: 176.51 | R20: 105.62 | S20: 121.46 | T20: 67.03 | U20: 77.08 | V20: 13.42 | W20: 15.43
A21: WEPS | B21: We | C21: 3 | D21: 2 | E21: We32N | I21: ≥ 500V & < 66kV | J21: 463.92 | K21: 533.51 | L21: 140.52 | M21: 161.6 | N21: 76.28 | O21: 87.72 | P21: 151.31 | Q21: 174.01 | R21: 104.12 | S21: 119.74 | T21: 66.07 | U21: 75.98 | V21: 12.32 | W21: 14.17
A22: WEPS | B22: We | C22: 3 | D22: 3 | E22: We33N | I22: ≥ 66kV & ≤ 132kV | J22: 449.27 | K22: 516.66 | L22: 136.08 | M22: 156.49 | N22: 73.89 | O22: 84.97 | P22: 146.54 | Q22: 168.52 | R22: 100.86 | S22: 115.99 | T22: 63.99 | U22: 73.59 | V22: 11.91 | W22: 13.7
A23: WEPS | B23: We | C23: 3 | D23: 4 | E23: We34N | I23: > 132kV* | J23: 423.32 | K23: 486.82 | L23: 128.29 | M23: 147.53 | N23: 69.7 | O23: 80.16 | P23: 138.17 | Q23: 158.9 | R23: 95.14 | S23: 109.41 | T23: 60.38 | U23: 69.44 | V23: 15.18 | W23: 17.46
I24: * 132 kV or Transmission connected
H25: Distribution network charges
H26: Voltage | J26: Network capacity charge [R/kVA/m] | L26: Network demand charge [R/kVA/m] | N26: Urban low voltage subsidy charge [R/kVA/m]
Q27: Voltage | S27: Ancillary service charge [c/kWh]
A28: Tariff | B28: Tariff nameBillcode | C28: Tx zone | D28: Voltage | E28: Billcode | K28: VAT incl | M28: VAT incl | O28: VAT incl | T28: VAT incl
A29: WEPS | B29: We | C29: 0 | D29: 1 | E29: We01N | H29: < 500V | J29: 26.01 | K29: =ROUND(J29 * (1 + VAT), 2) -> 29.91 | L29: 49.31 | M29: =ROUND(L29 * (1 + VAT), 2) -> 56.71 | N29: 0 | O29: =ROUND(N29 * (1 + VAT), 2) -> 0 | Q29: < 500V | S29: 0.6 | T29: =ROUND(S29 * (1 + VAT), 2) -> 0.69
A30: WEPS | B30: We | C30: 0 | D30: 2 | E30: We02N | H30: ≥ 500V & < 66kV | J30: 23.85 | K30: =ROUND(J30 * (1 + VAT), 2) -> 27.43 | L30: 45.24 | M30: =ROUND(L30 * (1 + VAT), 2) -> 52.03 | N30: 0 | O30: =ROUND(N30 * (1 + VAT), 2) -> 0 | Q30: ≥ 500V & < 66kV | S30: 0.59 | T30: =ROUND(S30 * (1 + VAT), 2) -> 0.68
A31: WEPS | B31: We | C31: 0 | D31: 3 | E31: We03N | H31: ≥ 66kV & ≤ 132kV | J31: 8.52 | K31: =ROUND(J31 * (1 + VAT), 2) -> 9.8 | L31: 15.77 | M31: =ROUND(L31 * (1 + VAT), 2) -> 18.14 | N31: 21.01 | O31: =ROUND(N31 * (1 + VAT), 2) -> 24.16 | Q31: ≥ 66kV & ≤ 132kV | S31: 0.57 | T31: =ROUND(S31 * (1 + VAT), 2) -> 0.66
A32: WEPS | B32: We | C32: 0 | D32: 4 | E32: We04N | H32: > 132kV* | J32: 0 | K32: =ROUND(J32 * (1 + VAT), 2) -> 0 | L32: 0 | M32: =ROUND(L32 * (1 + VAT), 2) -> 0 | N32: 21.01 | O32: =ROUND(N32 * (1 + VAT), 2) -> 24.16 | Q32: > 132kV* | S32: 0.53 | T32: =ROUND(S32 * (1 + VAT), 2) -> 0.61
H33: * 132 kV or Transmission connected | Q33: * 132 kV or Transmission connected
H35: Customer categories | J35: Service charge [R/account/day] | L35: Administration charge [R/POD/day] | Q35: Reactive energy charge [c/kVArh]
A37: Tariff | B37: Tariff nameBillcode | C37: Tx zone | D37: Voltage | E37: Billcode | K37: VAT incl | M37: VAT incl | Q37: High season | S37: Low season
A38: WEPS | B38: We | C38: 0 | D38: 1 | E38: We01N | H38: ≤ 100 kVA | J38: 21.25 | K38: =ROUND(J38 * (1 + VAT), 2) -> 24.44 | L38: 4.67 | M38: =ROUND(L38 * (1 + VAT), 2) -> 5.37 | R38: VAT incl | T38: VAT incl
A39: WEPS | B39: We | C39: 0 | D39: 1 | E39: We01N | H39: > 100 kVA & ≤ 500 kVA | J39: 97.04 | K39: =ROUND(J39 * (1 + VAT), 2) -> 111.6 | L39: 27.22 | M39: =ROUND(L39 * (1 + VAT), 2) -> 31.3 | Q39: 21.03 | R39: =ROUND(Q39 * (1 + VAT), 2) -> 24.18 | S39: 0 | T39: =ROUND(S39 * (1 + VAT), 2) -> 0
A40: WEPS | B40: We | C40: 0 | D40: 1 | E40: We01N | H40: > 500 kVA & ≤ 1 MVA | J40: 298.57 | K40: =ROUND(J40 * (1 + VAT), 2) -> 343.36 | L40: 54.04 | M40: =ROUND(L40 * (1 + VAT), 2) -> 62.15
A41: WEPS | B41: We | C41: 0 | D41: 1 | E41: We01N | H41: > 1 MVA | J41: 298.57 | K41: =ROUND(J41 * (1 + VAT), 2) -> 343.36 | L41: 134.56 | M41: =ROUND(L41 * (1 + VAT), 2) -> 154.74
A42: WEPS | B42: We | C42: 0 | D42: 1 | E42: We01N | H42: Key customers | J42: 5850.83 | K42: =ROUND(J42 * (1 + VAT), 2) -> 6728.45 | L42: 186.85 | M42: =ROUND(L42 * (1 + VAT), 2) -> 214.88
H45: Electrification and rural network subsidy charge [c/kWh] | J45: Affordability subsidy charge [c/kWh] Only payable by non-local authority tariffs
A48: Tariff | B48: Tariff nameBillcode | C48: Tx zone | D48: Voltage | E48: Billcode | I48: VAT incl | K48: VAT incl
A49: WEPS | B49: We | C49: 0 | D49: 1 | E49: We01N | H49: 11.63 | I49: =ROUND(H49 * (1 + VAT), 2) -> 13.37 | J49: 5.69 | K49: =ROUND(J49 * (1 + VAT), 2) -> 6.54
H52: Active energy charge excluding losses [c/kWh]
H53: High demand season [Jun - Aug] | N53: Low demand season [Sep - May]
H54: Peak | J54: Standard | L54: Off Peak | N54: Peak | P54: Standard | R54: Off Peak
A55: Tariff | B55: Tariff nameBillcode | C55: Tx zone | D55: Voltage | E55: Billcode | I55: VAT incl | K55: VAT incl | M55: VAT incl | O55: VAT incl | Q55: VAT incl | S55: VAT incl
A56: WEPS | B56: We | C56: 0 | D56: 1 | E56: We01N | H56: =ROUND(J11/'Loss Factors'!$T$6, 2) -> 406.59 | I56: =ROUND(H56 * (1 + VAT), 2) -> 467.58 | J56: =ROUND(L11/'Loss Factors'!$T$6, 2) -> 123.15 | K56: =ROUND(J56 * (1 + VAT), 2) -> 141.62 | L56: =ROUND(N11/'Loss Factors'!$T$6, 2) -> 66.89 | M56: =ROUND(L56 * (1 + VAT), 2) -> 76.92 | N56: =ROUND(P11/'Loss Factors'!$T$6, 2) -> 132.67 | O56: =ROUND(N56 * (1 + VAT), 2) -> 152.57 | P56: =ROUND(R11/'Loss Factors'!$T$6, 2) -> 91.28 | Q56: =ROUND(P56 * (1 + VAT), 2) -> 104.97 | R56: =ROUND(T11/'Loss Factors'!$T$6, 2) -> 57.92 | S56: =ROUND(R56 * (1 + VAT), 2) -> 66.61
H58: Active energy charge excluding losses and enviromental levy [c/kWh]
H59: High demand season [Jun - Aug] | N59: Low demand season [Sep - May]
H60: Peak | J60: Standard | L60: Off Peak | N60: Peak | P60: Standard | R60: Off Peak
A61: Tariff | B61: Tariff nameBillcode | C61: Tx zone | D61: Voltage | E61: Billcode | I61: VAT incl | K61: VAT incl | M61: VAT incl | O61: VAT incl | Q61: VAT incl | S61: VAT incl
A62: WEPS | B62: We | C62: 0 | D62: 1 | E62: We01N | H62: 403.1 | I62: 463.57 | J62: 119.66 | K62: 137.61 | L62: 63.4 | M62: 72.91 | N62: 129.18 | O62: 148.56 | P62: 87.79 | Q62: 100.96 | R62: 54.43 | S62: 62.59

Sheet WEPS Munic
G1: Back to menu
A2: Municiple | G2: WEPS – Local Authority
J4: Active energy charge [c/kWh] | V4: Transmission network charges [R/kVA/m]
H5: Transmission zone | J5: High demand season [Jun - Aug] | P5: Low demand season [Sep - May]
I6: Voltage | J6: Peak | L6: Standard | N6: Off Peak | P6: Peak | R6: Standard | T6: Off Peak
A7: Tariff | B7: Tariff nameBillcode | C7: Tx zone | D7: Voltage | E7: Billcode | K7: VAT incl | M7: VAT incl | O7: VAT incl | Q7: VAT incl | S7: VAT incl | U7: VAT incl | W7: VAT incl
A8: WEPS | B8: We | C8: 0 | D8: 1 | E8: =B8&C8&D8&IF($A$2="Non-municipal","N",IF($A$2="Municiple","Y","error")) -> We01Y | H8: ≤ 300km | I8: < 500V | J8: 474.73 | K8: =ROUND(J8 * (1 + VAT), 2) -> 545.94 | L8: 144.46 | M8: =ROUND(L8 * (1 + VAT), 2) -> 166.13 | N8: 78.83 | O8: =ROUND(N8 * (1 + VAT), 2) -> 90.65 | P8: 155.42 | Q8: =ROUND(P8 * (1 + VAT), 2) -> 178.73 | R8: 107.26 | S8: =ROUND(R8 * (1 + VAT), 2) -> 123.35 | T8: 68.37 | U8: =ROUND(T8 * (1 + VAT), 2) -> 78.63 | V8: 13.23 | W8: =ROUND(V8 * (1 + VAT), 2) -> 15.21
A9: WEPS | B9: We | C9: 0 | D9: 2 | E9: =B9&C9&D9&IF($A$2="Non-municipal","N",IF($A$2="Municiple","Y","error")) -> We02Y | I9: ≥ 500V & < 66kV | J9: 467.25 | K9: 537.34 | L9: 141.57 | M9: 162.81 | N9: 76.89 | O9: 88.42 | P9: 152.42 | Q9: 175.28 | R9: 104.9 | S9: 120.64 | T9: 66.57 | U9: 76.56 | V9: 12.07 | W9: 13.88
A10: WEPS | B10: We | C10: 0 | D10: 3 | E10: We03Y | I10: ≥ 66kV & ≤ 132kV | J10: 452.51 | K10: 520.39 | L10: 137.08 | M10: 157.64 | N10: 74.45 | O10: 85.62 | P10: 147.62 | Q10: 169.76 | R10: 101.62 | S10: 116.86 | T10: 64.45 | U10: 74.12 | V10: 11.74 | W10: 13.5
A11: WEPS | B11: We | C11: 0 | D11: 4 | E11: We04Y | I11: > 132kV* | J11: 426.46 | K11: 490.43 | L11: 129.19 | M11: 148.57 | N11: 70.15 | O11: 80.67 | P11: 139.11 | Q11: 159.98 | R11: 95.74 | S11: 110.1 | T11: 60.73 | U11: 69.84 | V11: 14.87 | W11: 17.1
A12: WEPS | B12: We | C12: 1 | D12: 1 | E12: We11Y | H12: > 300km and ≤ 600km | I12: < 500V | J12: 478.61 | K12: 550.4 | L12: 144.98 | M12: 166.73 | N12: 78.72 | O12: 90.53 | P12: 156.13 | Q12: 179.55 | R12: 107.48 | S12: 123.6 | T12: 68.19 | U12: 78.42 | V12: 13.28 | W12: 15.27
A13: WEPS | B13: We | C13: 1 | D13: 2 | E13: We12Y | I13: ≥ 500V & < 66kV | J13: 471.92 | K13: 542.71 | L13: 142.96 | M13: 164.4 | N13: 77.63 | O13: 89.27 | P13: 153.97 | Q13: 177.07 | R13: 105.96 | S13: 121.85 | T13: 67.21 | U13: 77.29 | V13: 12.21 | W13: 14.04
A14: WEPS | B14: We | C14: 1 | D14: 3 | E14: We13Y | I14: ≥ 66kV & ≤ 132kV | J14: 456.93 | K14: 525.47 | L14: 138.41 | M14: 159.17 | N14: 75.16 | O14: 86.43 | P14: 149.06 | Q14: 171.42 | R14: 102.58 | S14: 117.97 | T14: 65.06 | U14: 74.82 | V14: 11.84 | W14: 13.62
A15: WEPS | B15: We | C15: 1 | D15: 4 | E15: We14Y | I15: > 132kV* | J15: 430.71 | K15: 495.32 | L15: 130.51 | M15: 150.09 | N15: 70.85 | O15: 81.48 | P15: 140.48 | Q15: 161.55 | R15: 96.72 | S15: 111.23 | T15: 61.33 | U15: 70.53 | V15: 15.01 | W15: 17.26
A16: WEPS | B16: We | C16: 2 | D16: 1 | E16: We21Y | H16: > 600km and ≤ 900km | I16: < 500V | J16: 483.38 | K16: 555.89 | L16: 146.44 | M16: 168.41 | N16: 79.5 | O16: 91.43 | P16: 157.66 | Q16: 181.31 | R16: 108.54 | S16: 124.82 | T16: 68.86 | U16: 79.19 | V16: 13.46 | W16: 15.48
A17: WEPS | B17: We | C17: 2 | D17: 2 | E17: We22Y | I17: ≥ 500V & < 66kV | J17: 476.68 | K17: 548.18 | L17: 144.39 | M17: 166.05 | N17: 78.42 | O17: 90.18 | P17: 155.53 | Q17: 178.86 | R17: 106.97 | S17: 123.02 | T17: 67.9 | U17: 78.09 | V17: 12.28 | W17: 14.12
A18: WEPS | B18: We | C18: 2 | D18: 3 | E18: We23Y | I18: ≥ 66kV & ≤ 132kV | J18: 461.59 | K18: 530.83 | L18: 139.8 | M18: 160.77 | N18: 75.91 | O18: 87.3 | P18: 150.52 | Q18: 173.1 | R18: 103.6 | S18: 119.14 | T18: 65.7 | U18: 75.56 | V18: 11.93 | W18: 13.72
A19: WEPS | B19: We | C19: 2 | D19: 4 | E19: We24Y | I19: > 132kV* | J19: 435.03 | K19: 500.28 | L19: 131.81 | M19: 151.58 | N19: 71.56 | O19: 82.29 | P19: 141.93 | Q19: 163.22 | R19: 97.67 | S19: 112.32 | T19: 61.96 | U19: 71.25 | V19: 15.22 | W19: 17.5
A20: WEPS | B20: We | C20: 3 | D20: 1 | E20: We31Y | H20: > 900km | I20: < 500V | J20: 488.22 | K20: 561.45 | L20: 147.92 | M20: 170.11 | N20: 80.32 | O20: 92.37 | P20: 159.28 | Q20: 183.17 | R20: 109.61 | S20: 126.05 | T20: 69.55 | U20: 79.98 | V20: 13.52 | W20: 15.55
A21: WEPS | B21: We | C21: 3 | D21: 2 | E21: We32Y | I21: ≥ 500V & < 66kV | J21: 481.44 | K21: 553.66 | L21: 145.83 | M21: 167.7 | N21: 79.21 | O21: 91.09 | P21: 157.03 | Q21: 180.58 | R21: 108.08 | S21: 124.29 | T21: 68.54 | U21: 78.82 | V21: 12.42 | W21: 14.28
A22: WEPS | B22: We | C22: 3 | D22: 3 | E22: We33Y | I22: ≥ 66kV & ≤ 132kV | J22: 466.23 | K22: 536.16 | L22: 141.25 | M22: 162.44 | N22: 76.7 | O22: 88.21 | P22: 152.08 | Q22: 174.89 | R22: 104.65 | S22: 120.35 | T22: 66.39 | U22: 76.35 | V22: 12.02 | W22: 13.82
A23: WEPS | B23: We | C23: 3 | D23: 4 | E23: We34Y | I23: > 132kV* | J23: 439.32 | K23: 505.22 | L23: 133.14 | M23: 153.11 | N23: 72.36 | O23: 83.21 | P23: 143.38 | Q23: 164.89 | R23: 98.69 | S23: 113.49 | T23: 62.64 | U23: 72.04 | V23: 15.31 | W23: 17.61
I24: * 132 kV or Transmission connected
H25: Distribution network charges
H26: Voltage | J26: Network capacity charge [R/kVA/m] | L26: Network demand charge [R/kVA/m] | N26: Urban low voltage subsidy charge [R/kVA/m]
Q27: Voltage | S27: Ancillary service charge [c/kWh]
A28: Tariff | B28: Tariff nameBillcode | C28: Tx zone | D28: Voltage | E28: Billcode | K28: VAT incl | M28: VAT incl | O28: VAT incl | T28: VAT incl
A29: WEPS | B29: We | C29: 0 | D29: 1 | E29: =B29&C29&D29&IF($A$2="Non-municipal","N",IF($A$2="Municiple","Y","error")) -> We01Y | H29: < 500V | J29: 26.38 | K29: =ROUND(J29 * (1 + VAT), 2) -> 30.34 | L29: 49.98 | M29: =ROUND(L29 * (1 + VAT), 2) -> 57.48 | N29: 0 | O29: =ROUND(N29 * (1 + VAT), 2) -> 0 | Q29: < 500V | S29: 0.62 | T29: =ROUND(S29 * (1 + VAT), 2) -> 0.71
A30: WEPS | B30: We | C30: 0 | D30: 2 | E30: =B30&C30&D30&IF($A$2="Non-municipal","N",IF($A$2="Municiple","Y","error")) -> We02Y | H30: ≥ 500V & < 66kV | J30: 24.18 | K30: =ROUND(J30 * (1 + VAT), 2) -> 27.81 | L30: 45.84 | M30: =ROUND(L30 * (1 + VAT), 2) -> 52.72 | N30: 0 | O30: =ROUND(N30 * (1 + VAT), 2) -> 0 | Q30: ≥ 500V & < 66kV | S30: 0.6 | T30: =ROUND(S30 * (1 + VAT), 2) -> 0.69
A31: WEPS | B31: We | C31: 0 | D31: 3 | E31: =B31&C31&D31&IF($A$2="Non-municipal","N",IF($A$2="Municiple","Y","error")) -> We03Y | H31: ≥ 66kV & ≤ 132kV | J31: 8.65 | K31: =ROUND(J31 * (1 + VAT), 2) -> 9.95 | L31: 16 | M31: =ROUND(L31 * (1 + VAT), 2) -> 18.4 | N31: 21.18 | O31: =ROUND(N31 * (1 + VAT), 2) -> 24.36 | Q31: ≥ 66kV & ≤ 132kV | S31: 0.55 | T31: =ROUND(S31 * (1 + VAT), 2) -> 0.63
A32: WEPS | B32: We | C32: 0 | D32: 4 | E32: =B32&C32&D32&IF($A$2="Non-municipal","N",IF($A$2="Municiple","Y","error")) -> We04Y | H32: > 132kV* | J32: 0 | K32: =ROUND(J32 * (1 + VAT), 2) -> 0 | L32: 0 | M32: =ROUND(L32 * (1 + VAT), 2) -> 0 | N32: 21.18 | O32: =ROUND(N32 * (1 + VAT), 2) -> 24.36 | Q32: > 132kV* | S32: 0.52 | T32: =ROUND(S32 * (1 + VAT), 2) -> 0.6
H33: * 132 kV or Transmission connected | Q33: * 132 kV or Transmission connected
H35: Customer categories | J35: Service charge [R/account/day] | L35: Administration charge [R/POD/day] | Q35: Reactive energy charge [c/kVArh]
A37: Tariff | B37: Tariff nameBillcode | C37: Tx zone | D37: Voltage | E37: Billcode | K37: VAT incl | M37: VAT incl | Q37: High season | S37: Low season
A38: WEPS | B38: We | C38: 0 | D38: 1 | E38: =B38&C38&D38&IF($A$2="Non-municipal","N",IF($A$2="Municiple","Y","error")) -> We01Y | H38: ≤ 100 kVA | J38: 21.42 | K38: =ROUND(J38 * (1 + VAT), 2) -> 24.63 | L38: 4.69 | M38: =ROUND(L38 * (1 + VAT), 2) -> 5.39 | R38: VAT incl | T38: VAT incl
A39: WEPS | B39: We | C39: 0 | D39: 1 | E39: =B39&C39&D39&IF($A$2="Non-municipal","N",IF($A$2="Municiple","Y","error")) -> We01Y | H39: > 100 kVA & ≤ 500 kVA | J39: 97.88 | K39: =ROUND(J39 * (1 + VAT), 2) -> 112.56 | L39: 27.41 | M39: =ROUND(L39 * (1 + VAT), 2) -> 31.52 | Q39: 21.19 | R39: =ROUND(Q39 * (1 + VAT), 2) -> 24.37 | S39: 0 | T39: =ROUND(S39 * (1 + VAT), 2) -> 0
A40: WEPS | B40: We | C40: 0 | D40: 1 | E40: =B40&C40&D40&IF($A$2="Non-municipal","N",IF($A$2="Municiple","Y","error")) -> We01Y | H40: > 500 kVA & ≤ 1 MVA | J40: 301.23 | K40: =ROUND(J40 * (1 + VAT), 2) -> 346.41 | L40: 54.53 | M40: =ROUND(L40 * (1 + VAT), 2) -> 62.71
A41: WEPS | B41: We | C41: 0 | D41: 1 | E41: =B41&C41&D41&IF($A$2="Non-municipal","N",IF($A$2="Municiple","Y","error")) -> We01Y | H41: > 1 MVA | J41: 301.23 | K41: =ROUND(J41 * (1 + VAT), 2) -> 346.41 | L41: 135.78 | M41: =ROUND(L41 * (1 + VAT), 2) -> 156.15
A42: WEPS | B42: We | C42: 0 | D42: 1 | E42: =B42&C42&D42&IF($A$2="Non-municipal","N",IF($A$2="Municiple","Y","error")) -> We01Y | H42: Key customers | J42: 5902.88 | K42: =ROUND(J42 * (1 + VAT), 2) -> 6788.31 | L42: 188.51 | M42: =ROUND(L42 * (1 + VAT), 2) -> 216.79
H45: Electrification and rural network subsidy charge [c/kWh]
A48: Tariff | B48: Tariff nameBillcode | C48: Tx zone | D48: Voltage | E48: Billcode | I48: VAT incl
A49: WEPS | B49: We | C49: 0 | D49: 1 | E49: =B49&C49&D49&IF($A$2="Non-municipal","N",IF($A$2="Municiple","Y","error")) -> We01Y | H49: 11.73 | I49: =ROUND(H49 * (1 + VAT), 2) -> 13.49
H52: Active energy charge excluding losses [c/kWh]
H53: High demand season [Jun - Aug] | N53: Low demand season [Sep - May]
H54: Peak | J54: Standard | L54: Off Peak | N54: Peak | P54: Standard | R54: Off Peak
A55: Tariff | B55: Tariff nameBillcode | C55: Tx zone | D55: Voltage | E55: Billcode | I55: VAT incl | K55: VAT incl | M55: VAT incl | O55: VAT incl | Q55: VAT incl | S55: VAT incl
A56: WEPS | B56: We | C56: 0 | D56: 1 | E56: =B56&C56&D56&IF($A$2="Non-municipal","N",IF($A$2="Municiple","Y","error")) -> We01Y | H56: =ROUND(J11/'Loss Factors'!$T$6, 2) -> 421.95 | I56: =ROUND(H56 * (1 + VAT), 2) -> 485.24 | J56: =ROUND(L11/'Loss Factors'!$T$6, 2) -> 127.82 | K56: =ROUND(J56 * (1 + VAT), 2) -> 146.99 | L56: =ROUND(N11/'Loss Factors'!$T$6, 2) -> 69.41 | M56: =ROUND(L56 * (1 + VAT), 2) -> 79.82 | N56: =ROUND(P11/'Loss Factors'!$T$6, 2) -> 137.64 | O56: =ROUND(N56 * (1 + VAT), 2) -> 158.29 | P56: =ROUND(R11/'Loss Factors'!$T$6, 2) -> 94.73 | Q56: =ROUND(P56 * (1 + VAT), 2) -> 108.94 | R56: =ROUND(T11/'Loss Factors'!$T$6, 2) -> 60.09 | S56: =ROUND(R56 * (1 + VAT), 2) -> 69.1
H58: Active energy charge excluding losses and enviromental levy [c/kWh]
H59: High demand season [Jun - Aug] | N59: Low demand season [Sep - May]
H60: Peak | J60: Standard | L60: Off Peak | N60: Peak | P60: Standard | R60: Off Peak
A61: Tariff | B61: Tariff nameBillcode | C61: Tx zone | D61: Voltage | E61: Billcode | I61: VAT incl | K61: VAT incl | M61: VAT incl | O61: VAT incl | Q61: VAT incl | S61: VAT incl
A62: WEPS | B62: We | C62: 0 | D62: 1 | E62: =B62&C62&D62&IF($A$2="Non-municipal","N",IF($A$2="Municiple","Y","error")) -> We01Y | H62: 418.46 | I62: 481.23 | J62: 124.33 | K62: 142.98 | L62: 65.92 | M62: 75.81 | N62: 134.15 | O62: 154.27 | P62: 91.24 | Q62: 104.93 | R62: 56.6 | S62: 65.09

Sheet Nightsave Large NLA
H1: Back to menu
A2: Non-municipal | G2: Nightsave Urban Large – Non-local Authority | AG2: check value
J4: Active energy charge [c/kWh] | N4: Energy demand charge [R/kVA/m] | R4: Transmission network charges [R/kVA/m]
H5: Transmission zone | J5: High demand season [Jun - Aug] | L5: Low demand season [Sep - May] | N5: High demand season [Jun - Aug] | P5: Low demand season [Sep - May]
I6: Voltage
A7: Tariff | B7: Tariff nameBillcode | C7: Tx zone | D7: Voltage | E7: Billcode | K7: VAT incl | M7: VAT incl | O7: VAT incl | Q7: VAT incl | S7: VAT incl
A8: Nightsave Large | B8: NL | C8: 0 | D8: 1 | E8: =B8&C8&D8&IF($A$2="Non-municipal","N",IF($A$2="Municiple","Y","error")) -> NL01N | H8: ≤ 300km | I8: < 500V | J8: 112.99 | K8: =ROUND(J8 * (1 + VAT), 2) -> 129.94 | L8: 87.83 | M8: =ROUND(L8 * (1 + VAT), 2) -> 101 | N8: 343.79 | O8: =ROUND(N8 * (1 + VAT), 2) -> 395.36 | P8: 48.05 | Q8: =ROUND(P8 * (1 + VAT), 2) -> 55.26 | R8: 13.09 | S8: =ROUND(R8 * (1 + VAT), 2) -> 15.05
A9: Nightsave Large | B9: NL | C9: 0 | D9: 2 | E9: =B9&C9&D9&IF($A$2="Non-municipal","N",IF($A$2="Municiple","Y","error")) -> NL02N | I9: ≥ 500V & < 66kV | J9: 106.99 | K9: 123.04 | L9: 83.51 | M9: 96.04 | N9: 332.74 | O9: 382.65 | P9: 46.51 | Q9: 53.49 | R9: 11.96 | S9: 13.75
A10: Nightsave Large | B10: NL | C10: 0 | D10: 3 | E10: NL03N | I10: ≥ 66kV & ≤ 132kV | J10: 106.2 | K10: 122.13 | L10: 82.51 | M10: 94.89 | N10: 320.63 | O10: 368.72 | P10: 44.82 | Q10: 51.54 | R10: 11.64 | S10: 13.39
A11: Nightsave Large | B11: NL | C11: 0 | D11: 4 | E11: NL04N | I11: > 132kV* | J11: 99.34 | K11: 114.24 | L11: 77.24 | M11: 88.83 | N11: 309.29 | O11: 355.68 | P11: 43.23 | Q11: 49.71 | R11: 14.72 | S11: 16.93
A12: Nightsave Large | B12: NL | C12: 1 | D12: 1 | E12: NL11N | H12: > 300km and ≤ 600km | I12: < 500V | J12: 114.5 | K12: 131.68 | L12: 88.8 | M12: 102.12 | N12: 347.33 | O12: 399.43 | P12: 48.51 | Q12: 55.79 | R12: 13.18 | S12: 15.16
A13: Nightsave Large | B13: NL | C13: 1 | D13: 2 | E13: NL12N | I13: ≥ 500V & < 66kV | J13: 109.24 | K13: 125.63 | L13: 85.22 | M13: 98 | N13: 336.13 | O13: 386.55 | P13: 46.92 | Q13: 53.96 | R13: 12.07 | S13: 13.88
A14: Nightsave Large | B14: NL | C14: 1 | D14: 3 | E14: NL13N | I14: ≥ 66kV & ≤ 132kV | J14: 108.43 | K14: 124.69 | L14: 84.19 | M14: 96.82 | N14: 323.8 | O14: 372.37 | P14: 45.24 | Q14: 52.03 | R14: 11.73 | S14: 13.49
A15: Nightsave Large | B15: NL | C15: 1 | D15: 4 | E15: NL14N | I15: > 132kV* | J15: 101.44 | K15: 116.66 | L15: 78.82 | M15: 90.64 | N15: 312.44 | O15: 359.31 | P15: 43.62 | Q15: 50.16 | R15: 14.85 | S15: 17.08
A16: Nightsave Large | B16: NL | C16: 2 | D16: 1 | E16: NL21N | H16: > 600km and ≤ 900km | I16: < 500V | J16: 115.56 | K16: 132.89 | L16: 89.66 | M16: 103.11 | N16: 350.89 | O16: 403.52 | P16: 49.01 | Q16: 56.36 | R16: 13.33 | S16: 15.33
A17: Nightsave Large | B17: NL | C17: 2 | D17: 2 | E17: NL22N | I17: ≥ 500V & < 66kV | J17: 110.32 | K17: 126.87 | L17: 86.1 | M17: 99.02 | N17: 339.5 | O17: 390.43 | P17: 47.45 | Q17: 54.57 | R17: 12.18 | S17: 14.01
A18: Nightsave Large | B18: NL | C18: 2 | D18: 3 | E18: NL23N | I18: ≥ 66kV & ≤ 132kV | J18: 109.48 | K18: 125.9 | L18: 85.02 | M18: 97.77 | N18: 327.07 | O18: 376.13 | P18: 45.7 | Q18: 52.56 | R18: 11.8 | S18: 13.57
A19: Nightsave Large | B19: NL | C19: 2 | D19: 4 | E19: NL24N | I19: > 132kV* | J19: 102.43 | K19: 117.79 | L19: 79.63 | M19: 91.57 | N19: 315.56 | O19: 362.89 | P19: 44.05 | Q19: 50.66 | R19: 15.07 | S19: 17.33
A20: Nightsave Large | B20: NL | C20: 3 | D20: 1 | E20: NL31N | H20: > 900km | I20: < 500V | J20: 116.8 | K20: 134.32 | L20: 90.56 | M20: 104.14 | N20: 354.29 | O20: 407.43 | P20: 49.48 | Q20: 56.9 | R20: 13.42 | S20: 15.43
A21: Nightsave Large | B21: NL | C21: 3 | D21: 2 | E21: NL32N | I21: ≥ 500V & < 66kV | J21: 111.39 | K21: 128.1 | L21: 86.93 | M21: 99.97 | N21: 342.9 | O21: 394.34 | P21: 47.87 | Q21: 55.05 | R21: 12.32 | S21: 14.17
A22: Nightsave Large | B22: NL | C22: 3 | D22: 3 | E22: NL33N | I22: ≥ 66kV & ≤ 132kV | J22: 110.62 | K22: 127.21 | L22: 85.85 | M22: 98.73 | N22: 330.4 | O22: 379.96 | P22: 46.16 | Q22: 53.08 | R22: 11.91 | S22: 13.7
A23: Nightsave Large | B23: NL | C23: 3 | D23: 4 | E23: NL34N | I23: > 132kV* | J23: 103.52 | K23: 119.05 | L23: 80.5 | M23: 92.58 | N23: 318.76 | O23: 366.57 | P23: 44.5 | Q23: 51.18 | R23: 15.18 | S23: 17.46
I24: * 132 kV or Transmission connected
H26: Distribution network charges
H27: Voltage | J27: Network capacity charge [R/kVA/m] | L27: Network demand charge [R/kVA/m] | N27: Urban low voltage subsidy charge [R/kVA/m]
Q28: Voltage | R28: Ancillary service charge [c/kWh]
A29: Tariff | B29: Tariff nameBillcode | C29: Tx zone | D29: Voltage | E29: Billcode | K29: VAT incl | M29: VAT incl | O29: VAT incl | S29: VAT incl
A30: Nightsave Large | B30: NL | C30: 0 | D30: 1 | E30: =B30&C30&D30&IF($A$2="Non-municipal","N",IF($A$2="Municiple","Y","error")) -> NL01N | H30: < 500V | J30: 26.01 | K30: =ROUND(J30 * (1 + VAT), 2) -> 29.91 | L30: 49.31 | M30: =ROUND(L30 * (1 + VAT), 2) -> 56.71 | N30: 0 | O30: =ROUND(N30 * (1 + VAT), 2) -> 0 | Q30: < 500V | R30: 0.6 | S30: =ROUND(R30 * (1 + VAT), 2) -> 0.69
A31: Nightsave Large | B31: NL | C31: 0 | D31: 2 | E31: =B31&C31&D31&IF($A$2="Non-municipal","N",IF($A$2="Municiple","Y","error")) -> NL02N | H31: ≥ 500V & < 66kV | J31: 23.85 | K31: =ROUND(J31 * (1 + VAT), 2) -> 27.43 | L31: 45.24 | M31: =ROUND(L31 * (1 + VAT), 2) -> 52.03 | N31: 0 | O31: =ROUND(N31 * (1 + VAT), 2) -> 0 | Q31: ≥ 500V & < 66kV | R31: 0.59 | S31: =ROUND(R31 * (1 + VAT), 2) -> 0.68
A32: Nightsave Large | B32: NL | C32: 0 | D32: 3 | E32: =B32&C32&D32&IF($A$2="Non-municipal","N",IF($A$2="Municiple","Y","error")) -> NL03N | H32: ≥ 66kV & ≤ 132kV | J32: 8.52 | K32: =ROUND(J32 * (1 + VAT), 2) -> 9.8 | L32: 15.77 | M32: =ROUND(L32 * (1 + VAT), 2) -> 18.14 | N32: 21.01 | O32: =ROUND(N32 * (1 + VAT), 2) -> 24.16 | Q32: ≥ 66kV & ≤ 132kV | R32: 0.57 | S32: =ROUND(R32 * (1 + VAT), 2) -> 0.66
A33: Nightsave Large | B33: NL | C33: 0 | D33: 4 | E33: =B33&C33&D33&IF($A$2="Non-municipal","N",IF($A$2="Municiple","Y","error")) -> NL04N | H33: > 132kV / Transmission connected | J33: 0 | K33: =ROUND(J33 * (1 + VAT), 2) -> 0 | L33: 0 | M33: =ROUND(L33 * (1 + VAT), 2) -> 0 | N33: 21.01 | O33: =ROUND(N33 * (1 + VAT), 2) -> 24.16 | Q33: > 132kV* | R33: 0.53 | S33: =ROUND(R33 * (1 + VAT), 2) -> 0.61
Q34: * 132 kV or Transmission connected
H36: Customer categories | I36: Service charge [R/account/day] | K36: Administration charge [R/POD/day] | N36: Electrification and rural network subsidy charge [c/kWh] | P36: Affordability subsidy charge [c/kWh] Only payable by non-local authority tariffs
A38: Tariff | B38: Tariff nameBillcode | C38: Tx zone | D38: Voltage | E38: Billcode | J38: VAT incl | L38: VAT incl
A39: Nightsave Large | B39: NL | C39: 0 | D39: 1 | E39: =B39&C39&D39&IF($A$2="Non-municipal","N",IF($A$2="Municiple","Y","error")) -> NL01N | H39: >1 MVA | I39: 298.57 | J39: =ROUND(I39 * (1 + VAT), 2) -> 343.36 | K39: 134.56 | L39: =ROUND(K39 * (1 + VAT), 2) -> 154.74 | O39: VAT incl | Q39: VAT incl
A40: Nightsave Large | B40: NL | C40: 0 | D40: 1 | E40: =B40&C40&D40&IF($A$2="Non-municipal","N",IF($A$2="Municiple","Y","error")) -> NL01N | H40: Key customers | I40: 5850.83 | J40: =ROUND(I40 * (1 + VAT), 2) -> 6728.45 | K40: 186.85 | L40: =ROUND(K40 * (1 + VAT), 2) -> 214.88 | N40: 11.63 | O40: =ROUND(N40 * (1 + VAT), 2) -> 13.37 | P40: 5.69 | Q40: =ROUND(P40 * (1 + VAT), 2) -> 6.54
A46: Tariff | B46: Tariff nameBillcode | C46: Tx zone | D46: Voltage | E46: Billcode
A47: Nightsave Large | B47: NL | C47: 0 | D47: 1 | E47: =B47&C47&D47&IF($A$2="Non-municipal","N",IF($A$2="Municiple","Y","error")) -> NL01N

Sheet Nightsave Large Munic
H1: Back to menu
A2: Municiple | G2: Nightsave Urban Large – Local Authority | AG2: check value
J4: Active energy charge [c/kWh] | N4: Energy demand charge [R/kVA/m] | R4: Transmission network charges [R/kVA/m]
H5: Transmission zone | J5: High demand season [Jun - Aug] | L5: Low demand season [Sep - May] | N5: High demand season [Jun - Aug] | P5: Low demand season [Sep - May]
I6: Voltage
A7: Tariff | B7: Tariff nameBillcode | C7: Tx zone | D7: Voltage | E7: Billcode | K7: VAT incl | M7: VAT incl | O7: VAT incl | Q7: VAT incl | S7: VAT incl
A8: Nightsave Large | B8: NL | C8: 0 | D8: 1 | E8: NL01Y | H8: ≤ 300km | I8: < 500V | J8: 117.26 | K8: =ROUND(J8 * (1 + VAT), 2) -> 134.85 | L8: 91.17 | M8: =ROUND(L8 * (1 + VAT), 2) -> 104.85 | N8: 350.07 | O8: =ROUND(N8 * (1 + VAT), 2) -> 402.58 | P8: 48.91 | Q8: =ROUND(P8 * (1 + VAT), 2) -> 56.25 | R8: 13.23 | S8: =ROUND(R8 * (1 + VAT), 2) -> 15.21
A9: Nightsave Large | B9: NL | C9: 0 | D9: 2 | E9: NL02Y | I9: ≥ 500V & < 66kV | J9: 111.03 | K9: 127.68 | L9: 86.67 | M9: 99.67 | N9: 338.83 | O9: 389.65 | P9: 47.38 | Q9: 54.49 | R9: 12.07 | S9: 13.88
A10: Nightsave Large | B10: NL | C10: 0 | D10: 3 | E10: NL03Y | I10: ≥ 66kV & ≤ 132kV | J10: 110.21 | K10: 126.74 | L10: 85.6 | M10: 98.44 | N10: 326.49 | O10: 375.46 | P10: 45.63 | Q10: 52.47 | R10: 11.74 | S10: 13.5
A11: Nightsave Large | B11: NL | C11: 0 | D11: 4 | E11: NL04Y | I11: > 132kV* | J11: 103.11 | K11: 118.58 | L11: 80.17 | M11: 92.2 | N11: 314.96 | O11: 362.2 | P11: 44 | Q11: 50.6 | R11: 14.87 | S11: 17.1
A12: Nightsave Large | B12: NL | C12: 1 | D12: 1 | E12: NL11Y | H12: > 300km and ≤ 600km | I12: < 500V | J12: 118.79 | K12: 136.61 | L12: 92.16 | M12: 105.98 | N12: 353.7 | O12: 406.76 | P12: 49.38 | Q12: 56.79 | R12: 13.28 | S12: 15.27
A13: Nightsave Large | B13: NL | C13: 1 | D13: 2 | E13: NL12Y | I13: ≥ 500V & < 66kV | J13: 113.35 | K13: 130.35 | L13: 88.41 | M13: 101.67 | N13: 342.25 | O13: 393.59 | P13: 47.79 | Q13: 54.96 | R13: 12.21 | S13: 14.04
A14: Nightsave Large | B14: NL | C14: 1 | D14: 3 | E14: NL13Y | I14: ≥ 66kV & ≤ 132kV | J14: 112.51 | K14: 129.39 | L14: 87.39 | M14: 100.5 | N14: 329.75 | O14: 379.21 | P14: 46.07 | Q14: 52.98 | R14: 11.84 | S14: 13.62
A15: Nightsave Large | B15: NL | C15: 1 | D15: 4 | E15: NL14Y | I15: > 132kV* | J15: 105.23 | K15: 121.01 | L15: 81.82 | M15: 94.09 | N15: 318.15 | O15: 365.87 | P15: 44.43 | Q15: 51.09 | R15: 15.01 | S15: 17.26
A16: Nightsave Large | B16: NL | C16: 2 | D16: 1 | E16: NL21Y | H16: > 600km and ≤ 900km | I16: < 500V | J16: 119.92 | K16: 137.91 | L16: 93.02 | M16: 106.97 | N16: 357.28 | O16: 410.87 | P16: 49.91 | Q16: 57.4 | R16: 13.46 | S16: 15.48
A17: Nightsave Large | B17: NL | C17: 2 | D17: 2 | E17: NL22Y | I17: ≥ 500V & < 66kV | J17: 114.49 | K17: 131.66 | L17: 89.33 | M17: 102.73 | N17: 345.73 | O17: 397.59 | P17: 48.31 | Q17: 55.56 | R17: 12.28 | S17: 14.12
A18: Nightsave Large | B18: NL | C18: 2 | D18: 3 | E18: NL23Y | I18: ≥ 66kV & ≤ 132kV | J18: 113.63 | K18: 130.67 | L18: 88.26 | M18: 101.5 | N18: 333.06 | O18: 383.02 | P18: 46.52 | Q18: 53.5 | R18: 11.93 | S18: 13.72
A19: Nightsave Large | B19: NL | C19: 2 | D19: 4 | E19: NL24Y | I19: > 132kV* | J19: 106.29 | K19: 122.23 | L19: 82.64 | M19: 95.04 | N19: 321.37 | O19: 369.58 | P19: 44.91 | Q19: 51.65 | R19: 15.22 | S19: 17.5
A20: Nightsave Large | B20: NL | C20: 3 | D20: 1 | E20: NL31Y | H20: > 900km | I20: < 500V | J20: 121.2 | K20: 139.38 | L20: 93.97 | M20: 108.07 | N20: 360.8 | O20: 414.92 | P20: 50.4 | Q20: 57.96 | R20: 13.52 | S20: 15.55
A21: Nightsave Large | B21: NL | C21: 3 | D21: 2 | E21: NL32Y | I21: ≥ 500V & < 66kV | J21: 115.63 | K21: 132.97 | L21: 90.19 | M21: 103.72 | N21: 349.18 | O21: 401.56 | P21: 48.74 | Q21: 56.05 | R21: 12.42 | S21: 14.28
A22: Nightsave Large | B22: NL | C22: 3 | D22: 3 | E22: NL33Y | I22: ≥ 66kV & ≤ 132kV | J22: 114.77 | K22: 131.99 | L22: 89.11 | M22: 102.48 | N22: 336.43 | O22: 386.89 | P22: 47.02 | Q22: 54.07 | R22: 12.02 | S22: 13.82
A23: Nightsave Large | B23: NL | C23: 3 | D23: 4 | E23: NL34Y | I23: > 132kV* | J23: 107.45 | K23: 123.57 | L23: 83.56 | M23: 96.09 | N23: 324.6 | O23: 373.29 | P23: 45.31 | Q23: 52.11 | R23: 15.31 | S23: 17.61
I24: * 132 kV or Transmission connected
H26: Distribution network charges
H27: Voltage | J27: Network capacity charge [R/kVA/m] | L27: Network demand charge [R/kVA/m] | N27: Urban low voltage subsidy charge [R/kVA/m]
Q28: Voltage | R28: Ancillary service charge [c/kWh]
A29: Tariff | B29: Tariff nameBillcode | C29: Tx zone | D29: Voltage | E29: Billcode | K29: VAT incl | M29: VAT incl | O29: VAT incl | S29: VAT incl
A30: Nightsave Large | B30: NL | C30: 0 | D30: 1 | E30: NL01Y | H30: < 500V | J30: 26.38 | K30: =ROUND(J30 * (1 + VAT), 2) -> 30.34 | L30: 49.98 | M30: =ROUND(L30 * (1 + VAT), 2) -> 57.48 | N30: 0 | O30: =ROUND(N30 * (1 + VAT), 2) -> 0 | Q30: < 500V | R30: 0.62 | S30: =ROUND(R30 * (1 + VAT), 2) -> 0.71
A31: Nightsave Large | B31: NL | C31: 0 | D31: 2 | E31: NL02Y | H31: ≥ 500V & < 66kV | J31: 24.18 | K31: =ROUND(J31 * (1 + VAT), 2) -> 27.81 | L31: 45.84 | M31: =ROUND(L31 * (1 + VAT), 2) -> 52.72 | N31: 0 | O31: =ROUND(N31 * (1 + VAT), 2) -> 0 | Q31: ≥ 500V & < 66kV | R31: 0.6 | S31: =ROUND(R31 * (1 + VAT), 2) -> 0.69
A32: Nightsave Large | B32: NL | C32: 0 | D32: 3 | E32: NL03Y | H32: ≥ 66kV & ≤ 132kV | J32: 8.65 | K32: =ROUND(J32 * (1 + VAT), 2) -> 9.95 | L32: 16 | M32: =ROUND(L32 * (1 + VAT), 2) -> 18.4 | N32: 21.18 | O32: =ROUND(N32 * (1 + VAT), 2) -> 24.36 | Q32: ≥ 66kV & ≤ 132kV | R32: 0.55 | S32: =ROUND(R32 * (1 + VAT), 2) -> 0.63
A33: Nightsave Large | B33: NL | C33: 0 | D33: 4 | E33: NL04Y | H33: > 132kV / Transmission connected | J33: 0 | K33: =ROUND(J33 * (1 + VAT), 2) -> 0 | L33: 0 | M33: =ROUND(L33 * (1 + VAT), 2) -> 0 | N33: 21.18 | O33: =ROUND(N33 * (1 + VAT), 2) -> 24.36 | Q33: > 132kV* | R33: 0.52 | S33: =ROUND(R33 * (1 + VAT), 2) -> 0.6
Q34: * 132 kV or Transmission connected
H36: Customer categories | I36: Service charge [R/account/day] | K36: Administration charge [R/POD/day] | N36: Electrification and rural network subsidy charge [c/kWh]
A38: Tariff | B38: Tariff nameBillcode | C38: Tx zone | D38: Voltage | E38: Billcode | J38: VAT incl | L38: VAT incl
A39: Nightsave Large | B39: NL | C39: 0 | D39: 1 | E39: NL01Y | H39: >1 MVA | I39: 301.23 | J39: =ROUND(I39 * (1 + VAT), 2) -> 346.41 | K39: 135.78 | L39: =ROUND(K39 * (1 + VAT), 2) -> 156.15 | O39: VAT incl
A40: Nightsave Large | B40: NL | C40: 0 | D40: 1 | E40: NL01Y | H40: Key customers | I40: 5902.88 | J40: =ROUND(I40 * (1 + VAT), 2) -> 6788.31 | K40: 188.51 | L40: =ROUND(K40 * (1 + VAT), 2) -> 216.79 | N40: 11.73 | O40: =ROUND(N40 * (1 + VAT), 2) -> 13.49
A46: Tariff | B46: Tariff nameBillcode | C46: Tx zone | D46: Voltage | E46: Billcode
A47: Nightsave Large | B47: NL | C47: 0 | D47: 1 | E47: NL01Y

Sheet Nightsave Small NLA
G1: Back to menu
A2: Non-municipal | G2: Nightsave Urban Small – Non-local Authority | AF2: =SUM(#REF!,#REF!,#REF!,#REF!,#REF!,#REF!,#REF!,#REF!,#REF!) ->  | AG2: check value
J4: Active energy charge [c/kWh] | N4: Energy demand charge [R/kVA/m] | R4: Transmission network charges [R/kVA/m]
H5: Transmission zone | J5: High demand season [Jun - Aug] | L5: Low demand season [Sep - May] | N5: High demand season [Jun - Aug] | P5: Low demand season [Sep - May]
I6: Voltage
A7: Tariff | B7: Tariff nameBillcode | C7: Tx zone | D7: Voltage | E7: Billcode | K7: VAT incl | M7: VAT incl | O7: VAT incl | Q7: VAT incl | S7: VAT incl
A8: Nightsave Small | B8: NS | C8: 0 | D8: 1 | E8: =B8&C8&D8&IF($A$2="Non-municipal","N",IF($A$2="Municiple","Y","error")) -> NS01N | H8: ≤ 300km | I8: < 500V | J8: 112.99 | K8: =ROUND(J8 * (1 + VAT), 2) -> 129.94 | L8: 87.83 | M8: =ROUND(L8 * (1 + VAT), 2) -> 101 | N8: 241.44 | O8: =ROUND(N8 * (1 + VAT), 2) -> 277.66 | P8: 31.12 | Q8: =ROUND(P8 * (1 + VAT), 2) -> 35.79 | R8: 13.09 | S8: =ROUND(R8 * (1 + VAT), 2) -> 15.05
A9: Nightsave Small | B9: NS | C9: 0 | D9: 2 | E9: =B9&C9&D9&IF($A$2="Non-municipal","N",IF($A$2="Municiple","Y","error")) -> NS02N | I9: ≥ 500V & < 66kV | J9: 106.99 | K9: 123.04 | L9: 83.51 | M9: 96.04 | N9: 233.67 | O9: 268.72 | P9: 30.07 | Q9: 34.58 | R9: 11.96 | S9: 13.75
A10: Nightsave Small | B10: NS | C10: 0 | D10: 3 | E10: NS03N | I10: ≥ 66kV & ≤ 132kV | J10: 106.2 | K10: 122.13 | L10: 82.51 | M10: 94.89 | N10: 225.07 | O10: 258.83 | P10: 28.95 | Q10: 33.29 | R10: 11.64 | S10: 13.39
A11: Nightsave Small | B11: NS | C11: 0 | D11: 4 | E11: NS04N | I11: > 132kV* | J11: 99.34 | K11: 114.24 | L11: 77.24 | M11: 88.83 | N11: 217.2 | O11: 249.78 | P11: 27.94 | Q11: 32.13 | R11: 14.72 | S11: 16.93
A12: Nightsave Small | B12: NS | C12: 1 | D12: 1 | E12: NS11N | H12: > 300km and ≤ 600km | I12: < 500V | J12: 114.5 | K12: 131.68 | L12: 88.8 | M12: 102.12 | N12: 243.92 | O12: 280.51 | P12: 31.37 | Q12: 36.08 | R12: 13.18 | S12: 15.16
A13: Nightsave Small | B13: NS | C13: 1 | D13: 2 | E13: NS12N | I13: ≥ 500V & < 66kV | J13: 109.24 | K13: 125.63 | L13: 85.22 | M13: 98 | N13: 236.01 | O13: 271.41 | P13: 30.37 | Q13: 34.93 | R13: 12.07 | S13: 13.88
A14: Nightsave Small | B14: NS | C14: 1 | D14: 3 | E14: NS13N | I14: ≥ 66kV & ≤ 132kV | J14: 108.43 | K14: 124.69 | L14: 84.19 | M14: 96.82 | N14: 227.39 | O14: 261.5 | P14: 29.25 | Q14: 33.64 | R14: 11.73 | S14: 13.49
A15: Nightsave Small | B15: NS | C15: 1 | D15: 4 | E15: NS14N | I15: > 132kV* | J15: 101.44 | K15: 116.66 | L15: 78.82 | M15: 90.64 | N15: 219.37 | O15: 252.28 | P15: 28.22 | Q15: 32.45 | R15: 14.85 | S15: 17.08
A16: Nightsave Small | B16: NS | C16: 2 | D16: 1 | E16: NS21N | H16: > 600km and ≤ 900km | I16: < 500V | J16: 115.56 | K16: 132.89 | L16: 89.66 | M16: 103.11 | N16: 246.3 | O16: 283.25 | P16: 31.66 | Q16: 36.41 | R16: 13.33 | S16: 15.33
A17: Nightsave Small | B17: NS | C17: 2 | D17: 2 | E17: NS22N | I17: ≥ 500V & < 66kV | J17: 110.32 | K17: 126.87 | L17: 86.1 | M17: 99.02 | N17: 238.43 | O17: 274.19 | P17: 30.67 | Q17: 35.27 | R17: 12.18 | S17: 14.01
A18: Nightsave Small | B18: NS | C18: 2 | D18: 3 | E18: NS23N | I18: ≥ 66kV & ≤ 132kV | J18: 109.48 | K18: 125.9 | L18: 85.02 | M18: 97.77 | N18: 229.69 | O18: 264.14 | P18: 29.55 | Q18: 33.98 | R18: 11.8 | S18: 13.57
A19: Nightsave Small | B19: NS | C19: 2 | D19: 4 | E19: NS24N | I19: > 132kV* | J19: 102.43 | K19: 117.79 | L19: 79.63 | M19: 91.57 | N19: 221.53 | O19: 254.76 | P19: 28.5 | Q19: 32.78 | R19: 15.07 | S19: 17.33
A20: Nightsave Small | B20: NS | C20: 3 | D20: 1 | E20: NS31N | H20: > 900km | I20: < 500V | J20: 116.8 | K20: 134.32 | L20: 90.56 | M20: 104.14 | N20: 248.83 | O20: 286.15 | P20: 32 | Q20: 36.8 | R20: 13.42 | S20: 15.43
A21: Nightsave Small | B21: NS | C21: 3 | D21: 2 | E21: NS32N | I21: ≥ 500V & < 66kV | J21: 111.39 | K21: 128.1 | L21: 86.93 | M21: 99.97 | N21: 240.77 | O21: 276.89 | P21: 30.99 | Q21: 35.64 | R21: 12.32 | S21: 14.17
A22: Nightsave Small | B22: NS | C22: 3 | D22: 3 | E22: NS33N | I22: ≥ 66kV & ≤ 132kV | J22: 110.62 | K22: 127.21 | L22: 85.85 | M22: 98.73 | N22: 232.02 | O22: 266.82 | P22: 29.87 | Q22: 34.35 | R22: 11.91 | S22: 13.7
A23: Nightsave Small | B23: NS | C23: 3 | D23: 4 | E23: NS34N | I23: > 132kV* | J23: 103.52 | K23: 119.05 | L23: 80.5 | M23: 92.58 | N23: 223.86 | O23: 257.44 | P23: 28.83 | Q23: 33.15 | R23: 15.18 | S23: 17.46
I24: * 132 kV or Transmission connected
H26: Distribution network charges
J27: Network capacity charge [R/kVA/m] | L27: Network demand charge [R/kVA/m] | N27: Urban low voltage subsidy charge [R/kVA/m]
H28: Voltage | Q28: Voltage | R28: Ancillary service charge [c/kWh]
A29: Tariff | B29: Tariff nameBillcode | C29: Tx zone | D29: Voltage | E29: Billcode | K29: VAT incl | M29: VAT incl | O29: VAT incl | S29: VAT incl
A30: Nightsave Small | B30: NS | C30: 0 | D30: 1 | E30: =B30&C30&D30&IF($A$2="Non-municipal","N",IF($A$2="Municiple","Y","error")) -> NS01N | H30: < 500V | J30: 26.01 | K30: =ROUND(J30 * (1 + VAT), 2) -> 29.91 | L30: 49.31 | M30: =ROUND(L30 * (1 + VAT), 2) -> 56.71 | N30: 0 | O30: =ROUND(N30 * (1 + VAT), 2) -> 0 | Q30: < 500V | R30: 0.6 | S30: =ROUND(R30 * (1 + VAT), 2) -> 0.69
A31: Nightsave Small | B31: NS | C31: 0 | D31: 2 | E31: =B31&C31&D31&IF($A$2="Non-municipal","N",IF($A$2="Municiple","Y","error")) -> NS02N | H31: ≥ 500V & < 66kV | J31: 23.85 | K31: =ROUND(J31 * (1 + VAT), 2) -> 27.43 | L31: 45.24 | M31: =ROUND(L31 * (1 + VAT), 2) -> 52.03 | N31: 0 | O31: =ROUND(N31 * (1 + VAT), 2) -> 0 | Q31: ≥ 500V & < 66kV | R31: 0.59 | S31: =ROUND(R31 * (1 + VAT), 2) -> 0.68
A32: Nightsave Small | B32: NS | C32: 0 | D32: 3 | E32: =B32&C32&D32&IF($A$2="Non-municipal","N",IF($A$2="Municiple","Y","error")) -> NS03N | H32: ≥ 66kV & ≤ 132kV | J32: 8.52 | K32: =ROUND(J32 * (1 + VAT), 2) -> 9.8 | L32: 15.77 | M32: =ROUND(L32 * (1 + VAT), 2) -> 18.14 | N32: 21.01 | O32: =ROUND(N32 * (1 + VAT), 2) -> 24.16 | Q32: ≥ 66kV & ≤ 132kV | R32: 0.57 | S32: =ROUND(R32 * (1 + VAT), 2) -> 0.66
A33: Nightsave Small | B33: NS | C33: 0 | D33: 4 | E33: =B33&C33&D33&IF($A$2="Non-municipal","N",IF($A$2="Municiple","Y","error")) -> NS04N | H33: > 132kV / Transmission connected | J33: 0 | K33: =ROUND(J33 * (1 + VAT), 2) -> 0 | L33: 0 | M33: =ROUND(L33 * (1 + VAT), 2) -> 0 | N33: 21.01 | O33: =ROUND(N33 * (1 + VAT), 2) -> 24.16 | Q33: > 132kV* | R33: 0.53 | S33: =ROUND(R33 * (1 + VAT), 2) -> 0.61
Q34: * 132 kV or Transmission connected
H36: Customer categories | I36: Service charge [R/account/day] | K36: Administration charge [R/POD/day] | N36: Electrification and rural network subsidy charge [c/kWh] | P36: Affordability subsidy charge [c/kWh] Only payable by non-local authority tariffs
A38: Tariff | B38: Tariff nameBillcode | C38: Tx zone | D38: Voltage | E38: Billcode | J38: VAT incl | L38: VAT incl
A39: Nightsave Small | B39: NS | C39: 0 | D39: 1 | E39: =B39&C39&D39&IF($A$2="Non-municipal","N",IF($A$2="Municiple","Y","error")) -> NS01N | H39: ≤ 100 kVA | I39: 21.25 | J39: =ROUND(I39 * (1 + VAT), 2) -> 24.44 | K39: 4.67 | L39: =ROUND(K39 * (1 + VAT), 2) -> 5.37 | O39: VAT incl | Q39: VAT incl
A40: Nightsave Small | B40: NS | C40: 0 | D40: 1 | E40: =B40&C40&D40&IF($A$2="Non-municipal","N",IF($A$2="Municiple","Y","error")) -> NS01N | H40: > 100 kVA & ≤ 500 kVA | I40: 97.04 | J40: =ROUND(I40 * (1 + VAT), 2) -> 111.6 | K40: 27.22 | L40: =ROUND(K40 * (1 + VAT), 2) -> 31.3 | N40: 11.63 | O40: =ROUND(N40 * (1 + VAT), 2) -> 13.37 | P40: 5.69 | Q40: =ROUND(P40 * (1 + VAT), 2) -> 6.54
A41: Nightsave Small | B41: NS | C41: 0 | D41: 1 | E41: =B41&C41&D41&IF($A$2="Non-municipal","N",IF($A$2="Municiple","Y","error")) -> NS01N | H41: > 500 kVA & ≤ 1 MVA | I41: 298.57 | J41: =ROUND(I41 * (1 + VAT), 2) -> 343.36 | K41: 54.04 | L41: =ROUND(K41 * (1 + VAT), 2) -> 62.15
A42: Nightsave Small | B42: NS | C42: 0 | D42: 1 | E42: =B42&C42&D42&IF($A$2="Non-municipal","N",IF($A$2="Municiple","Y","error")) -> NS01N | H42: Key customers | I42: 5850.83 | J42: =ROUND(I42 * (1 + VAT), 2) -> 6728.45 | K42: 186.85 | L42: =ROUND(K42 * (1 + VAT), 2) -> 214.88
A47: Tariff | B47: Tariff nameBillcode | C47: Tx zone | D47: Voltage | E47: Billcode
A48: Nightsave Small | B48: NS | C48: 0 | D48: 1 | E48: =B48&C48&D48&IF($A$2="Non-municipal","N",IF($A$2="Municiple","Y","error")) -> NS01N

Sheet Nightsave Small Munic
G1: Back to menu
A2: Municiple | G2: Nightsave Urban Small – Local Authority | AF2: =SUM(#REF!,#REF!,#REF!,#REF!,#REF!,#REF!,#REF!,#REF!,#REF!) ->  | AG2: check value
J4: Active energy charge [c/kWh] | N4: Energy demand charge [R/kVA/m] | R4: Transmission network charges [R/kVA/m]
H5: Transmission zone | J5: High demand season [Jun - Aug] | L5: Low demand season [Sep - May] | N5: High demand season [Jun - Aug] | P5: Low demand season [Sep - May]
I6: Voltage
A7: Tariff | B7: Tariff nameBillcode | C7: Tx zone | D7: Voltage | E7: Billcode | K7: VAT incl | M7: VAT incl | O7: VAT incl | Q7: VAT incl | S7: VAT incl
A8: Nightsave Small | B8: NS | C8: 0 | D8: 1 | E8: NS01Y | H8: ≤ 300km | I8: < 500V | J8: 117.26 | K8: =ROUND(J8 * (1 + VAT), 2) -> 134.85 | L8: 91.17 | M8: =ROUND(L8 * (1 + VAT), 2) -> 104.85 | N8: 245.84 | O8: =ROUND(N8 * (1 + VAT), 2) -> 282.72 | P8: 31.7 | Q8: =ROUND(P8 * (1 + VAT), 2) -> 36.46 | R8: 13.23 | S8: =ROUND(R8 * (1 + VAT), 2) -> 15.21
A9: Nightsave Small | B9: NS | C9: 0 | D9: 2 | E9: NS02Y | I9: ≥ 500V & < 66kV | J9: 111.03 | K9: 127.68 | L9: 86.67 | M9: 99.67 | N9: 237.92 | O9: 273.61 | P9: 30.62 | Q9: 35.21 | R9: 12.07 | S9: 13.88
A10: Nightsave Small | B10: NS | C10: 0 | D10: 3 | E10: NS03Y | I10: ≥ 66kV & ≤ 132kV | J10: 110.21 | K10: 126.74 | L10: 85.6 | M10: 98.44 | N10: 229.21 | O10: 263.59 | P10: 29.47 | Q10: 33.89 | R10: 11.74 | S10: 13.5
A11: Nightsave Small | B11: NS | C11: 0 | D11: 4 | E11: NS04Y | I11: > 132kV* | J11: 103.11 | K11: 118.58 | L11: 80.17 | M11: 92.2 | N11: 221.17 | O11: 254.35 | P11: 28.46 | Q11: 32.73 | R11: 14.87 | S11: 17.1
A12: Nightsave Small | B12: NS | C12: 1 | D12: 1 | E12: NS11Y | H12: > 300km and ≤ 600km | I12: < 500V | J12: 118.79 | K12: 136.61 | L12: 92.16 | M12: 105.98 | N12: 248.38 | O12: 285.64 | P12: 31.96 | Q12: 36.75 | R12: 13.28 | S12: 15.27
A13: Nightsave Small | B13: NS | C13: 1 | D13: 2 | E13: NS12Y | I13: ≥ 500V & < 66kV | J13: 113.35 | K13: 130.35 | L13: 88.41 | M13: 101.67 | N13: 240.39 | O13: 276.45 | P13: 30.9 | Q13: 35.54 | R13: 12.21 | S13: 14.04
A14: Nightsave Small | B14: NS | C14: 1 | D14: 3 | E14: NS13Y | I14: ≥ 66kV & ≤ 132kV | J14: 112.51 | K14: 129.39 | L14: 87.39 | M14: 100.5 | N14: 231.58 | O14: 266.32 | P14: 29.76 | Q14: 34.22 | R14: 11.84 | S14: 13.62
A15: Nightsave Small | B15: NS | C15: 1 | D15: 4 | E15: NS14Y | I15: > 132kV* | J15: 105.23 | K15: 121.01 | L15: 81.82 | M15: 94.09 | N15: 223.39 | O15: 256.9 | P15: 28.74 | Q15: 33.05 | R15: 15.01 | S15: 17.26
A16: Nightsave Small | B16: NS | C16: 2 | D16: 1 | E16: NS21Y | H16: > 600km and ≤ 900km | I16: < 500V | J16: 119.92 | K16: 137.91 | L16: 93.02 | M16: 106.97 | N16: 250.86 | O16: 288.49 | P16: 32.26 | Q16: 37.1 | R16: 13.46 | S16: 15.48
A17: Nightsave Small | B17: NS | C17: 2 | D17: 2 | E17: NS22Y | I17: ≥ 500V & < 66kV | J17: 114.49 | K17: 131.66 | L17: 89.33 | M17: 102.73 | N17: 242.78 | O17: 279.2 | P17: 31.25 | Q17: 35.94 | R17: 12.28 | S17: 14.12
A18: Nightsave Small | B18: NS | C18: 2 | D18: 3 | E18: NS23Y | I18: ≥ 66kV & ≤ 132kV | J18: 113.63 | K18: 130.67 | L18: 88.26 | M18: 101.5 | N18: 233.9 | O18: 268.99 | P18: 30.07 | Q18: 34.58 | R18: 11.93 | S18: 13.72
A19: Nightsave Small | B19: NS | C19: 2 | D19: 4 | E19: NS24Y | I19: > 132kV* | J19: 106.29 | K19: 122.23 | L19: 82.64 | M19: 95.04 | N19: 225.6 | O19: 259.44 | P19: 29.01 | Q19: 33.36 | R19: 15.22 | S19: 17.5
A20: Nightsave Small | B20: NS | C20: 3 | D20: 1 | E20: NS31Y | H20: > 900km | I20: < 500V | J20: 121.2 | K20: 139.38 | L20: 93.97 | M20: 108.07 | N20: 253.38 | O20: 291.39 | P20: 32.56 | Q20: 37.44 | R20: 13.52 | S20: 15.55
A21: Nightsave Small | B21: NS | C21: 3 | D21: 2 | E21: NS32Y | I21: ≥ 500V & < 66kV | J21: 115.63 | K21: 132.97 | L21: 90.19 | M21: 103.72 | N21: 245.18 | O21: 281.96 | P21: 31.54 | Q21: 36.27 | R21: 12.42 | S21: 14.28
A22: Nightsave Small | B22: NS | C22: 3 | D22: 3 | E22: NS33Y | I22: ≥ 66kV & ≤ 132kV | J22: 114.77 | K22: 131.99 | L22: 89.11 | M22: 102.48 | N22: 236.26 | O22: 271.7 | P22: 30.39 | Q22: 34.95 | R22: 12.02 | S22: 13.82
A23: Nightsave Small | B23: NS | C23: 3 | D23: 4 | E23: NS34Y | I23: > 132kV* | J23: 107.45 | K23: 123.57 | L23: 83.56 | M23: 96.09 | N23: 227.97 | O23: 262.17 | P23: 29.35 | Q23: 33.75 | R23: 15.31 | S23: 17.61
I24: * 132 kV or Transmission connected
H26: Distribution network charges
J27: Network capacity charge [R/kVA/m] | L27: Network demand charge [R/kVA/m] | N27: Urban low voltage subsidy charge [R/kVA/m]
H28: Voltage | Q28: Voltage | R28: Ancillary service charge [c/kWh]
A29: Tariff | B29: Tariff nameBillcode | C29: Tx zone | D29: Voltage | E29: Billcode | K29: VAT incl | M29: VAT incl | O29: VAT incl | S29: VAT incl
A30: Nightsave Small | B30: NS | C30: 0 | D30: 1 | E30: NS01Y | H30: < 500V | J30: 26.38 | K30: =ROUND(J30 * (1 + VAT), 2) -> 30.34 | L30: 49.98 | M30: =ROUND(L30 * (1 + VAT), 2) -> 57.48 | N30: 0 | O30: =ROUND(N30 * (1 + VAT), 2) -> 0 | Q30: < 500V | R30: 0.62 | S30: =ROUND(R30 * (1 + VAT), 2) -> 0.71
A31: Nightsave Small | B31: NS | C31: 0 | D31: 2 | E31: NS02Y | H31: ≥ 500V & < 66kV | J31: 24.18 | K31: =ROUND(J31 * (1 + VAT), 2) -> 27.81 | L31: 45.84 | M31: =ROUND(L31 * (1 + VAT), 2) -> 52.72 | N31: 0 | O31: =ROUND(N31 * (1 + VAT), 2) -> 0 | Q31: ≥ 500V & < 66kV | R31: 0.6 | S31: =ROUND(R31 * (1 + VAT), 2) -> 0.69
A32: Nightsave Small | B32: NS | C32: 0 | D32: 3 | E32: NS03Y | H32: ≥ 66kV & ≤ 132kV | J32: 8.65 | K32: =ROUND(J32 * (1 + VAT), 2) -> 9.95 | L32: 16 | M32: =ROUND(L32 * (1 + VAT), 2) -> 18.4 | N32: 21.18 | O32: =ROUND(N32 * (1 + VAT), 2) -> 24.36 | Q32: ≥ 66kV & ≤ 132kV | R32: 0.55 | S32: =ROUND(R32 * (1 + VAT), 2) -> 0.63
A33: Nightsave Small | B33: NS | C33: 0 | D33: 4 | E33: NS04Y | H33: > 132kV / Transmission connected | J33: 0 | K33: =ROUND(J33 * (1 + VAT), 2) -> 0 | L33: 0 | M33: =ROUND(L33 * (1 + VAT), 2) -> 0 | N33: 21.18 | O33: =ROUND(N33 * (1 + VAT), 2) -> 24.36 | Q33: > 132kV* | R33: 0.52 | S33: =ROUND(R33 * (1 + VAT), 2) -> 0.6
Q34: * 132 kV or Transmission connected
H36: Customer categories | I36: Service charge [R/account/day] | K36: Administration charge [R/POD/day] | N36: Electrification and rural network subsidy charge [c/kWh]
A38: Tariff | B38: Tariff nameBillcode | C38: Tx zone | D38: Voltage | E38: Billcode | J38: VAT incl | L38: VAT incl
A39: Nightsave Small | B39: NS | C39: 0 | D39: 1 | E39: NS01Y | H39: ≤ 100 kVA | I39: 21.42 | J39: =ROUND(I39 * (1 + VAT), 2) -> 24.63 | K39: 4.69 | L39: =ROUND(K39 * (1 + VAT), 2) -> 5.39 | O39: VAT incl
A40: Nightsave Small | B40: NS | C40: 0 | D40: 1 | E40: NS01Y | H40: > 100 kVA & ≤ 500 kVA | I40: 97.88 | J40: =ROUND(I40 * (1 + VAT), 2) -> 112.56 | K40: 27.41 | L40: =ROUND(K40 * (1 + VAT), 2) -> 31.52 | N40: 11.73 | O40: =ROUND(N40 * (1 + VAT), 2) -> 13.49
A41: Nightsave Small | B41: NS | C41: 0 | D41: 1 | E41: NS01Y | H41: > 500 kVA & ≤ 1 MVA | I41: 301.23 | J41: =ROUND(I41 * (1 + VAT), 2) -> 346.41 | K41: 54.53 | L41: =ROUND(K41 * (1 + VAT), 2) -> 62.71
A42: Nightsave Small | B42: NS | C42: 0 | D42: 1 | E42: NS01Y | H42: Key customers | I42: 5902.88 | J42: =ROUND(I42 * (1 + VAT), 2) -> 6788.31 | K42: 188.51 | L42: =ROUND(K42 * (1 + VAT), 2) -> 216.79
A47: Tariff | B47: Tariff nameBillcode | C47: Tx zone | D47: Voltage | E47: Billcode
A48: Nightsave Small | B48: NS | C48: 0 | D48: 1 | E48: NS01Y

Sheet Megaflex NLA
G1: Back to menu
A2: Non-municipal | G2: Megaflex – Non-local Authority | AF2: =SUM(J8:T23,V8:V23,#REF!,#REF!,#REF!,#REF!,H26:J26,L26) ->  | AG2: check value
J4: Active energy charge [c/kWh] | V4: Transmission network charges [R/kVA/m]
H5: Transmission zone | J5: High demand season [Jun - Aug] | P5: Low demand season [Sep - May]
I6: Voltage | J6: Peak | L6: Standard | N6: Off Peak | P6: Peak | R6: Standard | T6: Off Peak
A7: Tariff | B7: Tariff nameBillcode | C7: Tx zone | D7: Voltage | E7: Billcode | K7: VAT incl | M7: VAT incl | O7: VAT incl | Q7: VAT incl | S7: VAT incl | U7: VAT incl | W7: VAT incl
A8: Megaflex | B8: Me | C8: 0 | D8: 1 | E8: =B8&C8&D8&IF($A$2="Non-municipal","N",IF($A$2="Municiple","Y","error")) -> Me01N | H8: ≤ 300km | I8: < 500V | J8: 457.47 | K8: =ROUND(J8 * (1 + VAT), 2) -> 526.09 | L8: 139.18 | M8: =ROUND(L8 * (1 + VAT), 2) -> 160.06 | N8: 76 | O8: =ROUND(N8 * (1 + VAT), 2) -> 87.4 | P8: 149.8 | Q8: =ROUND(P8 * (1 + VAT), 2) -> 172.27 | R8: 103.36 | S8: =ROUND(R8 * (1 + VAT), 2) -> 118.86 | T8: 65.9 | U8: =ROUND(T8 * (1 + VAT), 2) -> 75.79 | V8: 13.09 | W8: =ROUND(V8 * (1 + VAT), 2) -> 15.05
A9: Megaflex | B9: Me | C9: 0 | D9: 2 | E9: =B9&C9&D9&IF($A$2="Non-municipal","N",IF($A$2="Municiple","Y","error")) -> Me02N | I9: ≥ 500V & < 66kV | J9: 450.29 | K9: 517.83 | L9: 136.41 | M9: 156.87 | N9: 74.09 | O9: 85.2 | P9: 146.87 | Q9: 168.9 | R9: 101.1 | S9: 116.27 | T9: 64.14 | U9: 73.76 | V9: 11.96 | W9: 13.75
A10: Megaflex | B10: Me | C10: 0 | D10: 3 | E10: Me03N | I10: ≥ 66kV & ≤ 132kV | J10: 436.03 | K10: 501.43 | L10: 132.08 | M10: 151.89 | N10: 71.74 | O10: 82.5 | P10: 142.25 | Q10: 163.59 | R10: 97.88 | S10: 112.56 | T10: 62.13 | U10: 71.45 | V10: 11.64 | W10: 13.39
A11: Megaflex | B11: Me | C11: 0 | D11: 4 | E11: Me04N | I11: > 132kV* | J11: 410.94 | K11: 472.58 | L11: 124.47 | M11: 143.14 | N11: 67.61 | O11: 77.75 | P11: 134.09 | Q11: 154.2 | R11: 92.26 | S11: 106.1 | T11: 58.54 | U11: 67.32 | V11: 14.72 | W11: 16.93
A12: Megaflex | B12: Me | C12: 1 | D12: 1 | E12: Me11N | H12: > 300km and ≤ 600km | I12: < 500V | J12: 461.2 | K12: 530.38 | L12: 139.74 | M12: 160.7 | N12: 75.87 | O12: 87.25 | P12: 150.46 | Q12: 173.03 | R12: 103.59 | S12: 119.13 | T12: 65.72 | U12: 75.58 | V12: 13.18 | W12: 15.16
A13: Megaflex | B13: Me | C13: 1 | D13: 2 | E13: Me12N | I13: ≥ 500V & < 66kV | J13: 454.78 | K13: 523 | L13: 137.76 | M13: 158.42 | N13: 74.81 | O13: 86.03 | P13: 148.38 | Q13: 170.64 | R13: 102.1 | S13: 117.42 | T13: 64.77 | U13: 74.49 | V13: 12.07 | W13: 13.88
A14: Megaflex | B14: Me | C14: 1 | D14: 3 | E14: Me13N | I14: ≥ 66kV & ≤ 132kV | J14: 440.31 | K14: 506.36 | L14: 133.37 | M14: 153.38 | N14: 72.41 | O14: 83.27 | P14: 143.62 | Q14: 165.16 | R14: 98.85 | S14: 113.68 | T14: 62.72 | U14: 72.13 | V14: 11.73 | W14: 13.49
A15: Megaflex | B15: Me | C15: 1 | D15: 4 | E15: Me14N | I15: > 132kV* | J15: 415.06 | K15: 477.32 | L15: 125.76 | M15: 144.62 | N15: 68.24 | O15: 78.48 | P15: 135.38 | Q15: 155.69 | R15: 93.16 | S15: 107.13 | T15: 59.09 | U15: 67.95 | V15: 14.85 | W15: 17.08
A16: Megaflex | B16: Me | C16: 2 | D16: 1 | E16: Me21N | H16: > 600km and ≤ 900km | I16: < 500V | J16: 465.79 | K16: 535.66 | L16: 141.1 | M16: 162.27 | N16: 76.6 | O16: 88.09 | P16: 151.94 | Q16: 174.73 | R16: 104.59 | S16: 120.28 | T16: 66.33 | U16: 76.28 | V16: 13.33 | W16: 15.33
A17: Megaflex | B17: Me | C17: 2 | D17: 2 | E17: Me22N | I17: ≥ 500V & < 66kV | J17: 459.35 | K17: 528.25 | L17: 139.17 | M17: 160.05 | N17: 75.57 | O17: 86.91 | P17: 149.84 | Q17: 172.32 | R17: 103.14 | S17: 118.61 | T17: 65.43 | U17: 75.24 | V17: 12.18 | W17: 14.01
A18: Megaflex | B18: Me | C18: 2 | D18: 3 | E18: Me23N | I18: ≥ 66kV & ≤ 132kV | J18: 444.81 | K18: 511.53 | L18: 134.75 | M18: 154.96 | N18: 73.16 | O18: 84.13 | P18: 145.09 | Q18: 166.85 | R18: 99.88 | S18: 114.86 | T18: 63.37 | U18: 72.88 | V18: 11.8 | W18: 13.57
A19: Megaflex | B19: Me | C19: 2 | D19: 4 | E19: Me24N | I19: > 132kV* | J19: 419.24 | K19: 482.13 | L19: 126.98 | M19: 146.03 | N19: 69 | O19: 79.35 | P19: 136.75 | Q19: 157.26 | R19: 94.11 | S19: 108.23 | T19: 59.72 | U19: 68.68 | V19: 15.07 | W19: 17.33
A20: Megaflex | B20: Me | C20: 3 | D20: 1 | E20: Me31N | H20: > 900km | I20: < 500V | J20: 470.48 | K20: 541.05 | L20: 142.58 | M20: 163.97 | N20: 77.38 | O20: 88.99 | P20: 153.49 | Q20: 176.51 | R20: 105.62 | S20: 121.46 | T20: 67.03 | U20: 77.08 | V20: 13.42 | W20: 15.43
A21: Megaflex | B21: Me | C21: 3 | D21: 2 | E21: Me32N | I21: ≥ 500V & < 66kV | J21: 463.92 | K21: 533.51 | L21: 140.52 | M21: 161.6 | N21: 76.28 | O21: 87.72 | P21: 151.31 | Q21: 174.01 | R21: 104.12 | S21: 119.74 | T21: 66.07 | U21: 75.98 | V21: 12.32 | W21: 14.17
A22: Megaflex | B22: Me | C22: 3 | D22: 3 | E22: Me33N | I22: ≥ 66kV & ≤ 132kV | J22: 449.27 | K22: 516.66 | L22: 136.08 | M22: 156.49 | N22: 73.89 | O22: 84.97 | P22: 146.54 | Q22: 168.52 | R22: 100.86 | S22: 115.99 | T22: 63.99 | U22: 73.59 | V22: 11.91 | W22: 13.7
A23: Megaflex | B23: Me | C23: 3 | D23: 4 | E23: Me34N | I23: > 132kV* | J23: 423.32 | K23: 486.82 | L23: 128.29 | M23: 147.53 | N23: 69.7 | O23: 80.16 | P23: 138.17 | Q23: 158.9 | R23: 95.14 | S23: 109.41 | T23: 60.38 | U23: 69.44 | V23: 15.18 | W23: 17.46
I24: * 132 kV or Transmission connected
H26: Distribution network charges
J27: Network capacity charge [R/kVA/m] | L27: Network demand charge [R/kVA/m] | N27: Urban low voltage subsidy charge [R/kVA/m]
H28: Voltage | Q28: Voltage | S28: Ancillary service charge [c/kWh]
A29: Tariff | B29: Tariff nameBillcode | C29: Tx zone | D29: Voltage | E29: Billcode | K29: VAT incl | M29: VAT incl | O29: VAT incl | T29: VAT incl
A30: Megaflex | B30: Me | C30: 0 | D30: 1 | E30: =B30&C30&D30&IF($A$2="Non-municipal","N",IF($A$2="Municiple","Y","error")) -> Me01N | H30: < 500V | J30: 26.01 | K30: =ROUND(J30 * (1 + VAT), 2) -> 29.91 | L30: 49.31 | M30: =ROUND(L30 * (1 + VAT), 2) -> 56.71 | N30: 0 | O30: =ROUND(N30 * (1 + VAT), 2) -> 0 | Q30: < 500V | S30: 0.6 | T30: =ROUND(S30 * (1 + VAT), 2) -> 0.69
A31: Megaflex | B31: Me | C31: 0 | D31: 2 | E31: =B31&C31&D31&IF($A$2="Non-municipal","N",IF($A$2="Municiple","Y","error")) -> Me02N | H31: ≥ 500V & < 66kV | J31: 23.85 | K31: =ROUND(J31 * (1 + VAT), 2) -> 27.43 | L31: 45.24 | M31: =ROUND(L31 * (1 + VAT), 2) -> 52.03 | N31: 0 | O31: =ROUND(N31 * (1 + VAT), 2) -> 0 | Q31: ≥ 500V & < 66kV | S31: 0.59 | T31: =ROUND(S31 * (1 + VAT), 2) -> 0.68
A32: Megaflex | B32: Me | C32: 0 | D32: 3 | E32: =B32&C32&D32&IF($A$2="Non-municipal","N",IF($A$2="Municiple","Y","error")) -> Me03N | H32: ≥ 66kV & ≤ 132kV | J32: 8.52 | K32: =ROUND(J32 * (1 + VAT), 2) -> 9.8 | L32: 15.77 | M32: =ROUND(L32 * (1 + VAT), 2) -> 18.14 | N32: 21.01 | O32: =ROUND(N32 * (1 + VAT), 2) -> 24.16 | Q32: ≥ 66kV & ≤ 132kV | S32: 0.57 | T32: =ROUND(S32 * (1 + VAT), 2) -> 0.66
A33: Megaflex | B33: Me | C33: 0 | D33: 4 | E33: =B33&C33&D33&IF($A$2="Non-municipal","N",IF($A$2="Municiple","Y","error")) -> Me04N | H33: > 132kV* | J33: 0 | K33: =ROUND(J33 * (1 + VAT), 2) -> 0 | L33: 0 | M33: =ROUND(L33 * (1 + VAT), 2) -> 0 | N33: 21.01 | O33: =ROUND(N33 * (1 + VAT), 2) -> 24.16 | Q33: > 132kV* | S33: 0.53 | T33: =ROUND(S33 * (1 + VAT), 2) -> 0.61
H34: * 132 kV or Transmission connected | Q34: * 132 kV or Transmission connected
H36: Customer categories | J36: Service charge [R/account/day] | L36: Administration charge [R/POD/day] | Q36: Reactive energy charge [c/kVArh]
Q37: High season | S37: Low season
A38: Tariff | B38: Tariff nameBillcode | C38: Tx zone | D38: Voltage | E38: Billcode | K38: VAT incl | M38: VAT incl | R38: VAT incl | T38: VAT incl
A39: Megaflex | B39: Me | C39: 0 | D39: 1 | E39: =B39&C39&D39&IF($A$2="Non-municipal","N",IF($A$2="Municiple","Y","error")) -> Me01N | H39: > 1 MVA | J39: 298.57 | K39: =ROUND(J39 * (1 + VAT), 2) -> 343.36 | L39: 134.56 | M39: =ROUND(L39 * (1 + VAT), 2) -> 154.74 | Q39: 21.03 | R39: =ROUND(Q39 * (1 + VAT), 2) -> 24.18 | S39: 0 | T39: =ROUND(S39 * (1 + VAT), 2) -> 0
A40: Megaflex | B40: Me | C40: 0 | D40: 1 | E40: =B40&C40&D40&IF($A$2="Non-municipal","N",IF($A$2="Municiple","Y","error")) -> Me01N | H40: Key customers | J40: 5850.83 | K40: =ROUND(J40 * (1 + VAT), 2) -> 6728.45 | L40: 186.85 | M40: =ROUND(L40 * (1 + VAT), 2) -> 214.88
H42: Electrification and rural network subsidy charge [c/kWh] | J42: Affordability subsidy charge [c/kWh] Only payable by non-local authority tariffs
A45: Tariff | B45: Tariff nameBillcode | C45: Tx zone | D45: Voltage | E45: Billcode | I45: VAT incl | K45: VAT incl
A46: Megaflex | B46: Me | C46: 0 | D46: 1 | E46: =B46&C46&D46&IF($A$2="Non-municipal","N",IF($A$2="Municiple","Y","error")) -> Me01N | H46: 11.63 | I46: =ROUND(H46 * (1 + VAT), 2) -> 13.37 | J46: 5.69 | K46: =ROUND(J46 * (1 + VAT), 2) -> 6.54

Sheet Megaflex Munic
G1: Back to menu
A2: Municiple | G2: Megaflex – Local Authority | AF2: =SUM(J8:T23,V8:V23,#REF!,#REF!,#REF!,#REF!,H26:J26,L26) ->  | AG2: check value
J4: Active energy charge [c/kWh] | V4: Transmission network charges [R/kVA/m]
H5: Transmission zone | J5: High demand season [Jun - Aug] | P5: Low demand season [Sep - May]
I6: Voltage | J6: Peak | L6: Standard | N6: Off Peak | P6: Peak | R6: Standard | T6: Off Peak
A7: Tariff | B7: Tariff nameBillcode | C7: Tx zone | D7: Voltage | E7: Billcode | K7: VAT incl | M7: VAT incl | O7: VAT incl | Q7: VAT incl | S7: VAT incl | U7: VAT incl | W7: VAT incl
A8: Megaflex | B8: Me | C8: 0 | D8: 1 | E8: Me01Y | H8: ≤ 300km | I8: < 500V | J8: 474.73 | K8: =ROUND(J8 * (1 + VAT), 2) -> 545.94 | L8: 144.46 | M8: =ROUND(L8 * (1 + VAT), 2) -> 166.13 | N8: 78.83 | O8: =ROUND(N8 * (1 + VAT), 2) -> 90.65 | P8: 155.42 | Q8: =ROUND(P8 * (1 + VAT), 2) -> 178.73 | R8: 107.26 | S8: =ROUND(R8 * (1 + VAT), 2) -> 123.35 | T8: 68.37 | U8: =ROUND(T8 * (1 + VAT), 2) -> 78.63 | V8: 13.23 | W8: =ROUND(V8 * (1 + VAT), 2) -> 15.21
A9: Megaflex | B9: Me | C9: 0 | D9: 2 | E9: Me02Y | I9: ≥ 500V & < 66kV | J9: 467.25 | K9: 537.34 | L9: 141.57 | M9: 162.81 | N9: 76.89 | O9: 88.42 | P9: 152.42 | Q9: 175.28 | R9: 104.9 | S9: 120.64 | T9: 66.57 | U9: 76.56 | V9: 12.07 | W9: 13.88
A10: Megaflex | B10: Me | C10: 0 | D10: 3 | E10: Me03Y | I10: ≥ 66kV & ≤ 132kV | J10: 452.51 | K10: 520.39 | L10: 137.08 | M10: 157.64 | N10: 74.45 | O10: 85.62 | P10: 147.62 | Q10: 169.76 | R10: 101.62 | S10: 116.86 | T10: 64.45 | U10: 74.12 | V10: 11.74 | W10: 13.5
A11: Megaflex | B11: Me | C11: 0 | D11: 4 | E11: Me04Y | I11: > 132kV* | J11: 426.46 | K11: 490.43 | L11: 129.19 | M11: 148.57 | N11: 70.15 | O11: 80.67 | P11: 139.11 | Q11: 159.98 | R11: 95.74 | S11: 110.1 | T11: 60.73 | U11: 69.84 | V11: 14.87 | W11: 17.1
A12: Megaflex | B12: Me | C12: 1 | D12: 1 | E12: Me11Y | H12: > 300km and ≤ 600km | I12: < 500V | J12: 478.61 | K12: 550.4 | L12: 144.98 | M12: 166.73 | N12: 78.72 | O12: 90.53 | P12: 156.13 | Q12: 179.55 | R12: 107.48 | S12: 123.6 | T12: 68.19 | U12: 78.42 | V12: 13.28 | W12: 15.27
A13: Megaflex | B13: Me | C13: 1 | D13: 2 | E13: Me12Y | I13: ≥ 500V & < 66kV | J13: 471.92 | K13: 542.71 | L13: 142.96 | M13: 164.4 | N13: 77.63 | O13: 89.27 | P13: 153.97 | Q13: 177.07 | R13: 105.96 | S13: 121.85 | T13: 67.21 | U13: 77.29 | V13: 12.21 | W13: 14.04
A14: Megaflex | B14: Me | C14: 1 | D14: 3 | E14: Me13Y | I14: ≥ 66kV & ≤ 132kV | J14: 456.93 | K14: 525.47 | L14: 138.41 | M14: 159.17 | N14: 75.16 | O14: 86.43 | P14: 149.06 | Q14: 171.42 | R14: 102.58 | S14: 117.97 | T14: 65.06 | U14: 74.82 | V14: 11.84 | W14: 13.62
A15: Megaflex | B15: Me | C15: 1 | D15: 4 | E15: Me14Y | I15: > 132kV* | J15: 430.71 | K15: 495.32 | L15: 130.51 | M15: 150.09 | N15: 70.85 | O15: 81.48 | P15: 140.48 | Q15: 161.55 | R15: 96.72 | S15: 111.23 | T15: 61.33 | U15: 70.53 | V15: 15.01 | W15: 17.26
A16: Megaflex | B16: Me | C16: 2 | D16: 1 | E16: Me21Y | H16: > 600km and ≤ 900km | I16: < 500V | J16: 483.38 | K16: 555.89 | L16: 146.44 | M16: 168.41 | N16: 79.5 | O16: 91.43 | P16: 157.66 | Q16: 181.31 | R16: 108.54 | S16: 124.82 | T16: 68.86 | U16: 79.19 | V16: 13.46 | W16: 15.48
A17: Megaflex | B17: Me | C17: 2 | D17: 2 | E17: Me22Y | I17: ≥ 500V & < 66kV | J17: 476.68 | K17: 548.18 | L17: 144.39 | M17: 166.05 | N17: 78.42 | O17: 90.18 | P17: 155.53 | Q17: 178.86 | R17: 106.97 | S17: 123.02 | T17: 67.9 | U17: 78.09 | V17: 12.28 | W17: 14.12
A18: Megaflex | B18: Me | C18: 2 | D18: 3 | E18: Me23Y | I18: ≥ 66kV & ≤ 132kV | J18: 461.59 | K18: 530.83 | L18: 139.8 | M18: 160.77 | N18: 75.91 | O18: 87.3 | P18: 150.52 | Q18: 173.1 | R18: 103.6 | S18: 119.14 | T18: 65.7 | U18: 75.56 | V18: 11.93 | W18: 13.72
A19: Megaflex | B19: Me | C19: 2 | D19: 4 | E19: Me24Y | I19: > 132kV* | J19: 435.03 | K19: 500.28 | L19: 131.81 | M19: 151.58 | N19: 71.56 | O19: 82.29 | P19: 141.93 | Q19: 163.22 | R19: 97.67 | S19: 112.32 | T19: 61.96 | U19: 71.25 | V19: 15.22 | W19: 17.5
A20: Megaflex | B20: Me | C20: 3 | D20: 1 | E20: Me31Y | H20: > 900km | I20: < 500V | J20: 488.22 | K20: 561.45 | L20: 147.92 | M20: 170.11 | N20: 80.32 | O20: 92.37 | P20: 159.28 | Q20: 183.17 | R20: 109.61 | S20: 126.05 | T20: 69.55 | U20: 79.98 | V20: 13.52 | W20: 15.55
A21: Megaflex | B21: Me | C21: 3 | D21: 2 | E21: Me32Y | I21: ≥ 500V & < 66kV | J21: 481.44 | K21: 553.66 | L21: 145.83 | M21: 167.7 | N21: 79.21 | O21: 91.09 | P21: 157.03 | Q21: 180.58 | R21: 108.08 | S21: 124.29 | T21: 68.54 | U21: 78.82 | V21: 12.42 | W21: 14.28
A22: Megaflex | B22: Me | C22: 3 | D22: 3 | E22: Me33Y | I22: ≥ 66kV & ≤ 132kV | J22: 466.23 | K22: 536.16 | L22: 141.25 | M22: 162.44 | N22: 76.7 | O22: 88.21 | P22: 152.08 | Q22: 174.89 | R22: 104.65 | S22: 120.35 | T22: 66.39 | U22: 76.35 | V22: 12.02 | W22: 13.82
A23: Megaflex | B23: Me | C23: 3 | D23: 4 | E23: Me34Y | I23: > 132kV* | J23: 439.32 | K23: 505.22 | L23: 133.14 | M23: 153.11 | N23: 72.36 | O23: 83.21 | P23: 143.38 | Q23: 164.89 | R23: 98.69 | S23: 113.49 | T23: 62.64 | U23: 72.04 | V23: 15.31 | W23: 17.61
I24: * 132 kV or Transmission connected
H26: Distribution network charges
J27: Network capacity charge [R/kVA/m] | L27: Network demand charge [R/kVA/m] | N27: Urban low voltage subsidy charge [R/kVA/m]
H28: Voltage | Q28: Voltage | S28: Ancillary service charge [c/kWh]
A29: Tariff | B29: Tariff nameBillcode | C29: Tx zone | D29: Voltage | E29: Billcode | K29: VAT incl | M29: VAT incl | O29: VAT incl | T29: VAT incl
A30: Megaflex | B30: Me | C30: 0 | D30: 1 | E30: Me01Y | H30: < 500V | J30: 26.38 | K30: =ROUND(J30 * (1 + VAT), 2) -> 30.34 | L30: 49.98 | M30: =ROUND(L30 * (1 + VAT), 2) -> 57.48 | N30: 0 | O30: =ROUND(N30 * (1 + VAT), 2) -> 0 | Q30: < 500V | S30: 0.62 | T30: =ROUND(S30 * (1 + VAT), 2) -> 0.71
A31: Megaflex | B31: Me | C31: 0 | D31: 2 | E31: Me02Y | H31: ≥ 500V & < 66kV | J31: 24.18 | K31: =ROUND(J31 * (1 + VAT), 2) -> 27.81 | L31: 45.84 | M31: =ROUND(L31 * (1 + VAT), 2) -> 52.72 | N31: 0 | O31: =ROUND(N31 * (1 + VAT), 2) -> 0 | Q31: ≥ 500V & < 66kV | S31: 0.6 | T31: =ROUND(S31 * (1 + VAT), 2) -> 0.69
A32: Megaflex | B32: Me | C32: 0 | D32: 3 | E32: Me03Y | H32: ≥ 66kV & ≤ 132kV | J32: 8.65 | K32: =ROUND(J32 * (1 + VAT), 2) -> 9.95 | L32: 16 | M32: =ROUND(L32 * (1 + VAT), 2) -> 18.4 | N32: 21.18 | O32: =ROUND(N32 * (1 + VAT), 2) -> 24.36 | Q32: ≥ 66kV & ≤ 132kV | S32: 0.55 | T32: =ROUND(S32 * (1 + VAT), 2) -> 0.63
A33: Megaflex | B33: Me | C33: 0 | D33: 4 | E33: Me04Y | H33: > 132kV* | J33: 0 | K33: =ROUND(J33 * (1 + VAT), 2) -> 0 | L33: 0 | M33: =ROUND(L33 * (1 + VAT), 2) -> 0 | N33: 21.18 | O33: =ROUND(N33 * (1 + VAT), 2) -> 24.36 | Q33: > 132kV* | S33: 0.52 | T33: =ROUND(S33 * (1 + VAT), 2) -> 0.6
H34: * 132 kV or Transmission connected | Q34: * 132 kV or Transmission connected
H36: Customer categories | J36: Service charge [R/account/day] | L36: Administration charge [R/POD/day] | Q36: Reactive energy charge [c/kVArh]
Q37: High season | S37: Low season
A38: Tariff | B38: Tariff nameBillcode | C38: Tx zone | D38: Voltage | E38: Billcode | K38: VAT incl | M38: VAT incl | R38: VAT incl | T38: VAT incl
A39: Megaflex | B39: Me | C39: 0 | D39: 1 | E39: Me01Y | H39: > 1 MVA | J39: 301.23 | K39: =ROUND(J39 * (1 + VAT), 2) -> 346.41 | L39: 135.78 | M39: =ROUND(L39 * (1 + VAT), 2) -> 156.15 | Q39: 21.19 | R39: =ROUND(Q39 * (1 + VAT), 2) -> 24.37 | S39: 0 | T39: =ROUND(S39 * (1 + VAT), 2) -> 0
A40: Megaflex | B40: Me | C40: 0 | D40: 1 | E40: Me01Y | H40: Key customers | J40: 5902.88 | K40: =ROUND(J40 * (1 + VAT), 2) -> 6788.31 | L40: 188.51 | M40: =ROUND(L40 * (1 + VAT), 2) -> 216.79
H42: Electrification and rural network subsidy charge [c/kWh]
A45: Tariff | B45: Tariff nameBillcode | C45: Tx zone | D45: Voltage | E45: Billcode | I45: VAT incl
A46: Megaflex | B46: Me | C46: 0 | D46: 1 | E46: Me01Y | H46: 11.73 | I46: =ROUND(H46 * (1 + VAT), 2) -> 13.49

Sheet Megaflex Gen NLA
G1: Back to menu
A2: Non-municipal | G2: Megaflex Gen - Non-local authority
J4: Active energy charge for loads [c/kWh] | V4: Transmission network charges [R/kVA/m]
H5: Transmission zone | J5: High demand season [Jun - Aug] | P5: Low demand season [Sep - May]
I6: Voltage | J6: Peak | L6: Standard | N6: Off Peak | P6: Peak | R6: Standard | T6: Off Peak
A7: Tariff | B7: Tariff nameBillcode | C7: Tx zone | D7: Voltage | E7: Billcode | K7: VAT incl | M7: VAT incl | O7: VAT incl | Q7: VAT incl | S7: VAT incl | U7: VAT incl | W7: VAT incl
A8: Genflex urban loads | B8: GU | C8: 0 | D8: 1 | E8: =B8&C8&D8&IF($A$2="Non-municipal","N",IF($A$2="Municiple","Y","error")) -> GU01N | H8: ≤ 300km | I8: < 500V | J8: 457.47 | K8: =ROUND(J8 * (1 + VAT), 2) -> 526.09 | L8: 139.18 | M8: =ROUND(L8 * (1 + VAT), 2) -> 160.06 | N8: 76 | O8: =ROUND(N8 * (1 + VAT), 2) -> 87.4 | P8: 149.8 | Q8: =ROUND(P8 * (1 + VAT), 2) -> 172.27 | R8: 103.36 | S8: =ROUND(R8 * (1 + VAT), 2) -> 118.86 | T8: 65.9 | U8: =ROUND(T8 * (1 + VAT), 2) -> 75.79 | V8: 13.09 | W8: =ROUND(V8 * (1 + VAT), 2) -> 15.05
A9: Genflex urban loads | B9: GU | C9: 0 | D9: 2 | E9: =B9&C9&D9&IF($A$2="Non-municipal","N",IF($A$2="Municiple","Y","error")) -> GU02N | I9: ≥ 500V & < 66kV | J9: 450.29 | K9: 517.83 | L9: 136.41 | M9: 156.87 | N9: 74.09 | O9: 85.2 | P9: 146.87 | Q9: 168.9 | R9: 101.1 | S9: 116.27 | T9: 64.14 | U9: 73.76 | V9: 11.96 | W9: 13.75
A10: Genflex urban loads | B10: GU | C10: 0 | D10: 3 | E10: GU03N | I10: ≥ 66kV & ≤ 132kV | J10: 436.03 | K10: 501.43 | L10: 132.08 | M10: 151.89 | N10: 71.74 | O10: 82.5 | P10: 142.25 | Q10: 163.59 | R10: 97.88 | S10: 112.56 | T10: 62.13 | U10: 71.45 | V10: 11.64 | W10: 13.39
A11: Genflex urban loads | B11: GU | C11: 0 | D11: 4 | E11: GU04N | I11: > 132kV* | J11: 410.94 | K11: 472.58 | L11: 124.47 | M11: 143.14 | N11: 67.61 | O11: 77.75 | P11: 134.09 | Q11: 154.2 | R11: 92.26 | S11: 106.1 | T11: 58.54 | U11: 67.32 | V11: 14.72 | W11: 16.93
A12: Genflex urban loads | B12: GU | C12: 1 | D12: 1 | E12: GU11N | H12: > 300km and ≤ 600km | I12: < 500V | J12: 461.2 | K12: 530.38 | L12: 139.74 | M12: 160.7 | N12: 75.87 | O12: 87.25 | P12: 150.46 | Q12: 173.03 | R12: 103.59 | S12: 119.13 | T12: 65.72 | U12: 75.58 | V12: 13.18 | W12: 15.16
A13: Genflex urban loads | B13: GU | C13: 1 | D13: 2 | E13: GU12N | I13: ≥ 500V & < 66kV | J13: 454.78 | K13: 523 | L13: 137.76 | M13: 158.42 | N13: 74.81 | O13: 86.03 | P13: 148.38 | Q13: 170.64 | R13: 102.1 | S13: 117.42 | T13: 64.77 | U13: 74.49 | V13: 12.07 | W13: 13.88
A14: Genflex urban loads | B14: GU | C14: 1 | D14: 3 | E14: GU13N | I14: ≥ 66kV & ≤ 132kV | J14: 440.31 | K14: 506.36 | L14: 133.37 | M14: 153.38 | N14: 72.41 | O14: 83.27 | P14: 143.62 | Q14: 165.16 | R14: 98.85 | S14: 113.68 | T14: 62.72 | U14: 72.13 | V14: 11.73 | W14: 13.49
A15: Genflex urban loads | B15: GU | C15: 1 | D15: 4 | E15: GU14N | I15: > 132kV* | J15: 415.06 | K15: 477.32 | L15: 125.76 | M15: 144.62 | N15: 68.24 | O15: 78.48 | P15: 135.38 | Q15: 155.69 | R15: 93.16 | S15: 107.13 | T15: 59.09 | U15: 67.95 | V15: 14.85 | W15: 17.08
A16: Genflex urban loads | B16: GU | C16: 2 | D16: 1 | E16: GU21N | H16: > 600km and ≤ 900km | I16: < 500V | J16: 465.79 | K16: 535.66 | L16: 141.1 | M16: 162.27 | N16: 76.6 | O16: 88.09 | P16: 151.94 | Q16: 174.73 | R16: 104.59 | S16: 120.28 | T16: 66.33 | U16: 76.28 | V16: 13.33 | W16: 15.33
A17: Genflex urban loads | B17: GU | C17: 2 | D17: 2 | E17: GU22N | I17: ≥ 500V & < 66kV | J17: 459.35 | K17: 528.25 | L17: 139.17 | M17: 160.05 | N17: 75.57 | O17: 86.91 | P17: 149.84 | Q17: 172.32 | R17: 103.14 | S17: 118.61 | T17: 65.43 | U17: 75.24 | V17: 12.18 | W17: 14.01
A18: Genflex urban loads | B18: GU | C18: 2 | D18: 3 | E18: GU23N | I18: ≥ 66kV & ≤ 132kV | J18: 444.81 | K18: 511.53 | L18: 134.75 | M18: 154.96 | N18: 73.16 | O18: 84.13 | P18: 145.09 | Q18: 166.85 | R18: 99.88 | S18: 114.86 | T18: 63.37 | U18: 72.88 | V18: 11.8 | W18: 13.57
A19: Genflex urban loads | B19: GU | C19: 2 | D19: 4 | E19: GU24N | I19: > 132kV* | J19: 419.24 | K19: 482.13 | L19: 126.98 | M19: 146.03 | N19: 69 | O19: 79.35 | P19: 136.75 | Q19: 157.26 | R19: 94.11 | S19: 108.23 | T19: 59.72 | U19: 68.68 | V19: 15.07 | W19: 17.33
A20: Genflex urban loads | B20: GU | C20: 3 | D20: 1 | E20: GU31N | H20: > 900km | I20: < 500V | J20: 470.48 | K20: 541.05 | L20: 142.58 | M20: 163.97 | N20: 77.38 | O20: 88.99 | P20: 153.49 | Q20: 176.51 | R20: 105.62 | S20: 121.46 | T20: 67.03 | U20: 77.08 | V20: 13.42 | W20: 15.43
A21: Genflex urban loads | B21: GU | C21: 3 | D21: 2 | E21: GU32N | I21: ≥ 500V & < 66kV | J21: 463.92 | K21: 533.51 | L21: 140.52 | M21: 161.6 | N21: 76.28 | O21: 87.72 | P21: 151.31 | Q21: 174.01 | R21: 104.12 | S21: 119.74 | T21: 66.07 | U21: 75.98 | V21: 12.32 | W21: 14.17
A22: Genflex urban loads | B22: GU | C22: 3 | D22: 3 | E22: GU33N | I22: ≥ 66kV & ≤ 132kV | J22: 449.27 | K22: 516.66 | L22: 136.08 | M22: 156.49 | N22: 73.89 | O22: 84.97 | P22: 146.54 | Q22: 168.52 | R22: 100.86 | S22: 115.99 | T22: 63.99 | U22: 73.59 | V22: 11.91 | W22: 13.7
A23: Genflex urban loads | B23: GU | C23: 3 | D23: 4 | E23: GU34N | I23: > 132kV* | J23: 423.32 | K23: 486.82 | L23: 128.29 | M23: 147.53 | N23: 69.7 | O23: 80.16 | P23: 138.17 | Q23: 158.9 | R23: 95.14 | S23: 109.41 | T23: 60.38 | U23: 69.44 | V23: 15.18 | W23: 17.46
A24: Gen-purchase | B24: NLPurchADJ | C24: 0 | D24: 4 | E24: NLPurchADJ04N | H24: WEPS energy rate excluding losses | J24: 406.5894924 | K24: 467.58 | L24: 123.1522707 | M24: =ROUND(L24 * (1 + VAT), 2) -> 141.63 | N24: 66.89423172 | O24: =ROUND(N24 * (1 + VAT), 2) -> 76.93 | P24: 132.6704264 | Q24: =ROUND(P24 * (1 + VAT), 2) -> 152.57 | R24: 91.28326902 | S24: =ROUND(R24 * (1 + VAT), 2) -> 104.98 | T24: 57.92025329 | U24: =ROUND(T24 * (1 + VAT), 2) -> 66.61
A25: TUoS network charges for Transmission connected generators | B25: GenTUOS | C25: Cape | D25: 4 | E25: GenTUOSCape4N | I25: * 132 kV or Transmission connected
A26: TUoS network charges for Transmission connected generators | B26: GenTUOS | C26: Karoo | D26: 4 | E26: GenTUOSKaroo4N
A27: TUoS network charges for Transmission connected generators | B27: GenTUOS | C27: Kwazulu-Natal | D27: 4 | E27: GenTUOSKwazulu-Natal4N | H27: Distribution network charges for loads | Q27: Transmission network charges for generators | U27: Distribution network charges for generators*
A28: TUoS network charges for Transmission connected generators | B28: GenTUOS | C28: Vaal | D28: 4 | E28: GenTUOSVaal4N | J28: Network capacity charge [R/kVA/m] | L28: Network demand charge [R/kVA/m] | N28: Urban low voltage subsidy charge [R/kVA/m]
A29: TUoS network charges for Transmission connected generators | B29: GenTUOS | C29: Waterburg | D29: 4 | E29: GenTUOSWaterburg4N | H29: Voltage | Q29: TUoS [ > 132kV] | S29: Network charge [R/kW] | U29: Voltage | W29: Network capacity charge [R/kW/m]
A30: TUoS network charges for Transmission connected generators | B30: GenTUOS | C30: Mpumalanga | D30: 4 | E30: GenTUOSMpumalanga4N | H30: Voltage | K30: VAT incl | M30: VAT incl | O30: VAT incl | T30: VAT incl
A31: Genflex urban loads | B31: GU | C31: 0 | D31: 1 | E31: =B31&C31&D31&IF($A$2="Non-municipal","N",IF($A$2="Municiple","Y","error")) -> GU01N | H31: < 500V | J31: 26.01 | K31: =ROUND(J31 * (1 + VAT), 2) -> 29.91 | L31: 49.31 | M31: =ROUND(L31 * (1 + VAT), 2) -> 56.71 | N31: 0 | O31: =ROUND(N31 * (1 + VAT), 2) -> 0 | Q31: Cape | S31: 0 | T31: =ROUND(S31 * (1 + VAT), 2) -> 0 | X31: VAT incl
A32: Genflex urban loads | B32: GU | C32: 0 | D32: 2 | E32: =B32&C32&D32&IF($A$2="Non-municipal","N",IF($A$2="Municiple","Y","error")) -> GU02N | H32: ≥ 500V & < 66kV | J32: 23.85 | K32: =ROUND(J32 * (1 + VAT), 2) -> 27.43 | L32: 45.24 | M32: =ROUND(L32 * (1 + VAT), 2) -> 52.03 | N32: 0 | O32: =ROUND(N32 * (1 + VAT), 2) -> 0 | Q32: Karoo | S32: 0 | T32: 0 | U32: < 500V
A33: Genflex urban loads | B33: GU | C33: 0 | D33: 3 | E33: =B33&C33&D33&IF($A$2="Non-municipal","N",IF($A$2="Municiple","Y","error")) -> GU03N | H33: ≥ 66kV & ≤ 132kV | J33: 8.52 | K33: =ROUND(J33 * (1 + VAT), 2) -> 9.8 | L33: 15.77 | M33: =ROUND(L33 * (1 + VAT), 2) -> 18.14 | N33: 21.01 | O33: =ROUND(N33 * (1 + VAT), 2) -> 24.16 | Q33: Kwazulu-Natal | S33: 3.09 | T33: 3.55 | U33: ≥ 500V & < 66kV
A34: Genflex urban loads | B34: GU | C34: 0 | D34: 4 | E34: =B34&C34&D34&IF($A$2="Non-municipal","N",IF($A$2="Municiple","Y","error")) -> GU04N | H34: > 132kV / Transmission connected | J34: 0 | K34: =ROUND(J34 * (1 + VAT), 2) -> 0 | L34: 0 | M34: =ROUND(L34 * (1 + VAT), 2) -> 0 | N34: 21.01 | O34: =ROUND(N34 * (1 + VAT), 2) -> 24.16 | Q34: Vaal | S34: 10.29 | T34: 11.83 | U34: ≥ 66kV & ≤ 132kV | W34: 21.03 | X34: =ROUND(W34 * (1 + VAT), 2) -> 24.18
A35: Gen-DUoS urban | B35: NEGenDUoSU | C35: 0 | D35: 3 | E35: =B35&C35&D35&IF($A$2="Non-municipal","N",IF($A$2="Municiple","Y","error")) -> NEGenDUoSU03N | Q35: Waterberg | S35: 13.18 | T35: 15.16 | U35: * The Distribution network charge will be rebated by the Losses charge, but not beyond extintion
Q36: Mpumalanga | S36: 12.23 | T36: 14.06
H37: Customer categories | J37: Service charge [R/account/day] | L37: Administration charge [R/POD/day]
H38: [kVA or MVA = loads] | Q38: Ancillary service charge for loads and generators
A39: Tariff | B39: Tariff nameBillcode | C39: Tx zone | D39: Voltage | E39: Billcode | H39: [kW or MW = generators] | K39: VAT incl | M39: VAT incl
A40: Genflex urban loads | B40: GU | C40: 0 | D40: 1 | E40: =B40&C40&D40&IF($A$2="Non-municipal","N",IF($A$2="Municiple","Y","error")) -> GU01N | H40: ≤ 100 KVA/ kW | J40: 21.25 | K40: =ROUND(J40 * (1 + VAT), 2) -> 24.44 | L40: 4.67 | M40: =ROUND(L40 * (1 + VAT), 2) -> 5.37 | Q40: Voltage | S40: Ancillary service charge [c/kWh]
A41: Genflex urban loads | B41: GU | C41: 0 | D41: 1 | E41: =B41&C41&D41&IF($A$2="Non-municipal","N",IF($A$2="Municiple","Y","error")) -> GU01N | H41: > 100 kVA/ kW & ≤ 500 kVA/ kW | J41: 97.04 | K41: =ROUND(J41 * (1 + VAT), 2) -> 111.6 | L41: 27.22 | M41: =ROUND(L41 * (1 + VAT), 2) -> 31.3 | T41: VAT incl
A42: Genflex urban loads | B42: GU | C42: 0 | D42: 1 | E42: =B42&C42&D42&IF($A$2="Non-municipal","N",IF($A$2="Municiple","Y","error")) -> GU01N | H42: > 500 kVA/ kW & ≤ 1 MVA/MW | J42: 298.57 | K42: =ROUND(J42 * (1 + VAT), 2) -> 343.36 | L42: 54.04 | M42: =ROUND(L42 * (1 + VAT), 2) -> 62.15 | Q42: < 500V | S42: 0.6 | T42: =ROUND(S42 * (1 + VAT), 2) -> 0.69
A43: Genflex urban loads | B43: GU | C43: 0 | D43: 1 | E43: =B43&C43&D43&IF($A$2="Non-municipal","N",IF($A$2="Municiple","Y","error")) -> GU01N | H43: > 1 MVA/MW | J43: 298.57 | K43: =ROUND(J43 * (1 + VAT), 2) -> 343.36 | L43: 134.56 | M43: =ROUND(L43 * (1 + VAT), 2) -> 154.74 | Q43: ≥ 500V & < 66kV | S43: 0.59 | T43: =ROUND(S43 * (1 + VAT), 2) -> 0.68
A44: Genflex urban loads | B44: GU | C44: 0 | D44: 1 | E44: =B44&C44&D44&IF($A$2="Non-municipal","N",IF($A$2="Municiple","Y","error")) -> GU01N | H44: Key customers or Transmission connected generators | J44: 5850.83 | K44: =ROUND(J44 * (1 + VAT), 2) -> 6728.45 | L44: 186.85 | M44: =ROUND(L44 * (1 + VAT), 2) -> 214.88 | Q44: ≥ 66kV & ≤ 132kV | S44: 0.57 | T44: =ROUND(S44 * (1 + VAT), 2) -> 0.66
Q45: > 132kV | S45: 0.53 | T45: =ROUND(S45 * (1 + VAT), 2) -> 0.61 | Y45: ='Loss Factors'!R10 -> 0
H46: Applicable to loads | Q46: * 132 kV or Transmission connected
H47: Electrification and rural network subsidy charge [c/kWh] | J47: Affordability subsidy charge [c/kWh] Only payable by non-local authority tariffs
M48: Reactive energy charge [c/kVArh] (loads)
M49: High season | O49: Low season
A50: Tariff | B50: Tariff nameBillcode | C50: Tx zone | D50: Voltage | E50: Billcode | I50: VAT incl | K50: VAT incl | N50: VAT incl | P50: VAT incl
A51: Genflex urban loads | B51: GU | C51: 0 | D51: 1 | E51: =B51&C51&D51&IF($A$2="Non-municipal","N",IF($A$2="Municiple","Y","error")) -> GU01N | H51: 11.63 | I51: =ROUND(H51 * (1 + VAT), 2) -> 13.37 | J51: 5.69 | K51: =ROUND(J51 * (1 + VAT), 2) -> 6.54 | M51: 21.03 | N51: =ROUND(M51 * (1 + VAT), 2) -> 24.18 | O51: 0 | P51: =ROUND(O51 * (1 + VAT), 2) -> 0
H54: Losses charge for generators
H55: Distribution connected generators | M55: Transmission connected generators
H56: Formula | M56: Formula
H57: Distribution = - ((Energy produced x WEPS rate excluding losses) x (Distribution loss factor x Transmission loss factor-1)) in each TOU period | M57: Transmission = (Energy produced x WEPS rate excluding losses) x (Transmission loss factor-1/Transmission loss factor) in each TOU period
H58: Transmission loss factors for Distribution connected | K58: Distribution loss factors | M58: Generator loss factor
H59: Distance from Johannesburg | K59: ='Loss Factors'!N5 -> Voltage | M59: =' TUoS NLA'!I38 -> Cape | O59: =' TUoS NLA'!J38 -> 0.971
H60: ='Loss Factors'!R6 -> ≤ 300km | J60: ='Loss Factors'!T6 -> 1.0107 | K60: < 500V | L60: ='Loss Factors'!O6 -> 1.1111 | M60: =' TUoS NLA'!I39 -> Karoo | O60: =' TUoS NLA'!J39 -> 0.995
H61: ='Loss Factors'!R7 -> > 300km & ≤ 600km | J61: ='Loss Factors'!T7 -> 1.0208 | K61: ≥ 500V & < 66kV | L61: ='Loss Factors'!O7 -> 1.0957 | M61: =' TUoS NLA'!I40 -> Kwazulu-Natal | O61: =' TUoS NLA'!J40 -> 1.004
H62: ='Loss Factors'!R8 -> > 600km & ≤ 900km | J62: ='Loss Factors'!T8 -> 1.031 | K62: ≥ 66kV & ≤ 132kV | L62: ='Loss Factors'!O8 -> 1.0611 | M62: =' TUoS NLA'!I41 -> Vaal | O62: =' TUoS NLA'!J41 -> 1.02
H63: ='Loss Factors'!R9 -> > 900km | J63: ='Loss Factors'!T9 -> 1.0413 | K63: > 132kV* | L63: ='Loss Factors'!O9 -> 1 | M63: =' TUoS NLA'!I42 -> Waterberg | O63: =' TUoS NLA'!J42 -> 1.023
H64: * 132 kV or Transmission connected | M64: =' TUoS NLA'!I43 -> Mpumalanga | O64: =' TUoS NLA'!J43 -> 1.021

Sheet Miniflex NLA
G1: Back to menu
A2: Non-municipal | G2: Miniflex - Non-Local Authority
J4: Active energy charge [c/kWh] | V4: Network capacity charge [R/kVA/m]
H5: Transmission zone | J5: High demand season [Jun - Aug] | P5: Low demand season [Sep - May]
I6: Voltage | J6: Peak | L6: Standard | N6: Off Peak | P6: Peak | R6: Standard | T6: Off Peak
A7: Tariff | B7: Tariff nameBillcode | C7: Tx zone | D7: Voltage | E7: Billcode | K7: VAT incl | M7: VAT incl | O7: VAT incl | Q7: VAT incl | S7: VAT incl | U7: VAT incl | W7: VAT incl
A8: Miniflex | B8: Mi | C8: 0 | D8: 1 | E8: =B8&C8&D8&IF($A$2="Non-municipal","N",IF($A$2="Municiple","Y","error")) -> Mi01N | H8: ≤ 300km | I8: < 500V | J8: 457.47 | K8: =ROUND(J8 * (1 + VAT), 2) -> 526.09 | L8: 139.18 | M8: =ROUND(L8 * (1 + VAT), 2) -> 160.06 | N8: 76 | O8: =ROUND(N8 * (1 + VAT), 2) -> 87.4 | P8: 149.8 | Q8: =ROUND(P8 * (1 + VAT), 2) -> 172.27 | R8: 103.36 | S8: =ROUND(R8 * (1 + VAT), 2) -> 118.86 | T8: 65.9 | U8: =ROUND(T8 * (1 + VAT), 2) -> 75.79 | V8: 39.04 | W8: =ROUND(V8 * (1 + VAT), 2) -> 44.9
A9: Miniflex | B9: Mi | C9: 0 | D9: 2 | E9: =B9&C9&D9&IF($A$2="Non-municipal","N",IF($A$2="Municiple","Y","error")) -> Mi02N | I9: ≥ 500V & < 66kV | J9: 450.29 | K9: 517.83 | L9: 136.41 | M9: 156.87 | N9: 74.09 | O9: 85.2 | P9: 146.87 | Q9: 168.9 | R9: 101.1 | S9: 116.27 | T9: 64.14 | U9: 73.76 | V9: 35.79 | W9: 41.16
A10: Miniflex | B10: Mi | C10: 0 | D10: 3 | E10: Mi03N | I10: ≥ 66kV & ≤ 132kV | J10: 436.03 | K10: 501.43 | L10: 132.08 | M10: 151.89 | N10: 71.74 | O10: 82.5 | P10: 142.25 | Q10: 163.59 | R10: 97.88 | S10: 112.56 | T10: 62.13 | U10: 71.45 | V10: 20.1 | W10: 23.12
A11: Miniflex | B11: Mi | C11: 0 | D11: 4 | E11: Mi04N | I11: > 132kV* | J11: 410.94 | K11: 472.58 | L11: 124.47 | M11: 143.14 | N11: 67.61 | O11: 77.75 | P11: 134.09 | Q11: 154.2 | R11: 92.26 | S11: 106.1 | T11: 58.54 | U11: 67.32 | V11: 14.65 | W11: 16.85
A12: Miniflex | B12: Mi | C12: 1 | D12: 1 | E12: Mi11N | H12: > 300km and ≤ 600km | I12: < 500V | J12: 461.2 | K12: 530.38 | L12: 139.74 | M12: 160.7 | N12: 75.87 | O12: 87.25 | P12: 150.46 | Q12: 173.03 | R12: 103.59 | S12: 119.13 | T12: 65.72 | U12: 75.58 | V12: 39.14 | W12: 45.01
A13: Miniflex | B13: Mi | C13: 1 | D13: 2 | E13: Mi12N | I13: ≥ 500V & < 66kV | J13: 454.78 | K13: 523 | L13: 137.76 | M13: 158.42 | N13: 74.81 | O13: 86.03 | P13: 148.38 | Q13: 170.64 | R13: 102.1 | S13: 117.42 | T13: 64.77 | U13: 74.49 | V13: 35.9 | W13: 41.29
A14: Miniflex | B14: Mi | C14: 1 | D14: 3 | E14: Mi13N | I14: ≥ 66kV & ≤ 132kV | J14: 440.31 | K14: 506.36 | L14: 133.37 | M14: 153.38 | N14: 72.41 | O14: 83.27 | P14: 143.62 | Q14: 165.16 | R14: 98.85 | S14: 113.68 | T14: 62.72 | U14: 72.13 | V14: 20.18 | W14: 23.21
A15: Miniflex | B15: Mi | C15: 1 | D15: 4 | E15: Mi14N | I15: > 132kV* | J15: 415.06 | K15: 477.32 | L15: 125.76 | M15: 144.62 | N15: 68.24 | O15: 78.48 | P15: 135.38 | Q15: 155.69 | R15: 93.16 | S15: 107.13 | T15: 59.09 | U15: 67.95 | V15: 14.81 | W15: 17.03
A16: Miniflex | B16: Mi | C16: 2 | D16: 1 | E16: Mi21N | H16: > 600km and ≤ 900km | I16: < 500V | J16: 465.79 | K16: 535.66 | L16: 141.1 | M16: 162.27 | N16: 76.6 | O16: 88.09 | P16: 151.94 | Q16: 174.73 | R16: 104.59 | S16: 120.28 | T16: 66.33 | U16: 76.28 | V16: 39.33 | W16: 45.23
A17: Miniflex | B17: Mi | C17: 2 | D17: 2 | E17: Mi22N | I17: ≥ 500V & < 66kV | J17: 459.35 | K17: 528.25 | L17: 139.17 | M17: 160.05 | N17: 75.57 | O17: 86.91 | P17: 149.84 | Q17: 172.32 | R17: 103.14 | S17: 118.61 | T17: 65.43 | U17: 75.24 | V17: 36.01 | W17: 41.41
A18: Miniflex | B18: Mi | C18: 2 | D18: 3 | E18: Mi23N | I18: ≥ 66kV & ≤ 132kV | J18: 444.81 | K18: 511.53 | L18: 134.75 | M18: 154.96 | N18: 73.16 | O18: 84.13 | P18: 145.09 | Q18: 166.85 | R18: 99.88 | S18: 114.86 | T18: 63.37 | U18: 72.88 | V18: 20.3 | W18: 23.35
A19: Miniflex | B19: Mi | C19: 2 | D19: 4 | E19: Mi24N | I19: > 132kV* | J19: 419.24 | K19: 482.13 | L19: 126.98 | M19: 146.03 | N19: 69 | O19: 79.35 | P19: 136.75 | Q19: 157.26 | R19: 94.11 | S19: 108.23 | T19: 59.72 | U19: 68.68 | V19: 15.02 | W19: 17.27
A20: Miniflex | B20: Mi | C20: 3 | D20: 1 | E20: Mi31N | H20: > 900km | I20: < 500V | J20: 470.48 | K20: 541.05 | L20: 142.58 | M20: 163.97 | N20: 77.38 | O20: 88.99 | P20: 153.49 | Q20: 176.51 | R20: 105.62 | S20: 121.46 | T20: 67.03 | U20: 77.08 | V20: 39.36 | W20: 45.26
A21: Miniflex | B21: Mi | C21: 3 | D21: 2 | E21: Mi32N | I21: ≥ 500V & < 66kV | J21: 463.92 | K21: 533.51 | L21: 140.52 | M21: 161.6 | N21: 76.28 | O21: 87.72 | P21: 151.31 | Q21: 174.01 | R21: 104.12 | S21: 119.74 | T21: 66.07 | U21: 75.98 | V21: 36.13 | W21: 41.55
A22: Miniflex | B22: Mi | C22: 3 | D22: 3 | E22: Mi33N | I22: ≥ 66kV & ≤ 132kV | J22: 449.27 | K22: 516.66 | L22: 136.08 | M22: 156.49 | N22: 73.89 | O22: 84.97 | P22: 146.54 | Q22: 168.52 | R22: 100.86 | S22: 115.99 | T22: 63.99 | U22: 73.59 | V22: 20.38 | W22: 23.44
A23: Miniflex | B23: Mi | C23: 3 | D23: 4 | E23: Mi34N | I23: > 132kV* | J23: 423.32 | K23: 486.82 | L23: 128.29 | M23: 147.53 | N23: 69.7 | O23: 80.16 | P23: 138.17 | Q23: 158.9 | R23: 95.14 | S23: 109.41 | T23: 60.38 | U23: 69.44 | V23: 15.13 | W23: 17.4
I24: * 132 kV or Transmission connected
H26: Customer categories | J26: Service charge [R/account/day] | L26: Administration charge [R/POD/day]
A28: Tariff | B28: Tariff nameBillcode | C28: Tx zone | D28: Voltage | E28: Billcode | K28: VAT incl | M28: VAT incl | P28: Ancillary service charge [c/kWh] | R28: Network demand charge [c/kWh] [Peak & Standard] | U28: Urban low voltage subsidy charge [R/kVA/m]
A29: Miniflex | B29: Mi | C29: 0 | D29: 1 | E29: =B29&C29&D29&IF($A$2="Non-municipal","N",IF($A$2="Municiple","Y","error")) -> Mi01N | H29: ≤ 100 kVA | J29: 21.25 | K29: =ROUND(J29 * (1 + VAT), 2) -> 24.44 | L29: 4.67 | M29: =ROUND(L29 * (1 + VAT), 2) -> 5.37 | O29: Voltage | Q29: VAT incl | S29: VAT incl | W29: VAT incl
A30: Miniflex | B30: Mi | C30: 0 | D30: 1 | E30: =B30&C30&D30&IF($A$2="Non-municipal","N",IF($A$2="Municiple","Y","error")) -> Mi01N | H30: > 100 kVA & ≤ 500 kVA | J30: 97.04 | K30: =ROUND(J30 * (1 + VAT), 2) -> 111.6 | L30: 27.22 | M30: =ROUND(L30 * (1 + VAT), 2) -> 31.3 | O30: < 500V | P30: 0.6 | Q30: =ROUND(P30 * (1 + VAT), 2) -> 0.69 | R30: 24.17 | S30: =ROUND(R30 * (1 + VAT), 2) -> 27.8 | U30: < 500V | V30: 0 | W30: =ROUND(V30 * (1 + VAT), 2) -> 0
A31: Miniflex | B31: Mi | C31: 0 | D31: 1 | E31: =B31&C31&D31&IF($A$2="Non-municipal","N",IF($A$2="Municiple","Y","error")) -> Mi01N | H31: > 500 kVA & ≤ 1 MVA | J31: 298.57 | K31: =ROUND(J31 * (1 + VAT), 2) -> 343.36 | L31: 54.04 | M31: =ROUND(L31 * (1 + VAT), 2) -> 62.15 | O31: ≥ 500V & < 66kV | P31: 0.59 | Q31: =ROUND(P31 * (1 + VAT), 2) -> 0.68 | R31: 10.13 | S31: =ROUND(R31 * (1 + VAT), 2) -> 11.65 | U31: ≥ 500V & < 66kV | V31: 0 | W31: =ROUND(V31 * (1 + VAT), 2) -> 0
A32: Miniflex | B32: Mi | C32: 0 | D32: 1 | E32: =B32&C32&D32&IF($A$2="Non-municipal","N",IF($A$2="Municiple","Y","error")) -> Mi01N | H32: > 1 MVA | J32: 298.57 | K32: =ROUND(J32 * (1 + VAT), 2) -> 343.36 | L32: 134.56 | M32: =ROUND(L32 * (1 + VAT), 2) -> 154.74 | O32: ≥ 66kV & ≤ 132kV | P32: 0.57 | Q32: =ROUND(P32 * (1 + VAT), 2) -> 0.66 | R32: 3.53 | S32: =ROUND(R32 * (1 + VAT), 2) -> 4.06 | U32: ≥ 66kV & ≤ 132kV | V32: 21.01 | W32: =ROUND(V32 * (1 + VAT), 2) -> 24.16
A33: Miniflex | B33: Mi | C33: 0 | D33: 1 | E33: =B33&C33&D33&IF($A$2="Non-municipal","N",IF($A$2="Municiple","Y","error")) -> Mi01N | H33: Key customers | J33: 5850.83 | K33: =ROUND(J33 * (1 + VAT), 2) -> 6728.45 | L33: 186.85 | M33: =ROUND(L33 * (1 + VAT), 2) -> 214.88 | O33: > 132kV* | P33: 0.53 | Q33: =ROUND(P33 * (1 + VAT), 2) -> 0.61 | R33: 0 | S33: =ROUND(R33 * (1 + VAT), 2) -> 0 | U33: > 132kV* | V33: 21.01 | W33: =ROUND(V33 * (1 + VAT), 2) -> 24.16
O34: * 132 kV or Transmission connected | U34: * 132 kV or Transmission connected
H36: Electrification and rural network subsidy charge [c/kWh] | J36: Affordability subsidy charge [c/kWh] Only payable by non-local authority tariffs | O36: Reactive energy charge [c/kVArh]
O38: High season | Q38: Low season
A39: Tariff | B39: Tariff nameBillcode | C39: Tx zone | D39: Voltage | E39: Billcode | I39: VAT incl | K39: VAT incl | P39: VAT incl | R39: VAT incl
A40: Miniflex | B40: Mi | C40: 0 | D40: 1 | E40: =B40&C40&D40&IF($A$2="Non-municipal","N",IF($A$2="Municiple","Y","error")) -> Mi01N | H40: 11.63 | I40: =ROUND(H40 * (1 + VAT), 2) -> 13.37 | J40: 5.69 | K40: =ROUND(J40 * (1 + VAT), 2) -> 6.54 | O40: 9.16 | P40: =ROUND(O40 * (1 + VAT), 2) -> 10.53 | Q40: 0 | R40: =ROUND(Q40 * (1 + VAT), 2) -> 0
A42: Miniflex | B42: Mi | C42: 0 | D42: 1 | E42: =B42&C42&D42&IF($A$2="Non-municipal","N",IF($A$2="Municiple","Y","error")) -> Mi01N
A43: Miniflex | B43: Mi | C43: 1 | D43: 2 | E43: =B43&C43&D43&IF($A$2="Non-municipal","N",IF($A$2="Municiple","Y","error")) -> Mi12N
A44: Miniflex | B44: Mi | C44: 2 | D44: 3 | E44: =B44&C44&D44&IF($A$2="Non-municipal","N",IF($A$2="Municiple","Y","error")) -> Mi23N
A45: Miniflex | B45: Mi | C45: 3 | D45: 4 | E45: =B45&C45&D45&IF($A$2="Non-municipal","N",IF($A$2="Municiple","Y","error")) -> Mi34N

Sheet Miniflex Munic
G1: Back to menu
A2: Municiple | G2: Miniflex - Local Authority
J4: Active energy charge [c/kWh] | V4: Network capacity charge [R/kVA/m]
H5: Transmission zone | J5: High demand season [Jun - Aug] | P5: Low demand season [Sep - May]
I6: Voltage | J6: Peak | L6: Standard | N6: Off Peak | P6: Peak | R6: Standard | T6: Off Peak
A7: Tariff | B7: Tariff nameBillcode | C7: Tx zone | D7: Voltage | E7: Billcode | K7: VAT incl | M7: VAT incl | O7: VAT incl | Q7: VAT incl | S7: VAT incl | U7: VAT incl | W7: VAT incl
A8: Miniflex | B8: Mi | C8: 0 | D8: 1 | E8: Mi01Y | H8: ≤ 300km | I8: < 500V | J8: 474.73 | K8: =ROUND(J8 * (1 + VAT), 2) -> 545.94 | L8: 144.46 | M8: =ROUND(L8 * (1 + VAT), 2) -> 166.13 | N8: 78.83 | O8: =ROUND(N8 * (1 + VAT), 2) -> 90.65 | P8: 155.42 | Q8: =ROUND(P8 * (1 + VAT), 2) -> 178.73 | R8: 107.26 | S8: =ROUND(R8 * (1 + VAT), 2) -> 123.35 | T8: 68.37 | U8: =ROUND(T8 * (1 + VAT), 2) -> 78.63 | V8: 39.59 | W8: =ROUND(V8 * (1 + VAT), 2) -> 45.53
A9: Miniflex | B9: Mi | C9: 0 | D9: 2 | E9: Mi02Y | I9: ≥ 500V & < 66kV | J9: 467.25 | K9: 537.34 | L9: 141.57 | M9: 162.81 | N9: 76.89 | O9: 88.42 | P9: 152.42 | Q9: 175.28 | R9: 104.9 | S9: 120.64 | T9: 66.57 | U9: 76.56 | V9: 36.25 | W9: 41.69
A10: Miniflex | B10: Mi | C10: 0 | D10: 3 | E10: Mi03Y | I10: ≥ 66kV & ≤ 132kV | J10: 452.51 | K10: 520.39 | L10: 137.08 | M10: 157.64 | N10: 74.45 | O10: 85.62 | P10: 147.62 | Q10: 169.76 | R10: 101.62 | S10: 116.86 | T10: 64.45 | U10: 74.12 | V10: 20.36 | W10: 23.41
A11: Miniflex | B11: Mi | C11: 0 | D11: 4 | E11: Mi04Y | I11: > 132kV* | J11: 426.46 | K11: 490.43 | L11: 129.19 | M11: 148.57 | N11: 70.15 | O11: 80.67 | P11: 139.11 | Q11: 159.98 | R11: 95.74 | S11: 110.1 | T11: 60.73 | U11: 69.84 | V11: 14.87 | W11: 17.1
A12: Miniflex | B12: Mi | C12: 1 | D12: 1 | E12: Mi11Y | H12: > 300km and ≤ 600km | I12: < 500V | J12: 478.61 | K12: 550.4 | L12: 144.98 | M12: 166.73 | N12: 78.72 | O12: 90.53 | P12: 156.13 | Q12: 179.55 | R12: 107.48 | S12: 123.6 | T12: 68.19 | U12: 78.42 | V12: 39.66 | W12: 45.61
A13: Miniflex | B13: Mi | C13: 1 | D13: 2 | E13: Mi12Y | I13: ≥ 500V & < 66kV | J13: 471.92 | K13: 542.71 | L13: 142.96 | M13: 164.4 | N13: 77.63 | O13: 89.27 | P13: 153.97 | Q13: 177.07 | R13: 105.96 | S13: 121.85 | T13: 67.21 | U13: 77.29 | V13: 36.4 | W13: 41.86
A14: Miniflex | B14: Mi | C14: 1 | D14: 3 | E14: Mi13Y | I14: ≥ 66kV & ≤ 132kV | J14: 456.93 | K14: 525.47 | L14: 138.41 | M14: 159.17 | N14: 75.16 | O14: 86.43 | P14: 149.06 | Q14: 171.42 | R14: 102.58 | S14: 117.97 | T14: 65.06 | U14: 74.82 | V14: 20.47 | W14: 23.54
A15: Miniflex | B15: Mi | C15: 1 | D15: 4 | E15: Mi14Y | I15: > 132kV* | J15: 430.71 | K15: 495.32 | L15: 130.51 | M15: 150.09 | N15: 70.85 | O15: 81.48 | P15: 140.48 | Q15: 161.55 | R15: 96.72 | S15: 111.23 | T15: 61.33 | U15: 70.53 | V15: 15.01 | W15: 17.26
A16: Miniflex | B16: Mi | C16: 2 | D16: 1 | E16: Mi21Y | H16: > 600km and ≤ 900km | I16: < 500V | J16: 483.38 | K16: 555.89 | L16: 146.44 | M16: 168.41 | N16: 79.5 | O16: 91.43 | P16: 157.66 | Q16: 181.31 | R16: 108.54 | S16: 124.82 | T16: 68.86 | U16: 79.19 | V16: 39.87 | W16: 45.85
A17: Miniflex | B17: Mi | C17: 2 | D17: 2 | E17: Mi22Y | I17: ≥ 500V & < 66kV | J17: 476.68 | K17: 548.18 | L17: 144.39 | M17: 166.05 | N17: 78.42 | O17: 90.18 | P17: 155.53 | Q17: 178.86 | R17: 106.97 | S17: 123.02 | T17: 67.9 | U17: 78.09 | V17: 36.49 | W17: 41.96
A18: Miniflex | B18: Mi | C18: 2 | D18: 3 | E18: Mi23Y | I18: ≥ 66kV & ≤ 132kV | J18: 461.59 | K18: 530.83 | L18: 139.8 | M18: 160.77 | N18: 75.91 | O18: 87.3 | P18: 150.52 | Q18: 173.1 | R18: 103.6 | S18: 119.14 | T18: 65.7 | U18: 75.56 | V18: 20.57 | W18: 23.66
A19: Miniflex | B19: Mi | C19: 2 | D19: 4 | E19: Mi24Y | I19: > 132kV* | J19: 435.03 | K19: 500.28 | L19: 131.81 | M19: 151.58 | N19: 71.56 | O19: 82.29 | P19: 141.93 | Q19: 163.22 | R19: 97.67 | S19: 112.32 | T19: 61.96 | U19: 71.25 | V19: 15.22 | W19: 17.5
A20: Miniflex | B20: Mi | C20: 3 | D20: 1 | E20: Mi31Y | H20: > 900km | I20: < 500V | J20: 488.22 | K20: 561.45 | L20: 147.92 | M20: 170.11 | N20: 80.32 | O20: 92.37 | P20: 159.28 | Q20: 183.17 | R20: 109.61 | S20: 126.05 | T20: 69.55 | U20: 79.98 | V20: 39.89 | W20: 45.87
A21: Miniflex | B21: Mi | C21: 3 | D21: 2 | E21: Mi32Y | I21: ≥ 500V & < 66kV | J21: 481.44 | K21: 553.66 | L21: 145.83 | M21: 167.7 | N21: 79.21 | O21: 91.09 | P21: 157.03 | Q21: 180.58 | R21: 108.08 | S21: 124.29 | T21: 68.54 | U21: 78.82 | V21: 36.65 | W21: 42.15
A22: Miniflex | B22: Mi | C22: 3 | D22: 3 | E22: Mi33Y | I22: ≥ 66kV & ≤ 132kV | J22: 466.23 | K22: 536.16 | L22: 141.25 | M22: 162.44 | N22: 76.7 | O22: 88.21 | P22: 152.08 | Q22: 174.89 | R22: 104.65 | S22: 120.35 | T22: 66.39 | U22: 76.35 | V22: 20.64 | W22: 23.74
A23: Miniflex | B23: Mi | C23: 3 | D23: 4 | E23: Mi34Y | I23: > 132kV* | J23: 439.32 | K23: 505.22 | L23: 133.14 | M23: 153.11 | N23: 72.36 | O23: 83.21 | P23: 143.38 | Q23: 164.89 | R23: 98.69 | S23: 113.49 | T23: 62.64 | U23: 72.04 | V23: 15.31 | W23: 17.61
I24: * 132 kV or Transmission connected
H26: Customer categories | J26: Service charge [R/account/day] | L26: Administration charge [R/POD/day]
A28: Tariff | B28: Tariff nameBillcode | C28: Tx zone | D28: Voltage | E28: Billcode | K28: VAT incl | M28: VAT incl | P28: Ancillary service charge [c/kWh] | R28: Network demand charge [c/kWh] [Peak & Standard] | U28: Urban low voltage subsidy charge [R/kVA/m]
A29: Miniflex | B29: Mi | C29: 0 | D29: 1 | E29: Mi01Y | H29: ≤ 100 kVA | J29: 21.42 | K29: =ROUND(J29 * (1 + VAT), 2) -> 24.63 | L29: 4.69 | M29: =ROUND(L29 * (1 + VAT), 2) -> 5.39 | O29: Voltage | Q29: VAT incl | S29: VAT incl | W29: VAT incl
A30: Miniflex | B30: Mi | C30: 0 | D30: 1 | E30: Mi01Y | H30: > 100 kVA & ≤ 500 kVA | J30: 97.88 | K30: =ROUND(J30 * (1 + VAT), 2) -> 112.56 | L30: 27.41 | M30: =ROUND(L30 * (1 + VAT), 2) -> 31.52 | O30: < 500V | P30: 0.62 | Q30: =ROUND(P30 * (1 + VAT), 2) -> 0.71 | R30: 24.49 | S30: =ROUND(R30 * (1 + VAT), 2) -> 28.16 | U30: < 500V | V30: 0 | W30: =ROUND(V30 * (1 + VAT), 2) -> 0
A31: Miniflex | B31: Mi | C31: 0 | D31: 1 | E31: Mi01Y | H31: > 500 kVA & ≤ 1 MVA | J31: 301.23 | K31: =ROUND(J31 * (1 + VAT), 2) -> 346.41 | L31: 54.53 | M31: =ROUND(L31 * (1 + VAT), 2) -> 62.71 | O31: ≥ 500V & < 66kV | P31: 0.6 | Q31: =ROUND(P31 * (1 + VAT), 2) -> 0.69 | R31: 10.29 | S31: =ROUND(R31 * (1 + VAT), 2) -> 11.83 | U31: ≥ 500V & < 66kV | V31: 0 | W31: =ROUND(V31 * (1 + VAT), 2) -> 0
A32: Miniflex | B32: Mi | C32: 0 | D32: 1 | E32: Mi01Y | H32: > 1 MVA | J32: 301.23 | K32: =ROUND(J32 * (1 + VAT), 2) -> 346.41 | L32: 135.78 | M32: =ROUND(L32 * (1 + VAT), 2) -> 156.15 | O32: ≥ 66kV & ≤ 132kV | P32: 0.55 | Q32: =ROUND(P32 * (1 + VAT), 2) -> 0.63 | R32: 3.55 | S32: =ROUND(R32 * (1 + VAT), 2) -> 4.08 | U32: ≥ 66kV & ≤ 132kV | V32: 21.18 | W32: =ROUND(V32 * (1 + VAT), 2) -> 24.36
A33: Miniflex | B33: Mi | C33: 0 | D33: 1 | E33: Mi01Y | H33: Key customers | J33: 5902.88 | K33: =ROUND(J33 * (1 + VAT), 2) -> 6788.31 | L33: 188.51 | M33: =ROUND(L33 * (1 + VAT), 2) -> 216.79 | O33: > 132kV* | P33: 0.52 | Q33: =ROUND(P33 * (1 + VAT), 2) -> 0.6 | R33: 0 | S33: =ROUND(R33 * (1 + VAT), 2) -> 0 | U33: > 132kV* | V33: 21.18 | W33: =ROUND(V33 * (1 + VAT), 2) -> 24.36
O34: * 132 kV or Transmission connected | U34: * 132 kV or Transmission connected
H36: Electrification and rural network subsidy charge [c/kWh] | L36: Reactive energy charge [c/kVArh]
L38: High season | N38: Low season
A39: Tariff | B39: Tariff nameBillcode | C39: Tx zone | D39: Voltage | E39: Billcode | I39: VAT incl | M39: VAT incl | O39: VAT incl
A40: Miniflex | B40: Mi | C40: 0 | D40: 1 | E40: Mi01Y | H40: 11.73 | I40: =ROUND(H40 * (1 + VAT), 2) -> 13.49 | L40: 9.29 | M40: =ROUND(L40 * (1 + VAT), 2) -> 10.68 | N40: 0 | O40: =ROUND(N40 * (1 + VAT), 2) -> 0
A42: Miniflex | B42: Mi | C42: 0 | D42: 1 | E42: Mi01Y
A43: Miniflex | B43: Mi | C43: 1 | D43: 2 | E43: Mi12Y
A44: Miniflex | B44: Mi | C44: 2 | D44: 3 | E44: Mi23Y
A45: Miniflex | B45: Mi | C45: 3 | D45: 4 | E45: Mi34Y

Sheet Businessrate NLA
H1: Back to menu
A2: Non-municipal | G2: Businessrate - Non-local Authority
J4: Energy charge [c/kWh] | L4: Ancillary service charge [c/kWh] | N4: Network demand charge [c/kWh] | P4: Network capacity charge [R/POD/day] | R4: Service and administration charge [R/POD/day] | Z4: Electrification and rural network subsidy charge [c/kWh] | AB4: Affordability subsidy charge [c/kWh] payable by non-local authority tariffs
Z6: All seasons | AB6: All seasons
A7: Tariff | B7: Tariff nameBillcode | C7: Tx zone | D7: Voltage | E7: Billcode | K7: VAT incl | M7: VAT incl | O7: VAT incl | Q7: VAT incl | S7: VAT incl | AA7: VAT incl | AC7: VAT incl
A8: Businessrate 1 | B8: B1 | C8: 0 | D8: 1 | E8: =B8&C8&D8&IF($A$2="Non-municipal","N",IF($A$2="Municiple","Y","error")) -> B101N | H8: Businessrate 1 | J8: 156.62 | K8: =ROUND(J8 * (1 + VAT), 2) -> 180.11 | L8: 0.6 | M8: =ROUND(L8 * (1 + VAT), 2) -> 0.69 | N8: 22.11 | O8: =ROUND(N8 * (1 + VAT), 2) -> 25.43 | P8: 31.75 | Q8: =ROUND(P8 * (1 + VAT), 2) -> 36.51 | R8: 27.44 | S8: =ROUND(R8 * (1 + VAT), 2) -> 31.56 | Z8: 0 | AA8: =ROUND(Z8 * (1 + VAT), 2) -> 0 | AB8: 0 | AC8: =ROUND(AB8 * (1 + VAT), 2) -> 0
A9: Businessrate 2 | B9: B2 | C9: 0 | D9: 1 | E9: =B9&C9&D9&IF($A$2="Non-municipal","N",IF($A$2="Municiple","Y","error")) -> B201N | H9: Businessrate 2 | J9: 156.62 | K9: =ROUND(J9 * (1 + VAT), 2) -> 180.11 | L9: 0.6 | M9: =ROUND(L9 * (1 + VAT), 2) -> 0.69 | N9: 22.11 | O9: =ROUND(N9 * (1 + VAT), 2) -> 25.43 | P9: 53.5 | Q9: =ROUND(P9 * (1 + VAT), 2) -> 61.53 | R9: 27.44 | S9: =ROUND(R9 * (1 + VAT), 2) -> 31.56 | Z9: =Z8 -> 0 | AA9: =ROUND(Z9 * (1 + VAT), 2) -> 0 | AB9: =AB8 -> 0 | AC9: =ROUND(AB9 * (1 + VAT), 2) -> 0
A10: Businessrate 3 | B10: B3 | C10: 0 | D10: 1 | E10: =B10&C10&D10&IF($A$2="Non-municipal","N",IF($A$2="Municiple","Y","error")) -> B301N | H10: Businessrate 3 | J10: 156.62 | K10: =ROUND(J10 * (1 + VAT), 2) -> 180.11 | L10: 0.6 | M10: =ROUND(L10 * (1 + VAT), 2) -> 0.69 | N10: 22.11 | O10: =ROUND(N10 * (1 + VAT), 2) -> 25.43 | P10: 92.43 | Q10: =ROUND(P10 * (1 + VAT), 2) -> 106.29 | R10: 27.44 | S10: =ROUND(R10 * (1 + VAT), 2) -> 31.56 | Z10: =Z8 -> 0 | AA10: =ROUND(Z10 * (1 + VAT), 2) -> 0 | AB10: =AB8 -> 0 | AC10: =ROUND(AB10 * (1 + VAT), 2) -> 0
A11: Businessrate 4 | B11: B4 | C11: 0 | D11: 1 | E11: =B11&C11&D11&IF($A$2="Non-municipal","N",IF($A$2="Municiple","Y","error")) -> B401N | H11: Businessrate 4 | J11: 421.49 | K11: =ROUND(J11 * (1 + VAT), 2) -> 484.71 | L11: 0.6 | M11: =ROUND(L11 * (1 + VAT), 2) -> 0.69 | N11: 22.11 | O11: =ROUND(N11 * (1 + VAT), 2) -> 25.43 | Z11: =Z9 -> 0 | AA11: =ROUND(Z11 * (1 + VAT), 2) -> 0 | AB11: =AB9 -> 0 | AC11: =ROUND(AB11 * (1 + VAT), 2) -> 0

Sheet Businessrate Munic
H1: Back to menu
A2: Municiple | G2: Businessrate - Local Authority
J4: Energy charge [c/kWh] | L4: Ancillary service charge [c/kWh] | N4: Network demand charge [c/kWh] | P4: Network capacity charge [R/POD/day] | R4: Service and administration charge [R/POD/day] | Z4: Electrification and rural network subsidy charge [c/kWh] | AB4: Affordability subsidy charge [c/kWh] payable by non-local authority tariffs
Z6: All seasons | AB6: All seasons
A7: Tariff | B7: Tariff nameBillcode | C7: Tx zone | D7: Voltage | E7: Billcode | K7: VAT incl | M7: VAT incl | O7: VAT incl | Q7: VAT incl | S7: VAT incl | AA7: VAT incl | AC7: VAT incl
A8: Businessrate 1 | B8: B1 | C8: 0 | D8: 1 | E8: =B8&C8&D8&IF($A$2="Non-municipal","N",IF($A$2="Municiple","Y","error")) -> B101Y | H8: Businessrate 1 | J8: 162.53 | K8: =ROUND(J8 * (1 + VAT), 2) -> 186.91 | L8: 0.62 | M8: =ROUND(L8 * (1 + VAT), 2) -> 0.71 | N8: 22.53 | O8: =ROUND(N8 * (1 + VAT), 2) -> 25.91 | P8: 32.3 | Q8: =ROUND(P8 * (1 + VAT), 2) -> 37.15 | R8: 27.66 | S8: =ROUND(R8 * (1 + VAT), 2) -> 31.81 | Z8: 0 | AA8: =ROUND(Z8 * (1 + VAT), 2) -> 0 | AB8: 0 | AC8: =ROUND(AB8 * (1 + VAT), 2) -> 0
A9: Businessrate 2 | B9: B2 | C9: 0 | D9: 1 | E9: =B9&C9&D9&IF($A$2="Non-municipal","N",IF($A$2="Municiple","Y","error")) -> B201Y | H9: Businessrate 2 | J9: 162.53 | K9: =ROUND(J9 * (1 + VAT), 2) -> 186.91 | L9: 0.62 | M9: =ROUND(L9 * (1 + VAT), 2) -> 0.71 | N9: 22.53 | O9: =ROUND(N9 * (1 + VAT), 2) -> 25.91 | P9: 54.48 | Q9: =ROUND(P9 * (1 + VAT), 2) -> 62.65 | R9: 27.66 | S9: =ROUND(R9 * (1 + VAT), 2) -> 31.81 | Z9: =Z8 -> 0 | AA9: =ROUND(Z9 * (1 + VAT), 2) -> 0 | AB9: =AB8 -> 0 | AC9: =ROUND(AB9 * (1 + VAT), 2) -> 0
A10: Businessrate 3 | B10: B3 | C10: 0 | D10: 1 | E10: =B10&C10&D10&IF($A$2="Non-municipal","N",IF($A$2="Municiple","Y","error")) -> B301Y | H10: Businessrate 3 | J10: 162.53 | K10: =ROUND(J10 * (1 + VAT), 2) -> 186.91 | L10: 0.62 | M10: =ROUND(L10 * (1 + VAT), 2) -> 0.71 | N10: 22.53 | O10: =ROUND(N10 * (1 + VAT), 2) -> 25.91 | P10: 94.14 | Q10: =ROUND(P10 * (1 + VAT), 2) -> 108.26 | R10: 27.66 | S10: =ROUND(R10 * (1 + VAT), 2) -> 31.81 | Z10: =Z8 -> 0 | AA10: =ROUND(Z10 * (1 + VAT), 2) -> 0 | AB10: =AB8 -> 0 | AC10: =ROUND(AB10 * (1 + VAT), 2) -> 0
A11: Businessrate 4 | B11: B4 | C11: 0 | D11: 1 | E11: =B11&C11&D11&IF($A$2="Non-municipal","N",IF($A$2="Municiple","Y","error")) -> B401Y | H11: Businessrate 4 | J11: 437.39 | K11: =ROUND(J11 * (1 + VAT), 2) -> 503 | L11: 0.62 | M11: =ROUND(L11 * (1 + VAT), 2) -> 0.71 | N11: 22.53 | O11: =ROUND(N11 * (1 + VAT), 2) -> 25.91 | Z11: =Z9 -> 0 | AA11: =ROUND(Z11 * (1 + VAT), 2) -> 0 | AB11: =AB9 -> 0 | AC11: =ROUND(AB11 * (1 + VAT), 2) -> 0

Sheet Public Lighting NLA
H1: Back to menu
A2: Non-municipal | G2: Public Lighting - Non-local Authority
K4: All Night | M4: 24 Hours
A5: Tariff | B5: Tariff nameBillcode | C5: Tx zone | D5: Voltage | E5: Billcode | L5: VAT incl | N5: VAT incl
A6: Public lighting 24 hours | B6: Pu | C6: 0 | D6: 1 | E6: =B6&C6&D6&IF($A$2="Non-municipal","N",IF($A$2="Municiple","Y","error")) -> Pu01N | H6: Public Lighting | I6: Energy charge [c/kWh] | K6: 124.64 | L6: =ROUND(K6 * (1 + VAT), 2) -> 143.34 | M6: 166.89 | N6: =ROUND(M6 * (1 + VAT), 2) -> 191.92
A7: Public lighting All Night | B7: Pa | C7: 0 | D7: 1 | E7: =B7&C7&D7&IF($A$2="Non-municipal","N",IF($A$2="Municiple","Y","error")) -> Pa01N | I7: Energy charge [R/100W/month] | K7: 39 | L7: =ROUND(K7 * (1 + VAT), 2) -> 44.85 | M7: 112.41 | N7: =ROUND(M7 * (1 + VAT), 2) -> 129.27
A9: Public lighting Urban fixed | B9: Pt | C9: 0 | D9: 1 | E9: =B9&C9&D9&IF($A$2="Non-municipal","N",IF($A$2="Municiple","Y","error")) -> Pt01N | H9: Public Lighting - Urban Fixed | I9: Fixed charge [R/POD/day] | K9: 8.2 | L9: =ROUND(K9 * (1 + VAT), 2) -> 9.43
H11: Maintenance charges | K11: R/month
L12: VAT incl
A13: Public Lighting - Maintenance charge - per lumanaire | B13: Plu | C13: 0 | D13: 1 | E13: =B13&C13&D13&IF($A$2="Non-municipal","N",IF($A$2="Municiple","Y","error")) -> Plu01N | J13: Per lumanaire | K13: 66.09 | L13: =ROUND(K13 * (1 + VAT), 2) -> 76
A14: Public Lighting - Maintenance charge - per high-mast lumanaire | B14: Plhm | C14: 0 | D14: 1 | E14: =B14&C14&D14&IF($A$2="Non-municipal","N",IF($A$2="Municiple","Y","error")) -> Plhm01N | J14: Per high-mast lumanaire | K14: 1538.58 | L14: =ROUND(K14 * (1 + VAT), 2) -> 1769.37

Sheet Public Lighting Munic
H1: Back to menu
A2: Municipal | G2: Public Lighting - Local Authority | AB2: =SUM(#REF!) ->  | AC2: check value
K4: All Night | M4: 24 Hours
A5: Tariff | B5: Tariff nameBillcode | C5: Tx zone | D5: Voltage | E5: Billcode | L5: VAT incl | N5: VAT incl
A6: Public lighting 24 hours | B6: Pu | C6: 0 | D6: 1 | E6: =B6&C6&D6&IF($A$2="Non-municipal","N",IF($A$2="Municipal","Y","error")) -> Pu01Y | H6: Public Lighting | I6: Energy charge [c/kWh] | K6: 131.2 | L6: =ROUND(K6 * (1 + VAT), 2) -> 150.88 | M6: 175.68 | N6: =ROUND(M6 * (1 + VAT), 2) -> 202.03
A7: Public lighting All Night | B7: Pa | C7: 0 | D7: 1 | E7: =B7&C7&D7&IF($A$2="Non-municipal","N",IF($A$2="Municipal","Y","error")) -> Pa01Y | I7: Energy charge [R/100W/month] | K7: 40.07 | L7: =ROUND(K7 * (1 + VAT), 2) -> 46.08 | M7: 115.5 | N7: =ROUND(M7 * (1 + VAT), 2) -> 132.83
A9: Public lighting Urban fixed | B9: Pt | C9: 0 | D9: 1 | E9: =B9&C9&D9&IF($A$2="Non-municipal","N",IF($A$2="Municipal","Y","error")) -> Pt01Y | H9: Public Lighting - Urban Fixed | I9: Fixed charge [R/POD/day] | K9: 8.63 | L9: =ROUND(K9 * (1 + VAT), 2) -> 9.92
H11: Maintenance charges | K11: R/month
L12: VAT incl
A13: Public Lighting - Maintenance charge - per lumanaire | B13: Plu | C13: 0 | D13: 1 | E13: =B13&C13&D13&IF($A$2="Non-municipal","N",IF($A$2="Municipal","Y","error")) -> Plu01Y | J13: Per lumanaire | K13: 69.23 | L13: =ROUND(K13 * (1 + VAT), 2) -> 79.61
A14: Public Lighting - Maintenance charge - per high-mast lumanaire | B14: Plhm | C14: 0 | D14: 1 | E14: =B14&C14&D14&IF($A$2="Non-municipal","N",IF($A$2="Municipal","Y","error")) -> Plhm01Y | J14: Per high-mast lumanaire | K14: 1616.82 | L14: =ROUND(K14 * (1 + VAT), 2) -> 1859.34

Sheet Homepower NLA
H1: Back to menu
A2: Non-municipal | G2: Homepower - Non-local Authority
J5: Energy charge [c/kWh] | N5: Network capacity charge [R/POD/day]
A6: Tariff | B6: Tariff nameBillcode | C6: Tx zone | D6: Voltage | E6: Billcode | J6: Block 1 [>0 - 600 kWh] | K6: VAT incl | L6: Block 2 [>600 kWh] | M6: VAT incl | O6: VAT incl
A7: Homepower 1 | B7: H1 | C7: 0 | D7: 1 | E7: =B7&C7&D7&IF($A$2="Non-municipal","N",IF($A$2="Municiple","Y","error")) -> H101N | H7: Homepower 1 | J7: 183.56 | K7: =ROUND(J7 * (1 + VAT), 2) -> 211.09 | L7: 289.85 | M7: =ROUND(L7 * (1 + VAT), 2) -> 333.33 | N7: 7.86 | O7: =ROUND(N7 * (1 + VAT), 2) -> 9.04
A8: Homepower 2 | B8: H2 | C8: 0 | D8: 1 | E8: =B8&C8&D8&IF($A$2="Non-municipal","N",IF($A$2="Municiple","Y","error")) -> H201N | H8: Homepower 2 | J8: 183.56 | K8: =ROUND(J8 * (1 + VAT), 2) -> 211.09 | L8: 282.62 | M8: =ROUND(L8 * (1 + VAT), 2) -> 325.01 | N8: 14.73 | O8: =ROUND(N8 * (1 + VAT), 2) -> 16.94
A9: Homepower 3 | B9: H3 | C9: 0 | D9: 1 | E9: =B9&C9&D9&IF($A$2="Non-municipal","N",IF($A$2="Municiple","Y","error")) -> H301N | H9: Homepower 3 | J9: 183.56 | K9: =ROUND(J9 * (1 + VAT), 2) -> 211.09 | L9: 282.62 | M9: =ROUND(L9 * (1 + VAT), 2) -> 325.01 | N9: 30.42 | O9: =ROUND(N9 * (1 + VAT), 2) -> 34.98
A10: Homepower 4 | B10: H4 | C10: 0 | D10: 1 | E10: =B10&C10&D10&IF($A$2="Non-municipal","N",IF($A$2="Municiple","Y","error")) -> H401N | H10: Homepower 4 | J10: 183.56 | K10: =ROUND(J10 * (1 + VAT), 2) -> 211.09 | L10: 295.19 | M10: =ROUND(L10 * (1 + VAT), 2) -> 339.47 | N10: 4.8 | O10: =ROUND(N10 * (1 + VAT), 2) -> 5.52
J12: Energy charge [c/kWh] | L12: Network capacity charge [R/kVA]
K13: VAT incl | M13: VAT incl
A14: Homepower Bulk < 500V | B14: HB | C14: 0 | D14: 1 | E14: =B14&C14&D14&IF($A$2="Non-municipal","N",IF($A$2="Municiple","Y","error")) -> HB01N | H14: Homepower Bulk | J14: 241.01 | K14: =ROUND(J14 * (1 + VAT), 2) -> 277.16 | L14: 49.88 | M14: =ROUND(L14 * (1 + VAT), 2) -> 57.36
H15: * The Network capacity charge is based on the NMD or on the maximum demand if measured.

Sheet Homepower Munic
H1: Back to menu
A2: Municiple | G2: Homepower - Local Authority
J4: Energy charge [c/kWh] | L4: Energy charge [c/kWh] | N4: Network capacity charge [R/POD/day]
A5: Tariff | B5: Tariff nameBillcode | C5: Tx zone | D5: Voltage | E5: Billcode | J5: Block 1 [>0 - 600 kWh] | K5: VAT incl | L5: Block 2 [>600 kWh] | M5: VAT incl | O5: VAT incl
A6: Homepower 1 | B6: H1 | C6: 0 | D6: 1 | E6: =B6&C6&D6&IF($A$2="Non-municipal","N",IF($A$2="Municiple","Y","error")) -> H101Y | H6: Homepower 1 | J6: 186.07 | K6: =ROUND(J6 * (1 + VAT), 2) -> 213.98 | L6: 293.79 | M6: =ROUND(L6 * (1 + VAT), 2) -> 337.86 | N6: 7.96 | O6: =ROUND(N6 * (1 + VAT), 2) -> 9.15
A7: Homepower 2 | B7: H2 | C7: 0 | D7: 1 | E7: =B7&C7&D7&IF($A$2="Non-municipal","N",IF($A$2="Municiple","Y","error")) -> H201Y | H7: Homepower 2 | J7: 186.07 | K7: =ROUND(J7 * (1 + VAT), 2) -> 213.98 | L7: 286.43 | M7: =ROUND(L7 * (1 + VAT), 2) -> 329.39 | N7: 14.93 | O7: =ROUND(N7 * (1 + VAT), 2) -> 17.17
A8: Homepower 3 | B8: H3 | C8: 0 | D8: 1 | E8: =B8&C8&D8&IF($A$2="Non-municipal","N",IF($A$2="Municiple","Y","error")) -> H301Y | H8: Homepower 3 | J8: 186.07 | K8: =ROUND(J8 * (1 + VAT), 2) -> 213.98 | L8: 286.43 | M8: =ROUND(L8 * (1 + VAT), 2) -> 329.39 | N8: 30.85 | O8: =ROUND(N8 * (1 + VAT), 2) -> 35.48
A9: Homepower 4 | B9: H4 | C9: 0 | D9: 1 | E9: =B9&C9&D9&IF($A$2="Non-municipal","N",IF($A$2="Municiple","Y","error")) -> H401Y | H9: Homepower 4 | J9: 186.07 | K9: =ROUND(J9 * (1 + VAT), 2) -> 213.98 | L9: 299.2 | M9: =ROUND(L9 * (1 + VAT), 2) -> 344.08 | N9: 4.88 | O9: =ROUND(N9 * (1 + VAT), 2) -> 5.61

Sheet Homelight NLA
H1: Back to menu
A2: Non-municipal | G2: Homelight - Non-local Authority
H4: Homelight 60A | J4: Energy charge [c/kWh]
A5: Tariff | B5: Tariff nameBillcode | C5: Tx zone | D5: Voltage | E5: Billcode | K5: VAT incl
A6: Homelight 1 60A | B6: HL16 | C6: 0 | D6: 1 | E6: =B6&C6&D6&IF($A$2="Non-municipal","N",IF($A$2="Municiple","Y","error")) -> HL1601N | H6: Block 1 [> 0 - 600 kWh] | J6: 173.67 | K6: =ROUND(J6 * (1 + VAT), 2) -> 199.72
A7: Homelight 2 60A | B7: HL26 | C7: 0 | D7: 1 | E7: =B7&C7&D7&IF($A$2="Non-municipal","N",IF($A$2="Municiple","Y","error")) -> HL2601N | H7: Block 2 [>600 kWh] | J7: 295.19 | K7: =ROUND(J7 * (1 + VAT), 2) -> 339.47
H10: Homelight 20A | J10: Energy charge [c/kWh]
K11: VAT incl
A12: Homelight 1 20A | B12: HL12 | C12: 0 | D12: 1 | E12: =B12&C12&D12&IF($A$2="Non-municipal","N",IF($A$2="Municiple","Y","error")) -> HL1201N | H12: Block 1 [> 0 - 350 kWh] | J12: 153.44 | K12: =ROUND(J12 * (1 + VAT), 2) -> 176.46
A13: Homelight 2 20A | B13: HL22 | C13: 0 | D13: 1 | E13: =B13&C13&D13&IF($A$2="Non-municipal","N",IF($A$2="Municiple","Y","error")) -> HL2201N | H13: Block 2 [>350 kWh] | J13: 173.86 | K13: =ROUND(J13 * (1 + VAT), 2) -> 199.94

Sheet Nightsave Rural NLA
G1: Back to menu
A2: Non-municipal | G2: Nightsave Rural - Non-local Authority | AF2: =SUM(#REF!,#REF!,#REF!,#REF!,#REF!,#REF!,#REF!,#REF!,#REF!,#REF!,#REF!,#REF!,#REF!,#REF!,#REF!) ->  | AG2: check value
J4: Active energy charge [c/kWh] | N4: Energy demand charges [R/kVA/m] | R4: Network capacity charges [R/kVA/m]
H5: Transmission zone | J5: High demand season [Jun - Aug] | L5: Low demand season [Sep - May] | N5: High demand season [Jun - Aug] | P5: Low demand season [Sep - May]
I6: Voltage
A7: Tariff | B7: Tariff nameBillcode | C7: Tx zone | D7: Voltage | E7: Billcode | K7: VAT incl | M7: VAT incl | O7: VAT incl | Q7: VAT incl | S7: VAT incl
A8: Nightsave Rural | B8: NR | C8: 0 | D8: 1 | E8: =B8&C8&D8&IF($A$2="Non-municipal","N",IF($A$2="Municiple","Y","error")) -> NR01N | H8: ≤ 300km | I8: < 500V | J8: 115.54 | K8: =ROUND(J8 * (1 + VAT), 2) -> 132.87 | L8: 89.77 | M8: =ROUND(L8 * (1 + VAT), 2) -> 103.24 | N8: 387.12 | O8: =ROUND(N8 * (1 + VAT), 2) -> 445.19 | P8: 204.87 | Q8: =ROUND(P8 * (1 + VAT), 2) -> 235.6 | R8: 19.58 | S8: =ROUND(R8 * (1 + VAT), 2) -> 22.52
A9: Nightsave Rural | B9: NR | C9: 0 | D9: 2 | E9: =B9&C9&D9&IF($A$2="Non-municipal","N",IF($A$2="Municiple","Y","error")) -> NR02N | I9: ≥ 500V & ≤ 22kV | J9: 114.17 | K9: 131.3 | L9: 88.76 | M9: 102.07 | N9: 375.12 | O9: 431.39 | P9: 197.62 | Q9: 227.26 | R9: 17.99 | S9: 20.69
A10: Nightsave Rural | B10: NR | E10: NRN | J10: 0 | L10: 0 | N10: 0 | O10: 0 | P10: 0 | Q10: 0 | R10: 0
A11: Nightsave Rural | B11: NR | E11: NRN | J11: 0 | L11: 0 | N11: 0 | O11: 0 | P11: 0 | Q11: 0 | R11: 0
A12: Nightsave Rural | B12: NR | C12: 1 | D12: 1 | E12: NR11N | H12: > 300km and ≤ 600km | I12: < 500V | J12: 116.67 | K12: 134.17 | L12: 90.68 | M12: 104.28 | N12: 391.78 | O12: 450.55 | P12: 207.74 | Q12: 238.9 | R12: 19.61 | S12: 22.55
A13: Nightsave Rural | B13: NR | C13: 1 | D13: 2 | E13: NR12N | I13: ≥ 500V & ≤ 22kV | J13: 115.34 | K13: 132.64 | L13: 89.66 | M13: 103.11 | N13: 379.7 | O13: 436.66 | P13: 200.37 | Q13: 230.43 | R13: 18.05 | S13: 20.76
A14: Nightsave Rural | B14: NR | E14: NRN | J14: 0 | L14: 0 | N14: 0 | O14: 0 | P14: 0 | Q14: 0 | R14: 0
A15: Nightsave Rural | B15: NR | E15: NRN | J15: 0 | L15: 0 | N15: 0 | O15: 0 | P15: 0 | Q15: 0 | R15: 0
A16: Nightsave Rural | B16: NR | C16: 2 | D16: 1 | E16: NR21N | H16: > 600km and ≤ 900km | I16: < 500V | J16: 117.84 | K16: 135.52 | L16: 91.56 | M16: 105.29 | N16: 396.49 | O16: 455.96 | P16: 210.54 | Q16: 242.12 | R16: 19.8 | S16: 22.77
A17: Nightsave Rural | B17: NR | C17: 2 | D17: 2 | E17: NR22N | I17: ≥ 500V & ≤ 22kV | J17: 116.48 | K17: 133.95 | L17: 90.55 | M17: 104.13 | N17: 384.25 | O17: 441.89 | P17: 203.13 | Q17: 233.6 | R17: 18.17 | S17: 20.9
A18: Nightsave Rural | B18: NR | E18: NRN | J18: 0 | L18: 0 | N18: 0 | O18: 0 | P18: 0 | Q18: 0 | R18: 0
A19: Nightsave Rural | B19: NR | E19: NRN | J19: 0 | L19: 0 | N19: 0 | O19: 0 | P19: 0 | Q19: 0 | R19: 0
A20: Nightsave Rural | B20: NR | C20: 3 | D20: 1 | E20: NR31N | H20: > 900km | I20: < 500V | J20: 119.01 | K20: 136.86 | L20: 92.48 | M20: 106.35 | N20: 401.3 | O20: =ROUND(N20 * (1 + VAT), 2) -> 461.5 | P20: 213.43 | Q20: =ROUND(P20 * (1 + VAT), 2) -> 245.44 | R20: 19.85 | S20: 22.83
A21: Nightsave Rural | B21: NR | C21: 3 | D21: 2 | E21: NR32N | I21: ≥ 500V & ≤ 22kV | J21: 117.6 | K21: 135.24 | L21: 91.44 | M21: 105.16 | N21: 388.95 | O21: 447.29 | P21: 205.96 | Q21: 236.85 | R21: 18.21 | S21: 20.94
H26: Customer categories | J26: Service charge [R/account/day] | L26: Administration charge [R/POD/day]
A28: Tariff | B28: Tariff nameBillcode | C28: Tx zone | D28: Voltage | E28: Billcode | K28: VAT incl | M28: VAT incl
A29: Nightsave Rural | B29: NR | C29: 0 | D29: 1 | E29: =B29&C29&D29&IF($A$2="Non-municipal","N",IF($A$2="Municiple","Y","error")) -> NR01N | H29: ≤ 100 kVA | J29: 26.91 | K29: =ROUND(J29 * (1 + VAT), 2) -> 30.95 | L29: 7.64 | M29: =ROUND(L29 * (1 + VAT), 2) -> 8.79
A30: Nightsave Rural | B30: NR | C30: 0 | D30: 1 | E30: NR01N | H30: > 100 kVA & ≤ 500 kVA | J30: 91.77 | K30: =ROUND(J30 * (1 + VAT), 2) -> 105.54 | L30: 42.55 | M30: =ROUND(L30 * (1 + VAT), 2) -> 48.93 | P30: Ancillary service charge [c/kWh] | R30: Network demand charge [c/kWh] in all time-of-use periods
A31: Nightsave Rural | B31: NR | C31: 0 | D31: 1 | E31: NR01N | H31: > 500 kVA & ≤ 1 MVA | J31: 282.31 | K31: =ROUND(J31 * (1 + VAT), 2) -> 324.66 | L31: 65.31 | M31: =ROUND(L31 * (1 + VAT), 2) -> 75.11 | O31: Voltage | Q31: VAT incl | S31: VAT incl
A32: Nightsave Rural | B32: NR | C32: 0 | D32: 1 | E32: NR01N | H32: > 1 MVA | J32: 282.31 | K32: =ROUND(J32 * (1 + VAT), 2) -> 324.66 | L32: 121.17 | M32: =ROUND(L32 * (1 + VAT), 2) -> 139.35 | O32: < 500V | P32: 0.6 | Q32: =ROUND(P32 * (1 + VAT), 2) -> 0.69 | R32: 38.94 | S32: =ROUND(R32 * (1 + VAT), 2) -> 44.78
A33: Nightsave Rural | B33: NR | C33: 0 | D33: 1 | E33: NR01N | H33: Key customers | J33: 5533.08 | K33: =ROUND(J33 * (1 + VAT), 2) -> 6363.04 | L33: 121.17 | M33: =ROUND(L33 * (1 + VAT), 2) -> 139.35 | O33: ≥ 500V & ≤ 22kV | P33: 0.6 | Q33: =ROUND(P33 * (1 + VAT), 2) -> 0.69 | R33: 34.14 | S33: =ROUND(R33 * (1 + VAT), 2) -> 39.26
A34: Nightsave Rural | B34: NR | C34: 0 | D34: 2 | E34: NR02N

Sheet Nightsave Rural Munic
G1: Back to menu
A2: Municiple | G2: Nightsave Rural - Local Authority | AF2: =SUM(#REF!,#REF!,#REF!,#REF!,#REF!,#REF!,#REF!,#REF!,#REF!,#REF!,#REF!,#REF!,#REF!,#REF!,#REF!) ->  | AG2: check value
J4: Active energy charge [c/kWh] | N4: Energy demand charges [R/kVA/m] | R4: Network capacity charges [R/kVA/m]
H5: Transmission zone | J5: High demand season [Jun - Aug] | L5: Low demand season [Sep - May] | N5: High demand season [Jun - Aug] | P5: Low demand season [Sep - May]
I6: Voltage
A7: Tariff | B7: Tariff nameBillcode | C7: Tx zone | D7: Voltage | E7: Billcode | K7: VAT incl | M7: VAT incl | O7: VAT incl | Q7: VAT incl | S7: VAT incl
A8: Nightsave Rural | B8: NR | C8: 0 | D8: 1 | E8: =B8&C8&D8&IF($A$2="Non-municipal","N",IF($A$2="Municiple","Y","error")) -> NR01Y | H8: ≤ 300km | I8: < 500V | J8: 119.89 | K8: =ROUND(J8 * (1 + VAT), 2) -> 137.87 | L8: 93.17 | M8: =ROUND(L8 * (1 + VAT), 2) -> 107.15 | N8: 392.35 | O8: =ROUND(N8 * (1 + VAT), 2) -> 451.2 | P8: 207.67 | Q8: =ROUND(P8 * (1 + VAT), 2) -> 238.82 | R8: 20.04 | S8: =ROUND(R8 * (1 + VAT), 2) -> 23.05
A9: Nightsave Rural | B9: NR | C9: 0 | D9: 2 | E9: =B9&C9&D9&IF($A$2="Non-municipal","N",IF($A$2="Municiple","Y","error")) -> NR02Y | I9: ≥ 500V & ≤ 22kV | J9: 118.48 | K9: 136.25 | L9: 92.12 | M9: 105.94 | N9: 380.21 | O9: 437.24 | P9: 200.26 | Q9: 230.3 | R9: 18.4 | S9: 21.16
A10: Nightsave Rural | B10: NR | E10: NRY | J10: 0 | L10: 0 | N10: 0 | O10: 0 | P10: 0 | Q10: 0 | R10: 0
A11: Nightsave Rural | B11: NR | E11: NRY | J11: 0 | L11: 0 | N11: 0 | O11: 0 | P11: 0 | Q11: 0 | R11: 0
A12: Nightsave Rural | B12: NR | C12: 1 | D12: 1 | E12: NR11Y | H12: > 300km and ≤ 600km | I12: < 500V | J12: 121.1 | K12: 139.27 | L12: 94.11 | M12: 108.23 | N12: 397.12 | O12: 456.69 | P12: 210.54 | Q12: 242.12 | R12: 20.07 | S12: 23.08
A13: Nightsave Rural | B13: NR | C13: 1 | D13: 2 | E13: NR12Y | I13: ≥ 500V & ≤ 22kV | J13: 119.67 | K13: 137.62 | L13: 93.02 | M13: 106.97 | N13: 384.86 | O13: 442.59 | P13: 203.06 | Q13: 233.52 | R13: 18.47 | S13: 21.24
A14: Nightsave Rural | B14: NR | E14: NRY | J14: 0 | L14: 0 | N14: 0 | O14: 0 | P14: 0 | Q14: 0 | R14: 0
A15: Nightsave Rural | B15: NR | E15: NRY | J15: 0 | L15: 0 | N15: 0 | O15: 0 | P15: 0 | Q15: 0 | R15: 0
A16: Nightsave Rural | B16: NR | C16: 2 | D16: 1 | E16: NR21Y | H16: > 600km and ≤ 900km | I16: < 500V | J16: 122.26 | K16: 140.6 | L16: 95.01 | M16: 109.26 | N16: 401.87 | O16: 462.15 | P16: 213.38 | Q16: 245.39 | R16: 20.27 | S16: 23.31
A17: Nightsave Rural | B17: NR | C17: 2 | D17: 2 | E17: NR22Y | I17: ≥ 500V & ≤ 22kV | J17: 120.84 | K17: 138.97 | L17: 93.96 | M17: 108.05 | N17: 389.49 | O17: 447.91 | P17: 205.88 | Q17: 236.76 | R17: 18.59 | S17: 21.38
A18: Nightsave Rural | B18: NR | E18: NRY | J18: 0 | L18: 0 | N18: 0 | O18: 0 | P18: 0 | Q18: 0 | R18: 0
A19: Nightsave Rural | B19: NR | E19: NRY | J19: 0 | L19: 0 | N19: 0 | O19: 0 | P19: 0 | Q19: 0 | R19: 0
A20: Nightsave Rural | B20: NR | C20: 3 | D20: 1 | E20: NR31Y | H20: > 900km | I20: < 500V | J20: 123.5 | K20: 142.03 | L20: 95.95 | M20: 110.34 | N20: 406.74 | O20: 467.75 | P20: 216.31 | Q20: 248.76 | R20: 20.3 | S20: 23.35
A21: Nightsave Rural | B21: NR | C21: 3 | D21: 2 | E21: NR32Y | I21: ≥ 500V & ≤ 22kV | J21: 122.03 | K21: 140.33 | L21: 94.86 | M21: 109.09 | N21: 394.23 | O21: 453.36 | P21: 208.75 | Q21: 240.06 | R21: 18.6 | S21: 21.39
H26: Customer categories | J26: Service charge [R/account/day] | L26: Administration charge [R/POD/day]
A28: Tariff | B28: Tariff nameBillcode | C28: Tx zone | D28: Voltage | E28: Billcode | K28: VAT incl | M28: VAT incl
A29: Nightsave Rural | B29: NR | C29: 0 | D29: 1 | E29: =B29&C29&D29&IF($A$2="Non-municipal","N",IF($A$2="Municiple","Y","error")) -> NR01Y | H29: ≤ 100 kVA | J29: 27.15 | K29: =ROUND(J29 * (1 + VAT), 2) -> 31.22 | L29: 7.7 | M29: =ROUND(L29 * (1 + VAT), 2) -> 8.86
A30: Nightsave Rural | B30: NR | C30: 0 | D30: 1 | E30: =B30&C30&D30&IF($A$2="Non-municipal","N",IF($A$2="Municiple","Y","error")) -> NR01Y | H30: > 100 kVA & ≤ 500 kVA | J30: 92.59 | K30: =ROUND(J30 * (1 + VAT), 2) -> 106.48 | L30: 42.92 | M30: =ROUND(L30 * (1 + VAT), 2) -> 49.36 | P30: Ancillary service charge [c/kWh] | R30: Network demand charge [c/kWh] in all time-of-use periods
A31: Nightsave Rural | B31: NR | C31: 0 | D31: 1 | E31: =B31&C31&D31&IF($A$2="Non-municipal","N",IF($A$2="Municiple","Y","error")) -> NR01Y | H31: > 500 kVA & ≤ 1 MVA | J31: 284.85 | K31: =ROUND(J31 * (1 + VAT), 2) -> 327.58 | L31: 65.86 | M31: =ROUND(L31 * (1 + VAT), 2) -> 75.74 | O31: Voltage | Q31: VAT incl | S31: VAT incl
A32: Nightsave Rural | B32: NR | C32: 0 | D32: 1 | E32: =B32&C32&D32&IF($A$2="Non-municipal","N",IF($A$2="Municiple","Y","error")) -> NR01Y | H32: > 1 MVA | J32: 284.85 | K32: =ROUND(J32 * (1 + VAT), 2) -> 327.58 | L32: 122.25 | M32: =ROUND(L32 * (1 + VAT), 2) -> 140.59 | O32: < 500V | P32: 0.62 | Q32: =ROUND(P32 * (1 + VAT), 2) -> 0.71 | R32: 39.87 | S32: =ROUND(R32 * (1 + VAT), 2) -> 45.85
A33: Nightsave Rural | B33: NR | C33: 0 | D33: 1 | E33: =B33&C33&D33&IF($A$2="Non-municipal","N",IF($A$2="Municiple","Y","error")) -> NR01Y | H33: Key customers | J33: 5582.27 | K33: =ROUND(J33 * (1 + VAT), 2) -> 6419.61 | L33: 122.25 | M33: =ROUND(L33 * (1 + VAT), 2) -> 140.59 | O33: ≥ 500V & ≤ 22kV | P33: 0.62 | Q33: =ROUND(P33 * (1 + VAT), 2) -> 0.71 | R33: 34.89 | S33: =ROUND(R33 * (1 + VAT), 2) -> 40.12

Sheet Ruraflex NLA
G1: Back to menu
A2: Non-municipal | G2: Ruraflex - Non-local Authority | AF2: =SUM(#REF!,#REF!,#REF!,#REF!,#REF!,#REF!,#REF!,#REF!,#REF!,#REF!,#REF!,#REF!) ->  | AG2: check value
J4: Active energy charge [c/kWh] | V4: Network capacity charges [R/kVA/m]
H5: Transmission zone | J5: High demand season [Jun - Aug] | P5: Low demand season [Sep - May]
I6: Voltage | J6: Peak | L6: Standard | N6: Off Peak | P6: Peak | R6: Standard | T6: Off Peak
A7: Tariff | B7: Tariff nameBillcode | C7: Tx zone | D7: Voltage | E7: Billcode | K7: VAT incl | M7: VAT incl | O7: VAT incl | Q7: VAT incl | S7: VAT incl | U7: VAT incl | W7: VAT incl
A8: Ruraflex | B8: Ru | C8: 0 | D8: 1 | E8: =B8&C8&D8&IF($A$2="Non-municipal","N",IF($A$2="Municiple","Y","error")) -> Ru01N | H8: ≤ 300km | I8: < 500V | J8: 473.67 | K8: =ROUND(J8 * (1 + VAT), 2) -> 544.72 | L8: 143.5 | M8: =ROUND(L8 * (1 + VAT), 2) -> 165.03 | N8: 77.94 | O8: =ROUND(N8 * (1 + VAT), 2) -> 89.63 | P8: 154.52 | Q8: =ROUND(P8 * (1 + VAT), 2) -> 177.7 | R8: 106.33 | S8: =ROUND(R8 * (1 + VAT), 2) -> 122.28 | T8: 67.46 | U8: =ROUND(T8 * (1 + VAT), 2) -> 77.58 | V8: 27.36 | W8: =ROUND(V8 * (1 + VAT), 2) -> 31.46
A9: Ruraflex | B9: Ru | C9: 0 | D9: 2 | E9: =B9&C9&D9&IF($A$2="Non-municipal","N",IF($A$2="Municiple","Y","error")) -> Ru02N | I9: ≥ 500V & ≤ 22kV | J9: 468.99 | K9: 539.34 | L9: 142.09 | M9: 163.4 | N9: 77.14 | O9: 88.71 | P9: 153 | Q9: 175.95 | R9: 105.28 | S9: 121.07 | T9: 66.76 | U9: 76.77 | V9: 25.07 | W9: 28.83
A10: Ruraflex | B10: Ru | E10: RuN | J10: 0 | L10: 0 | N10: 0 | P10: 0 | R10: 0 | T10: 0 | V10: 0
A11: Ruraflex | B11: Ru | E11: RuN | J11: 0 | L11: 0 | N11: 0 | P11: 0 | R11: 0 | T11: 0 | V11: 0
A12: Ruraflex | B12: Ru | C12: 1 | D12: 1 | E12: Ru11N | H12: > 300km and ≤ 600km | I12: < 500V | J12: 478.43 | K12: 550.19 | L12: 144.94 | M12: 166.68 | N12: 78.71 | O12: 90.52 | P12: 156.06 | Q12: 179.47 | R12: 107.42 | S12: 123.53 | T12: 68.16 | U12: 78.38 | V12: 27.44 | W12: 31.56
A13: Ruraflex | B13: Ru | C13: 1 | D13: 2 | E13: Ru12N | I13: ≥ 500V & ≤ 22kV | J13: 473.66 | K13: 544.71 | L13: 143.48 | M13: 165 | N13: 77.94 | O13: 89.63 | P13: 154.52 | Q13: 177.7 | R13: 106.32 | S13: 122.27 | T13: 67.46 | U13: 77.58 | V13: 25.22 | W13: 29
A14: Ruraflex | B14: Ru | E14: RuN | J14: 0 | L14: 0 | N14: 0 | P14: 0 | R14: 0 | T14: 0 | V14: 0
A15: Ruraflex | B15: Ru | E15: RuN | J15: 0 | L15: 0 | N15: 0 | P15: 0 | R15: 0 | T15: 0 | V15: 0
A16: Ruraflex | B16: Ru | C16: 2 | D16: 1 | E16: Ru21N | H16: > 600km and ≤ 900km | I16: < 500V | J16: 483.22 | K16: 555.7 | L16: 146.4 | M16: 168.36 | N16: 79.49 | O16: 91.41 | P16: 157.63 | Q16: 181.27 | R16: 108.47 | S16: 124.74 | T16: 68.84 | U16: 79.17 | V16: 27.58 | W16: 31.72
A17: Ruraflex | B17: Ru | C17: 2 | D17: 2 | E17: Ru22N | I17: ≥ 500V & ≤ 22kV | J17: 478.4 | K17: 550.16 | L17: 144.9 | M17: 166.64 | N17: 78.71 | O17: 90.52 | P17: 156.06 | Q17: 179.47 | R17: 107.42 | S17: 123.53 | T17: 68.16 | U17: 78.38 | V17: 25.34 | W17: 29.14
A18: Ruraflex | B18: Ru | E18: RuN | J18: 0 | L18: 0 | N18: 0 | P18: 0 | R18: 0 | T18: 0 | V18: 0
A19: Ruraflex | B19: Ru | E19: RuN | J19: 0 | L19: 0 | N19: 0 | P19: 0 | R19: 0 | T19: 0 | V19: 0
A20: Ruraflex | B20: Ru | C20: 3 | D20: 1 | E20: Ru31N | H20: > 900km | I20: < 500V | J20: 488.04 | K20: 561.25 | L20: 147.84 | M20: 170.02 | N20: 80.28 | O20: 92.32 | P20: 159.14 | Q20: 183.01 | R20: 109.56 | S20: 125.99 | T20: 69.51 | U20: 79.94 | V20: 27.7 | W20: 31.86
A21: Ruraflex | B21: Ru | C21: 3 | D21: 2 | E21: Ru32N | I21: ≥ 500V & ≤ 22kV | J21: 483.2 | K21: 555.68 | L21: 146.4 | M21: 168.36 | N21: 79.49 | O21: 91.41 | P21: 157.63 | Q21: 181.27 | R21: 108.47 | S21: 124.74 | T21: 68.84 | U21: 79.17 | V21: 25.35 | W21: 29.15
N22: 0
N23: 0
H26: Customer categories | J26: Service charge [R/account/day] | L26: Administration charge [R/POD/day] | Q26: Ancillary service charge [c/kWh] | S26: Network demand charge [c/kWh] in all time-of-use periods
O27: Voltage | R27: VAT incl | T27: VAT incl
A28: Tariff | B28: Tariff nameBillcode | C28: Tx zone | D28: Voltage | E28: Billcode | K28: VAT incl | M28: VAT incl | O28: < 500V | Q28: 0.6 | R28: =ROUND(Q28 * (1 + VAT), 2) -> 0.69 | S28: 38.94 | T28: =ROUND(S28 * (1 + VAT), 2) -> 44.78
A29: Ruraflex | B29: Ru | C29: 0 | D29: 1 | E29: =B29&C29&D29&IF($A$2="Non-municipal","N",IF($A$2="Municiple","Y","error")) -> Ru01N | H29: ≤ 100 kVA | J29: 26.91 | K29: =ROUND(J29 * (1 + VAT), 2) -> 30.95 | L29: 7.64 | M29: =ROUND(L29 * (1 + VAT), 2) -> 8.79 | O29: ≥ 500V & < 22kV | Q29: 0.6 | R29: =ROUND(Q29 * (1 + VAT), 2) -> 0.69 | S29: 34.14 | T29: =ROUND(S29 * (1 + VAT), 2) -> 39.26
A30: Ruraflex | B30: Ru | C30: 0 | D30: 1 | E30: =B30&C30&D30&IF($A$2="Non-municipal","N",IF($A$2="Municiple","Y","error")) -> Ru01N | H30: > 100 kVA & ≤ 500 kVA | J30: 91.77 | K30: =ROUND(J30 * (1 + VAT), 2) -> 105.54 | L30: 42.55 | M30: =ROUND(L30 * (1 + VAT), 2) -> 48.93
A31: Ruraflex | B31: Ru | C31: 0 | D31: 1 | E31: =B31&C31&D31&IF($A$2="Non-municipal","N",IF($A$2="Municiple","Y","error")) -> Ru01N | H31: > 500 kVA & ≤ 1 MVA | J31: 282.31 | K31: =ROUND(J31 * (1 + VAT), 2) -> 324.66 | L31: 65.31 | M31: =ROUND(L31 * (1 + VAT), 2) -> 75.11 | O31: Reactive energy charge [c/kVArh]
A32: Ruraflex | B32: Ru | C32: 0 | D32: 1 | E32: =B32&C32&D32&IF($A$2="Non-municipal","N",IF($A$2="Municiple","Y","error")) -> Ru01N | H32: > 1 MVA | J32: 282.31 | K32: =ROUND(J32 * (1 + VAT), 2) -> 324.66 | L32: 121.17 | M32: =ROUND(L32 * (1 + VAT), 2) -> 139.35 | O32: High season | Q32: Low season
A33: Ruraflex | B33: Ru | C33: 0 | D33: 1 | E33: =B33&C33&D33&IF($A$2="Non-municipal","N",IF($A$2="Municiple","Y","error")) -> Ru01N | H33: Key customers | J33: 5533.08 | K33: =ROUND(J33 * (1 + VAT), 2) -> 6363.04 | L33: 121.17 | M33: =ROUND(L33 * (1 + VAT), 2) -> 139.35 | P33: VAT incl | R33: VAT incl
O34: 13.15 | P34: =ROUND(O34 * (1 + VAT), 2) -> 15.12 | Q34: 0 | R34: =ROUND(Q34 * (1 + VAT), 2) -> 0

Sheet Ruraflex Munic
G1: Back to menu
A2: Municiple | G2: Ruraflex - Local Authority | AF2: =SUM(#REF!,#REF!,#REF!,#REF!,#REF!,#REF!,#REF!,#REF!,#REF!,#REF!,#REF!,#REF!) ->  | AG2: check value
J4: Active energy charge [c/kWh] | V4: Network capacity charges [R/kVA/m]
H5: Transmission zone | J5: High demand season [Jun - Aug] | P5: Low demand season [Sep - May]
I6: Voltage | J6: Peak | L6: Standard | N6: Off Peak | P6: Peak | R6: Standard | T6: Off Peak
A7: Tariff | B7: Tariff nameBillcode | C7: Tx zone | D7: Voltage | E7: Billcode | K7: VAT incl | M7: VAT incl | O7: VAT incl | Q7: VAT incl | S7: VAT incl | U7: VAT incl | W7: VAT incl
A8: Ruraflex | B8: Ru | C8: 0 | D8: 1 | E8: =B8&C8&D8&IF($A$2="Non-municipal","N",IF($A$2="Municiple","Y","error")) -> Ru01Y | H8: ≤ 300km | I8: < 500V | J8: 491.57 | K8: =ROUND(J8 * (1 + VAT), 2) -> 565.31 | L8: 148.9 | M8: =ROUND(L8 * (1 + VAT), 2) -> 171.24 | N8: 80.87 | O8: =ROUND(N8 * (1 + VAT), 2) -> 93 | P8: 160.36 | Q8: =ROUND(P8 * (1 + VAT), 2) -> 184.41 | R8: 110.36 | S8: =ROUND(R8 * (1 + VAT), 2) -> 126.91 | T8: 70.01 | U8: =ROUND(T8 * (1 + VAT), 2) -> 80.51 | V8: 27.96 | W8: =ROUND(V8 * (1 + VAT), 2) -> 32.15
A9: Ruraflex | B9: Ru | C9: 0 | D9: 2 | E9: =B9&C9&D9&IF($A$2="Non-municipal","N",IF($A$2="Municiple","Y","error")) -> Ru02Y | I9: ≥ 500V & ≤ 22kV | J9: 486.68 | K9: 559.68 | L9: 147.44 | M9: 169.56 | N9: 80.06 | O9: 92.07 | P9: 158.79 | Q9: 182.61 | R9: 109.24 | S9: 125.63 | T9: 69.3 | U9: 79.7 | V9: 25.65 | W9: 29.5
A10: Ruraflex | B10: Ru | E10: RuY | J10: 0 | L10: 0 | N10: 0 | P10: 0 | R10: 0 | T10: 0 | V10: 0
A11: Ruraflex | B11: Ru | E11: RuY | J11: 0 | L11: 0 | N11: 0 | P11: 0 | R11: 0 | T11: 0 | V11: 0
A12: Ruraflex | B12: Ru | C12: 1 | D12: 1 | E12: Ru11Y | H12: > 300km and ≤ 600km | I12: < 500V | J12: 496.46 | K12: 570.93 | L12: 150.42 | M12: 172.98 | N12: 81.64 | O12: 93.89 | P12: 161.93 | Q12: 186.22 | R12: 111.47 | S12: 128.19 | T12: 70.73 | U12: 81.34 | V12: 28.08 | W12: 32.29
A13: Ruraflex | B13: Ru | C13: 1 | D13: 2 | E13: Ru12Y | I13: ≥ 500V & ≤ 22kV | J13: 491.56 | K13: 565.29 | L13: 148.87 | M13: 171.2 | N13: 80.87 | O13: 93 | P13: 160.36 | Q13: 184.41 | R13: 110.34 | S13: 126.89 | T13: 70.01 | U13: 80.51 | V13: 25.79 | W13: 29.66
A14: Ruraflex | B14: Ru | E14: RuY | J14: 0 | L14: 0 | N14: 0 | P14: 0 | R14: 0 | T14: 0 | V14: 0
A15: Ruraflex | B15: Ru | E15: RuY | J15: 0 | L15: 0 | N15: 0 | P15: 0 | R15: 0 | T15: 0 | V15: 0
A16: Ruraflex | B16: Ru | C16: 2 | D16: 1 | E16: Ru21Y | H16: > 600km and ≤ 900km | I16: < 500V | J16: 501.44 | K16: 576.66 | L16: 151.88 | M16: 174.66 | N16: 82.49 | O16: 94.86 | P16: 163.54 | Q16: 188.07 | R16: 112.54 | S16: 129.42 | T16: 71.43 | U16: 82.14 | V16: 28.23 | W16: 32.46
A17: Ruraflex | B17: Ru | C17: 2 | D17: 2 | E17: Ru22Y | I17: ≥ 500V & ≤ 22kV | J17: 496.43 | K17: 570.89 | L17: 150.39 | M17: 172.95 | N17: 81.64 | O17: 93.89 | P17: 161.93 | Q17: 186.22 | R17: 111.47 | S17: 128.19 | T17: 70.73 | U17: 81.34 | V17: 25.93 | W17: 29.82
A18: Ruraflex | B18: Ru | E18: RuY | J18: 0 | L18: 0 | N18: 0 | P18: 0 | R18: 0 | T18: 0 | V18: 0
A19: Ruraflex | B19: Ru | E19: RuY | J19: 0 | L19: 0 | N19: 0 | P19: 0 | R19: 0 | T19: 0 | V19: 0
A20: Ruraflex | B20: Ru | C20: 3 | D20: 1 | E20: Ru31Y | H20: > 900km | I20: < 500V | J20: 506.45 | K20: 582.42 | L20: 153.46 | M20: 176.48 | N20: 83.26 | O20: 95.75 | P20: 165.16 | Q20: 189.93 | R20: 113.71 | S20: 130.77 | T20: 72.14 | U20: 82.96 | V20: 28.31 | W20: 32.56
A21: Ruraflex | B21: Ru | C21: 3 | D21: 2 | E21: Ru32Y | I21: ≥ 500V & ≤ 22kV | J21: 501.43 | K21: 576.64 | L21: 151.88 | M21: 174.66 | N21: 82.49 | O21: 94.86 | P21: 163.54 | Q21: 188.07 | R21: 112.54 | S21: 129.42 | T21: 71.43 | U21: 82.14 | V21: 25.94 | W21: 29.83
N22: 0
N23: 0
H26: Customer categories | J26: Service charge [R/account/day] | L26: Administration charge [R/POD/day] | Q26: Ancillary service charge [c/kWh] | S26: Network demand charge [c/kWh] in all time-of-use periods
O27: Voltage | R27: VAT incl | T27: VAT incl
A28: Tariff | B28: Tariff nameBillcode | C28: Tx zone | D28: Voltage | E28: Billcode | K28: VAT incl | M28: VAT incl | O28: < 500V | Q28: 0.62 | R28: =ROUND(Q28 * (1 + VAT), 2) -> 0.71 | S28: 39.87 | T28: =ROUND(S28 * (1 + VAT), 2) -> 45.85
A29: Ruraflex | B29: Ru | C29: 0 | D29: 1 | E29: =B29&C29&D29&IF($A$2="Non-municipal","N",IF($A$2="Municiple","Y","error")) -> Ru01Y | H29: ≤ 100 kVA | J29: 27.15 | K29: =ROUND(J29 * (1 + VAT), 2) -> 31.22 | L29: 7.7 | M29: =ROUND(L29 * (1 + VAT), 2) -> 8.86 | O29: ≥ 500V & < 22kV | Q29: 0.62 | R29: =ROUND(Q29 * (1 + VAT), 2) -> 0.71 | S29: 34.89 | T29: =ROUND(S29 * (1 + VAT), 2) -> 40.12
A30: Ruraflex | B30: Ru | C30: 0 | D30: 1 | E30: =B30&C30&D30&IF($A$2="Non-municipal","N",IF($A$2="Municiple","Y","error")) -> Ru01Y | H30: > 100 kVA & ≤ 500 kVA | J30: 92.59 | K30: =ROUND(J30 * (1 + VAT), 2) -> 106.48 | L30: 42.92 | M30: =ROUND(L30 * (1 + VAT), 2) -> 49.36
A31: Ruraflex | B31: Ru | C31: 0 | D31: 1 | E31: =B31&C31&D31&IF($A$2="Non-municipal","N",IF($A$2="Municiple","Y","error")) -> Ru01Y | H31: > 500 kVA & ≤ 1 MVA | J31: 284.85 | K31: =ROUND(J31 * (1 + VAT), 2) -> 327.58 | L31: 65.86 | M31: =ROUND(L31 * (1 + VAT), 2) -> 75.74 | O31: Reactive energy charge [c/kVArh]
A32: Ruraflex | B32: Ru | C32: 0 | D32: 1 | E32: =B32&C32&D32&IF($A$2="Non-municipal","N",IF($A$2="Municiple","Y","error")) -> Ru01Y | H32: > 1 MVA | J32: 284.85 | K32: =ROUND(J32 * (1 + VAT), 2) -> 327.58 | L32: 122.25 | M32: =ROUND(L32 * (1 + VAT), 2) -> 140.59 | O32: High season | Q32: Low season
A33: Ruraflex | B33: Ru | C33: 0 | D33: 1 | E33: =B33&C33&D33&IF($A$2="Non-municipal","N",IF($A$2="Municiple","Y","error")) -> Ru01Y | H33: Key customers | J33: 5582.27 | K33: =ROUND(J33 * (1 + VAT), 2) -> 6419.61 | L33: 122.25 | M33: =ROUND(L33 * (1 + VAT), 2) -> 140.59 | P33: VAT incl | R33: VAT incl
O34: 13.25 | P34: =ROUND(O34 * (1 + VAT), 2) -> 15.24 | Q34: 0 | R34: =ROUND(Q34 * (1 + VAT), 2) -> 0

Sheet Ruraflex Gen NLA
G1: Back to menu
A2: Non-municipal | G2: Ruraflex Gen - Non-Local Authority | AF2: =SUM(#REF!,#REF!,#REF!,#REF!,#REF!,#REF!,#REF!,#REF!,#REF!,#REF!,#REF!,#REF!) ->  | AG2: check value
J4: Active energy charge for loads [c/kWh] | V4: Network capacity charges [R/kVA/m]
H5: Transmission zone | J5: High demand season [Jun - Aug] | P5: Low demand season [Sep - May]
I6: Voltage | J6: Peak | L6: Standard | N6: Off Peak | P6: Peak | R6: Standard | T6: Off Peak
A7: Tariff | B7: Tariff nameBillcode | C7: Tx zone | D7: Voltage | E7: Billcode | K7: VAT incl | M7: VAT incl | O7: VAT incl | Q7: VAT incl | S7: VAT incl | U7: VAT incl | W7: VAT incl
A8: Genflex rural | B8: GR | C8: 0 | D8: 1 | E8: =B8&C8&D8&IF($A$2="Non-municipal","N",IF($A$2="Municiple","Y","error")) -> GR01N | H8: ≤ 300km | I8: < 500V | J8: 473.67 | K8: =ROUND(J8 * (1 + VAT), 2) -> 544.72 | L8: 143.5 | M8: =ROUND(L8 * (1 + VAT), 2) -> 165.03 | N8: 77.94 | O8: =ROUND(N8 * (1 + VAT), 2) -> 89.63 | P8: 154.52 | Q8: =ROUND(P8 * (1 + VAT), 2) -> 177.7 | R8: 106.33 | S8: =ROUND(R8 * (1 + VAT), 2) -> 122.28 | T8: 67.46 | U8: =ROUND(T8 * (1 + VAT), 2) -> 77.58 | V8: 27.36 | W8: =ROUND(V8 * (1 + VAT), 2) -> 31.46
A9: Genflex rural | B9: GR | C9: 0 | D9: 2 | E9: =B9&C9&D9&IF($A$2="Non-municipal","N",IF($A$2="Municiple","Y","error")) -> GR02N | I9: ≥ 500V & ≤ 22kV | J9: 468.99 | K9: 539.34 | L9: 142.09 | M9: 163.4 | N9: 77.14 | O9: 88.71 | P9: 153 | Q9: 175.95 | R9: 105.28 | S9: 121.07 | T9: 66.76 | U9: 76.77 | V9: 25.07 | W9: 28.83
A10: Genflex rural | B10: GR | E10: GRN | J10: 0 | L10: 0 | N10: 0 | P10: 0 | R10: 0 | T10: 0 | V10: 0
A11: Genflex rural | B11: GR | E11: GRN | J11: 0 | L11: 0 | N11: 0 | P11: 0 | R11: 0 | T11: 0 | V11: 0
A12: Genflex rural | B12: GR | C12: 1 | D12: 1 | E12: GR11N | H12: > 300km and ≤ 600km | I12: < 500V | J12: 478.43 | K12: 550.19 | L12: 144.94 | M12: 166.68 | N12: 78.71 | O12: 90.52 | P12: 156.06 | Q12: 179.47 | R12: 107.42 | S12: 123.53 | T12: 68.16 | U12: 78.38 | V12: 27.44 | W12: 31.56
A13: Genflex rural | B13: GR | C13: 1 | D13: 2 | E13: GR12N | I13: ≥ 500V & ≤ 22kV | J13: 473.66 | K13: 544.71 | L13: 143.48 | M13: 165 | N13: 77.94 | O13: 89.63 | P13: 154.52 | Q13: 177.7 | R13: 106.32 | S13: 122.27 | T13: 67.46 | U13: 77.58 | V13: 25.22 | W13: 29
A14: Genflex rural | B14: GR | E14: GRN | J14: 0 | L14: 0 | N14: 0 | P14: 0 | R14: 0 | T14: 0 | V14: 0
A15: Genflex rural | B15: GR | E15: GRN | J15: 0 | L15: 0 | N15: 0 | P15: 0 | R15: 0 | T15: 0 | V15: 0
A16: Genflex rural | B16: GR | C16: 2 | D16: 1 | E16: GR21N | H16: > 600km and ≤ 900km | I16: < 500V | J16: 483.22 | K16: 555.7 | L16: 146.4 | M16: 168.36 | N16: 79.49 | O16: 91.41 | P16: 157.63 | Q16: 181.27 | R16: 108.47 | S16: 124.74 | T16: 68.84 | U16: 79.17 | V16: 27.58 | W16: 31.72
A17: Genflex rural | B17: GR | C17: 2 | D17: 2 | E17: GR22N | I17: ≥ 500V & ≤ 22kV | J17: 478.4 | K17: 550.16 | L17: 144.9 | M17: 166.64 | N17: 78.71 | O17: 90.52 | P17: 156.06 | Q17: 179.47 | R17: 107.42 | S17: 123.53 | T17: 68.16 | U17: 78.38 | V17: 25.34 | W17: 29.14
A18: Genflex rural | B18: GR | E18: GRN | J18: 0 | L18: 0 | N18: 0 | P18: 0 | R18: 0 | T18: 0 | V18: 0
A19: Genflex rural | B19: GR | E19: GRN | J19: 0 | L19: 0 | N19: 0 | P19: 0 | R19: 0 | T19: 0 | V19: 0
A20: Genflex rural | B20: GR | C20: 3 | D20: 1 | E20: GR31N | H20: > 900km | I20: < 500V | J20: 488.04 | K20: 561.25 | L20: 147.84 | M20: 170.02 | N20: 80.28 | O20: 92.32 | P20: 159.14 | Q20: 183.01 | R20: 109.56 | S20: 125.99 | T20: 69.51 | U20: 79.94 | V20: 27.7 | W20: 31.86
A21: Genflex rural | B21: GR | C21: 3 | D21: 2 | E21: GR32N | I21: ≥ 500V & ≤ 22kV | J21: 483.2 | K21: 555.68 | L21: 146.4 | M21: 168.36 | N21: 79.49 | O21: 91.41 | P21: 157.63 | Q21: 181.27 | R21: 108.47 | S21: 124.74 | T21: 68.84 | U21: 79.17 | V21: 25.35 | W21: 29.15
N22: 0
N23: 0
A24: Gen-purchase | B24: NLPurchADJ | C24: 0 | D24: 4 | E24: =B24&C24&D24&IF($A$2="Non-municipal","N",IF($A$2="Municiple","Y","error")) -> NLPurchADJ04N
H28: Customer categories | J28: Service charge [R/account/day] | L28: Administration charge [R/POD/day] | O28: Voltage | Q28: Ancillary service charge for loads and generators [c/kWh] | S28: Network demand charge [c/kWh] for loads in all time-of-use periods
H29: [kVA or MVA = loads] | R29: VAT incl | T29: VAT incl
A30: Tariff | B30: Tariff nameBillcode | C30: Tx zone | D30: Voltage | E30: Billcode | H30: [kW or MW = generators] | K30: VAT incl | M30: VAT incl | O30: < 500V | Q30: 0.6 | R30: =ROUND(Q30 * (1 + VAT), 2) -> 0.69 | S30: 38.94 | T30: =ROUND(S30 * (1 + VAT), 2) -> 44.78
A31: Genflex rural | B31: GR | C31: 0 | D31: 1 | E31: =B31&C31&D31&IF($A$2="Non-municipal","N",IF($A$2="Municiple","Y","error")) -> GR01N | H31: ≤ 100 kVA/kW | J31: 26.91 | K31: =ROUND(J31 * (1 + VAT), 2) -> 30.95 | L31: 7.64 | M31: =ROUND(L31 * (1 + VAT), 2) -> 8.79 | O31: ≥ 500V & < 22kV | Q31: 0.6 | R31: =ROUND(Q31 * (1 + VAT), 2) -> 0.69 | S31: 34.14 | T31: =ROUND(S31 * (1 + VAT), 2) -> 39.26
A32: Genflex rural | B32: GR | C32: 0 | D32: 1 | E32: =B32&C32&D32&IF($A$2="Non-municipal","N",IF($A$2="Municiple","Y","error")) -> GR01N | H32: > 100 KVA/kW & ≤ 500 kVA/kW | J32: 91.77 | K32: =ROUND(J32 * (1 + VAT), 2) -> 105.54 | L32: 42.55 | M32: =ROUND(L32 * (1 + VAT), 2) -> 48.93
A33: Genflex rural | B33: GR | C33: 0 | D33: 1 | E33: =B33&C33&D33&IF($A$2="Non-municipal","N",IF($A$2="Municiple","Y","error")) -> GR01N | H33: > 500 kVA/kW & ≤ 1 MVA/MW | J33: 282.31 | K33: =ROUND(J33 * (1 + VAT), 2) -> 324.66 | L33: 65.31 | M33: =ROUND(L33 * (1 + VAT), 2) -> 75.11 | O33: Reactive energy charge [c/kVArh]
A34: Genflex rural | B34: GR | C34: 0 | D34: 1 | E34: =B34&C34&D34&IF($A$2="Non-municipal","N",IF($A$2="Municiple","Y","error")) -> GR01N | H34: > 1 MVA/MW | J34: 282.31 | K34: =ROUND(J34 * (1 + VAT), 2) -> 324.66 | L34: 121.17 | M34: =ROUND(L34 * (1 + VAT), 2) -> 139.35 | O34: High season | Q34: Low season
A35: Genflex rural | B35: GR | C35: 0 | D35: 1 | E35: =B35&C35&D35&IF($A$2="Non-municipal","N",IF($A$2="Municiple","Y","error")) -> GR01N | H35: Key customers | J35: 5533.08 | K35: =ROUND(J35 * (1 + VAT), 2) -> 6363.04 | L35: 121.17 | M35: =ROUND(L35 * (1 + VAT), 2) -> 139.35 | P35: VAT incl | R35: VAT incl
O36: 13.15 | P36: =ROUND(O36 * (1 + VAT), 2) -> 15.12 | Q36: 0 | R36: =ROUND(Q36 * (1 + VAT), 2) -> 0

Sheet Landrate NLA
H1: Back to menu
A2: Non-municipal | G2: Landrate - Non-local Authority
J4: Energy charge [c/kWh] | L4: Ancillary service charge [c/kWh] | N4: Network demand charge [c/kWh] | P4: Network capacity charge [R/POD/day] | R4: Service charge [R/POD/day]
A5: Tariff | B5: Tariff nameBillcode | C5: Tx zone | D5: Voltage | E5: Billcode | K5: VAT incl | M5: VAT incl | O5: VAT incl | Q5: VAT incl | S5: VAT incl
A6: Landrate 1 | B6: L1 | C6: 0 | D6: 1 | E6: =B6&C6&D6&IF($A$2="Non-municipal","N",IF($A$2="Municiple","Y","error")) -> L101N | H6: Landrate 1 | J6: 155.85 | K6: =ROUND(J6 * (1 + VAT), 2) -> 179.23 | L6: 0.6 | M6: =ROUND(L6 * (1 + VAT), 2) -> 0.69 | N6: 38.94 | O6: =ROUND(N6 * (1 + VAT), 2) -> 44.78 | P6: 41.63 | Q6: =ROUND(P6 * (1 + VAT), 2) -> 47.87 | R6: 34.57 | S6: =ROUND(R6 * (1 + VAT), 2) -> 39.76
A7: Landrate 2 | B7: L2 | C7: 0 | D7: 1 | E7: =B7&C7&D7&IF($A$2="Non-municipal","N",IF($A$2="Municiple","Y","error")) -> L201N | H7: Landrate 2 | J7: 155.85 | K7: 179.23 | L7: 0.6 | M7: =ROUND(L7 * (1 + VAT), 2) -> 0.69 | N7: 38.94 | O7: =ROUND(N7 * (1 + VAT), 2) -> 44.78 | P7: 63.99 | Q7: =ROUND(P7 * (1 + VAT), 2) -> 73.59 | R7: 34.57 | S7: =ROUND(R7 * (1 + VAT), 2) -> 39.76
A8: Landrate 3 | B8: L3 | C8: 0 | D8: 1 | E8: L301N | H8: Landrate 3 | J8: 155.85 | K8: 179.23 | L8: 0.6 | M8: =ROUND(L8 * (1 + VAT), 2) -> 0.69 | N8: 38.94 | O8: =ROUND(N8 * (1 + VAT), 2) -> 44.78 | P8: 102.3 | Q8: =ROUND(P8 * (1 + VAT), 2) -> 117.65 | R8: 34.57 | S8: =ROUND(R8 * (1 + VAT), 2) -> 39.76
A9: Landrate 4 | B9: L4 | C9: 0 | D9: 1 | E9: L401N | H9: Landrate 4 | J9: 336.63 | K9: 387.12 | L9: 0.6 | M9: =ROUND(L9 * (1 + VAT), 2) -> 0.69 | N9: 38.94 | O9: =ROUND(N9 * (1 + VAT), 2) -> 44.78 | P9: 33.15 | Q9: =ROUND(P9 * (1 + VAT), 2) -> 38.12 | R9: 0 | S9: =ROUND(R9 * (1 + VAT), 2) -> 0
A10: Landlight | B10: Lt | C10: 0 | D10: 1 | E10: =B10&C10&D10&IF($A$2="Non-municipal","N",IF($A$2="Municiple","Y","error")) -> Lt01N | H10: Landlight 20A | J10: 448.16 | K10: 515.38
B11: Lt60 | C11: 0 | D11: 1 | E11: =B11&C11&D11&IF($A$2="Non-municipal","N",IF($A$2="Municiple","Y","error")) -> Lt6001N | H11: Landlight 60A | J11: 577.73 | K11: 664.39
A12: Landrate Dx | B12: Ld | C12: 0 | D12: 1 | E12: Ld01N | H12: Landrate Dx* | R12: 74.14 | S12: =ROUND(R12 * (1 + VAT), 2) -> 85.26
H13: *R/day fixed charge inclusive of the following charges; energy, ancillary service, network demand, network capacity and service charge.

Sheet Landrate Munic
H1: Back to menu
A2: Municiple | G2: Landrate - Local Authority
J4: Energy charge [c/kWh] | L4: Ancillary service charge [c/kWh] | N4: Network demand charge [c/kWh] | P4: Network capacity charge [R/POD/day] | R4: Service charge [R/POD/day]
A5: Tariff | B5: Tariff nameBillcode | C5: Tx zone | D5: Voltage | E5: Billcode | K5: VAT incl | M5: VAT incl | O5: VAT incl | Q5: VAT incl | S5: VAT incl
A6: Landrate 1 | B6: L1 | C6: 0 | D6: 1 | E6: =B6&C6&D6&IF($A$2="Non-municipal","N",IF($A$2="Municiple","Y","error")) -> L101Y | H6: Landrate 1 | J6: 161.73 | K6: =ROUND(J6 * (1 + VAT), 2) -> 185.99 | L6: 0.62 | M6: =ROUND(L6 * (1 + VAT), 2) -> 0.71 | N6: 39.87 | O6: =ROUND(N6 * (1 + VAT), 2) -> 45.85 | P6: 42.58 | Q6: =ROUND(P6 * (1 + VAT), 2) -> 48.97 | R6: 34.85 | S6: =ROUND(R6 * (1 + VAT), 2) -> 40.08
A7: Landrate 2 | B7: L2 | C7: 0 | D7: 1 | E7: =B7&C7&D7&IF($A$2="Non-municipal","N",IF($A$2="Municiple","Y","error")) -> L201Y | H7: Landrate 2 | J7: 161.73 | K7: =ROUND(J7 * (1 + VAT), 2) -> 185.99 | L7: 0.62 | M7: =ROUND(L7 * (1 + VAT), 2) -> 0.71 | N7: 39.87 | O7: =ROUND(N7 * (1 + VAT), 2) -> 45.85 | P7: 65.44 | Q7: =ROUND(P7 * (1 + VAT), 2) -> 75.26 | R7: 34.85 | S7: =ROUND(R7 * (1 + VAT), 2) -> 40.08
A8: Landrate 3 | B8: L3 | C8: 0 | D8: 1 | E8: =B8&C8&D8&IF($A$2="Non-municipal","N",IF($A$2="Municiple","Y","error")) -> L301Y | H8: Landrate 3 | J8: 161.73 | K8: =ROUND(J8 * (1 + VAT), 2) -> 185.99 | L8: 0.62 | M8: =ROUND(L8 * (1 + VAT), 2) -> 0.71 | N8: 39.87 | O8: =ROUND(N8 * (1 + VAT), 2) -> 45.85 | P8: 104.65 | Q8: =ROUND(P8 * (1 + VAT), 2) -> 120.35 | R8: 34.85 | S8: =ROUND(R8 * (1 + VAT), 2) -> 40.08
A9: Landrate 4 | B9: L4 | C9: 0 | D9: 1 | E9: =B9&C9&D9&IF($A$2="Non-municipal","N",IF($A$2="Municiple","Y","error")) -> L401Y | H9: Landrate 4 | J9: 349.32 | K9: =ROUND(J9 * (1 + VAT), 2) -> 401.72 | L9: 0.62 | M9: =ROUND(L9 * (1 + VAT), 2) -> 0.71 | N9: 39.87 | O9: =ROUND(N9 * (1 + VAT), 2) -> 45.85 | P9: 33.91 | Q9: =ROUND(P9 * (1 + VAT), 2) -> 39
A10: Landrate Dx | B10: Ld | C10: 0 | D10: 1 | E10: =B10&C10&D10&IF($A$2="Non-municipal","N",IF($A$2="Municiple","Y","error")) -> Ld01Y | H10: Landrate Dx* | R10: 75.41 | S10: =ROUND(R10 * (1 + VAT), 2) -> 86.72
H11: *R/day fixed charge inclusive of the following charges; energy, ancillary service, network demand, network capacity and service charge.

Sheet TOuS Original (hidden)
B4: Reliability service charge urban | D4: Charge [c/kWh]
E5: VAT incl
B6: < 500V | D6: 0.27 | E6: =ROUND(D6 * (1 + VAT), 2) -> 0.31
B7: ≥ 500V & < 66kV | D7: 0.26 | E7: =ROUND(D7 * (1 + VAT), 2) -> 0.3
B8: ≥ 66kV & ≤ 132kV | D8: 0.25 | E8: =ROUND(D8 * (1 + VAT), 2) -> 0.29
B9: > 132kV | D9: 0.23 | E9: =ROUND(D9 * (1 + VAT), 2) -> 0.26
B12: Reliability service charge rural | D12: Charge [c/kWh]
E13: VAT incl
B14: < 500V | D14: 0.27 | E14: =ROUND(D14 * (1 + VAT), 2) -> 0.31
B15: ≥ 500V & ≤ 22kV | D15: 0.27 | E15: =ROUND(D15 * (1 + VAT), 2) -> 0.31
C18: Transmission zone | D18: Voltage | E18: R/kVA
F19: VAT incl
B20: ETUoS urban | C20: ≤ 300km | D20: < 500V | E20: 11.36438596 | F20: =ROUND(E20 * (1 + VAT), 2) -> 13.07
D21: ≥ 500V & < 66kV | E21: 11.19400536 | F21: 12.87
D22: ≥ 66kV & ≤ 132kV | E22: 10.8362061 | F22: 12.46
C23: > 300km & ≤ 600km | D23: < 500V | E23: 11.46661432 | F23: 13.19
D24: ≥ 500V & < 66kV | E24: 11.31327178 | F24: 13.01
D25: ≥ 66kV & ≤ 132kV | E25: 10.95547252 | F25: 12.6
C26: > 600km & ≤ 900km | D26: < 500V | E26: 11.58588074 | F26: 13.32
D27: ≥ 500V & < 66kV | E27: 11.4325382 | F27: 13.15
D28: ≥ 66kV & ≤ 132kV | E28: 11.05770088 | F28: 12.72
C29: > 900km | D29: < 500V | E29: 11.70514716 | F29: 13.46
D30: ≥ 500V & < 66kV | E30: 11.55180462 | F30: 13.28
D31: ≥ 66kV & ≤ 132kV | E31: 11.1769673 | F31: 12.85
C34: Transmission zone | D34: Voltage | E34: R/kVA
F35: VAT incl
B36: ETUoS rural | C36: ≤ 300km | D36: < 500V | E36: 11.7732994 | F36: =ROUND(E36 * (1 + VAT), 2) -> 13.54
D37: ≥ 500V & < 66kV | E37: 11.67107104 | F37: 13.42
C38: > 300km & ≤ 600km | D38: < 500V | E38: 11.89256582 | F38: 13.68
D39: ≥ 500V & < 66kV | E39: 11.79033746 | F39: 13.56
C40: > 600km & ≤ 900km | D40: < 500V | E40: 12.01183224 | F40: 13.81
D41: ≥ 500V & < 66kV | E41: 11.90960388 | F41: 13.7
C42: > 900km | D42: < 500V | E42: 12.13109866 | F42: 13.95
D43: ≥ 500V & < 66kV | E43: 12.0288703 | F43: 13.83
B46: Distribution network charges urban
D47: Network access charge [R/kVA/m] | F47: Network demand charge [R/kVA/m] | H47: Urban low voltage subsidy charge [R/kVA/m]
B49: Voltage | E49: VAT incl | G49: VAT incl | I49: VAT incl
B50: < 500V | D50: =#REF! ->  | E50: =ROUND(D50 * (1 + VAT), 2) ->  | F50: =#REF! ->  | G50: =ROUND(F50 * (1 + VAT), 2) ->  | H50: =#REF! ->  | I50: =ROUND(H50 * (1 + VAT), 2) -> 
B51: ≥ 500V & < 66kV | D51: =#REF! ->  | E51: =ROUND(D51 * (1 + VAT), 2) ->  | F51: =#REF! ->  | G51: =ROUND(F51 * (1 + VAT), 2) ->  | H51: =#REF! ->  | I51: =ROUND(H51 * (1 + VAT), 2) -> 
B52: ≥ 66kV & ≤ 132kV | D52: =#REF! ->  | E52: =ROUND(D52 * (1 + VAT), 2) ->  | F52: =#REF! ->  | G52: =ROUND(F52 * (1 + VAT), 2) ->  | H52: =#REF! ->  | I52: =ROUND(H52 * (1 + VAT), 2) -> 
B53: > 132kV | D53: =#REF! ->  | E53: =ROUND(D53 * (1 + VAT), 2) ->  | F53: =#REF! ->  | G53: =ROUND(F53 * (1 + VAT), 2) ->  | H53: =#REF! ->  | I53: =ROUND(H53 * (1 + VAT), 2) -> 
B56: Distribution network charges rural
D57: Network access charge [R/kVA/m] | F57: Network demand charge [c/kWh]
B59: Voltage | E59: VAT incl | G59: VAT incl
B60: < 500V | D60: 6.201664795 | E60: =ROUND(D60 * (1 + VAT), 2) -> 7.13 | F60: 19.67324725 | G60: =ROUND(F60 * (1 + VAT), 2) -> 22.62
B61: ≥ 500V & ≤ 22kV | D61: 2.297555913 | E61: =ROUND(D61 * (1 + VAT), 2) -> 2.64 | F61: 17.23886725 | G61: =ROUND(F61 * (1 + VAT), 2) -> 19.82
B64: Distribution network charges for Generators
D65: Network access charge [R/MW/m]
B67: Voltage | E67: VAT incl
B68: < 500V
B69: ≥ 500V & < 66kV
B70: ≥ 66kV & ≤ 132kV | D70: 9.4 | E70: =ROUND(D70 * (1 + VAT), 2) -> 10.81
B73: Electrification and rural network subsidy charge [c/kWh]
D74: Rural network subsidy charge [c/kWh] | F74: Electrification networks subsidy charge [c/kWh] | H74: Total electrification and rural network subsidy charge [c/kWh]
B76: Tariff | E76: VAT incl | G76: VAT incl | I76: VAT incl
B77: Megaflex, Miniflex, Nightsave Urban Large, Nightsave Urban Small, Businessrate
D78: 2.68 | E78: =ROUND(D78 * (1 + VAT), 2) -> 3.08 | F78: 0.91 | G78: =ROUND(F78 * (1 + VAT), 2) -> 1.05 | H78: 3.59 | I78: =ROUND(H78 * (1 + VAT), 2) -> 4.13
B83: Service and admin charges
B84: Customer categories | D84: Service charge [R/account/day] | F84: Administration charge [R/POD/day]
E86: VAT incl | G86: VAT incl
B87: ≤ 100 kVA | D87: 9.49 | E87: =ROUND(D87 * (1 + VAT), 2) -> 10.91 | F87: 2.08 | G87: =ROUND(F87 * (1 + VAT), 2) -> 2.39
B88: > 100 kVA & ≤ 500 kVA | D88: 43.38 | E88: =ROUND(D88 * (1 + VAT), 2) -> 49.89 | F88: 12.16 | G88: =ROUND(F88 * (1 + VAT), 2) -> 13.98
B89: > 500 kVA & ≤ 1 MVA | D89: 133.5 | E89: =ROUND(D89 * (1 + VAT), 2) -> 153.53 | F89: 24.17 | G89: =ROUND(F89 * (1 + VAT), 2) -> 27.8
B90: > 1 MVA | D90: 133.5 | E90: =ROUND(D90 * (1 + VAT), 2) -> 153.53 | F90: 60.17 | G90: =ROUND(F90 * (1 + VAT), 2) -> 69.2
B91: Key customers | D91: 2616.06 | E91: =ROUND(D91 * (1 + VAT), 2) -> 3008.47 | F91: 83.55 | G91: =ROUND(F91 * (1 + VAT), 2) -> 96.08
B94: Distribution loss factors | F94: Transmission loss factors for loads
B95: Voltage | C95: Urban loss factor | D95: Rural loss factor | F95: Distance from Johannesburg | G95: Zone | H95: Loss factor
B96: < 500V | C96: ='Loss Factors'!O6 -> 1.1111 | D96: ='Loss Factors'!P6 -> 1.1527 | F96: 0 to 300 km | G96: 0 | H96: ='Loss Factors'!T6 -> 1.0107
B97: ≥ 500V & < 66kV | C97: ='Loss Factors'!O7 -> 1.0957 | D97: ='Loss Factors'!P7 -> 1.1412 | F97: 301 to 600 km | G97: 1 | H97: ='Loss Factors'!T7 -> 1.0208
B98: ≥ 66kV & ≤ 132kV | C98: ='Loss Factors'!O8 -> 1.0611 | F98: 601 to 900 km | G98: 2 | H98: ='Loss Factors'!T8 -> 1.031
B99: > 132kV | C99: ='Loss Factors'!O9 -> 1 | F99: > 900 km | G99: 3 | H99: ='Loss Factors'!T9 -> 1.0413
K104: TUoS [ > 132kV] | M104: Charge R/kVA
N105: VAT incl
L106: ≤ 300km | M106: =#REF! ->  | N106: =ROUND(M106 * (1 + VAT), 2) -> 
L107: > 300km & ≤ 600km | M107: =#REF! ->  | N107: =ROUND(M107 * (1 + VAT), 2) -> 
L108: > 600km & ≤ 900km | M108: =#REF! ->  | N108: =ROUND(M108 * (1 + VAT), 2) -> 
L109: > 900km | M109: =#REF! ->  | N109: =ROUND(M109 * (1 + VAT), 2) -> 

Sheet TUoS NLA
H1: Back to menu
A2: Non-municipal
H3: TUoS (Transmission use of system) charges (> 132 KV or direct Transmission connected) network charge for loads
H6: Electrification and rural network subsidy charge [c/kWh]
J7: Electrification and rural network subsidy charge [c/kWh]
A9: Tariff | B9: Tariff nameBillcode | C9: Tx zone | D9: Voltage | E9: Billcode | H9: Tariff | K9: VAT incl
H10: Megaflex, Miniflex, Nightsave Urban Large, Nightsave Urban Small, Businessrate
A11: Megaflex | B11: Me | C11: 0 | D11: 1 | E11: =B11&C11&D11&IF($A$2="Non-municipal","N",IF($A$2="Municiple","Y","error")) -> Me01N | J11: ='Megaflex NLA'!H46 -> 11.63 | K11: =ROUND(J11 * (1 + VAT), 2) -> 13.37
H15: Service and admin charges
H16: Utilised capacity/maximum export capacity | J16: Service charge [R/account/day] | L16: Administration charge [R/POD/day]
H19: [kVA/MVA = loads]
A20: Tariff | B20: Tariff nameBillcode | C20: Tx zone | D20: Voltage | E20: Billcode | H20: [kW/MW = generators] | K20: VAT incl | M20: VAT incl
A21: Miniflex | B21: Mi | C21: 0 | D21: 1 | E21: =B21&C21&D21&IF($B$28="Non-municipal","N",IF($B$28="Municiple","Y","error")) -> Mi01N | H21: ≤ 100 kVA/kW | J21: 21.25 | K21: =ROUND(J21 * (1+ VAT), 2) -> 24.44 | L21: 4.67 | M21: =ROUND(L21 * (1+ VAT), 2) -> 5.37
A22: Miniflex | B22: Mi | C22: 0 | D22: 1 | E22: =B22&C22&D22&IF($B$28="Non-municipal","N",IF($B$28="Municiple","Y","error")) -> Mi01N | H22: > 100 kVA/kW & ≤ 500 kVA/kW | J22: 97.04 | K22: =ROUND(J22 * (1+ VAT), 2) -> 111.6 | L22: 27.22 | M22: =ROUND(L22 * (1+ VAT), 2) -> 31.3
A23: Miniflex | B23: Mi | C23: 0 | D23: 1 | E23: =B23&C23&D23&IF($B$28="Non-municipal","N",IF($B$28="Municiple","Y","error")) -> Mi01N | H23: > 500 kVA/kW & ≤ 1 MVA/MW | J23: 298.57 | K23: =ROUND(J23 * (1+ VAT), 2) -> 343.36 | L23: 54.04 | M23: =ROUND(L23 * (1+ VAT), 2) -> 62.15
A24: Miniflex | B24: Mi | C24: 0 | D24: 1 | E24: =B24&C24&D24&IF($B$28="Non-municipal","N",IF($B$28="Municiple","Y","error")) -> Mi01N | H24: > 1 MVA/MW | J24: 298.57 | K24: =ROUND(J24 * (1+ VAT), 2) -> 343.36 | L24: 134.56 | M24: =ROUND(L24 * (1+ VAT), 2) -> 154.74
A25: Miniflex | B25: Mi | C25: 0 | D25: 1 | E25: =B25&C25&D25&IF($B$28="Non-municipal","N",IF($B$28="Municiple","Y","error")) -> Mi01N | H25: Key customers or Transmission connected generators | J25: 5850.83 | K25: =ROUND(J25 * (1+ VAT), 2) -> 6728.45 | L25: 186.85 | M25: =ROUND(L25 * (1+ VAT), 2) -> 214.88
B28: Non-municipal | H28: Transmission loss factors for loads
A29: Tariff | B29: Tariff nameBillcode | C29: Tx zone | D29: Voltage | E29: Billcode | H29: Distance from Johannesburg | I29: Zone | J29: Loss factor
A30: Transmission loss factor | B30: TxLoss | C30: 0 | D30: 4 | E30: =B30&C30&D30&IF($B$28="Non-municipal","N",IF($B$28="Municiple","Y","error")) -> TxLoss04N | H30: ≤ 300km | I30: 0 | J30: 1.0107
A31: Transmission loss factor | B31: TxLoss | C31: 1 | D31: 4 | E31: =B31&C31&D31&IF($B$28="Non-municipal","N",IF($B$28="Municiple","Y","error")) -> TxLoss14N | H31: > 300km & ≤ 600km | I31: 1 | J31: 1.0208
A32: Transmission loss factor | B32: TxLoss | C32: 2 | D32: 4 | E32: =B32&C32&D32&IF($B$28="Non-municipal","N",IF($B$28="Municiple","Y","error")) -> TxLoss24N | H32: > 600km & ≤ 900km | I32: 2 | J32: 1.031
A33: Transmission loss factor | B33: TxLoss | C33: 3 | D33: 4 | E33: =B33&C33&D33&IF($B$28="Non-municipal","N",IF($B$28="Municiple","Y","error")) -> TxLoss34N | H33: > 900km | I33: 3 | J33: 1.0413
H36: Loss factors for Transmission connected generators | J36: Loss factor
A37: Tariff | B37: Tariff nameBillcode | C37: Tx zone | D37: Voltage | E37: Billcode
A38: TUoS network charges for Transmission connected generators | B38: GenTUOS | C38: Cape | D38: 4 | E38: =B38&C38&D38&IF($A$2="Non-municipal","N",IF($A$2="Municiple","Y","error")) -> GenTUOSCape4N | I38: Cape | J38: ='Loss Factors'!P14 -> 0.971
A39: TUoS network charges for Transmission connected generators | B39: GenTUOS | C39: Karoo | D39: 4 | E39: GenTUOSKaroo4N | I39: Karoo | J39: ='Loss Factors'!P15 -> 0.995
A40: TUoS network charges for Transmission connected generators | B40: GenTUOS | C40: Kwazulu-Natal | D40: 4 | E40: GenTUOSKwazulu-Natal4N | I40: Kwazulu-Natal | J40: ='Loss Factors'!P16 -> 1.004
A41: TUoS network charges for Transmission connected generators | B41: GenTUOS | C41: Vaal | D41: 4 | E41: GenTUOSVaal4N | I41: Vaal | J41: ='Loss Factors'!P17 -> 1.02
A42: TUoS network charges for Transmission connected generators | B42: GenTUOS | C42: Waterburg | D42: 4 | E42: GenTUOSWaterburg4N | I42: Waterberg | J42: ='Loss Factors'!P18 -> 1.023
A43: TUoS network charges for Transmission connected generators | B43: GenTUOS | C43: Mpumalanga | D43: 4 | E43: GenTUOSMpumalanga4N | I43: Mpumalanga | J43: ='Loss Factors'!P19 -> 1.021
H46: TUoS network charge for Transmission connected loads | J46: Network capacity charge [R/kVA]
A47: Tariff | B47: Tariff nameBillcode | C47: Tx zone | D47: Voltage | E47: Billcode | K47: VAT incl
A48: WEPS | B48: We | C48: 0 | D48: 1 | E48: =B48&C48&D48&IF($A$2="Non-municipal","N",IF($A$2="Municiple","Y","error")) -> We01N | I48: ≤ 300km | J48: ='WEPS NLA'!V11 -> 14.72 | K48: =ROUND(J48 * (1+ VAT), 2) -> 16.93
A49: WEPS | B49: We | C49: 0 | D49: 2 | E49: =B49&C49&D49&IF($A$2="Non-municipal","N",IF($A$2="Municiple","Y","error")) -> We02N | I49: > 300km & ≤ 600km | J49: ='WEPS NLA'!V15 -> 14.85 | K49: =ROUND(J49 * (1+ VAT), 2) -> 17.08
A50: WEPS | B50: We | C50: 0 | D50: 3 | E50: =B50&C50&D50&IF($A$2="Non-municipal","N",IF($A$2="Municiple","Y","error")) -> We03N | I50: > 600km & ≤ 900km | J50: ='WEPS NLA'!V19 -> 15.07 | K50: =ROUND(J50 * (1+ VAT), 2) -> 17.33
A51: WEPS | B51: We | C51: 0 | D51: 4 | E51: =B51&C51&D51&IF($A$2="Non-municipal","N",IF($A$2="Municiple","Y","error")) -> We04N | I51: > 900km | J51: ='WEPS NLA'!V23 -> 15.18 | K51: =ROUND(J51 * (1+ VAT), 2) -> 17.46
H54: TUoS network charges for Transmission connected generators | J54: Network charge [R/kW]
A55: Tariff | B55: Tariff nameBillcode | C55: Tx zone | D55: Voltage | E55: Billcode | K55: VAT incl
A56: TUoS network charges for Transmission connected generators | B56: GenTUOS | C56: Cape | D56: 4 | E56: =B56&C56&D56&IF($A$2="Non-municipal","N",IF($A$2="Municiple","Y","error")) -> GenTUOSCape4N | I56: Cape | J56: 0 | K56: =ROUND(J56 * (1+ VAT), 2) -> 0
A57: TUoS network charges for Transmission connected generators | B57: GenTUOS | C57: Karoo | D57: 4 | E57: GenTUOSKaroo4N | I57: Karoo | J57: 0 | K57: 0
A58: TUoS network charges for Transmission connected generators | B58: GenTUOS | C58: Kwazulu-Natal | D58: 4 | E58: GenTUOSKwazulu-Natal4N | I58: Kwazulu-Natal | J58: 3.09 | K58: 3.55
A59: TUoS network charges for Transmission connected generators | B59: GenTUOS | C59: Vaal | D59: 4 | E59: GenTUOSVaal4N | I59: Vaal | J59: 10.29 | K59: 11.83
A60: TUoS network charges for Transmission connected generators | B60: GenTUOS | C60: Waterburg | D60: 4 | E60: GenTUOSWaterburg4N | I60: Waterberg | J60: 13.18 | K60: 15.16
A61: TUoS network charges for Transmission connected generators | B61: GenTUOS | C61: Mpumalanga | D61: 4 | E61: GenTUOSMpumalanga4N | I61: Mpumalanga | J61: 12.23 | K61: 14.06
H64: TUoS ancillary service charge for Transmission connected loads and generators | J64: Ancillary service charge [c/kWh]
A66: Tariff | B66: Tariff nameBillcode | C66: Tx zone | D66: Voltage | E66: Billcode | K66: VAT incl
A67: TUoS network charges for Transmission connected generators | B67: GenTUOS | C67: Cape | D67: 4 | E67: =B67&C67&D67&IF($A$2="Non-municipal","N",IF($A$2="Municiple","Y","error")) -> GenTUOSCape4N | H67: Generators | J67: 0.53 | K67: =ROUND(J67 * (1+ VAT), 2) -> 0.61
A68: TUoS network charges for Transmission connected generators | B68: GenTUOS | C68: Cape | D68: 4 | E68: =B68&C68&D68&IF($A$2="Non-municipal","N",IF($A$2="Municiple","Y","error")) -> GenTUOSCape4N | H68: Loads | J68: 0.53 | K68: =ROUND(J68 * (1+ VAT), 2) -> 0.61

Sheet DUoS NLA
A2: Non-Municipal | H2: Back to menu
H4: DUoS (Distribution use of system) charges
H7: DUoS ancillary service charge Urbanp | J7: Charge [c/kWh]
A8: Tariff | B8: Tariff nameBillcode | C8: Tx zone | D8: Voltage | E8: Billcode | K8: VAT incl
A9: Gen-DUoS urban | B9: NEGenDUoSU | C9: 0 | D9: 1 | E9: =B9&C9&D9&IF($A$2="Non-municipal","N",IF($A$2="Municiple","Y","error")) -> NEGenDUoSU01N | H9: < 500V | J9: 0.6 | K9: =ROUND(J9 * (1 + VAT), 2) -> 0.69
A10: Gen-DUoS urban | B10: NEGenDUoSU | C10: 0 | D10: 2 | E10: =B10&C10&D10&IF($A$2="Non-municipal","N",IF($A$2="Municiple","Y","error")) -> NEGenDUoSU02N | H10: ≥ 500V & < 66kV | J10: 0.59 | K10: =ROUND(J10 * (1 + VAT), 2) -> 0.68
A11: Gen-DUoS urban | B11: NEGenDUoSU | C11: 0 | D11: 3 | E11: =B11&C11&D11&IF($A$2="Non-municipal","N",IF($A$2="Municiple","Y","error")) -> NEGenDUoSU03N | H11: ≥ 66kV & ≤ 132kV | J11: 0.57 | K11: =ROUND(J11 * (1 + VAT), 2) -> 0.66
H15: DUoS ancillary service charge Ruralp | J15: Charge [c/kWh]
A16: Tariff | B16: Tariff nameBillcode | C16: Tx zone | D16: Voltage | E16: Billcode | K16: VAT incl
A17: Gen-DUoS rural | B17: NEGenDUoSR | C17: 0 | D17: 1 | E17: =B17&C17&D17&IF($A$2="Non-municipal","N",IF($A$2="Municiple","Y","error")) -> NEGenDUoSR01N | H17: < 500V | J17: 0.6 | K17: =ROUND(J17 * (1 + VAT), 2) -> 0.69
A18: Gen-DUoS rural | B18: NEGenDUoSR | C18: 0 | D18: 2 | E18: =B18&C18&D18&IF($A$2="Non-municipal","N",IF($A$2="Municiple","Y","error")) -> NEGenDUoSR02N | H18: ≥ 500V & ≤ 22kV | J18: 0.6 | K18: =ROUND(J18 * (1 + VAT), 2) -> 0.69
I21: Transmission zone | J21: Voltage | K21: [R/kVA]
A22: Tariff | B22: Tariff nameBillcode | C22: Tx zone | D22: Voltage | E22: Billcode | L22: VAT incl
H23: ETUoS urban | I23: ≤ 300km | J23: < 500V | K23: ='Megaflex NLA'!V8 -> 13.09 | L23: =ROUND(K23 * (1 + VAT), 2) -> 15.05
J24: ≥ 500V & < 66kV | K24: ='Megaflex NLA'!V9 -> 11.96 | L24: 13.75
J25: ≥ 66kV & ≤ 132kV | K25: ='Megaflex NLA'!V10 -> 11.64 | L25: 13.39
I26: > 300km & ≤ 600km | J26: < 500V | K26: ='Megaflex NLA'!V12 -> 13.18 | L26: 15.16
J27: ≥ 500V & < 66kV | K27: ='Megaflex NLA'!V13 -> 12.07 | L27: 13.88
J28: ≥ 66kV & ≤ 132kV | K28: ='Megaflex NLA'!V14 -> 11.73 | L28: 13.49
I29: > 600km & ≤ 900km | J29: < 500V | K29: ='Megaflex NLA'!V16 -> 13.33 | L29: 15.33
J30: ≥ 500V & < 66kV | K30: ='Megaflex NLA'!V17 -> 12.18 | L30: 14.01
J31: ≥ 66kV & ≤ 132kV | K31: ='Megaflex NLA'!V18 -> 11.8 | L31: 13.57
I32: > 900km | J32: < 500V | K32: ='Megaflex NLA'!V20 -> 13.42 | L32: 15.43
J33: ≥ 500V & < 66kV | K33: ='Megaflex NLA'!V21 -> 12.32 | L33: 14.17
J34: ≥ 66kV & ≤ 132kV | K34: ='Megaflex NLA'!V22 -> 11.91 | L34: 13.7
I37: Transmission zone | J37: Voltage | K37: [R/kVA]
A38: Tariff | B38: Tariff nameBillcode | C38: Tx zone | D38: Voltage | E38: Billcode | L38: VAT incl
H39: ETUoS rural | I39: ≤ 300km | J39: < 500V | K39: ='Ruraflex NLA'!V8 -> 27.36 | L39: =ROUND(K39 * (1 + VAT), 2) -> 31.46
J40: ≥ 500V & < 66kV | K40: ='Ruraflex NLA'!V9 -> 25.07 | L40: 28.83
I41: > 300km & ≤ 600km | J41: < 500V | K41: ='Ruraflex NLA'!V12 -> 27.44 | L41: 31.56
J42: ≥ 500V & < 66kV | K42: ='Ruraflex NLA'!V13 -> 25.22 | L42: 29
I43: > 600km & ≤ 900km | J43: < 500V | K43: ='Ruraflex NLA'!V16 -> 27.58 | L43: 31.72
J44: ≥ 500V & < 66kV | K44: ='Ruraflex NLA'!V17 -> 25.34 | L44: 29.14
I45: > 900km | J45: < 500V | K45: ='Ruraflex NLA'!V20 -> 27.7 | L45: 31.86
J46: ≥ 500V & < 66kV | K46: ='Ruraflex NLA'!V21 -> 25.35 | L46: 29.15
H49: DUoS network charges for urbanp loads
J50: Network capacity charge [R/kVA/m] | L50: Network demand charge [R/kVA/m] | N50: Urban low voltage subsidy charge [R/kVA/m]
A52: Tariff | B52: Tariff nameBillcode | C52: Tx zone | D52: Voltage | E52: Billcode | H52: Voltage | K52: VAT incl | M52: VAT incl | O52: VAT incl
A53: Gen-DUoS urban | B53: NEGenDUoSU | C53: 0 | D53: 1 | E53: =B53&C53&D53&IF($A$2="Non-municipal","N",IF($A$2="Municiple","Y","error")) -> NEGenDUoSU01N | H53: < 500V | J53: ='Megaflex NLA'!J30 -> 26.01 | K53: =ROUND(J53 * (1 + VAT), 2) -> 29.91 | L53: ='Megaflex NLA'!L30 -> 49.31 | M53: =ROUND(L53 * (1 + VAT), 2) -> 56.71 | N53: ='Megaflex NLA'!N30 -> 0 | O53: =ROUND(N53 * (1 + VAT), 2) -> 0
A54: Gen-DUoS urban | B54: NEGenDUoSU | C54: 0 | D54: 2 | E54: =B54&C54&D54&IF($A$2="Non-municipal","N",IF($A$2="Municiple","Y","error")) -> NEGenDUoSU02N | H54: ≥ 500V & < 66kV | J54: ='Megaflex NLA'!J31 -> 23.85 | K54: =ROUND(J54 * (1 + VAT), 2) -> 27.43 | L54: ='Megaflex NLA'!L31 -> 45.24 | M54: =ROUND(L54 * (1 + VAT), 2) -> 52.03 | N54: ='Megaflex NLA'!N31 -> 0 | O54: =ROUND(N54 * (1 + VAT), 2) -> 0
A55: Gen-DUoS urban | B55: NEGenDUoSU | C55: 0 | D55: 3 | E55: =B55&C55&D55&IF($A$2="Non-municipal","N",IF($A$2="Municiple","Y","error")) -> NEGenDUoSU03N | H55: ≥ 66kV & ≤ 132kV | J55: ='Megaflex NLA'!J32 -> 8.52 | K55: =ROUND(J55 * (1 + VAT), 2) -> 9.8 | L55: ='Megaflex NLA'!L32 -> 15.77 | M55: =ROUND(L55 * (1 + VAT), 2) -> 18.14 | N55: ='Megaflex NLA'!N32 -> 21.01 | O55: =ROUND(N55 * (1 + VAT), 2) -> 24.16
A56: Gen-DUoS urban | B56: NEGenDUoSU | C56: 0 | D56: 4 | E56: =B56&C56&D56&IF($A$2="Non-municipal","N",IF($A$2="Municiple","Y","error")) -> NEGenDUoSU04N | H56: > 132kV | J56: ='Megaflex NLA'!J33 -> 0 | K56: =ROUND(J56 * (1 + VAT), 2) -> 0 | L56: ='Megaflex NLA'!L33 -> 0 | M56: =ROUND(L56 * (1 + VAT), 2) -> 0 | N56: ='Megaflex NLA'!N33 -> 21.01 | O56: =ROUND(N56 * (1 + VAT), 2) -> 24.16
H59: DUoS network charges ruralp loads
J60: Network capacity charge [R/kVA/m] | L60: Network demand charge [c/kWh]
A62: Tariff | B62: Tariff nameBillcode | C62: Tx zone | D62: Voltage | E62: Billcode | H62: Voltage | K62: VAT incl | M62: VAT incl
A63: Gen-DUoS rural | B63: NEGenDUoSR | C63: 0 | D63: 1 | E63: =B63&C63&D63&IF($A$2="Non-municipal","N",IF($A$2="Municiple","Y","error")) -> NEGenDUoSR01N | H63: < 500V | J63: ='Ruraflex NLA'!V8 -> 27.36 | K63: =ROUND(J63 * (1 + VAT), 2) -> 31.46 | L63: ='Ruraflex NLA'!S28 -> 38.94 | M63: =ROUND(L63 * (1 + VAT), 2) -> 44.78
A64: Gen-DUoS rural | B64: NEGenDUoSR | C64: 0 | D64: 2 | E64: =B64&C64&D64&IF($A$2="Non-municipal","N",IF($A$2="Municiple","Y","error")) -> NEGenDUoSR02N | H64: ≥ 500V & ≤ 22kV | J64: ='Ruraflex NLA'!V9 -> 25.07 | K64: =ROUND(J64 * (1 + VAT), 2) -> 28.83 | L64: ='Ruraflex NLA'!S29 -> 34.14 | M64: =ROUND(L64 * (1 + VAT), 2) -> 39.26
H67: DUoS network charges for generators
J68: Network capacity charge [R/kW/m]
A70: Tariff | B70: Tariff nameBillcode | C70: Tx zone | D70: Voltage | E70: Billcode | H70: Voltage | K70: VAT incl
A71: Gen-DUoS urban | B71: NEGenDUoSU | C71: 0 | D71: 1 | E71: =B71&C71&D71&IF($A$2="Non-municipal","N",IF($A$2="Municiple","Y","error")) -> NEGenDUoSU01N | H71: < 500V
A72: Gen-DUoS urban | B72: NEGenDUoSU | C72: 0 | D72: 2 | E72: =B72&C72&D72&IF($A$2="Non-municipal","N",IF($A$2="Municiple","Y","error")) -> NEGenDUoSU02N | H72: ≥ 500V & < 66kV
A73: Gen-DUoS urban | B73: NEGenDUoSU | C73: 0 | D73: 3 | E73: =B73&C73&D73&IF($A$2="Non-municipal","N",IF($A$2="Municiple","Y","error")) -> NEGenDUoSU03N | H73: ≥ 66kV & ≤ 132kV | J73: 21.03 | K73: =ROUND(J73 * (1 + VAT), 2) -> 24.18
H75: DUoS electrification and rural network subsidy charge [c/kWh] | R75: DUoS electrification and rural network subsidy charge [c/kWh]
J77: Rural network subsidy charge [c/kWh] | L77: Electrification networks subsidy charge [c/kWh] | N77: Total electrification and rural network subsidy charge [c/kWh] | R77: Tariff | T77: Electrification and rural network subsidy charge [c/kWh]
A79: Tariff | B79: Tariff nameBillcode | C79: Tx zone | D79: Voltage | E79: Billcode | H79: Tariff | K79: VAT incl | M79: VAT incl | O79: VAT incl | U79: VAT incl
H80: Megaflex, Miniflex, Nightsave Urban Large, Nightsave Urban Small, Businessrate | R80: Megaflex, Miniflex, Nightsave Urban Large, Nightsave Urban Small, Businessrate
A81: Megaflex | B81: Me | C81: 0 | D81: 1 | E81: =B81&C81&D81&IF($A$2="Non-municipal","N",IF($A$2="Municiple","Y","error")) -> Me01N | J81: 7.72 | K81: =ROUND(J81 * (1 + VAT), 2) -> 8.88 | L81: 3.91 | M81: =ROUND(L81 * (1 + VAT), 2) -> 4.5 | N81: =SUM(J81, L81) -> 11.63 | O81: =ROUND(N81 * (1 + VAT), 2) -> 13.37 | T81: 11.63 | U81: =ROUND(T81 * (1 + VAT), 2) -> 13.37
A82: 0.6637010676
A83: 0.3362989324
H86: DUoS service and administration charges (urbanp )
H87: Customer categories utilised capacity / maximum export capacity | J87: Service charge [R/account/day] | L87: Administration charge [R/POD/day]
H90: [kVA or MVA = loads]
A91: Tariff | B91: Tariff nameBillcode | C91: Tx zone | D91: Voltage | E91: Billcode | H91: [kW or MW = generators] | K91: VAT incl | M91: VAT incl
A92: Miniflex | B92: Mi | C92: 0 | D92: 1 | E92: =B92&C92&D92&IF($A$2="Non-municipal","N",IF($A$2="Municiple","Y","error")) -> Mi01N | H92: ≤ 100 kVA/kW | J92: 21.25 | K92: =ROUND(J92 * (1 + VAT), 2) -> 24.44 | L92: 4.67 | M92: =ROUND(L92 * (1 + VAT), 2) -> 5.37
A93: Miniflex | B93: Mi | C93: 0 | D93: 1 | E93: =B93&C93&D93&IF($A$2="Non-municipal","N",IF($A$2="Municiple","Y","error")) -> Mi01N | H93: > 100 kVA/kW & ≤ 500 kVA/kW | J93: 97.04 | K93: =ROUND(J93 * (1 + VAT), 2) -> 111.6 | L93: 27.22 | M93: =ROUND(L93 * (1 + VAT), 2) -> 31.3
A94: Miniflex | B94: Mi | C94: 0 | D94: 1 | E94: =B94&C94&D94&IF($A$2="Non-municipal","N",IF($A$2="Municiple","Y","error")) -> Mi01N | H94: > 500 kVA/kW & ≤ 1 MVA/MW | J94: 298.57 | K94: =ROUND(J94 * (1 + VAT), 2) -> 343.36 | L94: 54.04 | M94: =ROUND(L94 * (1 + VAT), 2) -> 62.15
A95: Miniflex | B95: Mi | C95: 0 | D95: 1 | E95: =B95&C95&D95&IF($A$2="Non-municipal","N",IF($A$2="Municiple","Y","error")) -> Mi01N | H95: > 1 MVA/MW | J95: 298.57 | K95: =ROUND(J95 * (1 + VAT), 2) -> 343.36 | L95: 134.56 | M95: =ROUND(L95 * (1 + VAT), 2) -> 154.74
A96: Miniflex | B96: Mi | C96: 0 | D96: 1 | E96: =B96&C96&D96&IF($A$2="Non-municipal","N",IF($A$2="Municiple","Y","error")) -> Mi01N | H96: Key customers or Transmission connected | J96: 5850.83 | K96: =ROUND(J96 * (1 + VAT), 2) -> 6728.45 | L96: 186.85 | M96: =ROUND(L96 * (1 + VAT), 2) -> 214.88
H99: DUoS service and administration charges (ruralp)
H100: Customer categories utilised capacity / maximum export capacity | J100: Service charge [R/account/day] | L100: Administration charge [R/POD/day]
H103: [kVA or MVA = loads]
A104: Tariff | B104: Tariff nameBillcode | C104: Tx zone | D104: Voltage | E104: Billcode | H104: [kW or MW = generators] | K104: VAT incl | M104: VAT incl
A105: Ruraflex | B105: Ru | C105: 0 | D105: 1 | E105: =B105&C105&D105&IF($A$2="Non-municipal","N",IF($A$2="Municiple","Y","error")) -> Ru01N | H105: ≤ 100 kVA/kW | J105: 26.91 | K105: =ROUND(J105 * (1 + VAT), 2) -> 30.95 | L105: 7.64 | M105: =ROUND(L105 * (1 + VAT), 2) -> 8.79
A106: Ruraflex | B106: Ru | C106: 0 | D106: 1 | E106: =B106&C106&D106&IF($A$2="Non-municipal","N",IF($A$2="Municiple","Y","error")) -> Ru01N | H106: > 100 kVA/kW & ≤ 500 kVA/kW | J106: 91.77 | K106: =ROUND(J106 * (1 + VAT), 2) -> 105.54 | L106: 42.55 | M106: =ROUND(L106 * (1 + VAT), 2) -> 48.93
A107: Ruraflex | B107: Ru | C107: 0 | D107: 1 | E107: =B107&C107&D107&IF($A$2="Non-municipal","N",IF($A$2="Municiple","Y","error")) -> Ru01N | H107: > 500 kVA/kW & ≤ 1 MVA/MW | J107: 282.31 | K107: =ROUND(J107 * (1 + VAT), 2) -> 324.66 | L107: 65.31 | M107: =ROUND(L107 * (1 + VAT), 2) -> 75.11
A108: Ruraflex | B108: Ru | C108: 0 | D108: 1 | E108: =B108&C108&D108&IF($A$2="Non-municipal","N",IF($A$2="Municiple","Y","error")) -> Ru01N | H108: > 1 MVA/MW | J108: 282.31 | K108: =ROUND(J108 * (1 + VAT), 2) -> 324.66 | L108: 121.17 | M108: =ROUND(L108 * (1 + VAT), 2) -> 139.35
A109: Ruraflex | B109: Ru | C109: 0 | D109: 1 | E109: =B109&C109&D109&IF($A$2="Non-municipal","N",IF($A$2="Municiple","Y","error")) -> Ru01N | H109: Key customers | J109: 5533.08 | K109: =ROUND(J109 * (1 + VAT), 2) -> 6363.04 | L109: 121.17 | M109: =ROUND(L109 * (1 + VAT), 2) -> 139.35
H111: Distribution loss factors | L111: Transmission loss factors for loads
A112: Tariff | B112: Tariff nameBillcode | C112: Tx zone | D112: Voltage | E112: Billcode | H112: Voltage | I112: Urbanp loss factor | J112: Ruralp loss factor | L112: Distance from Johannesburg | M112: Zone | N112: Loss factor
A113: Distribution loss factor - Urban | B113: DxLossUrb | C113: 0 | D113: 1 | E113: =B113&C113&D113&IF($A$2="Non-municipal","N",IF($A$2="Municiple","Y","error")) -> DxLossUrb01N | H113: < 500V | I113: 1.1111 | J113: 1.1527 | L113: ≤ 300km | M113: 0 | N113: 1.0107
A114: Distribution loss factor - Urban | B114: DxLossUrb | C114: 0 | D114: 2 | E114: =B114&C114&D114&IF($A$2="Non-municipal","N",IF($A$2="Municiple","Y","error")) -> DxLossUrb02N | H114: ≥ 500V & < 66kV | I114: 1.0957 | J114: 1.1412 | L114: > 300km & ≤ 600km | M114: 1 | N114: 1.0208
A115: Distribution loss factor - Urban | B115: DxLossUrb | C115: 0 | D115: 3 | E115: =B115&C115&D115&IF($A$2="Non-municipal","N",IF($A$2="Municiple","Y","error")) -> DxLossUrb03N | H115: ≥ 66kV & ≤ 132kV | I115: 1.0611 | L115: > 600km & ≤ 900km | M115: 2 | N115: 1.031
A116: Distribution loss factor - Urban | B116: DxLossUrb | C116: 0 | D116: 4 | E116: =B116&C116&D116&IF($A$2="Non-municipal","N",IF($A$2="Municiple","Y","error")) -> DxLossUrb04N | H116: > 132kV | I116: 1 | L116: > 900km | M116: 3 | N116: 1.0413
A118: Distribution loss factor - Rural | B118: DxLossRur | C118: 0 | D118: 1 | E118: =B118&C118&D118&IF($A$2="Non-municipal","N",IF($A$2="Municiple","Y","error")) -> DxLossRur01N
A119: Distribution loss factor - Rural | B119: DxLossRur | C119: 0 | D119: 2 | E119: =B119&C119&D119&IF($A$2="Non-municipal","N",IF($A$2="Municiple","Y","error")) -> DxLossRur02N
A122: Transmission loss factor | B122: TxLoss | C122: 0 | D122: 4 | E122: =B122&C122&D122&IF($A$2="Non-municipal","N",IF($A$2="Municiple","Y","error")) -> TxLoss04N
A123: Transmission loss factor | B123: TxLoss | C123: 1 | D123: 4 | E123: =B123&C123&D123&IF($A$2="Non-municipal","N",IF($A$2="Municiple","Y","error")) -> TxLoss14N
A124: Transmission loss factor | B124: TxLoss | C124: 2 | D124: 4 | E124: =B124&C124&D124&IF($A$2="Non-municipal","N",IF($A$2="Municiple","Y","error")) -> TxLoss24N
A125: Transmission loss factor | B125: TxLoss | C125: 3 | D125: 4 | E125: =B125&C125&D125&IF($A$2="Non-municipal","N",IF($A$2="Municiple","Y","error")) -> TxLoss34N

Sheet Loss Factors
N1: Back to menu | AL1: 0.15
N2: Loss factors
A3: Non-municipal
N4: Distribution loss factors | R4: Transmission loss factors for loads
A5: Tariff | B5: Tariff nameBillcode | C5: Tx zone | D5: Voltage | E5: Billcode | G5: Tariff | H5: Tariff nameBillcode | I5: Tx zone | J5: Voltage | K5: Billcode | N5: Voltage | O5: Urban loss factor | P5: Rural loss factor | R5: Distance from Johannesburg | S5: Zone | T5: Loss factor
A6: Distribution loss factor - Urban | B6: DxLossUrb | C6: 0 | D6: 1 | E6: =B6&C6&D6&IF($A$3="Non-municipal","N",IF($A$3="Municiple","Y","error")) -> DxLossUrb01N | G6: Transmission loss factor | H6: TxLoss | I6: 0 | J6: 4 | K6: =H6&I6&J6&IF($A$3="Non-municipal","N",IF($A$3="Municiple","Y","error")) -> TxLoss04N | N6: < 500V | O6: 1.1111 | P6: 1.1527 | R6: ≤ 300km | S6: 0 | T6: 1.0107
A7: Distribution loss factor - Urban | B7: DxLossUrb | C7: 0 | D7: 2 | E7: =B7&C7&D7&IF($A$3="Non-municipal","N",IF($A$3="Municiple","Y","error")) -> DxLossUrb02N | G7: Transmission loss factor | H7: TxLoss | I7: 1 | J7: 4 | K7: =H7&I7&J7&IF($A$3="Non-municipal","N",IF($A$3="Municiple","Y","error")) -> TxLoss14N | N7: ≥ 500V & < 66kV | O7: 1.0957 | P7: 1.1412 | R7: > 300km & ≤ 600km | S7: 1 | T7: 1.0208
A8: Distribution loss factor - Urban | B8: DxLossUrb | C8: 0 | D8: 3 | E8: =B8&C8&D8&IF($A$3="Non-municipal","N",IF($A$3="Municiple","Y","error")) -> DxLossUrb03N | G8: Transmission loss factor | H8: TxLoss | I8: 2 | J8: 4 | K8: =H8&I8&J8&IF($A$3="Non-municipal","N",IF($A$3="Municiple","Y","error")) -> TxLoss24N | N8: ≥ 66kV & ≤ 132kV | O8: 1.0611 | R8: > 600km & ≤ 900km | S8: 2 | T8: 1.031
A9: Distribution loss factor - Urban | B9: DxLossUrb | C9: 0 | D9: 4 | E9: =B9&C9&D9&IF($A$3="Non-municipal","N",IF($A$3="Municiple","Y","error")) -> DxLossUrb04N | G9: Transmission loss factor | H9: TxLoss | I9: 3 | J9: 4 | K9: =H9&I9&J9&IF($A$3="Non-municipal","N",IF($A$3="Municiple","Y","error")) -> TxLoss34N | N9: > 132kV/Transmission connected | O9: 1 | R9: > 900km | S9: 3 | T9: 1.0413
A11: Distribution loss factor - Rural | B11: DxLossRur | C11: 0 | D11: 1 | E11: =B11&C11&D11&IF($A$3="Non-municipal","N",IF($A$3="Municiple","Y","error")) -> DxLossRur01N
A12: Distribution loss factor - Rural | B12: DxLossRur | C12: 0 | D12: 2 | E12: =B12&C12&D12&IF($A$3="Non-municipal","N",IF($A$3="Municiple","Y","error")) -> DxLossRur02N | N12: Loss factors for Transmission connected generators | P12: Loss factor
A13: Tariff | B13: Tariff nameBillcode | C13: Tx zone | D13: Voltage | E13: Billcode
A14: TUoS network charges for Transmission connected generators | B14: GenTUOS | C14: Cape | D14: 4 | E14: =B14&C14&D14&IF($A$3="Non-municipal","N",IF($A$3="Municiple","Y","error")) -> GenTUOSCape4N | O14: Cape | P14: 0.971
A15: TUoS network charges for Transmission connected generators | B15: GenTUOS | C15: Karoo | D15: 4 | E15: GenTUOSKaroo4N | O15: Karoo | P15: 0.995
A16: TUoS network charges for Transmission connected generators | B16: GenTUOS | C16: Kwazulu-Natal | D16: 4 | E16: GenTUOSKwazulu-Natal4N | O16: Kwazulu-Natal | P16: 1.004
A17: TUoS network charges for Transmission connected generators | B17: GenTUOS | C17: Vaal | D17: 4 | E17: GenTUOSVaal4N | O17: Vaal | P17: 1.02
A18: TUoS network charges for Transmission connected generators | B18: GenTUOS | C18: Waterburg | D18: 4 | E18: GenTUOSWaterburg4N | O18: Waterburg | P18: 1.023
A19: TUoS network charges for Transmission connected generators | B19: GenTUOS | C19: Mpumalanga | D19: 4 | E19: GenTUOSMpumalanga4N | O19: Mpumalanga | P19: 1.021

Sheet Excess NCC NLA
S1: Back to menu
R2: Excess network capacity charges (NCC) - Non-Local Authority
A4: Non-municipal | S4: Urban - Excess NCC Megaflex/Megaflex Gen [non local authorities] | X4: Urban - Excess NCC Nightsave Urban Large [non local authorities] | AD4: Urban - Excess NCC Miniflex [non local authorities] | AK4: Urban - Excess NCC WEPS [non local authorities]
U6: Excess NCC[R/kVA/m] | AA6: Excess NCC[R/kVA/m] | AG6: Excess NCC[R/kVA/m] | AM6: Excess NCC[R/kVA/m]
S7: Transmission zone | Y7: Transmission zone | AE7: Transmission zone | AK7: Transmission zone
T8: Voltage | Z8: Voltage | AF8: Voltage | AL8: Voltage
A9: Tariff | B9: Tariff nameBillcode | C9: Tx zone | D9: Voltage | E9: Billcode | G9: Tariff | H9: Tariff nameBillcode | I9: Tx zone | J9: Voltage | K9: Billcode | M9: Tariff | N9: Tariff nameBillcode | O9: Tx zone | P9: Voltage | Q9: Billcode | V9: VAT incl | AB9: VAT incl | AH9: VAT incl | AN9: VAT incl
A10: Excess NAC Megaflex | B10: ExNACMe | C10: 0 | D10: 1 | E10: =B10&C10&D10&IF($A$4="Non-municipal","N",IF($A$4="Municiple","Y","error")) -> ExNACMe01N | G10: Excess NAC Nightsave Large | H10: ExNACNL | I10: 0 | J10: 1 | K10: =H10&I10&J10&IF($A$4="Non-municipal","N",IF($A$4="Municiple","Y","error")) -> ExNACNL01N | M10: Excess NAC Miniflex | N10: ExNACMi | O10: 0 | P10: 1 | Q10: =N10&O10&P10&IF($A$4="Non-municipal","N",IF($A$4="Municiple","Y","error")) -> ExNACMi01N | S10: ≤ 300km | T10: < 500V | U10: 39.1 | V10: =ROUND(U10 * (1 + VAT), 2) -> 44.97 | Y10: ≤ 300km | Z10: < 500V | AA10: 39.1 | AB10: =ROUND(AA10 * (1 + VAT), 2) -> 44.97 | AE10: ≤ 300km | AF10: < 500V | AG10: 39.04 | AH10: =ROUND(AG10 * (1 + VAT), 2) -> 44.9 | AK10: ≤ 300km | AL10: < 500V | AM10: 39.1 | AN10: =ROUND(AM10 * (1 + VAT), 2) -> 44.97
A11: Excess NAC Megaflex | B11: ExNACMe | C11: 0 | D11: 2 | E11: =B11&C11&D11&IF($A$4="Non-municipal","N",IF($A$4="Municiple","Y","error")) -> ExNACMe02N | G11: Excess NAC Nightsave Large | H11: ExNACNL | I11: 0 | J11: 2 | K11: =H11&I11&J11&IF($A$4="Non-municipal","N",IF($A$4="Municiple","Y","error")) -> ExNACNL02N | M11: Excess NAC Miniflex | N11: ExNACMi | O11: 0 | P11: 2 | Q11: =N11&O11&P11&IF($A$4="Non-municipal","N",IF($A$4="Municiple","Y","error")) -> ExNACMi02N | T11: ≥ 500V & < 66kV | U11: 35.81 | V11: 41.18 | Z11: ≥ 500V & < 66kV | AA11: 35.81 | AB11: 41.18 | AF11: ≥ 500V & < 66kV | AG11: 35.79 | AH11: 41.16 | AL11: ≥ 500V & < 66kV | AM11: 35.81 | AN11: 41.18
A12: Excess NAC Megaflex | B12: ExNACMe | C12: 0 | D12: 3 | E12: ExNACMe03N | G12: Excess NAC Nightsave Large | H12: ExNACNL | I12: 0 | J12: 3 | K12: ExNACNL03N | M12: Excess NAC Miniflex | N12: ExNACMi | O12: 0 | P12: 3 | Q12: ExNACMi03N | T12: ≥ 66kV & ≤ 132kV | U12: 41.17 | V12: 47.35 | Z12: ≥ 66kV & ≤ 132kV | AA12: 41.17 | AB12: 47.35 | AF12: ≥ 66kV & ≤ 132kV | AG12: 41.11 | AH12: 47.28 | AL12: ≥ 66kV & ≤ 132kV | AM12: 41.17 | AN12: 47.35
A13: Excess NAC Megaflex | B13: ExNACMe | C13: 0 | D13: 4 | E13: ExNACMe04N | G13: Excess NAC Nightsave Large | H13: ExNACNL | I13: 0 | J13: 4 | K13: ExNACNL04N | M13: Excess NAC Miniflex | N13: ExNACMi | O13: 0 | P13: 4 | Q13: ExNACMi04N | T13: > 132kV* | U13: 35.73 | V13: 41.09 | Z13: > 132kV* | AA13: 35.73 | AB13: 41.09 | AF13: > 132kV* | AG13: 35.66 | AH13: 41.01 | AL13: > 132kV* | AM13: 35.73 | AN13: 41.09
A14: Excess NAC Megaflex | B14: ExNACMe | C14: 1 | D14: 1 | E14: ExNACMe11N | G14: Excess NAC Nightsave Large | H14: ExNACNL | I14: 1 | J14: 1 | K14: ExNACNL11N | M14: Excess NAC Miniflex | N14: ExNACMi | O14: 1 | P14: 1 | Q14: ExNACMi11N | S14: > 300km and ≤ 600km | T14: < 500V | U14: 39.19 | V14: 45.07 | Y14: > 300km and ≤ 600km | Z14: < 500V | AA14: 39.19 | AB14: 45.07 | AE14: > 300km and ≤ 600km | AF14: < 500V | AG14: 39.14 | AH14: 45.01 | AK14: > 300km and ≤ 600km | AL14: < 500V | AM14: 39.19 | AN14: 45.07
A15: Excess NAC Megaflex | B15: ExNACMe | C15: 1 | D15: 2 | E15: ExNACMe12N | G15: Excess NAC Nightsave Large | H15: ExNACNL | I15: 1 | J15: 2 | K15: ExNACNL12N | M15: Excess NAC Miniflex | N15: ExNACMi | O15: 1 | P15: 2 | Q15: ExNACMi12N | T15: ≥ 500V & < 66kV | U15: 35.92 | V15: 41.31 | Z15: ≥ 500V & < 66kV | AA15: 35.92 | AB15: 41.31 | AF15: ≥ 500V & < 66kV | AG15: 35.9 | AH15: 41.29 | AL15: ≥ 500V & < 66kV | AM15: 35.92 | AN15: 41.31
A16: Excess NAC Megaflex | B16: ExNACMe | C16: 1 | D16: 3 | E16: ExNACMe13N | G16: Excess NAC Nightsave Large | H16: ExNACNL | I16: 1 | J16: 3 | K16: ExNACNL13N | M16: Excess NAC Miniflex | N16: ExNACMi | O16: 1 | P16: 3 | Q16: ExNACMi13N | T16: ≥ 66kV & ≤ 132kV | U16: 41.26 | V16: 47.45 | Z16: ≥ 66kV & ≤ 132kV | AA16: 41.26 | AB16: 47.45 | AF16: ≥ 66kV & ≤ 132kV | AG16: 41.19 | AH16: 47.37 | AL16: ≥ 66kV & ≤ 132kV | AM16: 41.26 | AN16: 47.45
A17: Excess NAC Megaflex | B17: ExNACMe | C17: 1 | D17: 4 | E17: ExNACMe14N | G17: Excess NAC Nightsave Large | H17: ExNACNL | I17: 1 | J17: 4 | K17: ExNACNL14N | M17: Excess NAC Miniflex | N17: ExNACMi | O17: 1 | P17: 4 | Q17: ExNACMi14N | T17: > 132kV* | U17: 35.86 | V17: 41.24 | Z17: > 132kV* | AA17: 35.86 | AB17: 41.24 | AF17: > 132kV* | AG17: 35.82 | AH17: 41.19 | AL17: > 132kV* | AM17: 35.86 | AN17: 41.24
A18: Excess NAC Megaflex | B18: ExNACMe | C18: 2 | D18: 1 | E18: ExNACMe21N | G18: Excess NAC Nightsave Large | H18: ExNACNL | I18: 2 | J18: 1 | K18: ExNACNL21N | M18: Excess NAC Miniflex | N18: ExNACMi | O18: 2 | P18: 1 | Q18: ExNACMi21N | S18: > 600km and ≤ 900km | T18: < 500V | U18: 39.34 | V18: 45.24 | Y18: > 600km and ≤ 900km | Z18: < 500V | AA18: 39.34 | AB18: 45.24 | AE18: > 600km and ≤ 900km | AF18: < 500V | AG18: 39.33 | AH18: 45.23 | AK18: > 600km and ≤ 900km | AL18: < 500V | AM18: 39.34 | AN18: 45.24
A19: Excess NAC Megaflex | B19: ExNACMe | C19: 2 | D19: 2 | E19: ExNACMe22N | G19: Excess NAC Nightsave Large | H19: ExNACNL | I19: 2 | J19: 2 | K19: ExNACNL22N | M19: Excess NAC Miniflex | N19: ExNACMi | O19: 2 | P19: 2 | Q19: ExNACMi22N | T19: ≥ 500V & < 66kV | U19: 36.03 | V19: 41.43 | Z19: ≥ 500V & < 66kV | AA19: 36.03 | AB19: 41.43 | AF19: ≥ 500V & < 66kV | AG19: 36.01 | AH19: 41.41 | AL19: ≥ 500V & < 66kV | AM19: 36.03 | AN19: 41.43
A20: Excess NAC Megaflex | B20: ExNACMe | C20: 2 | D20: 3 | E20: ExNACMe23N | G20: Excess NAC Nightsave Large | H20: ExNACNL | I20: 2 | J20: 3 | K20: ExNACNL23N | M20: Excess NAC Miniflex | N20: ExNACMi | O20: 2 | P20: 3 | Q20: ExNACMi23N | T20: ≥ 66kV & ≤ 132kV | U20: 41.33 | V20: 47.53 | Z20: ≥ 66kV & ≤ 132kV | AA20: 41.33 | AB20: 47.53 | AF20: ≥ 66kV & ≤ 132kV | AG20: 41.31 | AH20: 47.51 | AL20: ≥ 66kV & ≤ 132kV | AM20: 41.33 | AN20: 47.53
A21: Excess NAC Megaflex | B21: ExNACMe | C21: 2 | D21: 4 | E21: ExNACMe24N | G21: Excess NAC Nightsave Large | H21: ExNACNL | I21: 2 | J21: 4 | K21: ExNACNL24N | M21: Excess NAC Miniflex | N21: ExNACMi | O21: 2 | P21: 4 | Q21: ExNACMi24N | T21: > 132kV* | U21: 36.08 | V21: 41.49 | Z21: > 132kV* | AA21: 36.08 | AB21: 41.49 | AF21: > 132kV* | AG21: 36.03 | AH21: 41.43 | AL21: > 132kV* | AM21: 36.08 | AN21: 41.49
A22: Excess NAC Megaflex | B22: ExNACMe | C22: 3 | D22: 1 | E22: ExNACMe31N | G22: Excess NAC Nightsave Large | H22: ExNACNL | I22: 3 | J22: 1 | K22: ExNACNL31N | M22: Excess NAC Miniflex | N22: ExNACMi | O22: 3 | P22: 1 | Q22: ExNACMi31N | S22: > 900km | T22: < 500V | U22: 39.43 | V22: 45.34 | Y22: > 900km | Z22: < 500V | AA22: 39.43 | AB22: 45.34 | AE22: > 900km | AF22: < 500V | AG22: 39.36 | AH22: 45.26 | AK22: > 900km | AL22: < 500V | AM22: 39.43 | AN22: 45.34
A23: Excess NAC Megaflex | B23: ExNACMe | C23: 3 | D23: 2 | E23: ExNACMe32N | G23: Excess NAC Nightsave Large | H23: ExNACNL | I23: 3 | J23: 2 | K23: ExNACNL32N | M23: Excess NAC Miniflex | N23: ExNACMi | O23: 3 | P23: 2 | Q23: ExNACMi32N | T23: ≥ 500V & < 66kV | U23: 36.17 | V23: 41.6 | Z23: ≥ 500V & < 66kV | AA23: 36.17 | AB23: 41.6 | AF23: ≥ 500V & < 66kV | AG23: 36.13 | AH23: 41.55 | AL23: ≥ 500V & < 66kV | AM23: 36.17 | AN23: 41.6
A24: Excess NAC Megaflex | B24: ExNACMe | C24: 3 | D24: 3 | E24: ExNACMe33N | G24: Excess NAC Nightsave Large | H24: ExNACNL | I24: 3 | J24: 3 | K24: ExNACNL33N | M24: Excess NAC Miniflex | N24: ExNACMi | O24: 3 | P24: 3 | Q24: ExNACMi33N | T24: ≥ 66kV & ≤ 132kV | U24: 41.44 | V24: 47.66 | Z24: ≥ 66kV & ≤ 132kV | AA24: 41.44 | AB24: 47.66 | AF24: ≥ 66kV & ≤ 132kV | AG24: 41.39 | AH24: 47.6 | AL24: ≥ 66kV & ≤ 132kV | AM24: 41.44 | AN24: 47.66
A25: Excess NAC Megaflex | B25: ExNACMe | C25: 3 | D25: 4 | E25: ExNACMe34N | G25: Excess NAC Nightsave Large | H25: ExNACNL | I25: 3 | J25: 4 | K25: ExNACNL34N | M25: Excess NAC Miniflex | N25: ExNACMi | O25: 3 | P25: 4 | Q25: ExNACMi34N | T25: > 132kV* | U25: 36.19 | V25: 41.62 | Z25: > 132kV* | AA25: 36.19 | AB25: 41.62 | AF25: > 132kV* | AG25: 36.14 | AH25: 41.56 | AL25: > 132kV* | AM25: 36.19 | AN25: 41.62
T26: * 132 kV or Transmission connected | Z26: * 132 kV or Transmission connected | AF26: * 132 kV or Transmission connected | AL26: * 132 kV or Transmission connected
S28: Urban - Excess NCC Nightsave Urban Small [non local authorities] | X28: Rural - Excess NCC Nightsave Rural [non local authorities] | AD28: Rural - Excess NCC Ruraflex/Ruraflex Gen [non local authorities]
U30: Excess NCC[R/kVA/m] | AA30: Excess NCC[R/kVA/m] | AG30: Excess NCC[R/kVA/m]
S31: Transmission zone | Y31: Transmission zone | AE31: Transmission zone
T32: Voltage | Z32: Voltage | AF32: Voltage
A33: Tariff | B33: Tariff nameBillcode | C33: Tx zone | D33: Voltage | E33: Billcode | G33: Tariff | H33: Tariff nameBillcode | I33: Tx zone | J33: Voltage | K33: Billcode | M33: Tariff | N33: Tariff nameBillcode | O33: Tx zone | P33: Voltage | Q33: Billcode | V33: VAT incl | AB33: VAT incl | AH33: VAT incl
A34: Excess NAC Nightsave Small | B34: ExNACNS | C34: 0 | D34: 1 | E34: =B34&C34&D34&IF($A$4="Non-municipal","N",IF($A$4="Municiple","Y","error")) -> ExNACNS01N | G34: Excess NAC Nightsave Rural | H34: ExNACNR | I34: 0 | J34: 1 | K34: =H34&I34&J34&IF($A$4="Non-municipal","N",IF($A$4="Municiple","Y","error")) -> ExNACNR01N | M34: Excess NAC Ruraflex | N34: ExNACRu | O34: 0 | P34: 1 | Q34: =N34&O34&P34&IF($A$4="Non-municipal","N",IF($A$4="Municiple","Y","error")) -> ExNACRu01N | S34: ≤ 300km | T34: < 500V | U34: 39.1 | V34: =ROUND(U34 * (1 + VAT), 2) -> 44.97 | Y34: ≤ 300km | Z34: < 500V | AA34: 19.58 | AB34: =ROUND(AA34 * (1 + VAT), 2) -> 22.52 | AE34: ≤ 300km | AF34: < 500V | AG34: 27.36 | AH34: =ROUND(AG34 * (1 + VAT), 2) -> 31.46
A35: Excess NAC Nightsave Small | B35: ExNACNS | C35: 0 | D35: 2 | E35: =B35&C35&D35&IF($A$4="Non-municipal","N",IF($A$4="Municiple","Y","error")) -> ExNACNS02N | G35: Excess NAC Nightsave Rural | H35: ExNACNR | I35: 0 | J35: 2 | K35: =H35&I35&J35&IF($A$4="Non-municipal","N",IF($A$4="Municiple","Y","error")) -> ExNACNR02N | M35: Excess NAC Ruraflex | N35: ExNACRu | O35: 0 | P35: 2 | Q35: =N35&O35&P35&IF($A$4="Non-municipal","N",IF($A$4="Municiple","Y","error")) -> ExNACRu02N | T35: ≥ 500V & < 66kV | U35: 35.81 | V35: 41.18 | Z35: ≥ 500V & ≤ 22kV | AA35: 17.99 | AB35: 20.69 | AF35: ≥ 500V & ≤ 22kV | AG35: 25.07 | AH35: 28.83
A36: Excess NAC Nightsave Small | B36: ExNACNS | C36: 0 | D36: 3 | E36: ExNACNS03N | G36: Excess NAC Nightsave Rural | H36: ExNACNR | I36: 0 | J36: 3 | K36: ExNACNR03N | M36: Excess NAC Ruraflex | N36: ExNACRu | O36: 0 | P36: 3 | Q36: ExNACRu03N | T36: ≥ 66kV & ≤ 132kV | U36: 41.17 | V36: 47.35
A37: Excess NAC Nightsave Small | B37: ExNACNS | C37: 0 | D37: 4 | E37: ExNACNS04N | G37: Excess NAC Nightsave Rural | H37: ExNACNR | I37: 0 | J37: 4 | K37: ExNACNR04N | M37: Excess NAC Ruraflex | N37: ExNACRu | O37: 0 | P37: 4 | Q37: ExNACRu04N | T37: > 132kV* | U37: 35.73 | V37: 41.09
A38: Excess NAC Nightsave Small | B38: ExNACNS | C38: 1 | D38: 1 | E38: ExNACNS11N | G38: Excess NAC Nightsave Rural | H38: ExNACNR | I38: 1 | J38: 1 | K38: ExNACNR11N | M38: Excess NAC Ruraflex | N38: ExNACRu | O38: 1 | P38: 1 | Q38: ExNACRu11N | S38: > 300km and ≤ 600km | T38: < 500V | U38: 39.19 | V38: 45.07 | Y38: > 300km and ≤ 600km | Z38: < 500V | AA38: 19.61 | AB38: =ROUND(AA38 * (1 + VAT), 2) -> 22.55 | AE38: > 300km and ≤ 600km | AF38: < 500V | AG38: 27.44 | AH38: =ROUND(AG38 * (1 + VAT), 2) -> 31.56
A39: Excess NAC Nightsave Small | B39: ExNACNS | C39: 1 | D39: 2 | E39: ExNACNS12N | G39: Excess NAC Nightsave Rural | H39: ExNACNR | I39: 1 | J39: 2 | K39: ExNACNR12N | M39: Excess NAC Ruraflex | N39: ExNACRu | O39: 1 | P39: 2 | Q39: ExNACRu12N | T39: ≥ 500V & < 66kV | U39: 35.92 | V39: 41.31 | Z39: ≥ 500V & ≤ 22kV | AA39: 18.05 | AB39: 20.76 | AF39: ≥ 500V & ≤ 22kV | AG39: 25.22 | AH39: 29
A40: Excess NAC Nightsave Small | B40: ExNACNS | C40: 1 | D40: 3 | E40: ExNACNS13N | G40: Excess NAC Nightsave Rural | H40: ExNACNR | I40: 1 | J40: 3 | K40: ExNACNR13N | M40: Excess NAC Ruraflex | N40: ExNACRu | O40: 1 | P40: 3 | Q40: ExNACRu13N | T40: ≥ 66kV & ≤ 132kV | U40: 41.26 | V40: 47.45
A41: Excess NAC Nightsave Small | B41: ExNACNS | C41: 1 | D41: 4 | E41: ExNACNS14N | G41: Excess NAC Nightsave Rural | H41: ExNACNR | I41: 1 | J41: 4 | K41: ExNACNR14N | M41: Excess NAC Ruraflex | N41: ExNACRu | O41: 1 | P41: 4 | Q41: ExNACRu14N | T41: > 132kV* | U41: 35.86 | V41: 41.24
A42: Excess NAC Nightsave Small | B42: ExNACNS | C42: 2 | D42: 1 | E42: ExNACNS21N | G42: Excess NAC Nightsave Rural | H42: ExNACNR | I42: 2 | J42: 1 | K42: ExNACNR21N | M42: Excess NAC Ruraflex | N42: ExNACRu | O42: 2 | P42: 1 | Q42: ExNACRu21N | S42: > 600km and ≤ 900km | T42: < 500V | U42: 39.34 | V42: 45.24 | Y42: > 600km and ≤ 900km | Z42: < 500V | AA42: 19.8 | AB42: =ROUND(AA42 * (1 + VAT), 2) -> 22.77 | AE42: > 600km and ≤ 900km | AF42: < 500V | AG42: 27.58 | AH42: =ROUND(AG42 * (1 + VAT), 2) -> 31.72
A43: Excess NAC Nightsave Small | B43: ExNACNS | C43: 2 | D43: 2 | E43: ExNACNS22N | G43: Excess NAC Nightsave Rural | H43: ExNACNR | I43: 2 | J43: 2 | K43: ExNACNR22N | M43: Excess NAC Ruraflex | N43: ExNACRu | O43: 2 | P43: 2 | Q43: ExNACRu22N | T43: ≥ 500V & < 66kV | U43: 36.03 | V43: 41.43 | Z43: ≥ 500V & ≤ 22kV | AA43: 18.17 | AB43: 20.9 | AF43: ≥ 500V & ≤ 22kV | AG43: 25.34 | AH43: 29.14
A44: Excess NAC Nightsave Small | B44: ExNACNS | C44: 2 | D44: 3 | E44: ExNACNS23N | G44: Excess NAC Nightsave Rural | H44: ExNACNR | I44: 2 | J44: 3 | K44: ExNACNR23N | M44: Excess NAC Ruraflex | N44: ExNACRu | O44: 2 | P44: 3 | Q44: ExNACRu23N | T44: ≥ 66kV & ≤ 132kV | U44: 41.33 | V44: 47.53
A45: Excess NAC Nightsave Small | B45: ExNACNS | C45: 2 | D45: 4 | E45: ExNACNS24N | G45: Excess NAC Nightsave Rural | H45: ExNACNR | I45: 2 | J45: 4 | K45: ExNACNR24N | M45: Excess NAC Ruraflex | N45: ExNACRu | O45: 2 | P45: 4 | Q45: ExNACRu24N | T45: > 132kV* | U45: 36.08 | V45: 41.49
A46: Excess NAC Nightsave Small | B46: ExNACNS | C46: 3 | D46: 1 | E46: ExNACNS31N | G46: Excess NAC Nightsave Rural | H46: ExNACNR | I46: 3 | J46: 1 | K46: ExNACNR31N | M46: Excess NAC Ruraflex | N46: ExNACRu | O46: 3 | P46: 1 | Q46: ExNACRu31N | S46: > 900km | T46: < 500V | U46: 39.43 | V46: 45.34 | Y46: > 900km | Z46: < 500V | AA46: 19.85 | AB46: =ROUND(AA46 * (1 + VAT), 2) -> 22.83 | AE46: > 900km | AF46: < 500V | AG46: 27.7 | AH46: =ROUND(AG46 * (1 + VAT), 2) -> 31.86
A47: Excess NAC Nightsave Small | B47: ExNACNS | C47: 3 | D47: 2 | E47: ExNACNS32N | G47: Excess NAC Nightsave Rural | H47: ExNACNR | I47: 3 | J47: 2 | K47: ExNACNR32N | M47: Excess NAC Ruraflex | N47: ExNACRu | O47: 3 | P47: 2 | Q47: ExNACRu32N | T47: ≥ 500V & < 66kV | U47: 36.17 | V47: 41.6 | Z47: ≥ 500V & ≤ 22kV | AA47: 18.21 | AB47: 20.94 | AF47: ≥ 500V & ≤ 22kV | AG47: 25.35 | AH47: 29.15
A48: Excess NAC Nightsave Small | B48: ExNACNS | C48: 3 | D48: 3 | E48: ExNACNS33N | G48: Excess NAC Nightsave Rural | H48: ExNACNR | I48: 3 | J48: 3 | K48: ExNACNR33N | M48: Excess NAC Ruraflex | N48: ExNACRu | O48: 3 | P48: 3 | Q48: ExNACRu33N | T48: ≥ 66kV & ≤ 132kV | U48: 41.44 | V48: 47.66
A49: Excess NAC Nightsave Small | B49: ExNACNS | C49: 3 | D49: 4 | E49: ExNACNS34N | G49: Excess NAC Nightsave Rural | H49: ExNACNR | I49: 3 | J49: 4 | K49: ExNACNR34N | M49: Excess NAC Ruraflex | N49: ExNACRu | O49: 3 | P49: 4 | Q49: ExNACRu34N | T49: > 132kV* | U49: 36.19 | V49: 41.62
T50: * 132 kV or Transmission connected
S53: Excess MEC- Transmission connected generators | Y53: Excess MEC- Distribution connected Generators
T55: Excess Network capacity charge[R/kW/m] | Z55: Excess Network capacity charge[R/kW/m]
U56: VAT incl | AA56: VAT incl
S57: Cape | T57: =T58 -> 3.09 | U57: =ROUND(T57 * (1 + VAT), 2) -> 3.55 | Y57: Voltage
S58: Karoo | T58: =T59 -> 3.09 | U58: 3.55 | Y58: < 500V | Z58: 0 | AA58: =ROUND(Z58 * (1 + VAT), 2) -> 0
S59: Kwazulu-Natal | T59: =' TUoS NLA'!J58 -> 3.09 | U59: 3.55 | Y59: ≥ 500V & < 66kV | Z59: =Z60 -> 21.03 | AA59: =ROUND(Z59 * (1 + VAT), 2) -> 24.18
S60: Vaal | T60: =' TUoS NLA'!J59 -> 10.29 | U60: 11.83 | Y60: ≥ 66kV & ≤ 132kV | Z60: ='DUoS NLA'!J73 -> 21.03 | AA60: =ROUND(Z60 * (1 + VAT), 2) -> 24.18
S61: Waterberg | T61: =' TUoS NLA'!J60 -> 13.18 | U61: 15.16
S62: Mpumalanga | T62: =' TUoS NLA'!J61 -> 12.23 | U62: 14.06

Sheet Excess NCC Munic
S1: Back to menu
R2: Excess network capacity charges (NCC) - Non-Local Authority
A4: Municiple | S4: Urban - Excess NCC Megaflex [Local authorities] | X4: Urban - Excess NCC Nightsave Urban Large [Local authorities] | AD4: Urban - Excess NCC Miniflex [Local authorities] | AK4: Urban - Excess NCC WEPS [Local authorities]
U6: Excess NCC[R/kVA/m] | AA6: Excess NCC[R/kVA/m] | AG6: Excess NCC[R/kVA/m] | AM6: Excess NCC[R/kVA/m]
S7: Transmission zone | Y7: Transmission zone | AE7: Transmission zone | AK7: Transmission zone
T8: Voltage | Z8: Voltage | AF8: Voltage | AL8: Voltage
A9: Tariff | B9: Tariff nameBillcode | C9: Tx zone | D9: Voltage | E9: Billcode | G9: Tariff | H9: Tariff nameBillcode | I9: Tx zone | J9: Voltage | K9: Billcode | M9: Tariff | N9: Tariff nameBillcode | O9: Tx zone | P9: Voltage | Q9: Billcode | V9: VAT incl | AB9: VAT incl | AH9: VAT incl | AN9: VAT incl
A10: Excess NAC Megaflex | B10: ExNACMe | C10: 0 | D10: 1 | E10: =B10&C10&D10&IF($A$4="Non-municipal","N",IF($A$4="Municiple","Y","error")) -> ExNACMe01Y | G10: Excess NAC Nightsave Large | H10: ExNACNL | I10: 0 | J10: 1 | K10: =H10&I10&J10&IF($A$4="Non-municipal","N",IF($A$4="Municiple","Y","error")) -> ExNACNL01Y | M10: Excess NAC Miniflex | N10: ExNACMi | O10: 0 | P10: 1 | Q10: =N10&O10&P10&IF($A$4="Non-municipal","N",IF($A$4="Municiple","Y","error")) -> ExNACMi01Y | S10: ≤ 300km | T10: < 500V | U10: 39.61 | V10: =ROUND(U10 * (1 + VAT), 2) -> 45.55 | Y10: ≤ 300km | Z10: < 500V | AA10: 39.61 | AB10: =ROUND(AA10 * (1 + VAT), 2) -> 45.55 | AE10: ≤ 300km | AF10: < 500V | AG10: 39.59 | AH10: =ROUND(AG10 * (1 + VAT), 2) -> 45.53 | AK10: ≤ 300km | AL10: < 500V | AM10: 39.61 | AN10: =ROUND(AM10 * (1 + VAT), 2) -> 45.55
A11: Excess NAC Megaflex | B11: ExNACMe | C11: 0 | D11: 2 | E11: =B11&C11&D11&IF($A$4="Non-municipal","N",IF($A$4="Municiple","Y","error")) -> ExNACMe02Y | G11: Excess NAC Nightsave Large | H11: ExNACNL | I11: 0 | J11: 2 | K11: =H11&I11&J11&IF($A$4="Non-municipal","N",IF($A$4="Municiple","Y","error")) -> ExNACNL02Y | M11: Excess NAC Miniflex | N11: ExNACMi | O11: 0 | P11: 2 | Q11: =N11&O11&P11&IF($A$4="Non-municipal","N",IF($A$4="Municiple","Y","error")) -> ExNACMi02Y | T11: ≥ 500V & < 66kV | U11: 36.25 | V11: 41.69 | Z11: ≥ 500V & < 66kV | AA11: 36.25 | AB11: 41.69 | AF11: ≥ 500V & < 66kV | AG11: 36.25 | AH11: 41.69 | AL11: ≥ 500V & < 66kV | AM11: 36.25 | AN11: 41.69
A12: Excess NAC Megaflex | B12: ExNACMe | C12: 0 | D12: 3 | E12: ExNACMe03Y | G12: Excess NAC Nightsave Large | H12: ExNACNL | I12: 0 | J12: 3 | K12: ExNACNL03Y | M12: Excess NAC Miniflex | N12: ExNACMi | O12: 0 | P12: 3 | Q12: ExNACMi03Y | T12: ≥ 66kV & ≤ 132kV | U12: 41.57 | V12: 47.81 | Z12: ≥ 66kV & ≤ 132kV | AA12: 41.57 | AB12: 47.81 | AF12: ≥ 66kV & ≤ 132kV | AG12: 41.54 | AH12: 47.77 | AL12: ≥ 66kV & ≤ 132kV | AM12: 41.57 | AN12: 47.81
A13: Excess NAC Megaflex | B13: ExNACMe | C13: 0 | D13: 4 | E13: ExNACMe04Y | G13: Excess NAC Nightsave Large | H13: ExNACNL | I13: 0 | J13: 4 | K13: ExNACNL04Y | M13: Excess NAC Miniflex | N13: ExNACMi | O13: 0 | P13: 4 | Q13: ExNACMi04Y | T13: > 132kV* | U13: 36.05 | V13: 41.46 | Z13: > 132kV* | AA13: 36.05 | AB13: 41.46 | AF13: > 132kV* | AG13: 36.05 | AH13: 41.46 | AL13: > 132kV* | AM13: 36.05 | AN13: 41.46
A14: Excess NAC Megaflex | B14: ExNACMe | C14: 1 | D14: 1 | E14: ExNACMe11Y | G14: Excess NAC Nightsave Large | H14: ExNACNL | I14: 1 | J14: 1 | K14: ExNACNL11Y | M14: Excess NAC Miniflex | N14: ExNACMi | O14: 1 | P14: 1 | Q14: ExNACMi11Y | S14: > 300km and ≤ 600km | T14: < 500V | U14: 39.66 | V14: 45.61 | Y14: > 300km and ≤ 600km | Z14: < 500V | AA14: 39.66 | AB14: 45.61 | AE14: > 300km and ≤ 600km | AF14: < 500V | AG14: 39.66 | AH14: 45.61 | AK14: > 300km and ≤ 600km | AL14: < 500V | AM14: 39.66 | AN14: 45.61
A15: Excess NAC Megaflex | B15: ExNACMe | C15: 1 | D15: 2 | E15: ExNACMe12Y | G15: Excess NAC Nightsave Large | H15: ExNACNL | I15: 1 | J15: 2 | K15: ExNACNL12Y | M15: Excess NAC Miniflex | N15: ExNACMi | O15: 1 | P15: 2 | Q15: ExNACMi12Y | T15: ≥ 500V & < 66kV | U15: 36.39 | V15: 41.85 | Z15: ≥ 500V & < 66kV | AA15: 36.39 | AB15: 41.85 | AF15: ≥ 500V & < 66kV | AG15: 36.4 | AH15: 41.86 | AL15: ≥ 500V & < 66kV | AM15: 36.39 | AN15: 41.85
A16: Excess NAC Megaflex | B16: ExNACMe | C16: 1 | D16: 3 | E16: ExNACMe13Y | G16: Excess NAC Nightsave Large | H16: ExNACNL | I16: 1 | J16: 3 | K16: ExNACNL13Y | M16: Excess NAC Miniflex | N16: ExNACMi | O16: 1 | P16: 3 | Q16: ExNACMi13Y | T16: ≥ 66kV & ≤ 132kV | U16: 41.67 | V16: 47.92 | Z16: ≥ 66kV & ≤ 132kV | AA16: 41.67 | AB16: 47.92 | AF16: ≥ 66kV & ≤ 132kV | AG16: 41.65 | AH16: 47.9 | AL16: ≥ 66kV & ≤ 132kV | AM16: 41.67 | AN16: 47.92
A17: Excess NAC Megaflex | B17: ExNACMe | C17: 1 | D17: 4 | E17: ExNACMe14Y | G17: Excess NAC Nightsave Large | H17: ExNACNL | I17: 1 | J17: 4 | K17: ExNACNL14Y | M17: Excess NAC Miniflex | N17: ExNACMi | O17: 1 | P17: 4 | Q17: ExNACMi14Y | T17: > 132kV* | U17: 36.19 | V17: 41.62 | Z17: > 132kV* | AA17: 36.19 | AB17: 41.62 | AF17: > 132kV* | AG17: 36.19 | AH17: 41.62 | AL17: > 132kV* | AM17: 36.19 | AN17: 41.62
A18: Excess NAC Megaflex | B18: ExNACMe | C18: 2 | D18: 1 | E18: ExNACMe21Y | G18: Excess NAC Nightsave Large | H18: ExNACNL | I18: 2 | J18: 1 | K18: ExNACNL21Y | M18: Excess NAC Miniflex | N18: ExNACMi | O18: 2 | P18: 1 | Q18: ExNACMi21Y | S18: > 600km and ≤ 900km | T18: < 500V | U18: 39.84 | V18: 45.82 | Y18: > 600km and ≤ 900km | Z18: < 500V | AA18: 39.84 | AB18: 45.82 | AE18: > 600km and ≤ 900km | AF18: < 500V | AG18: 39.87 | AH18: 45.85 | AK18: > 600km and ≤ 900km | AL18: < 500V | AM18: 39.84 | AN18: 45.82
A19: Excess NAC Megaflex | B19: ExNACMe | C19: 2 | D19: 2 | E19: ExNACMe22Y | G19: Excess NAC Nightsave Large | H19: ExNACNL | I19: 2 | J19: 2 | K19: ExNACNL22Y | M19: Excess NAC Miniflex | N19: ExNACMi | O19: 2 | P19: 2 | Q19: ExNACMi22Y | T19: ≥ 500V & < 66kV | U19: 36.46 | V19: 41.93 | Z19: ≥ 500V & < 66kV | AA19: 36.46 | AB19: 41.93 | AF19: ≥ 500V & < 66kV | AG19: 36.49 | AH19: 41.96 | AL19: ≥ 500V & < 66kV | AM19: 36.46 | AN19: 41.93
A20: Excess NAC Megaflex | B20: ExNACMe | C20: 2 | D20: 3 | E20: ExNACMe23Y | G20: Excess NAC Nightsave Large | H20: ExNACNL | I20: 2 | J20: 3 | K20: ExNACNL23Y | M20: Excess NAC Miniflex | N20: ExNACMi | O20: 2 | P20: 3 | Q20: ExNACMi23Y | T20: ≥ 66kV & ≤ 132kV | U20: 41.76 | V20: 48.02 | Z20: ≥ 66kV & ≤ 132kV | AA20: 41.76 | AB20: 48.02 | AF20: ≥ 66kV & ≤ 132kV | AG20: 41.75 | AH20: 48.01 | AL20: ≥ 66kV & ≤ 132kV | AM20: 41.76 | AN20: 48.02
A21: Excess NAC Megaflex | B21: ExNACMe | C21: 2 | D21: 4 | E21: ExNACMe24Y | G21: Excess NAC Nightsave Large | H21: ExNACNL | I21: 2 | J21: 4 | K21: ExNACNL24Y | M21: Excess NAC Miniflex | N21: ExNACMi | O21: 2 | P21: 4 | Q21: ExNACMi24Y | T21: > 132kV* | U21: 36.4 | V21: 41.86 | Z21: > 132kV* | AA21: 36.4 | AB21: 41.86 | AF21: > 132kV* | AG21: 36.4 | AH21: 41.86 | AL21: > 132kV* | AM21: 36.4 | AN21: 41.86
A22: Excess NAC Megaflex | B22: ExNACMe | C22: 3 | D22: 1 | E22: ExNACMe31Y | G22: Excess NAC Nightsave Large | H22: ExNACNL | I22: 3 | J22: 1 | K22: ExNACNL31Y | M22: Excess NAC Miniflex | N22: ExNACMi | O22: 3 | P22: 1 | Q22: ExNACMi31Y | S22: > 900km | T22: < 500V | U22: 39.9 | V22: 45.89 | Y22: > 900km | Z22: < 500V | AA22: 39.9 | AB22: 45.89 | AE22: > 900km | AF22: < 500V | AG22: 39.89 | AH22: 45.87 | AK22: > 900km | AL22: < 500V | AM22: 39.9 | AN22: 45.89
A23: Excess NAC Megaflex | B23: ExNACMe | C23: 3 | D23: 2 | E23: ExNACMe32Y | G23: Excess NAC Nightsave Large | H23: ExNACNL | I23: 3 | J23: 2 | K23: ExNACNL32Y | M23: Excess NAC Miniflex | N23: ExNACMi | O23: 3 | P23: 2 | Q23: ExNACMi32Y | T23: ≥ 500V & < 66kV | U23: 36.6 | V23: 42.09 | Z23: ≥ 500V & < 66kV | AA23: 36.6 | AB23: 42.09 | AF23: ≥ 500V & < 66kV | AG23: 36.65 | AH23: 42.15 | AL23: ≥ 500V & < 66kV | AM23: 36.6 | AN23: 42.09
A24: Excess NAC Megaflex | B24: ExNACMe | C24: 3 | D24: 3 | E24: ExNACMe33Y | G24: Excess NAC Nightsave Large | H24: ExNACNL | I24: 3 | J24: 3 | K24: ExNACNL33Y | M24: Excess NAC Miniflex | N24: ExNACMi | O24: 3 | P24: 3 | Q24: ExNACMi33Y | T24: ≥ 66kV & ≤ 132kV | U24: 41.85 | V24: 48.13 | Z24: ≥ 66kV & ≤ 132kV | AA24: 41.85 | AB24: 48.13 | AF24: ≥ 66kV & ≤ 132kV | AG24: 41.82 | AH24: 48.09 | AL24: ≥ 66kV & ≤ 132kV | AM24: 41.85 | AN24: 48.13
A25: Excess NAC Megaflex | B25: ExNACMe | C25: 3 | D25: 4 | E25: ExNACMe34Y | G25: Excess NAC Nightsave Large | H25: ExNACNL | I25: 3 | J25: 4 | K25: ExNACNL34Y | M25: Excess NAC Miniflex | N25: ExNACMi | O25: 3 | P25: 4 | Q25: ExNACMi34Y | T25: > 132kV* | U25: 36.49 | V25: 41.96 | Z25: > 132kV* | AA25: 36.49 | AB25: 41.96 | AF25: > 132kV* | AG25: 36.49 | AH25: 41.96 | AL25: > 132kV* | AM25: 36.49 | AN25: 41.96
T26: * 132 kV or Transmission connected | Z26: * 132 kV or Transmission connected | AF26: * 132 kV or Transmission connected | AL26: * 132 kV or Transmission connected
S28: Urban - Excess NCC Nightsave Urban Small [Local authorities] | X28: Rural - Excess NCC Nightsave Rural [Local authorities] | AD28: Rural - Excess NCC Ruraflex [Local authorities]
U30: Excess NCC[R/kVA/m] | AA30: Excess NCC[R/kVA/m] | AG30: Excess NCC[R/kVA/m]
S31: Transmission zone | Y31: Transmission zone | AE31: Transmission zone
T32: Voltage | Z32: Voltage | AF32: Voltage
A33: Tariff | B33: Tariff nameBillcode | C33: Tx zone | D33: Voltage | E33: Billcode | G33: Tariff | H33: Tariff nameBillcode | I33: Tx zone | J33: Voltage | K33: Billcode | M33: Tariff | N33: Tariff nameBillcode | O33: Tx zone | P33: Voltage | Q33: Billcode | V33: VAT incl | AB33: VAT incl | AH33: VAT incl
A34: Excess NAC Nightsave Small | B34: ExNACNS | C34: 0 | D34: 1 | E34: =B34&C34&D34&IF($A$4="Non-municipal","N",IF($A$4="Municiple","Y","error")) -> ExNACNS01Y | G34: Excess NAC Nightsave Rural | H34: ExNACNR | I34: 0 | J34: 1 | K34: =H34&I34&J34&IF($A$4="Non-municipal","N",IF($A$4="Municiple","Y","error")) -> ExNACNR01Y | M34: Excess NAC Ruraflex | N34: ExNACRu | O34: 0 | P34: 1 | Q34: =N34&O34&P34&IF($A$4="Non-municipal","N",IF($A$4="Municiple","Y","error")) -> ExNACRu01Y | S34: ≤ 300km | T34: < 500V | U34: 39.61 | V34: =ROUND(U34 * (1 + VAT), 2) -> 45.55 | Y34: ≤ 300km | Z34: < 500V | AA34: 20.04 | AB34: =ROUND(AA34 * (1 + VAT), 2) -> 23.05 | AE34: ≤ 300km | AF34: < 500V | AG34: 27.96 | AH34: =ROUND(AG34 * (1 + VAT), 2) -> 32.15
A35: Excess NAC Nightsave Small | B35: ExNACNS | C35: 0 | D35: 2 | E35: =B35&C35&D35&IF($A$4="Non-municipal","N",IF($A$4="Municiple","Y","error")) -> ExNACNS02Y | G35: Excess NAC Nightsave Rural | H35: ExNACNR | I35: 0 | J35: 2 | K35: =H35&I35&J35&IF($A$4="Non-municipal","N",IF($A$4="Municiple","Y","error")) -> ExNACNR02Y | M35: Excess NAC Ruraflex | N35: ExNACRu | O35: 0 | P35: 2 | Q35: =N35&O35&P35&IF($A$4="Non-municipal","N",IF($A$4="Municiple","Y","error")) -> ExNACRu02Y | T35: ≥ 500V & < 66kV | U35: 36.25 | V35: 41.69 | Z35: ≥ 500V & ≤ 22kV | AA35: 18.4 | AB35: 21.16 | AF35: ≥ 500V & ≤ 22kV | AG35: 25.65 | AH35: 29.5
A36: Excess NAC Nightsave Small | B36: ExNACNS | C36: 0 | D36: 3 | E36: ExNACNS03Y | G36: Excess NAC Nightsave Rural | H36: ExNACNR | I36: 0 | J36: 3 | K36: ExNACNR03Y | M36: Excess NAC Ruraflex | N36: ExNACRu | O36: 0 | P36: 3 | Q36: ExNACRu03Y | T36: ≥ 66kV & ≤ 132kV | U36: 41.57 | V36: 47.81
A37: Excess NAC Nightsave Small | B37: ExNACNS | C37: 0 | D37: 4 | E37: ExNACNS04Y | G37: Excess NAC Nightsave Rural | H37: ExNACNR | I37: 0 | J37: 4 | K37: ExNACNR04Y | M37: Excess NAC Ruraflex | N37: ExNACRu | O37: 0 | P37: 4 | Q37: ExNACRu04Y | T37: > 132kV* | U37: 36.05 | V37: 41.46
A38: Excess NAC Nightsave Small | B38: ExNACNS | C38: 1 | D38: 1 | E38: ExNACNS11Y | G38: Excess NAC Nightsave Rural | H38: ExNACNR | I38: 1 | J38: 1 | K38: ExNACNR11Y | M38: Excess NAC Ruraflex | N38: ExNACRu | O38: 1 | P38: 1 | Q38: ExNACRu11Y | S38: > 300km and ≤ 600km | T38: < 500V | U38: 39.66 | V38: 45.61 | Y38: > 300km and ≤ 600km | Z38: < 500V | AA38: 20.07 | AB38: =ROUND(AA38 * (1 + VAT), 2) -> 23.08 | AE38: > 300km and ≤ 600km | AF38: < 500V | AG38: 28.08 | AH38: =ROUND(AG38 * (1 + VAT), 2) -> 32.29
A39: Excess NAC Nightsave Small | B39: ExNACNS | C39: 1 | D39: 2 | E39: ExNACNS12Y | G39: Excess NAC Nightsave Rural | H39: ExNACNR | I39: 1 | J39: 2 | K39: ExNACNR12Y | M39: Excess NAC Ruraflex | N39: ExNACRu | O39: 1 | P39: 2 | Q39: ExNACRu12Y | T39: ≥ 500V & < 66kV | U39: 36.39 | V39: 41.85 | Z39: ≥ 500V & ≤ 22kV | AA39: 18.47 | AB39: 21.24 | AF39: ≥ 500V & ≤ 22kV | AG39: 25.79 | AH39: 29.66
A40: Excess NAC Nightsave Small | B40: ExNACNS | C40: 1 | D40: 3 | E40: ExNACNS13Y | G40: Excess NAC Nightsave Rural | H40: ExNACNR | I40: 1 | J40: 3 | K40: ExNACNR13Y | M40: Excess NAC Ruraflex | N40: ExNACRu | O40: 1 | P40: 3 | Q40: ExNACRu13Y | T40: ≥ 66kV & ≤ 132kV | U40: 41.67 | V40: 47.92
A41: Excess NAC Nightsave Small | B41: ExNACNS | C41: 1 | D41: 4 | E41: ExNACNS14Y | G41: Excess NAC Nightsave Rural | H41: ExNACNR | I41: 1 | J41: 4 | K41: ExNACNR14Y | M41: Excess NAC Ruraflex | N41: ExNACRu | O41: 1 | P41: 4 | Q41: ExNACRu14Y | T41: > 132kV* | U41: 36.19 | V41: 41.62
A42: Excess NAC Nightsave Small | B42: ExNACNS | C42: 2 | D42: 1 | E42: ExNACNS21Y | G42: Excess NAC Nightsave Rural | H42: ExNACNR | I42: 2 | J42: 1 | K42: ExNACNR21Y | M42: Excess NAC Ruraflex | N42: ExNACRu | O42: 2 | P42: 1 | Q42: ExNACRu21Y | S42: > 600km and ≤ 900km | T42: < 500V | U42: 39.84 | V42: 45.82 | Y42: > 600km and ≤ 900km | Z42: < 500V | AA42: 20.27 | AB42: =ROUND(AA42 * (1 + VAT), 2) -> 23.31 | AE42: > 600km and ≤ 900km | AF42: < 500V | AG42: 28.23 | AH42: =ROUND(AG42 * (1 + VAT), 2) -> 32.46
A43: Excess NAC Nightsave Small | B43: ExNACNS | C43: 2 | D43: 2 | E43: ExNACNS22Y | G43: Excess NAC Nightsave Rural | H43: ExNACNR | I43: 2 | J43: 2 | K43: ExNACNR22Y | M43: Excess NAC Ruraflex | N43: ExNACRu | O43: 2 | P43: 2 | Q43: ExNACRu22Y | T43: ≥ 500V & < 66kV | U43: 36.46 | V43: 41.93 | Z43: ≥ 500V & ≤ 22kV | AA43: 18.59 | AB43: 21.38 | AF43: ≥ 500V & ≤ 22kV | AG43: 25.93 | AH43: 29.82
A44: Excess NAC Nightsave Small | B44: ExNACNS | C44: 2 | D44: 3 | E44: ExNACNS23Y | G44: Excess NAC Nightsave Rural | H44: ExNACNR | I44: 2 | J44: 3 | K44: ExNACNR23Y | M44: Excess NAC Ruraflex | N44: ExNACRu | O44: 2 | P44: 3 | Q44: ExNACRu23Y | T44: ≥ 66kV & ≤ 132kV | U44: 41.76 | V44: 48.02
A45: Excess NAC Nightsave Small | B45: ExNACNS | C45: 2 | D45: 4 | E45: ExNACNS24Y | G45: Excess NAC Nightsave Rural | H45: ExNACNR | I45: 2 | J45: 4 | K45: ExNACNR24Y | M45: Excess NAC Ruraflex | N45: ExNACRu | O45: 2 | P45: 4 | Q45: ExNACRu24Y | T45: > 132kV* | U45: 36.4 | V45: 41.86
A46: Excess NAC Nightsave Small | B46: ExNACNS | C46: 3 | D46: 1 | E46: ExNACNS31Y | G46: Excess NAC Nightsave Rural | H46: ExNACNR | I46: 3 | J46: 1 | K46: ExNACNR31Y | M46: Excess NAC Ruraflex | N46: ExNACRu | O46: 3 | P46: 1 | Q46: ExNACRu31Y | S46: > 900km | T46: < 500V | U46: 39.9 | V46: 45.89 | Y46: > 900km | Z46: < 500V | AA46: 20.3 | AB46: =ROUND(AA46 * (1 + VAT), 2) -> 23.35 | AE46: > 900km | AF46: < 500V | AG46: 28.31 | AH46: =ROUND(AG46 * (1 + VAT), 2) -> 32.56
A47: Excess NAC Nightsave Small | B47: ExNACNS | C47: 3 | D47: 2 | E47: ExNACNS32Y | G47: Excess NAC Nightsave Rural | H47: ExNACNR | I47: 3 | J47: 2 | K47: ExNACNR32Y | M47: Excess NAC Ruraflex | N47: ExNACRu | O47: 3 | P47: 2 | Q47: ExNACRu32Y | T47: ≥ 500V & < 66kV | U47: 36.6 | V47: 42.09 | Z47: ≥ 500V & ≤ 22kV | AA47: 18.6 | AB47: 21.39 | AF47: ≥ 500V & ≤ 22kV | AG47: 25.94 | AH47: 29.83
A48: Excess NAC Nightsave Small | B48: ExNACNS | C48: 3 | D48: 3 | E48: ExNACNS33Y | G48: Excess NAC Nightsave Rural | H48: ExNACNR | I48: 3 | J48: 3 | K48: ExNACNR33Y | M48: Excess NAC Ruraflex | N48: ExNACRu | O48: 3 | P48: 3 | Q48: ExNACRu33Y | T48: ≥ 66kV & ≤ 132kV | U48: 41.85 | V48: 48.13
A49: Excess NAC Nightsave Small | B49: ExNACNS | C49: 3 | D49: 4 | E49: ExNACNS34Y | G49: Excess NAC Nightsave Rural | H49: ExNACNR | I49: 3 | J49: 4 | K49: ExNACNR34Y | M49: Excess NAC Ruraflex | N49: ExNACRu | O49: 3 | P49: 4 | Q49: ExNACRu34Y | T49: > 132kV* | U49: 36.49 | V49: 41.96
T50: * 132 kV or Transmission connected

Sheet Gen Reconciliatons
B2: Generator reconciliations
C4: Gen-wheeling tariff | G4: Gen-purchase tariff
C5: Tariff name | D5: Tariff rate | E5: Source | G5: Tariff name | H5: Tariff rate | I5: Source
C6: Gen-wheeling non Munic urban | D6: Energy: (credit) | E6: WEPS energy rate excluding losses | G6: Gen-purchase- urban | H6: Energy: | I6: WEPS energy rate excluding losses
D7: Affordability subsidy: (credit) | E7: same as WEPS | H7: Affordability subsidy: | I7: same as WEPS
D8: Admin charge: | E8: same as WEPS | H8: Admin charge: | I8: same as WEPS
D9: Other components: | E9: not applicable | H9: Other components: | I9: not applicable
C10: Gen-wheeling non Munic rural | D10: Energy: (credit) | E10: WEPS energy rate excluding losses | G10: Gen-purchase-rural | H10: Energy: | I10: WEPS energy rate excluding losses
D11: Admin charge: | E11: same as Ruraflex | H11: Admin charge: | I11: same as Ruraflex
D12: Other components: | E12: not applicable | H12: Other components: | I12: not applicable
C13: Gen-wheeling Munic urban | D13: Energy (Local): (credit) | E13: WEPS energy rate excluding losses (Local) | G13: Gen-purchase Munic urban | H13: Energy: | I13: WEPS energy rate excluding losses(Local)
D14: Admin charge: | E14: same as WEPS (local) | H14: Admin charge: | I14: same as WEPS (Local)
D15: Other components: | E15: not applicable | H15: Other components: | I15: not applicable
C16: Gen-wheeling Munic rural | D16: Energy (Local): (credit) | E16: WEPS energy rate excluding losses (Local) | G16: Gen-purchase Munic rural | H16: Energy: | I16: WEPS energy rate excluding losses(Local)
D17: Admin charge: | E17: same as Ruraflex (local) | H17: Admin charge: | I17: same as Ruraflex (Local)
D18: Other components: | E18: not applicable | H18: Other components: | I18: not applicable
C21: Gen-offset tariff
C22: Tariff name | D22: Tariff rate | E22: Source
C23: Gen-offset urban | D23: Energy: (credit) | E23: WEPS energy rate including losses (per Tx and voltage zone)
D24: Ancilliary service charge (credit): | E24: same as WEPS
D25: Affordability subsidy: | E25: same as WEPS
D26: Admin charge: | E26: same as WEPS
D27: Other components: | E27: not applicable
C28: Gen-offset rural | D28: Energy: (credit) | E28: Ruraflex energy rate (per Tx and voltage zone)
D29: Ancilliary service charge (credit): | E29: same as Ruraflex
D30: Admin charge: | E30: same as Ruraflex
D31: Other components: | E31: not applicable

Sheet Ruraflex 8h for 50dy CPP C (hidden)
G1: Back to menu
A2: Non-municipal | G2: Ruraflex - Non-local Authority | AF2: =SUM(#REF!,#REF!,#REF!,#REF!,#REF!,#REF!,#REF!,#REF!,#REF!,#REF!,#REF!,#REF!) ->  | AG2: check value
V4: Network capacity charges [R/kVA/m]
H5: Transmission zone
I6: Voltage
A7: Tariff | B7: Tariff nameBillcode | C7: Tx zone | D7: Voltage | E7: Billcode | W7: VAT incl
A8: Ruraflex - CPP: 50 days / 8 hours (6:00-14:00) 400 critical peak hours per year NON-CRITICAL Peak Day rates for NORMAL days | B8: RuCPPf2 | C8: 0 | D8: 1 | E8: =B8&C8&D8&IF($A$2="Non-municipal","N",IF($A$2="Municiple","Y","error")) -> RuCPPf201N | H8: ≤ 300km | I8: < 500V | V8: 27.36 | W8: =ROUND(V8 * (1 + VAT), 2) -> 31.46
A9: Ruraflex - CPP: 50 days / 8 hours (6:00-14:00) 400 critical peak hours per year NON-CRITICAL Peak Day rates for NORMAL days | B9: RuCPPf2 | C9: 0 | D9: 2 | E9: =B9&C9&D9&IF($A$2="Non-municipal","N",IF($A$2="Municiple","Y","error")) -> RuCPPf202N | I9: ≥ 500V & ≤ 22kV | V9: 25.07 | W9: 28.83
A10: Ruraflex - CPP: 50 days / 8 hours (6:00-14:00) 400 critical peak hours per year NON-CRITICAL Peak Day rates for NORMAL days | B10: RuCPPn2 | E10: RuCPPn2N | V10: 0
A11: Ruraflex - CPP: 50 days / 8 hours (6:00-14:00) 400 critical peak hours per year NON-CRITICAL Peak Day rates for NORMAL days | B11: RuCPPn2 | E11: RuCPPn2N | V11: 0
A12: Ruraflex - CPP: 50 days / 8 hours (6:00-14:00) 400 critical peak hours per year CRITICAL PEAK DAY rates for CRITICAL PEAK days | B12: RuCPPf2 | C12: 1 | D12: 1 | E12: RuCPPf211N | H12: > 300km and ≤ 600km | I12: < 500V | V12: 27.44 | W12: 31.56
A13: Ruraflex - CPP: 50 days / 8 hours (6:00-14:00) 400 critical peak hours per year CRITICAL PEAK DAY rates for CRITICAL PEAK days | B13: RuCPPf2 | C13: 1 | D13: 2 | E13: RuCPPf212N | I13: ≥ 500V & ≤ 22kV | V13: 25.22 | W13: 29
A14: Ruraflex - CPP: 50 days / 8 hours (6:00-14:00) 400 critical peak hours per year CRITICAL PEAK DAY rates for CRITICAL PEAK days | B14: RuCPPf2 | E14: RuCPPf2N | V14: 0
A15: Ruraflex - CPP: 50 days / 8 hours (6:00-14:00) 400 critical peak hours per year CRITICAL PEAK DAY rates for CRITICAL PEAK days | B15: RuCPPf2 | E15: RuCPPf2N | V15: 0
A16: Ruraflex - CPP: 50 days / 8 hours (6:00-14:00) 400 critical peak hours per year CRITICAL PEAK DAY rates for CRITICAL PEAK days | B16: RuCPPf2 | C16: 2 | D16: 1 | E16: RuCPPf221N | H16: > 600km and ≤ 900km | I16: < 500V | V16: 27.58 | W16: 31.72
A17: Ruraflex - CPP: 50 days / 8 hours (6:00-14:00) 400 critical peak hours per year CRITICAL PEAK DAY rates for CRITICAL PEAK days | B17: RuCPPf2 | C17: 2 | D17: 2 | E17: RuCPPf222N | I17: ≥ 500V & ≤ 22kV | V17: 25.34 | W17: 29.14
A18: Ruraflex - CPP: 50 days / 8 hours (6:00-14:00) 400 critical peak hours per year CRITICAL PEAK DAY rates for CRITICAL PEAK days | B18: RuCPPf2 | E18: RuCPPf2N | V18: 0
A19: Ruraflex - CPP: 50 days / 8 hours (6:00-14:00) 400 critical peak hours per year CRITICAL PEAK DAY rates for CRITICAL PEAK days | B19: RuCPPf2 | E19: RuCPPf2N | V19: 0
A20: Ruraflex - CPP: 50 days / 8 hours (6:00-14:00) 400 critical peak hours per year CRITICAL PEAK DAY rates for CRITICAL PEAK days | B20: RuCPPf2 | C20: 3 | D20: 1 | E20: RuCPPf231N | H20: > 900km | I20: < 500V | V20: 27.7 | W20: 31.86
A21: Ruraflex - CPP: 50 days / 8 hours (6:00-14:00) 400 critical peak hours per year CRITICAL PEAK DAY rates for CRITICAL PEAK days | B21: RuCPPf2 | C21: 3 | D21: 2 | E21: RuCPPf232N | I21: ≥ 500V & ≤ 22kV | V21: 25.35 | W21: 29.15
N22: 0
N23: 0
H26: Customer categories | J26: Service charge [R/account/day] | L26: Administration charge [R/POD/day] | Q26: Ancillary service charge [c/kWh] | S26: Network demand charge [c/kWh] in all time-of-use periods
O27: Voltage | R27: VAT incl | T27: VAT incl
A28: Tariff | B28: Tariff nameBillcode | C28: Tx zone | D28: Voltage | E28: Billcode | K28: VAT incl | M28: VAT incl | O28: < 500V | Q28: 0.6 | R28: =ROUND(Q28 * (1 + VAT), 2) -> 0.69 | S28: 38.94 | T28: =ROUND(S28 * (1 + VAT), 2) -> 44.78
A29: Ruraflex - CPP: 50 days / 8 hours (6:00-14:00) 400 critical peak hours per year CRITICAL PEAK DAY rates for CRITICAL PEAK days | B29: RuCPPf2 | C29: 0 | D29: 1 | E29: =B29&C29&D29&IF($A$2="Non-municipal","N",IF($A$2="Municiple","Y","error")) -> RuCPPf201N | H29: ≤ 100 kVA | J29: 26.91 | K29: =ROUND(J29 * (1 + VAT), 2) -> 30.95 | L29: 7.64 | M29: =ROUND(L29 * (1 + VAT), 2) -> 8.79 | O29: ≥ 500V & < 22kV | Q29: 0.6 | R29: =ROUND(Q29 * (1 + VAT), 2) -> 0.69 | S29: 34.14 | T29: =ROUND(S29 * (1 + VAT), 2) -> 39.26
A30: Ruraflex - CPP: 50 days / 8 hours (6:00-14:00) 400 critical peak hours per year CRITICAL PEAK DAY rates for CRITICAL PEAK days | B30: RuCPPf2 | C30: 0 | D30: 1 | E30: =B30&C30&D30&IF($A$2="Non-municipal","N",IF($A$2="Municiple","Y","error")) -> RuCPPf201N | H30: > 100 kVA & ≤ 500 kVA | J30: 91.77 | K30: =ROUND(J30 * (1 + VAT), 2) -> 105.54 | L30: 42.55 | M30: =ROUND(L30 * (1 + VAT), 2) -> 48.93
A31: Ruraflex - CPP: 50 days / 8 hours (6:00-14:00) 400 critical peak hours per year CRITICAL PEAK DAY rates for CRITICAL PEAK days | B31: RuCPPf2 | C31: 0 | D31: 1 | E31: =B31&C31&D31&IF($A$2="Non-municipal","N",IF($A$2="Municiple","Y","error")) -> RuCPPf201N | H31: > 500 kVA & ≤ 1 MVA | J31: 282.31 | K31: =ROUND(J31 * (1 + VAT), 2) -> 324.66 | L31: 65.31 | M31: =ROUND(L31 * (1 + VAT), 2) -> 75.11 | O31: Reactive energy charge [c/kVArh]
A32: Ruraflex - CPP: 50 days / 8 hours (6:00-14:00) 400 critical peak hours per year CRITICAL PEAK DAY rates for CRITICAL PEAK days | B32: RuCPPf2 | C32: 0 | D32: 1 | E32: =B32&C32&D32&IF($A$2="Non-municipal","N",IF($A$2="Municiple","Y","error")) -> RuCPPf201N | H32: > 1 MVA | J32: 282.31 | K32: =ROUND(J32 * (1 + VAT), 2) -> 324.66 | L32: 121.17 | M32: =ROUND(L32 * (1 + VAT), 2) -> 139.35 | O32: High season | Q32: Low season
A33: Ruraflex - CPP: 50 days / 8 hours (6:00-14:00) 400 critical peak hours per year CRITICAL PEAK DAY rates for CRITICAL PEAK days | B33: RuCPPf2 | C33: 0 | D33: 1 | E33: =B33&C33&D33&IF($A$2="Non-municipal","N",IF($A$2="Municiple","Y","error")) -> RuCPPf201N | H33: Key customers | J33: 5533.08 | K33: =ROUND(J33 * (1 + VAT), 2) -> 6363.04 | L33: 121.17 | M33: =ROUND(L33 * (1 + VAT), 2) -> 139.35 | P33: VAT incl | R33: VAT incl
O34: 13.15 | P34: =ROUND(O34 * (1 + VAT), 2) -> 15.12 | Q34: 0 | R34: =ROUND(Q34 * (1 + VAT), 2) -> 0

Sheet Ruraflex 16h for 25dy CPP C (hidden)
G1: Back to menu
A2: Non-municipal | G2: Ruraflex - Non-local Authority | AF2: =SUM(#REF!,#REF!,#REF!,#REF!,#REF!,#REF!,#REF!,#REF!,#REF!,#REF!,#REF!,#REF!) ->  | AG2: check value
V4: Network capacity charges [R/kVA/m]
H5: Transmission zone
I6: Voltage
A7: Tariff | B7: Tariff nameBillcode | C7: Tx zone | D7: Voltage | E7: Billcode | W7: VAT incl
A8: Ruraflex - CPP: 25 days / 16 hours (6:00-22:00) 400 critical peak hours per year CRITICAL PEAK DAY rates for CRITICAL PEAK days | B8: RuCPPf | C8: 0 | D8: 1 | E8: =B8&C8&D8&IF($A$2="Non-municipal","N",IF($A$2="Municiple","Y","error")) -> RuCPPf01N | H8: ≤ 300km | I8: < 500V | V8: 27.36 | W8: =ROUND(V8 * (1 + VAT), 2) -> 31.46
A9: Ruraflex - CPP: 25 days / 16 hours (6:00-22:00) 400 critical peak hours per year CRITICAL PEAK DAY rates for CRITICAL PEAK days | B9: RuCPPf | C9: 0 | D9: 2 | E9: =B9&C9&D9&IF($A$2="Non-municipal","N",IF($A$2="Municiple","Y","error")) -> RuCPPf02N | I9: ≥ 500V & ≤ 22kV | V9: 25.07 | W9: 28.83
A10: Ruraflex - CPP: 25 days / 16 hours (6:00-22:00) 400 critical peak hours per year CRITICAL PEAK DAY rates for CRITICAL PEAK days | B10: RuCPPf | E10: RuCPPfN | V10: 0
A11: Ruraflex - CPP: 25 days / 16 hours (6:00-22:00) 400 critical peak hours per year CRITICAL PEAK DAY rates for CRITICAL PEAK days | B11: RuCPPf | E11: RuCPPfN | V11: 0
A12: Ruraflex - CPP: 25 days / 16 hours (6:00-22:00) 400 critical peak hours per year CRITICAL PEAK DAY rates for CRITICAL PEAK days | B12: RuCPPf | C12: 1 | D12: 1 | E12: RuCPPf11N | H12: > 300km and ≤ 600km | I12: < 500V | V12: 27.44 | W12: 31.56
A13: Ruraflex - CPP: 25 days / 16 hours (6:00-22:00) 400 critical peak hours per year CRITICAL PEAK DAY rates for CRITICAL PEAK days | B13: RuCPPf | C13: 1 | D13: 2 | E13: RuCPPf12N | I13: ≥ 500V & ≤ 22kV | V13: 25.22 | W13: 29
A14: Ruraflex - CPP: 25 days / 16 hours (6:00-22:00) 400 critical peak hours per year CRITICAL PEAK DAY rates for CRITICAL PEAK days | B14: RuCPPf | E14: RuCPPfN | V14: 0
A15: Ruraflex - CPP: 25 days / 16 hours (6:00-22:00) 400 critical peak hours per year CRITICAL PEAK DAY rates for CRITICAL PEAK days | B15: RuCPPf | E15: RuCPPfN | V15: 0
A16: Ruraflex - CPP: 25 days / 16 hours (6:00-22:00) 400 critical peak hours per year CRITICAL PEAK DAY rates for CRITICAL PEAK days | B16: RuCPPf | C16: 2 | D16: 1 | E16: RuCPPf21N | H16: > 600km and ≤ 900km | I16: < 500V | V16: 27.58 | W16: 31.72
A17: Ruraflex - CPP: 25 days / 16 hours (6:00-22:00) 400 critical peak hours per year CRITICAL PEAK DAY rates for CRITICAL PEAK days | B17: RuCPPf | C17: 2 | D17: 2 | E17: RuCPPf22N | I17: ≥ 500V & ≤ 22kV | V17: 25.34 | W17: 29.14
A18: Ruraflex - CPP: 25 days / 16 hours (6:00-22:00) 400 critical peak hours per year CRITICAL PEAK DAY rates for CRITICAL PEAK days | B18: RuCPPf | E18: RuCPPfN | V18: 0
A19: Ruraflex - CPP: 25 days / 16 hours (6:00-22:00) 400 critical peak hours per year CRITICAL PEAK DAY rates for CRITICAL PEAK days | B19: RuCPPf | E19: RuCPPfN | V19: 0
A20: Ruraflex - CPP: 25 days / 16 hours (6:00-22:00) 400 critical peak hours per year CRITICAL PEAK DAY rates for CRITICAL PEAK days | B20: RuCPPf | C20: 3 | D20: 1 | E20: RuCPPf31N | H20: > 900km | I20: < 500V | V20: 27.7 | W20: 31.86
A21: Ruraflex - CPP: 25 days / 16 hours (6:00-22:00) 400 critical peak hours per year CRITICAL PEAK DAY rates for CRITICAL PEAK days | B21: RuCPPf | C21: 3 | D21: 2 | E21: RuCPPf32N | I21: ≥ 500V & ≤ 22kV | V21: 25.35 | W21: 29.15
N22: 0
N23: 0
H26: Customer categories | J26: Service charge [R/account/day] | L26: Administration charge [R/POD/day] | Q26: Ancillary service charge [c/kWh] | S26: Network demand charge [c/kWh] in all time-of-use periods
O27: Voltage | R27: VAT incl | T27: VAT incl
A28: Tariff | B28: Tariff nameBillcode | C28: Tx zone | D28: Voltage | E28: Billcode | K28: VAT incl | M28: VAT incl | O28: < 500V | Q28: 0.6 | R28: =ROUND(Q28 * (1 + VAT), 2) -> 0.69 | S28: 38.94 | T28: =ROUND(S28 * (1 + VAT), 2) -> 44.78
A29: Ruraflex - CPP: 25 days / 16 hours (6:00-22:00) 400 critical peak hours per year CRITICAL PEAK DAY rates for CRITICAL PEAK days | B29: RuCPPf | C29: 0 | D29: 1 | E29: =B29&C29&D29&IF($A$2="Non-municipal","N",IF($A$2="Municiple","Y","error")) -> RuCPPf01N | H29: ≤ 100 kVA | J29: 26.91 | K29: =ROUND(J29 * (1 + VAT), 2) -> 30.95 | L29: 7.64 | M29: =ROUND(L29 * (1 + VAT), 2) -> 8.79 | O29: ≥ 500V & < 22kV | Q29: 0.6 | R29: =ROUND(Q29 * (1 + VAT), 2) -> 0.69 | S29: 34.14 | T29: =ROUND(S29 * (1 + VAT), 2) -> 39.26
A30: Ruraflex - CPP: 25 days / 16 hours (6:00-22:00) 400 critical peak hours per year CRITICAL PEAK DAY rates for CRITICAL PEAK days | B30: RuCPPf | C30: 0 | D30: 1 | E30: =B30&C30&D30&IF($A$2="Non-municipal","N",IF($A$2="Municiple","Y","error")) -> RuCPPf01N | H30: > 100 kVA & ≤ 500 kVA | J30: 91.77 | K30: =ROUND(J30 * (1 + VAT), 2) -> 105.54 | L30: 42.55 | M30: =ROUND(L30 * (1 + VAT), 2) -> 48.93
A31: Ruraflex - CPP: 25 days / 16 hours (6:00-22:00) 400 critical peak hours per year CRITICAL PEAK DAY rates for CRITICAL PEAK days | B31: RuCPPf | C31: 0 | D31: 1 | E31: =B31&C31&D31&IF($A$2="Non-municipal","N",IF($A$2="Municiple","Y","error")) -> RuCPPf01N | H31: > 500 kVA & ≤ 1 MVA | J31: 282.31 | K31: =ROUND(J31 * (1 + VAT), 2) -> 324.66 | L31: 65.31 | M31: =ROUND(L31 * (1 + VAT), 2) -> 75.11 | O31: Reactive energy charge [c/kVArh]
A32: Ruraflex - CPP: 25 days / 16 hours (6:00-22:00) 400 critical peak hours per year CRITICAL PEAK DAY rates for CRITICAL PEAK days | B32: RuCPPf | C32: 0 | D32: 1 | E32: =B32&C32&D32&IF($A$2="Non-municipal","N",IF($A$2="Municiple","Y","error")) -> RuCPPf01N | H32: > 1 MVA | J32: 282.31 | K32: =ROUND(J32 * (1 + VAT), 2) -> 324.66 | L32: 121.17 | M32: =ROUND(L32 * (1 + VAT), 2) -> 139.35 | O32: High season | Q32: Low season
A33: Ruraflex - CPP: 25 days / 16 hours (6:00-22:00) 400 critical peak hours per year CRITICAL PEAK DAY rates for CRITICAL PEAK days | B33: RuCPPf | C33: 0 | D33: 1 | E33: =B33&C33&D33&IF($A$2="Non-municipal","N",IF($A$2="Municiple","Y","error")) -> RuCPPf01N | H33: Key customers | J33: 5533.08 | K33: =ROUND(J33 * (1 + VAT), 2) -> 6363.04 | L33: 121.17 | M33: =ROUND(L33 * (1 + VAT), 2) -> 139.35 | P33: VAT incl | R33: VAT incl
O34: 13.15 | P34: =ROUND(O34 * (1 + VAT), 2) -> 15.12 | Q34: 0 | R34: =ROUND(Q34 * (1 + VAT), 2) -> 0

Sheet Ruraflex Gen 8h for 50dy CPP C (hidden)
G1: Back to menu
A2: Non-municipal | G2: Ruraflex Gen - Non-Local Authority | AF2: =SUM(#REF!,#REF!,#REF!,#REF!,#REF!,#REF!,#REF!,#REF!,#REF!,#REF!,#REF!,#REF!) ->  | AG2: check value
V4: Network capacity charges [R/kVA/m]
H5: Transmission zone
I6: Voltage
A7: Tariff | B7: Tariff nameBillcode | C7: Tx zone | D7: Voltage | E7: Billcode | W7: VAT incl
A8: Ruraflex Gen - CPP: 50 days / 8 hours (6:00-14:00) 400 critical peak hours per year CRITICAL PEAK DAY rates for CRITICAL PEAK days | B8: GRCPPf2 | C8: 0 | D8: 1 | E8: =B8&C8&D8&IF($A$2="Non-municipal","N",IF($A$2="Municiple","Y","error")) -> GRCPPf201N | H8: ≤ 300km | I8: < 500V | V8: 27.36 | W8: =ROUND(V8 * (1 + VAT), 2) -> 31.46
A9: Ruraflex Gen - CPP: 50 days / 8 hours (6:00-14:00) 400 critical peak hours per year CRITICAL PEAK DAY rates for CRITICAL PEAK days | B9: GRCPPf2 | C9: 0 | D9: 2 | E9: =B9&C9&D9&IF($A$2="Non-municipal","N",IF($A$2="Municiple","Y","error")) -> GRCPPf202N | I9: ≥ 500V & ≤ 22kV | V9: 25.07 | W9: 28.83
A10: Ruraflex Gen - CPP: 50 days / 8 hours (6:00-14:00) 400 critical peak hours per year CRITICAL PEAK DAY rates for CRITICAL PEAK days | B10: GRCPPf2 | E10: GRCPPf2N | V10: 0
A11: Ruraflex Gen - CPP: 50 days / 8 hours (6:00-14:00) 400 critical peak hours per year CRITICAL PEAK DAY rates for CRITICAL PEAK days | B11: GRCPPf2 | E11: GRCPPf2N | V11: 0
A12: Ruraflex Gen - CPP: 50 days / 8 hours (6:00-14:00) 400 critical peak hours per year CRITICAL PEAK DAY rates for CRITICAL PEAK days | B12: GRCPPf2 | C12: 1 | D12: 1 | E12: GRCPPf211N | H12: > 300km and ≤ 600km | I12: < 500V | V12: 27.44 | W12: 31.56
A13: Ruraflex Gen - CPP: 50 days / 8 hours (6:00-14:00) 400 critical peak hours per year CRITICAL PEAK DAY rates for CRITICAL PEAK days | B13: GRCPPf2 | C13: 1 | D13: 2 | E13: GRCPPf212N | I13: ≥ 500V & ≤ 22kV | V13: 25.22 | W13: 29
A14: Ruraflex Gen - CPP: 50 days / 8 hours (6:00-14:00) 400 critical peak hours per year CRITICAL PEAK DAY rates for CRITICAL PEAK days | B14: GRCPPf2 | E14: GRCPPf2N | V14: 0
A15: Ruraflex Gen - CPP: 50 days / 8 hours (6:00-14:00) 400 critical peak hours per year CRITICAL PEAK DAY rates for CRITICAL PEAK days | B15: GRCPPf2 | E15: GRCPPf2N | V15: 0
A16: Ruraflex Gen - CPP: 50 days / 8 hours (6:00-14:00) 400 critical peak hours per year CRITICAL PEAK DAY rates for CRITICAL PEAK days | B16: GRCPPf2 | C16: 2 | D16: 1 | E16: GRCPPf221N | H16: > 600km and ≤ 900km | I16: < 500V | V16: 27.58 | W16: 31.72
A17: Ruraflex Gen - CPP: 50 days / 8 hours (6:00-14:00) 400 critical peak hours per year CRITICAL PEAK DAY rates for CRITICAL PEAK days | B17: GRCPPf2 | C17: 2 | D17: 2 | E17: GRCPPf222N | I17: ≥ 500V & ≤ 22kV | V17: 25.34 | W17: 29.14
A18: Ruraflex Gen - CPP: 50 days / 8 hours (6:00-14:00) 400 critical peak hours per year CRITICAL PEAK DAY rates for CRITICAL PEAK days | B18: GRCPPf2 | E18: GRCPPf2N | V18: 0
A19: Ruraflex Gen - CPP: 50 days / 8 hours (6:00-14:00) 400 critical peak hours per year CRITICAL PEAK DAY rates for CRITICAL PEAK days | B19: GRCPPf2 | E19: GRCPPf2N | V19: 0
A20: Ruraflex Gen - CPP: 50 days / 8 hours (6:00-14:00) 400 critical peak hours per year CRITICAL PEAK DAY rates for CRITICAL PEAK days | B20: GRCPPf2 | C20: 3 | D20: 1 | E20: GRCPPf231N | H20: > 900km | I20: < 500V | V20: 27.7 | W20: 31.86
A21: Ruraflex Gen - CPP: 50 days / 8 hours (6:00-14:00) 400 critical peak hours per year CRITICAL PEAK DAY rates for CRITICAL PEAK days | B21: GRCPPf2 | C21: 3 | D21: 2 | E21: GRCPPf232N | I21: ≥ 500V & ≤ 22kV | V21: 25.35 | W21: 29.15
N22: 0
N23: 0
A24: Gen-purchase | B24: NLPurchADJ | C24: 0 | D24: 4 | E24: =B24&C24&D24&IF($A$2="Non-municipal","N",IF($A$2="Municiple","Y","error")) -> NLPurchADJ04N
Q26: Ancillary service charge for loads and generators
H28: Customer categories | J28: Service charge [R/account/day] | L28: Administration charge [R/POD/day] | O28: Voltage | Q28: [c/kWh]
H29: [kVA or MVA = loads] | R29: VAT incl
A30: Tariff | B30: Tariff nameBillcode | C30: Tx zone | D30: Voltage | E30: Billcode | H30: [kW or MW = generators] | K30: VAT incl | M30: VAT incl | O30: < 500V | Q30: 0.6 | R30: =ROUND(Q30 * (1 + VAT), 2) -> 0.69
A31: Ruraflex Gen - CPP: 50 days / 8 hours (6:00-14:00) 400 critical peak hours per year CRITICAL PEAK DAY rates for CRITICAL PEAK days | B31: GRCPPf2 | C31: 0 | D31: 1 | E31: =B31&C31&D31&IF($A$2="Non-municipal","N",IF($A$2="Municiple","Y","error")) -> GRCPPf201N | H31: ≤ 100 kVA/kW | J31: 26.91 | K31: =ROUND(J31 * (1 + VAT), 2) -> 30.95 | L31: 7.64 | M31: =ROUND(L31 * (1 + VAT), 2) -> 8.79 | O31: ≥ 500V & < 22kV | Q31: 0.6 | R31: =ROUND(Q31 * (1 + VAT), 2) -> 0.69
A32: Ruraflex Gen - CPP: 50 days / 8 hours (6:00-14:00) 400 critical peak hours per year CRITICAL PEAK DAY rates for CRITICAL PEAK days | B32: GRCPPf2 | C32: 0 | D32: 1 | E32: =B32&C32&D32&IF($A$2="Non-municipal","N",IF($A$2="Municiple","Y","error")) -> GRCPPf201N | H32: > 100 KVA/kW & ≤ 500 kVA/kW | J32: 91.77 | K32: =ROUND(J32 * (1 + VAT), 2) -> 105.54 | L32: 42.55 | M32: =ROUND(L32 * (1 + VAT), 2) -> 48.93
A33: Ruraflex Gen - CPP: 50 days / 8 hours (6:00-14:00) 400 critical peak hours per year CRITICAL PEAK DAY rates for CRITICAL PEAK days | B33: GRCPPf2 | C33: 0 | D33: 1 | E33: =B33&C33&D33&IF($A$2="Non-municipal","N",IF($A$2="Municiple","Y","error")) -> GRCPPf201N | H33: > 500 kVA/kW & ≤ 1 MVA/MW | J33: 282.31 | K33: =ROUND(J33 * (1 + VAT), 2) -> 324.66 | L33: 65.31 | M33: =ROUND(L33 * (1 + VAT), 2) -> 75.11 | O33: Reactive energy charge [c/kVArh] | S33: Network demand charge [c/kWh] for loads in all time-of-use periods
A34: Ruraflex Gen - CPP: 50 days / 8 hours (6:00-14:00) 400 critical peak hours per year CRITICAL PEAK DAY rates for CRITICAL PEAK days | B34: GRCPPf2 | C34: 0 | D34: 1 | E34: =B34&C34&D34&IF($A$2="Non-municipal","N",IF($A$2="Municiple","Y","error")) -> GRCPPf201N | H34: > 1 MVA/MW | J34: 282.31 | K34: =ROUND(J34 * (1 + VAT), 2) -> 324.66 | L34: 121.17 | M34: =ROUND(L34 * (1 + VAT), 2) -> 139.35 | O34: High season | Q34: Low season | T34: VAT incl
A35: Ruraflex Gen - CPP: 50 days / 8 hours (6:00-14:00) 400 critical peak hours per year CRITICAL PEAK DAY rates for CRITICAL PEAK days | B35: GRCPPf2 | C35: 0 | D35: 1 | E35: =B35&C35&D35&IF($A$2="Non-municipal","N",IF($A$2="Municiple","Y","error")) -> GRCPPf201N | H35: Key customers | J35: 5533.08 | K35: =ROUND(J35 * (1 + VAT), 2) -> 6363.04 | L35: 121.17 | M35: =ROUND(L35 * (1 + VAT), 2) -> 139.35 | P35: VAT incl | R35: VAT incl | S35: 38.94 | T35: =ROUND(S35 * (1 + VAT), 2) -> 44.78
O36: 13.15 | P36: =ROUND(O36 * (1 + VAT), 2) -> 15.12 | Q36: 0 | R36: =ROUND(Q36 * (1 + VAT), 2) -> 0 | S36: 34.14 | T36: =ROUND(S36 * (1 + VAT), 2) -> 39.26

Sheet Ruraflex Gen 16h for 25dy CPP C (hidden)
G1: Back to menu
A2: Non-municipal | G2: Ruraflex Gen - Non-Local Authority | AF2: =SUM(#REF!,#REF!,#REF!,#REF!,#REF!,#REF!,#REF!,#REF!,#REF!,#REF!,#REF!,#REF!) ->  | AG2: check value
V4: Network capacity charges [R/kVA/m]
H5: Transmission zone
I6: Voltage
A7: Tariff | B7: Tariff nameBillcode | C7: Tx zone | D7: Voltage | E7: Billcode | W7: VAT incl
A8: Ruraflex Gen - CPP: 25 days / 16 hours (6:00-22:00) 400 critical peak hours per year CRITICAL PEAK DAY rates for CRITICAL PEAK days | B8: GRCPPf | C8: 0 | D8: 1 | E8: =B8&C8&D8&IF($A$2="Non-municipal","N",IF($A$2="Municiple","Y","error")) -> GRCPPf01N | H8: ≤ 300km | I8: < 500V | V8: 27.36 | W8: =ROUND(V8 * (1 + VAT), 2) -> 31.46
A9: Ruraflex Gen - CPP: 25 days / 16 hours (6:00-22:00) 400 critical peak hours per year CRITICAL PEAK DAY rates for CRITICAL PEAK days | B9: GRCPPf | C9: 0 | D9: 2 | E9: =B9&C9&D9&IF($A$2="Non-municipal","N",IF($A$2="Municiple","Y","error")) -> GRCPPf02N | I9: ≥ 500V & ≤ 22kV | V9: 25.07 | W9: 28.83
A10: Ruraflex Gen - CPP: 25 days / 16 hours (6:00-22:00) 400 critical peak hours per year CRITICAL PEAK DAY rates for CRITICAL PEAK days | B10: GRCPPf | E10: GRCPPfN | V10: 0
A11: Ruraflex Gen - CPP: 25 days / 16 hours (6:00-22:00) 400 critical peak hours per year CRITICAL PEAK DAY rates for CRITICAL PEAK days | B11: GRCPPf | E11: GRCPPfN | V11: 0
A12: Ruraflex Gen - CPP: 25 days / 16 hours (6:00-22:00) 400 critical peak hours per year CRITICAL PEAK DAY rates for CRITICAL PEAK days | B12: GRCPPf | C12: 1 | D12: 1 | E12: GRCPPf11N | H12: > 300km and ≤ 600km | I12: < 500V | V12: 27.44 | W12: 31.56
A13: Ruraflex Gen - CPP: 25 days / 16 hours (6:00-22:00) 400 critical peak hours per year CRITICAL PEAK DAY rates for CRITICAL PEAK days | B13: GRCPPf | C13: 1 | D13: 2 | E13: GRCPPf12N | I13: ≥ 500V & ≤ 22kV | V13: 25.22 | W13: 29
A14: Ruraflex Gen - CPP: 25 days / 16 hours (6:00-22:00) 400 critical peak hours per year CRITICAL PEAK DAY rates for CRITICAL PEAK days | B14: GRCPPf | E14: GRCPPfN | V14: 0
A15: Ruraflex Gen - CPP: 25 days / 16 hours (6:00-22:00) 400 critical peak hours per year CRITICAL PEAK DAY rates for CRITICAL PEAK days | B15: GRCPPf | E15: GRCPPfN | V15: 0
A16: Ruraflex Gen - CPP: 25 days / 16 hours (6:00-22:00) 400 critical peak hours per year CRITICAL PEAK DAY rates for CRITICAL PEAK days | B16: GRCPPf | C16: 2 | D16: 1 | E16: GRCPPf21N | H16: > 600km and ≤ 900km | I16: < 500V | V16: 27.58 | W16: 31.72
A17: Ruraflex Gen - CPP: 25 days / 16 hours (6:00-22:00) 400 critical peak hours per year CRITICAL PEAK DAY rates for CRITICAL PEAK days | B17: GRCPPf | C17: 2 | D17: 2 | E17: GRCPPf22N | I17: ≥ 500V & ≤ 22kV | V17: 25.34 | W17: 29.14
A18: Ruraflex Gen - CPP: 25 days / 16 hours (6:00-22:00) 400 critical peak hours per year CRITICAL PEAK DAY rates for CRITICAL PEAK days | B18: GRCPPf | E18: GRCPPfN | V18: 0
A19: Ruraflex Gen - CPP: 25 days / 16 hours (6:00-22:00) 400 critical peak hours per year CRITICAL PEAK DAY rates for CRITICAL PEAK days | B19: GRCPPf | E19: GRCPPfN | V19: 0
A20: Ruraflex Gen - CPP: 25 days / 16 hours (6:00-22:00) 400 critical peak hours per year CRITICAL PEAK DAY rates for CRITICAL PEAK days | B20: GRCPPf | C20: 3 | D20: 1 | E20: GRCPPf31N | H20: > 900km | I20: < 500V | V20: 27.7 | W20: 31.86
A21: Ruraflex Gen - CPP: 25 days / 16 hours (6:00-22:00) 400 critical peak hours per year CRITICAL PEAK DAY rates for CRITICAL PEAK days | B21: GRCPPf | C21: 3 | D21: 2 | E21: GRCPPf32N | I21: ≥ 500V & ≤ 22kV | V21: 25.35 | W21: 29.15
N22: 0
N23: 0
A24: Gen-purchase | B24: NLPurchADJ | C24: 0 | D24: 4 | E24: =B24&C24&D24&IF($A$2="Non-municipal","N",IF($A$2="Municiple","Y","error")) -> NLPurchADJ04N
Q26: Ancillary service charge for loads and generators
H28: Customer categories | J28: Service charge [R/account/day] | L28: Administration charge [R/POD/day] | O28: Voltage | Q28: [c/kWh]
H29: [kVA or MVA = loads] | R29: VAT incl
A30: Tariff | B30: Tariff nameBillcode | C30: Tx zone | D30: Voltage | E30: Billcode | H30: [kW or MW = generators] | K30: VAT incl | M30: VAT incl | O30: < 500V | Q30: 0.6 | R30: =ROUND(Q30 * (1 + VAT), 2) -> 0.69
A31: Ruraflex Gen - CPP: 25 days / 16 hours (6:00-22:00) 400 critical peak hours per year CRITICAL PEAK DAY rates for CRITICAL PEAK days | B31: GRCPPf | C31: 0 | D31: 1 | E31: =B31&C31&D31&IF($A$2="Non-municipal","N",IF($A$2="Municiple","Y","error")) -> GRCPPf01N | H31: ≤ 100 kVA/kW | J31: 26.91 | K31: =ROUND(J31 * (1 + VAT), 2) -> 30.95 | L31: 7.64 | M31: =ROUND(L31 * (1 + VAT), 2) -> 8.79 | O31: ≥ 500V & < 22kV | Q31: 0.6 | R31: =ROUND(Q31 * (1 + VAT), 2) -> 0.69
A32: Ruraflex Gen - CPP: 25 days / 16 hours (6:00-22:00) 400 critical peak hours per year CRITICAL PEAK DAY rates for CRITICAL PEAK days | B32: GRCPPf | C32: 0 | D32: 1 | E32: =B32&C32&D32&IF($A$2="Non-municipal","N",IF($A$2="Municiple","Y","error")) -> GRCPPf01N | H32: > 100 KVA/kW & ≤ 500 kVA/kW | J32: 91.77 | K32: =ROUND(J32 * (1 + VAT), 2) -> 105.54 | L32: 42.55 | M32: =ROUND(L32 * (1 + VAT), 2) -> 48.93
A33: Ruraflex Gen - CPP: 25 days / 16 hours (6:00-22:00) 400 critical peak hours per year CRITICAL PEAK DAY rates for CRITICAL PEAK days | B33: GRCPPf | C33: 0 | D33: 1 | E33: =B33&C33&D33&IF($A$2="Non-municipal","N",IF($A$2="Municiple","Y","error")) -> GRCPPf01N | H33: > 500 kVA/kW & ≤ 1 MVA/MW | J33: 282.31 | K33: =ROUND(J33 * (1 + VAT), 2) -> 324.66 | L33: 65.31 | M33: =ROUND(L33 * (1 + VAT), 2) -> 75.11 | O33: Reactive energy charge [c/kVArh] | S33: Network demand charge [c/kWh] for loads in all time-of-use periods
A34: Ruraflex Gen - CPP: 25 days / 16 hours (6:00-22:00) 400 critical peak hours per year CRITICAL PEAK DAY rates for CRITICAL PEAK days | B34: GRCPPf | C34: 0 | D34: 1 | E34: =B34&C34&D34&IF($A$2="Non-municipal","N",IF($A$2="Municiple","Y","error")) -> GRCPPf01N | H34: > 1 MVA/MW | J34: 282.31 | K34: =ROUND(J34 * (1 + VAT), 2) -> 324.66 | L34: 121.17 | M34: =ROUND(L34 * (1 + VAT), 2) -> 139.35 | O34: High season | Q34: Low season | T34: VAT incl
A35: Ruraflex Gen - CPP: 25 days / 16 hours (6:00-22:00) 400 critical peak hours per year CRITICAL PEAK DAY rates for CRITICAL PEAK days | B35: GRCPPf | C35: 0 | D35: 1 | E35: =B35&C35&D35&IF($A$2="Non-municipal","N",IF($A$2="Municiple","Y","error")) -> GRCPPf01N | H35: Key customers | J35: 5533.08 | K35: =ROUND(J35 * (1 + VAT), 2) -> 6363.04 | L35: 121.17 | M35: =ROUND(L35 * (1 + VAT), 2) -> 139.35 | P35: VAT incl | R35: VAT incl | S35: 38.94 | T35: =ROUND(S35 * (1 + VAT), 2) -> 44.78
O36: 13.15 | P36: =ROUND(O36 * (1 + VAT), 2) -> 15.12 | Q36: 0 | R36: =ROUND(Q36 * (1 + VAT), 2) -> 0 | S36: 34.14 | T36: =ROUND(S36 * (1 + VAT), 2) -> 39.26

Sheet Megaflex Gen 8h for 50dy CPP C (hidden)
G1: Back to menu
A2: Non-municipal | G2: Megaflex Gen - Non-local authority
V4: Transmission network charges [R/kVA/m]
H5: Transmission zone
I6: Voltage
A7: Tariff | B7: Tariff nameBillcode | C7: Tx zone | D7: Voltage | E7: Billcode | W7: VAT incl
A8: Megaflex Gen - CPP: 50 days / 8 hours (6:00-14:00) 400 critical peak hours per year CRITICAL PEAK DAY rates for CRITICAL PEAK days | B8: GUCPPf2 | C8: 0 | D8: 1 | E8: =B8&C8&D8&IF($A$2="Non-municipal","N",IF($A$2="Municiple","Y","error")) -> GUCPPf201N | H8: ≤ 300km | I8: < 500V | V8: 13.09 | W8: =ROUND(V8 * (1 + VAT), 2) -> 15.05
A9: Megaflex Gen - CPP: 50 days / 8 hours (6:00-14:00) 400 critical peak hours per year CRITICAL PEAK DAY rates for CRITICAL PEAK days | B9: GUCPPf2 | C9: 0 | D9: 2 | E9: GUCPPf202N | I9: ≥ 500V & < 66kV | V9: 11.96 | W9: 13.75
A10: Megaflex Gen - CPP: 50 days / 8 hours (6:00-14:00) 400 critical peak hours per year CRITICAL PEAK DAY rates for CRITICAL PEAK days | B10: GUCPPf2 | C10: 0 | D10: 3 | E10: GUCPPf203N | I10: ≥ 66kV & ≤ 132kV | V10: 11.64 | W10: 13.39
A11: Megaflex Gen - CPP: 50 days / 8 hours (6:00-14:00) 400 critical peak hours per year CRITICAL PEAK DAY rates for CRITICAL PEAK days | B11: GUCPPf2 | C11: 0 | D11: 4 | E11: GUCPPf204N | I11: > 132kV* | V11: 14.72 | W11: 16.93
A12: Megaflex Gen - CPP: 50 days / 8 hours (6:00-14:00) 400 critical peak hours per year CRITICAL PEAK DAY rates for CRITICAL PEAK days | B12: GUCPPf2 | C12: 1 | D12: 1 | E12: GUCPPf211N | H12: > 300km and ≤ 600km | I12: < 500V | V12: 13.18 | W12: 15.16
A13: Megaflex Gen - CPP: 50 days / 8 hours (6:00-14:00) 400 critical peak hours per year CRITICAL PEAK DAY rates for CRITICAL PEAK days | B13: GUCPPf2 | C13: 1 | D13: 2 | E13: GUCPPf212N | I13: ≥ 500V & < 66kV | V13: 12.07 | W13: 13.88
A14: Megaflex Gen - CPP: 50 days / 8 hours (6:00-14:00) 400 critical peak hours per year CRITICAL PEAK DAY rates for CRITICAL PEAK days | B14: GUCPPf2 | C14: 1 | D14: 3 | E14: GUCPPf213N | I14: ≥ 66kV & ≤ 132kV | V14: 11.73 | W14: 13.49
A15: Megaflex Gen - CPP: 50 days / 8 hours (6:00-14:00) 400 critical peak hours per year CRITICAL PEAK DAY rates for CRITICAL PEAK days | B15: GUCPPf2 | C15: 1 | D15: 4 | E15: GUCPPf214N | I15: > 132kV* | V15: 14.85 | W15: 17.08
A16: Megaflex Gen - CPP: 50 days / 8 hours (6:00-14:00) 400 critical peak hours per year CRITICAL PEAK DAY rates for CRITICAL PEAK days | B16: GUCPPf2 | C16: 2 | D16: 1 | E16: GUCPPf221N | H16: > 600km and ≤ 900km | I16: < 500V | V16: 13.33 | W16: 15.33
A17: Megaflex Gen - CPP: 50 days / 8 hours (6:00-14:00) 400 critical peak hours per year CRITICAL PEAK DAY rates for CRITICAL PEAK days | B17: GUCPPf2 | C17: 2 | D17: 2 | E17: GUCPPf222N | I17: ≥ 500V & < 66kV | V17: 12.18 | W17: 14.01
A18: Megaflex Gen - CPP: 50 days / 8 hours (6:00-14:00) 400 critical peak hours per year CRITICAL PEAK DAY rates for CRITICAL PEAK days | B18: GUCPPf2 | C18: 2 | D18: 3 | E18: GUCPPf223N | I18: ≥ 66kV & ≤ 132kV | V18: 11.8 | W18: 13.57
A19: Megaflex Gen - CPP: 50 days / 8 hours (6:00-14:00) 400 critical peak hours per year CRITICAL PEAK DAY rates for CRITICAL PEAK days | B19: GUCPPf2 | C19: 2 | D19: 4 | E19: GUCPPf224N | I19: > 132kV* | V19: 15.07 | W19: 17.33
A20: Megaflex Gen - CPP: 50 days / 8 hours (6:00-14:00) 400 critical peak hours per year CRITICAL PEAK DAY rates for CRITICAL PEAK days | B20: GUCPPf2 | C20: 3 | D20: 1 | E20: GUCPPf231N | H20: > 900km | I20: < 500V | V20: 13.42 | W20: 15.43
A21: Megaflex Gen - CPP: 50 days / 8 hours (6:00-14:00) 400 critical peak hours per year CRITICAL PEAK DAY rates for CRITICAL PEAK days | B21: GUCPPf2 | C21: 3 | D21: 2 | E21: GUCPPf232N | I21: ≥ 500V & < 66kV | V21: 12.32 | W21: 14.17
A22: Megaflex Gen - CPP: 50 days / 8 hours (6:00-14:00) 400 critical peak hours per year CRITICAL PEAK DAY rates for CRITICAL PEAK days | B22: GUCPPf2 | C22: 3 | D22: 3 | E22: GUCPPf233N | I22: ≥ 66kV & ≤ 132kV | V22: 11.91 | W22: 13.7
A23: Megaflex Gen - CPP: 50 days / 8 hours (6:00-14:00) 400 critical peak hours per year CRITICAL PEAK DAY rates for CRITICAL PEAK days | B23: GUCPPf2 | C23: 3 | D23: 4 | E23: GUCPPf234N | I23: > 132kV* | V23: 15.18 | W23: 17.46
A24: Gen-purchase | B24: NLPurchADJ | C24: 0 | D24: 4 | E24: NLPurchADJ04N | H24: WEPS energy rate excluding losses
A25: TUoS network charges for Transmission connected generators | B25: GenTUOS | C25: Cape | D25: 4 | E25: GenTUOSCape4N | I25: * 132 kV or Transmission connected
A26: TUoS network charges for Transmission connected generators | B26: GenTUOS | C26: Karoo | D26: 4 | E26: GenTUOSKaroo4N
A27: TUoS network charges for Transmission connected generators | B27: GenTUOS | C27: Kwazulu-Natal | D27: 4 | E27: GenTUOSKwazulu-Natal4N | H27: Distribution network charges for loads | Q27: Transmission network charges for generators | U27: Distribution network charges for generators*
A28: TUoS network charges for Transmission connected generators | B28: GenTUOS | C28: Vaal | D28: 4 | E28: GenTUOSVaal4N | J28: Network capacity charge [R/kVA/m] | L28: Network demand charge [R/kVA/m] | N28: Urban low voltage subsidy charge [R/kVA/m]
A29: TUoS network charges for Transmission connected generators | B29: GenTUOS | C29: Waterburg | D29: 4 | E29: GenTUOSWaterburg4N | H29: Voltage | Q29: TUoS [ > 132kV] | S29: Network charge [R/kW] | U29: Voltage | W29: Network capacity charge [R/kW/m]
A30: TUoS network charges for Transmission connected generators | B30: GenTUOS | C30: Mpumalanga | D30: 4 | E30: GenTUOSMpumalanga4N | H30: Voltage | K30: VAT incl | M30: VAT incl | O30: VAT incl | T30: VAT incl
A31: Megaflex Gen - CPP: 50 days / 8 hours (6:00-14:00) 400 critical peak hours per year CRITICAL PEAK DAY rates for CRITICAL PEAK days | B31: GUCPPf2 | C31: 0 | D31: 1 | E31: GUCPPf201N | H31: < 500V | J31: 26.01 | K31: =ROUND(J31 * (1 + VAT), 2) -> 29.91 | L31: 49.31 | M31: =ROUND(L31 * (1 + VAT), 2) -> 56.71 | N31: 0 | O31: =ROUND(N31 * (1 + VAT), 2) -> 0 | Q31: Cape | S31: 0 | T31: =ROUND(S31 * (1 + VAT), 2) -> 0 | X31: VAT incl
A32: Megaflex Gen - CPP: 50 days / 8 hours (6:00-14:00) 400 critical peak hours per year CRITICAL PEAK DAY rates for CRITICAL PEAK days | B32: GUCPPf2 | C32: 0 | D32: 2 | E32: GUCPPf202N | H32: ≥ 500V & < 66kV | J32: 23.85 | K32: =ROUND(J32 * (1 + VAT), 2) -> 27.43 | L32: 45.24 | M32: =ROUND(L32 * (1 + VAT), 2) -> 52.03 | N32: 0 | O32: =ROUND(N32 * (1 + VAT), 2) -> 0 | Q32: Karoo | S32: 0 | T32: 0 | U32: < 500V
A33: Megaflex Gen - CPP: 50 days / 8 hours (6:00-14:00) 400 critical peak hours per year CRITICAL PEAK DAY rates for CRITICAL PEAK days | B33: GUCPPf2 | C33: 0 | D33: 3 | E33: GUCPPf203N | H33: ≥ 66kV & ≤ 132kV | J33: 8.52 | K33: =ROUND(J33 * (1 + VAT), 2) -> 9.8 | L33: 15.77 | M33: =ROUND(L33 * (1 + VAT), 2) -> 18.14 | N33: 21.01 | O33: =ROUND(N33 * (1 + VAT), 2) -> 24.16 | Q33: Kwazulu-Natal | S33: 3.09 | T33: 3.55 | U33: ≥ 500V & < 66kV
A34: Megaflex Gen - CPP: 50 days / 8 hours (6:00-14:00) 400 critical peak hours per year CRITICAL PEAK DAY rates for CRITICAL PEAK days | B34: GUCPPf2 | C34: 0 | D34: 4 | E34: GUCPPf204N | H34: > 132kV / Transmission connected | J34: 0 | K34: =ROUND(J34 * (1 + VAT), 2) -> 0 | L34: 0 | M34: =ROUND(L34 * (1 + VAT), 2) -> 0 | N34: 21.01 | O34: =ROUND(N34 * (1 + VAT), 2) -> 24.16 | Q34: Vaal | S34: 10.29 | T34: 11.83 | U34: ≥ 66kV & ≤ 132kV | W34: 0 | X34: =ROUND(W34 * (1 + VAT), 2) -> 0
A35: Gen-DUoS urban | B35: NEGenDUoSU | C35: 0 | D35: 3 | E35: NEGenDUoSU03N | Q35: Waterberg | S35: 13.18 | T35: 15.16 | U35: * The Distribution network charge will be rebated by the Losses charge, but not beyond extintion
Q36: Mpumalanga | S36: 12.23 | T36: 14.06
H37: Customer categories | J37: Service charge [R/account/day] | L37: Administration charge [R/POD/day]
H38: [kVA or MVA = loads] | Q38: Ancillary service charge for loads and generators
A39: Tariff | B39: Tariff nameBillcode | C39: Tx zone | D39: Voltage | E39: Billcode | H39: [kW or MW = generators] | K39: VAT incl | M39: VAT incl
A40: Megaflex Gen - CPP: 50 days / 8 hours (6:00-14:00) 400 critical peak hours per year CRITICAL PEAK DAY rates for CRITICAL PEAK days | B40: GUCPPf2 | C40: 0 | D40: 1 | E40: =B40&C40&D40&IF($A$2="Non-municipal","N",IF($A$2="Municiple","Y","error")) -> GUCPPf201N | H40: ≤ 100 KVA/ kW | J40: 21.25 | K40: =ROUND(J40 * (1 + VAT), 2) -> 24.44 | L40: 4.67 | M40: =ROUND(L40 * (1 + VAT), 2) -> 5.37 | Q40: Voltage | S40: Ancillary service charge [c/kWh]
A41: Megaflex Gen - CPP: 50 days / 8 hours (6:00-14:00) 400 critical peak hours per year CRITICAL PEAK DAY rates for CRITICAL PEAK days | B41: GUCPPf2 | C41: 0 | D41: 1 | E41: =B41&C41&D41&IF($A$2="Non-municipal","N",IF($A$2="Municiple","Y","error")) -> GUCPPf201N | H41: > 100 kVA/ kW & ≤ 500 kVA/ kW | J41: 97.04 | K41: =ROUND(J41 * (1 + VAT), 2) -> 111.6 | L41: 27.22 | M41: =ROUND(L41 * (1 + VAT), 2) -> 31.3 | T41: VAT incl
A42: Megaflex Gen - CPP: 50 days / 8 hours (6:00-14:00) 400 critical peak hours per year CRITICAL PEAK DAY rates for CRITICAL PEAK days | B42: GUCPPf2 | C42: 0 | D42: 1 | E42: =B42&C42&D42&IF($A$2="Non-municipal","N",IF($A$2="Municiple","Y","error")) -> GUCPPf201N | H42: > 500 kVA/ kW & ≤ 1 MVA/MW | J42: 298.57 | K42: =ROUND(J42 * (1 + VAT), 2) -> 343.36 | L42: 54.04 | M42: =ROUND(L42 * (1 + VAT), 2) -> 62.15 | Q42: < 500V | S42: 0.6 | T42: =ROUND(S42 * (1 + VAT), 2) -> 0.69
A43: Megaflex Gen - CPP: 50 days / 8 hours (6:00-14:00) 400 critical peak hours per year CRITICAL PEAK DAY rates for CRITICAL PEAK days | B43: GUCPPf2 | C43: 0 | D43: 1 | E43: =B43&C43&D43&IF($A$2="Non-municipal","N",IF($A$2="Municiple","Y","error")) -> GUCPPf201N | H43: > 1 MVA/MW | J43: 298.57 | K43: =ROUND(J43 * (1 + VAT), 2) -> 343.36 | L43: 134.56 | M43: =ROUND(L43 * (1 + VAT), 2) -> 154.74 | Q43: ≥ 500V & < 66kV | S43: 0.59 | T43: =ROUND(S43 * (1 + VAT), 2) -> 0.68
A44: Megaflex Gen - CPP: 50 days / 8 hours (6:00-14:00) 400 critical peak hours per year CRITICAL PEAK DAY rates for CRITICAL PEAK days | B44: GUCPPf2 | C44: 0 | D44: 1 | E44: =B44&C44&D44&IF($A$2="Non-municipal","N",IF($A$2="Municiple","Y","error")) -> GUCPPf201N | H44: Key customers or Transmission connected generators | J44: 5850.83 | K44: =ROUND(J44 * (1 + VAT), 2) -> 6728.45 | L44: 186.85 | M44: =ROUND(L44 * (1 + VAT), 2) -> 214.88 | Q44: ≥ 66kV & ≤ 132kV | S44: 0.57 | T44: =ROUND(S44 * (1 + VAT), 2) -> 0.66
Q45: > 132kV | S45: 0.53 | T45: =ROUND(S45 * (1 + VAT), 2) -> 0.61 | Y45: ='Loss Factors'!R10 -> 0
H46: Applicable to loads | Q46: * 132 kV or Transmission connected
H47: Electrification and rural network subsidy charge [c/kWh] | J47: Affordability subsidy charge [c/kWh] Only payable by non-local authority tariffs
M48: Reactive energy charge [c/kVArh] (loads)
M49: High season | O49: Low season
A50: Tariff | B50: Tariff nameBillcode | C50: Tx zone | D50: Voltage | E50: Billcode | I50: VAT incl | K50: VAT incl | N50: VAT incl | P50: VAT incl
A51: Megaflex Gen - CPP: 50 days / 8 hours (6:00-14:00) 400 critical peak hours per year CRITICAL PEAK DAY rates for CRITICAL PEAK days | B51: GUCPPf2 | C51: 0 | D51: 1 | E51: =B51&C51&D51&IF($A$2="Non-municipal","N",IF($A$2="Municiple","Y","error")) -> GUCPPf201N | H51: 11.63 | I51: =ROUND(H51 * (1 + VAT), 2) -> 13.37 | J51: 5.69 | K51: =ROUND(J51 * (1 + VAT), 2) -> 6.54 | M51: 21.03 | N51: =ROUND(M51 * (1 + VAT), 2) -> 24.18 | O51: 0 | P51: =ROUND(O51 * (1 + VAT), 2) -> 0
H54: Losses charge for generators
H55: Distribution connected generators | M55: Transmission connected generators
H56: Formula | M56: Formula
H57: Distribution = - ((Energy produced x WEPS rate excluding losses) x (Distribution loss factor x Transmission loss factor-1)) in each TOU period | M57: Transmission = (Energy produced x WEPS rate excluding losses) x (Transmission loss factor-1/Transmission loss factor) in each TOU period
H58: Transmission loss factors for Distribution connected | K58: Distribution loss factors | M58: Generator loss factor
H59: Distance from Johannesburg | K59: ='Loss Factors'!N5 -> Voltage | M59: =' TUoS NLA'!I38 -> Cape | O59: =' TUoS NLA'!J38 -> 0.971
H60: ='Loss Factors'!R6 -> ≤ 300km | J60: ='Loss Factors'!T6 -> 1.0107 | K60: < 500V | L60: ='Loss Factors'!O6 -> 1.1111 | M60: =' TUoS NLA'!I39 -> Karoo | O60: =' TUoS NLA'!J39 -> 0.995
H61: ='Loss Factors'!R7 -> > 300km & ≤ 600km | J61: ='Loss Factors'!T7 -> 1.0208 | K61: ≥ 500V & < 66kV | L61: ='Loss Factors'!O7 -> 1.0957 | M61: =' TUoS NLA'!I40 -> Kwazulu-Natal | O61: =' TUoS NLA'!J40 -> 1.004
H62: ='Loss Factors'!R8 -> > 600km & ≤ 900km | J62: ='Loss Factors'!T8 -> 1.031 | K62: ≥ 66kV & ≤ 132kV | L62: ='Loss Factors'!O8 -> 1.0611 | M62: =' TUoS NLA'!I41 -> Vaal | O62: =' TUoS NLA'!J41 -> 1.02
H63: ='Loss Factors'!R9 -> > 900km | J63: ='Loss Factors'!T9 -> 1.0413 | K63: > 132kV* | L63: ='Loss Factors'!O9 -> 1 | M63: =' TUoS NLA'!I42 -> Waterberg | O63: =' TUoS NLA'!J42 -> 1.023
H64: * 132 kV or Transmission connected | M64: =' TUoS NLA'!I43 -> Mpumalanga | O64: =' TUoS NLA'!J43 -> 1.021

Sheet Megaflex Gen 16h for 25dy CPP C (hidden)
G1: Back to menu
A2: Non-municipal | G2: Megaflex Gen - Non-local authority
V4: Transmission network charges [R/kVA/m]
H5: Transmission zone
I6: Voltage
A7: Tariff | B7: Tariff nameBillcode | C7: Tx zone | D7: Voltage | E7: Billcode | W7: VAT incl
A8: Megaflex Gen - CPP: 25 days / 16 hours (6:00-22:00) 400 critical peak hours per year CRITICAL PEAK DAY rates for CRITICAL PEAK days | B8: GUCPPf | C8: 0 | D8: 1 | E8: =B8&C8&D8&IF($A$2="Non-municipal","N",IF($A$2="Municiple","Y","error")) -> GUCPPf01N | H8: ≤ 300km | I8: < 500V | V8: 13.09 | W8: =ROUND(V8 * (1 + VAT), 2) -> 15.05
A9: Megaflex Gen - CPP: 25 days / 16 hours (6:00-22:00) 400 critical peak hours per year CRITICAL PEAK DAY rates for CRITICAL PEAK days | B9: GUCPPf | C9: 0 | D9: 2 | E9: GUCPPf02N | I9: ≥ 500V & < 66kV | V9: 11.96 | W9: 13.75
A10: Megaflex Gen - CPP: 25 days / 16 hours (6:00-22:00) 400 critical peak hours per year CRITICAL PEAK DAY rates for CRITICAL PEAK days | B10: GUCPPf | C10: 0 | D10: 3 | E10: GUCPPf03N | I10: ≥ 66kV & ≤ 132kV | V10: 11.64 | W10: 13.39
A11: Megaflex Gen - CPP: 25 days / 16 hours (6:00-22:00) 400 critical peak hours per year CRITICAL PEAK DAY rates for CRITICAL PEAK days | B11: GUCPPf | C11: 0 | D11: 4 | E11: GUCPPf04N | I11: > 132kV* | V11: 14.72 | W11: 16.93
A12: Megaflex Gen - CPP: 25 days / 16 hours (6:00-22:00) 400 critical peak hours per year CRITICAL PEAK DAY rates for CRITICAL PEAK days | B12: GUCPPf | C12: 1 | D12: 1 | E12: GUCPPf11N | H12: > 300km and ≤ 600km | I12: < 500V | V12: 13.18 | W12: 15.16
A13: Megaflex Gen - CPP: 25 days / 16 hours (6:00-22:00) 400 critical peak hours per year CRITICAL PEAK DAY rates for CRITICAL PEAK days | B13: GUCPPf | C13: 1 | D13: 2 | E13: GUCPPf12N | I13: ≥ 500V & < 66kV | V13: 12.07 | W13: 13.88
A14: Megaflex Gen - CPP: 25 days / 16 hours (6:00-22:00) 400 critical peak hours per year CRITICAL PEAK DAY rates for CRITICAL PEAK days | B14: GUCPPf | C14: 1 | D14: 3 | E14: GUCPPf13N | I14: ≥ 66kV & ≤ 132kV | V14: 11.73 | W14: 13.49
A15: Megaflex Gen - CPP: 25 days / 16 hours (6:00-22:00) 400 critical peak hours per year CRITICAL PEAK DAY rates for CRITICAL PEAK days | B15: GUCPPf | C15: 1 | D15: 4 | E15: GUCPPf14N | I15: > 132kV* | V15: 14.85 | W15: 17.08
A16: Megaflex Gen - CPP: 25 days / 16 hours (6:00-22:00) 400 critical peak hours per year CRITICAL PEAK DAY rates for CRITICAL PEAK days | B16: GUCPPf | C16: 2 | D16: 1 | E16: GUCPPf21N | H16: > 600km and ≤ 900km | I16: < 500V | V16: 13.33 | W16: 15.33
A17: Megaflex Gen - CPP: 25 days / 16 hours (6:00-22:00) 400 critical peak hours per year CRITICAL PEAK DAY rates for CRITICAL PEAK days | B17: GUCPPf | C17: 2 | D17: 2 | E17: GUCPPf22N | I17: ≥ 500V & < 66kV | V17: 12.18 | W17: 14.01
A18: Megaflex Gen - CPP: 25 days / 16 hours (6:00-22:00) 400 critical peak hours per year CRITICAL PEAK DAY rates for CRITICAL PEAK days | B18: GUCPPf | C18: 2 | D18: 3 | E18: GUCPPf23N | I18: ≥ 66kV & ≤ 132kV | V18: 11.8 | W18: 13.57
A19: Megaflex Gen - CPP: 25 days / 16 hours (6:00-22:00) 400 critical peak hours per year CRITICAL PEAK DAY rates for CRITICAL PEAK days | B19: GUCPPf | C19: 2 | D19: 4 | E19: GUCPPf24N | I19: > 132kV* | V19: 15.07 | W19: 17.33
A20: Megaflex Gen - CPP: 25 days / 16 hours (6:00-22:00) 400 critical peak hours per year CRITICAL PEAK DAY rates for CRITICAL PEAK days | B20: GUCPPf | C20: 3 | D20: 1 | E20: GUCPPf31N | H20: > 900km | I20: < 500V | V20: 13.42 | W20: 15.43
A21: Megaflex Gen - CPP: 25 days / 16 hours (6:00-22:00) 400 critical peak hours per year CRITICAL PEAK DAY rates for CRITICAL PEAK days | B21: GUCPPf | C21: 3 | D21: 2 | E21: GUCPPf32N | I21: ≥ 500V & < 66kV | V21: 12.32 | W21: 14.17
A22: Megaflex Gen - CPP: 25 days / 16 hours (6:00-22:00) 400 critical peak hours per year CRITICAL PEAK DAY rates for CRITICAL PEAK days | B22: GUCPPf | C22: 3 | D22: 3 | E22: GUCPPf33N | I22: ≥ 66kV & ≤ 132kV | V22: 11.91 | W22: 13.7
A23: Megaflex Gen - CPP: 25 days / 16 hours (6:00-22:00) 400 critical peak hours per year CRITICAL PEAK DAY rates for CRITICAL PEAK days | B23: GUCPPf | C23: 3 | D23: 4 | E23: GUCPPf34N | I23: > 132kV* | V23: 15.18 | W23: 17.46
A24: Gen-purchase | B24: NLPurchADJ | C24: 0 | D24: 4 | E24: NLPurchADJ04N | H24: WEPS energy rate excluding losses
A25: TUoS network charges for Transmission connected generators | B25: GenTUOS | C25: Cape | D25: 4 | E25: GenTUOSCape4N | I25: * 132 kV or Transmission connected
A26: TUoS network charges for Transmission connected generators | B26: GenTUOS | C26: Karoo | D26: 4 | E26: GenTUOSKaroo4N
A27: TUoS network charges for Transmission connected generators | B27: GenTUOS | C27: Kwazulu-Natal | D27: 4 | E27: GenTUOSKwazulu-Natal4N | H27: Distribution network charges for loads | Q27: Transmission network charges for generators | U27: Distribution network charges for generators*
A28: TUoS network charges for Transmission connected generators | B28: GenTUOS | C28: Vaal | D28: 4 | E28: GenTUOSVaal4N | J28: Network capacity charge [R/kVA/m] | L28: Network demand charge [R/kVA/m] | N28: Urban low voltage subsidy charge [R/kVA/m]
A29: TUoS network charges for Transmission connected generators | B29: GenTUOS | C29: Waterburg | D29: 4 | E29: GenTUOSWaterburg4N | H29: Voltage | Q29: TUoS [ > 132kV] | S29: Network charge [R/kW] | U29: Voltage | W29: Network capacity charge [R/kW/m]
A30: TUoS network charges for Transmission connected generators | B30: GenTUOS | C30: Mpumalanga | D30: 4 | E30: GenTUOSMpumalanga4N | H30: Voltage | K30: VAT incl | M30: VAT incl | O30: VAT incl | T30: VAT incl
A31: Megaflex Gen - CPP: 25 days / 16 hours (6:00-22:00) 400 critical peak hours per year CRITICAL PEAK DAY rates for CRITICAL PEAK days | B31: GUCPPf | C31: 0 | D31: 1 | E31: GUCPPf01N | H31: < 500V | J31: 26.01 | K31: =ROUND(J31 * (1 + VAT), 2) -> 29.91 | L31: 49.31 | M31: =ROUND(L31 * (1 + VAT), 2) -> 56.71 | N31: 0 | O31: =ROUND(N31 * (1 + VAT), 2) -> 0 | Q31: Cape | S31: 0 | T31: =ROUND(S31 * (1 + VAT), 2) -> 0 | X31: VAT incl
A32: Megaflex Gen - CPP: 25 days / 16 hours (6:00-22:00) 400 critical peak hours per year CRITICAL PEAK DAY rates for CRITICAL PEAK days | B32: GUCPPf | C32: 0 | D32: 2 | E32: GUCPPf02N | H32: ≥ 500V & < 66kV | J32: 23.85 | K32: =ROUND(J32 * (1 + VAT), 2) -> 27.43 | L32: 45.24 | M32: =ROUND(L32 * (1 + VAT), 2) -> 52.03 | N32: 0 | O32: =ROUND(N32 * (1 + VAT), 2) -> 0 | Q32: Karoo | S32: 0 | T32: 0 | U32: < 500V
A33: Megaflex Gen - CPP: 25 days / 16 hours (6:00-22:00) 400 critical peak hours per year CRITICAL PEAK DAY rates for CRITICAL PEAK days | B33: GUCPPf | C33: 0 | D33: 3 | E33: GUCPPf03N | H33: ≥ 66kV & ≤ 132kV | J33: 8.52 | K33: =ROUND(J33 * (1 + VAT), 2) -> 9.8 | L33: 15.77 | M33: =ROUND(L33 * (1 + VAT), 2) -> 18.14 | N33: 21.01 | O33: =ROUND(N33 * (1 + VAT), 2) -> 24.16 | Q33: Kwazulu-Natal | S33: 3.09 | T33: 3.55 | U33: ≥ 500V & < 66kV
A34: Megaflex Gen - CPP: 25 days / 16 hours (6:00-22:00) 400 critical peak hours per year CRITICAL PEAK DAY rates for CRITICAL PEAK days | B34: GUCPPf | C34: 0 | D34: 4 | E34: GUCPPf04N | H34: > 132kV / Transmission connected | J34: 0 | K34: =ROUND(J34 * (1 + VAT), 2) -> 0 | L34: 0 | M34: =ROUND(L34 * (1 + VAT), 2) -> 0 | N34: 21.01 | O34: =ROUND(N34 * (1 + VAT), 2) -> 24.16 | Q34: Vaal | S34: 10.29 | T34: 11.83 | U34: ≥ 66kV & ≤ 132kV | W34: 0 | X34: =ROUND(W34 * (1 + VAT), 2) -> 0
A35: Gen-DUoS urban | B35: NEGenDUoSU | C35: 0 | D35: 3 | E35: NEGenDUoSU03N | Q35: Waterberg | S35: 13.18 | T35: 15.16 | U35: * The Distribution network charge will be rebated by the Losses charge, but not beyond extintion
Q36: Mpumalanga | S36: 12.23 | T36: 14.06
H37: Customer categories | J37: Service charge [R/account/day] | L37: Administration charge [R/POD/day]
H38: [kVA or MVA = loads] | Q38: Ancillary service charge for loads and generators
A39: Tariff | B39: Tariff nameBillcode | C39: Tx zone | D39: Voltage | E39: Billcode | H39: [kW or MW = generators] | K39: VAT incl | M39: VAT incl
A40: Megaflex Gen - CPP: 25 days / 16 hours (6:00-22:00) 400 critical peak hours per year CRITICAL PEAK DAY rates for CRITICAL PEAK days | B40: GUCPPf | C40: 0 | D40: 1 | E40: =B40&C40&D40&IF($A$2="Non-municipal","N",IF($A$2="Municiple","Y","error")) -> GUCPPf01N | H40: ≤ 100 KVA/ kW | J40: 21.25 | K40: =ROUND(J40 * (1 + VAT), 2) -> 24.44 | L40: 4.67 | M40: =ROUND(L40 * (1 + VAT), 2) -> 5.37 | Q40: Voltage | S40: Ancillary service charge [c/kWh]
A41: Megaflex Gen - CPP: 25 days / 16 hours (6:00-22:00) 400 critical peak hours per year CRITICAL PEAK DAY rates for CRITICAL PEAK days | B41: GUCPPf | C41: 0 | D41: 1 | E41: =B41&C41&D41&IF($A$2="Non-municipal","N",IF($A$2="Municiple","Y","error")) -> GUCPPf01N | H41: > 100 kVA/ kW & ≤ 500 kVA/ kW | J41: 97.04 | K41: =ROUND(J41 * (1 + VAT), 2) -> 111.6 | L41: 27.22 | M41: =ROUND(L41 * (1 + VAT), 2) -> 31.3 | T41: VAT incl
A42: Megaflex Gen - CPP: 25 days / 16 hours (6:00-22:00) 400 critical peak hours per year CRITICAL PEAK DAY rates for CRITICAL PEAK days | B42: GUCPPf | C42: 0 | D42: 1 | E42: =B42&C42&D42&IF($A$2="Non-municipal","N",IF($A$2="Municiple","Y","error")) -> GUCPPf01N | H42: > 500 kVA/ kW & ≤ 1 MVA/MW | J42: 298.57 | K42: =ROUND(J42 * (1 + VAT), 2) -> 343.36 | L42: 54.04 | M42: =ROUND(L42 * (1 + VAT), 2) -> 62.15 | Q42: < 500V | S42: 0.6 | T42: =ROUND(S42 * (1 + VAT), 2) -> 0.69
A43: Megaflex Gen - CPP: 25 days / 16 hours (6:00-22:00) 400 critical peak hours per year CRITICAL PEAK DAY rates for CRITICAL PEAK days | B43: GUCPPf | C43: 0 | D43: 1 | E43: =B43&C43&D43&IF($A$2="Non-municipal","N",IF($A$2="Municiple","Y","error")) -> GUCPPf01N | H43: > 1 MVA/MW | J43: 298.57 | K43: =ROUND(J43 * (1 + VAT), 2) -> 343.36 | L43: 134.56 | M43: =ROUND(L43 * (1 + VAT), 2) -> 154.74 | Q43: ≥ 500V & < 66kV | S43: 0.59 | T43: =ROUND(S43 * (1 + VAT), 2) -> 0.68
A44: Megaflex Gen - CPP: 25 days / 16 hours (6:00-22:00) 400 critical peak hours per year CRITICAL PEAK DAY rates for CRITICAL PEAK days | B44: GUCPPf | C44: 0 | D44: 1 | E44: =B44&C44&D44&IF($A$2="Non-municipal","N",IF($A$2="Municiple","Y","error")) -> GUCPPf01N | H44: Key customers or Transmission connected generators | J44: 5850.83 | K44: =ROUND(J44 * (1 + VAT), 2) -> 6728.45 | L44: 186.85 | M44: =ROUND(L44 * (1 + VAT), 2) -> 214.88 | Q44: ≥ 66kV & ≤ 132kV | S44: 0.57 | T44: =ROUND(S44 * (1 + VAT), 2) -> 0.66
Q45: > 132kV | S45: 0.53 | T45: =ROUND(S45 * (1 + VAT), 2) -> 0.61 | Y45: ='Loss Factors'!R10 -> 0
H46: Applicable to loads | Q46: * 132 kV or Transmission connected
H47: Electrification and rural network subsidy charge [c/kWh] | J47: Affordability subsidy charge [c/kWh] Only payable by non-local authority tariffs
M48: Reactive energy charge [c/kVArh] (loads)
M49: High season | O49: Low season
A50: Tariff | B50: Tariff nameBillcode | C50: Tx zone | D50: Voltage | E50: Billcode | I50: VAT incl | K50: VAT incl | N50: VAT incl | P50: VAT incl
A51: Megaflex Gen - CPP: 25 days / 16 hours (6:00-22:00) 400 critical peak hours per year CRITICAL PEAK DAY rates for CRITICAL PEAK days | B51: GUCPPf | C51: 0 | D51: 1 | E51: =B51&C51&D51&IF($A$2="Non-municipal","N",IF($A$2="Municiple","Y","error")) -> GUCPPf01N | H51: 11.63 | I51: =ROUND(H51 * (1 + VAT), 2) -> 13.37 | J51: 5.69 | K51: =ROUND(J51 * (1 + VAT), 2) -> 6.54 | M51: 21.03 | N51: =ROUND(M51 * (1 + VAT), 2) -> 24.18 | O51: 0 | P51: =ROUND(O51 * (1 + VAT), 2) -> 0
H54: Losses charge for generators
H55: Distribution connected generators | M55: Transmission connected generators
H56: Formula | M56: Formula
H57: Distribution = - ((Energy produced x WEPS rate excluding losses) x (Distribution loss factor x Transmission loss factor-1)) in each TOU period | M57: Transmission = (Energy produced x WEPS rate excluding losses) x (Transmission loss factor-1/Transmission loss factor) in each TOU period
H58: Transmission loss factors for Distribution connected | K58: Distribution loss factors | M58: Generator loss factor
H59: Distance from Johannesburg | K59: ='Loss Factors'!N5 -> Voltage | M59: =' TUoS NLA'!I38 -> Cape | O59: =' TUoS NLA'!J38 -> 0.971
H60: ='Loss Factors'!R6 -> ≤ 300km | J60: ='Loss Factors'!T6 -> 1.0107 | K60: < 500V | L60: ='Loss Factors'!O6 -> 1.1111 | M60: =' TUoS NLA'!I39 -> Karoo | O60: =' TUoS NLA'!J39 -> 0.995
H61: ='Loss Factors'!R7 -> > 300km & ≤ 600km | J61: ='Loss Factors'!T7 -> 1.0208 | K61: ≥ 500V & < 66kV | L61: ='Loss Factors'!O7 -> 1.0957 | M61: =' TUoS NLA'!I40 -> Kwazulu-Natal | O61: =' TUoS NLA'!J40 -> 1.004
H62: ='Loss Factors'!R8 -> > 600km & ≤ 900km | J62: ='Loss Factors'!T8 -> 1.031 | K62: ≥ 66kV & ≤ 132kV | L62: ='Loss Factors'!O8 -> 1.0611 | M62: =' TUoS NLA'!I41 -> Vaal | O62: =' TUoS NLA'!J41 -> 1.02
H63: ='Loss Factors'!R9 -> > 900km | J63: ='Loss Factors'!T9 -> 1.0413 | K63: > 132kV* | L63: ='Loss Factors'!O9 -> 1 | M63: =' TUoS NLA'!I42 -> Waterberg | O63: =' TUoS NLA'!J42 -> 1.023
H64: * 132 kV or Transmission connected | M64: =' TUoS NLA'!I43 -> Mpumalanga | O64: =' TUoS NLA'!J43 -> 1.021

Sheet Miniflex 8hrs for 50day CPP C (hidden)
G1: Back to menu
A2: Non-municipal | G2: Miniflex - Non-Local Authority
V4: Network capacity charge [R/kVA/m]
H5: Transmission zone
I6: Voltage
A7: Tariff | B7: Tariff nameBillcode | C7: Tx zone | D7: Voltage | E7: Billcode | W7: VAT incl
A8: Miniflex - CPP: 50 days / 8 hours (6:00-14:00) 400 critical peak hours per year CRITICAL PEAK DAY rates for CRITICAL PEAK days | B8: MiCPPf2 | C8: 0 | D8: 1 | E8: =B8&C8&D8&IF($A$2="Non-municipal","N",IF($A$2="Municiple","Y","error")) -> MiCPPf201N | H8: ≤ 300km | I8: < 500V | V8: 39.04 | W8: =ROUND(V8 * (1 + VAT), 2) -> 44.9
A9: Miniflex - CPP: 50 days / 8 hours (6:00-14:00) 400 critical peak hours per year CRITICAL PEAK DAY rates for CRITICAL PEAK days | B9: MiCPPf2 | C9: 0 | D9: 2 | E9: =B9&C9&D9&IF($A$2="Non-municipal","N",IF($A$2="Municiple","Y","error")) -> MiCPPf202N | I9: ≥ 500V & < 66kV | V9: 35.79 | W9: 41.16
A10: Miniflex - CPP: 50 days / 8 hours (6:00-14:00) 400 critical peak hours per year CRITICAL PEAK DAY rates for CRITICAL PEAK days | B10: MiCPPf2 | C10: 0 | D10: 3 | E10: MiCPPf203N | I10: ≥ 66kV & ≤ 132kV | V10: 20.1 | W10: 23.12
A11: Miniflex - CPP: 50 days / 8 hours (6:00-14:00) 400 critical peak hours per year CRITICAL PEAK DAY rates for CRITICAL PEAK days | B11: MiCPPf2 | C11: 0 | D11: 4 | E11: MiCPPf204N | I11: > 132kV* | V11: 14.65 | W11: 16.85
A12: Miniflex - CPP: 50 days / 8 hours (6:00-14:00) 400 critical peak hours per year CRITICAL PEAK DAY rates for CRITICAL PEAK days | B12: MiCPPf2 | C12: 1 | D12: 1 | E12: MiCPPf211N | H12: > 300km and ≤ 600km | I12: < 500V | V12: 39.14 | W12: 45.01
A13: Miniflex - CPP: 50 days / 8 hours (6:00-14:00) 400 critical peak hours per year CRITICAL PEAK DAY rates for CRITICAL PEAK days | B13: MiCPPf2 | C13: 1 | D13: 2 | E13: MiCPPf212N | I13: ≥ 500V & < 66kV | V13: 35.9 | W13: 41.29
A14: Miniflex - CPP: 50 days / 8 hours (6:00-14:00) 400 critical peak hours per year CRITICAL PEAK DAY rates for CRITICAL PEAK days | B14: MiCPPf2 | C14: 1 | D14: 3 | E14: MiCPPf213N | I14: ≥ 66kV & ≤ 132kV | V14: 20.18 | W14: 23.21
A15: Miniflex - CPP: 50 days / 8 hours (6:00-14:00) 400 critical peak hours per year CRITICAL PEAK DAY rates for CRITICAL PEAK days | B15: MiCPPf2 | C15: 1 | D15: 4 | E15: MiCPPf214N | I15: > 132kV* | V15: 14.81 | W15: 17.03
A16: Miniflex - CPP: 50 days / 8 hours (6:00-14:00) 400 critical peak hours per year CRITICAL PEAK DAY rates for CRITICAL PEAK days | B16: MiCPPf2 | C16: 2 | D16: 1 | E16: MiCPPf221N | H16: > 600km and ≤ 900km | I16: < 500V | V16: 39.33 | W16: 45.23
A17: Miniflex - CPP: 50 days / 8 hours (6:00-14:00) 400 critical peak hours per year CRITICAL PEAK DAY rates for CRITICAL PEAK days | B17: MiCPPf2 | C17: 2 | D17: 2 | E17: MiCPPf222N | I17: ≥ 500V & < 66kV | V17: 36.01 | W17: 41.41
A18: Miniflex - CPP: 50 days / 8 hours (6:00-14:00) 400 critical peak hours per year CRITICAL PEAK DAY rates for CRITICAL PEAK days | B18: MiCPPf2 | C18: 2 | D18: 3 | E18: MiCPPf223N | I18: ≥ 66kV & ≤ 132kV | V18: 20.3 | W18: 23.35
A19: Miniflex - CPP: 50 days / 8 hours (6:00-14:00) 400 critical peak hours per year CRITICAL PEAK DAY rates for CRITICAL PEAK days | B19: MiCPPf2 | C19: 2 | D19: 4 | E19: MiCPPf224N | I19: > 132kV* | V19: 15.02 | W19: 17.27
A20: Miniflex - CPP: 50 days / 8 hours (6:00-14:00) 400 critical peak hours per year CRITICAL PEAK DAY rates for CRITICAL PEAK days | B20: MiCPPf2 | C20: 3 | D20: 1 | E20: MiCPPf231N | H20: > 900km | I20: < 500V | V20: 39.36 | W20: 45.26
A21: Miniflex - CPP: 50 days / 8 hours (6:00-14:00) 400 critical peak hours per year CRITICAL PEAK DAY rates for CRITICAL PEAK days | B21: MiCPPf2 | C21: 3 | D21: 2 | E21: MiCPPf232N | I21: ≥ 500V & < 66kV | V21: 36.13 | W21: 41.55
A22: Miniflex - CPP: 50 days / 8 hours (6:00-14:00) 400 critical peak hours per year CRITICAL PEAK DAY rates for CRITICAL PEAK days | B22: MiCPPf2 | C22: 3 | D22: 3 | E22: MiCPPf233N | I22: ≥ 66kV & ≤ 132kV | V22: 20.38 | W22: 23.44
A23: Miniflex - CPP: 50 days / 8 hours (6:00-14:00) 400 critical peak hours per year CRITICAL PEAK DAY rates for CRITICAL PEAK days | B23: MiCPPf2 | C23: 3 | D23: 4 | E23: MiCPPf234N | I23: > 132kV* | V23: 15.13 | W23: 17.4
I24: * 132 kV or Transmission connected
H26: Customer categories | J26: Service charge [R/account/day] | L26: Administration charge [R/POD/day]
A28: Tariff | B28: Tariff nameBillcode | C28: Tx zone | D28: Voltage | E28: Billcode | K28: VAT incl | M28: VAT incl | P28: Ancillary service charge [c/kWh] | R28: Network demand charge [c/kWh] [Peak & Standard] | U28: Urban low voltage subsidy charge [R/kVA/m]
A29: Miniflex - CPP: 50 days / 8 hours (6:00-14:00) 400 critical peak hours per year CRITICAL PEAK DAY rates for CRITICAL PEAK days | B29: MiCPPf2 | C29: 0 | D29: 1 | E29: =B29&C29&D29&IF($A$2="Non-municipal","N",IF($A$2="Municiple","Y","error")) -> MiCPPf201N | H29: ≤ 100 kVA | J29: 21.25 | K29: =ROUND(J29 * (1 + VAT), 2) -> 24.44 | L29: 4.67 | M29: =ROUND(L29 * (1 + VAT), 2) -> 5.37 | O29: Voltage | Q29: VAT incl | S29: VAT incl | W29: VAT incl
A30: Miniflex - CPP: 50 days / 8 hours (6:00-14:00) 400 critical peak hours per year CRITICAL PEAK DAY rates for CRITICAL PEAK days | B30: MiCPPf2 | C30: 0 | D30: 1 | E30: =B30&C30&D30&IF($A$2="Non-municipal","N",IF($A$2="Municiple","Y","error")) -> MiCPPf201N | H30: > 100 kVA & ≤ 500 kVA | J30: 97.04 | K30: =ROUND(J30 * (1 + VAT), 2) -> 111.6 | L30: 27.22 | M30: =ROUND(L30 * (1 + VAT), 2) -> 31.3 | O30: < 500V | P30: 0.57 | Q30: =ROUND(P30 * (1 + VAT), 2) -> 0.66 | R30: 24.17 | S30: =ROUND(R30 * (1 + VAT), 2) -> 27.8 | U30: < 500V | V30: 21.01 | W30: =ROUND(V30 * (1 + VAT), 2) -> 24.16
A31: Miniflex - CPP: 50 days / 8 hours (6:00-14:00) 400 critical peak hours per year CRITICAL PEAK DAY rates for CRITICAL PEAK days | B31: MiCPPf2 | C31: 0 | D31: 1 | E31: =B31&C31&D31&IF($A$2="Non-municipal","N",IF($A$2="Municiple","Y","error")) -> MiCPPf201N | H31: > 500 kVA & ≤ 1 MVA | J31: 298.57 | K31: =ROUND(J31 * (1 + VAT), 2) -> 343.36 | L31: 54.04 | M31: =ROUND(L31 * (1 + VAT), 2) -> 62.15 | O31: ≥ 500V & < 66kV | P31: 0.53 | Q31: =ROUND(P31 * (1 + VAT), 2) -> 0.61 | R31: 10.13 | S31: =ROUND(R31 * (1 + VAT), 2) -> 11.65 | U31: ≥ 500V & < 66kV | V31: 21.01 | W31: =ROUND(V31 * (1 + VAT), 2) -> 24.16
A32: Miniflex - CPP: 50 days / 8 hours (6:00-14:00) 400 critical peak hours per year CRITICAL PEAK DAY rates for CRITICAL PEAK days | B32: MiCPPf2 | C32: 0 | D32: 1 | E32: =B32&C32&D32&IF($A$2="Non-municipal","N",IF($A$2="Municiple","Y","error")) -> MiCPPf201N | H32: > 1 MVA | J32: 298.57 | K32: =ROUND(J32 * (1 + VAT), 2) -> 343.36 | L32: 134.56 | M32: =ROUND(L32 * (1 + VAT), 2) -> 154.74 | O32: ≥ 66kV & ≤ 132kV | P32: 0.6 | Q32: =ROUND(P32 * (1 + VAT), 2) -> 0.69 | R32: 3.53 | S32: =ROUND(R32 * (1 + VAT), 2) -> 4.06 | U32: ≥ 66kV & ≤ 132kV | V32: 0 | W32: =ROUND(V32 * (1 + VAT), 2) -> 0
A33: Miniflex - CPP: 50 days / 8 hours (6:00-14:00) 400 critical peak hours per year CRITICAL PEAK DAY rates for CRITICAL PEAK days | B33: MiCPPf2 | C33: 0 | D33: 1 | E33: =B33&C33&D33&IF($A$2="Non-municipal","N",IF($A$2="Municiple","Y","error")) -> MiCPPf201N | H33: Key customers | J33: 5850.83 | K33: =ROUND(J33 * (1 + VAT), 2) -> 6728.45 | L33: 186.85 | M33: =ROUND(L33 * (1 + VAT), 2) -> 214.88 | O33: > 132kV* | P33: 0.59 | Q33: =ROUND(P33 * (1 + VAT), 2) -> 0.68 | R33: 0 | S33: =ROUND(R33 * (1 + VAT), 2) -> 0 | U33: > 132kV* | V33: 0 | W33: =ROUND(V33 * (1 + VAT), 2) -> 0
O34: * 132 kV or Transmission connected | U34: * 132 kV or Transmission connected
H36: Electrification and rural network subsidy charge [c/kWh] | J36: Affordability subsidy charge [c/kWh] Only payable by non-local authority tariffs | O36: Reactive energy charge [c/kVArh]
O38: High season | Q38: Low season
A39: Tariff | B39: Tariff nameBillcode | C39: Tx zone | D39: Voltage | E39: Billcode | I39: VAT incl | K39: VAT incl | P39: VAT incl | R39: VAT incl
A40: Miniflex - CPP: 50 days / 8 hours (6:00-14:00) 400 critical peak hours per year CRITICAL PEAK DAY rates for CRITICAL PEAK days | B40: MiCPPf2 | C40: 0 | D40: 1 | E40: =B40&C40&D40&IF($A$2="Non-municipal","N",IF($A$2="Municiple","Y","error")) -> MiCPPf201N | H40: 11.63 | I40: =ROUND(H40 * (1 + VAT), 2) -> 13.37 | J40: 5.69 | K40: =ROUND(J40 * (1 + VAT), 2) -> 6.54 | O40: 9.16 | P40: =ROUND(O40 * (1 + VAT), 2) -> 10.53 | Q40: 0 | R40: =ROUND(Q40 * (1 + VAT), 2) -> 0
A42: Miniflex - CPP: 50 days / 8 hours (6:00-14:00) 400 critical peak hours per year CRITICAL PEAK DAY rates for CRITICAL PEAK days | B42: MiCPPf2 | C42: 0 | D42: 1 | E42: =B42&C42&D42&IF($A$2="Non-municipal","N",IF($A$2="Municiple","Y","error")) -> MiCPPf201N
A43: Miniflex - CPP: 50 days / 8 hours (6:00-14:00) 400 critical peak hours per year CRITICAL PEAK DAY rates for CRITICAL PEAK days | B43: MiCPPf2 | C43: 1 | D43: 2 | E43: =B43&C43&D43&IF($A$2="Non-municipal","N",IF($A$2="Municiple","Y","error")) -> MiCPPf212N
A44: Miniflex - CPP: 50 days / 8 hours (6:00-14:00) 400 critical peak hours per year CRITICAL PEAK DAY rates for CRITICAL PEAK days | B44: MiCPPf2 | C44: 2 | D44: 3 | E44: =B44&C44&D44&IF($A$2="Non-municipal","N",IF($A$2="Municiple","Y","error")) -> MiCPPf223N
A45: Miniflex - CPP: 50 days / 8 hours (6:00-14:00) 400 critical peak hours per year CRITICAL PEAK DAY rates for CRITICAL PEAK days | B45: MiCPPf2 | C45: 3 | D45: 4 | E45: =B45&C45&D45&IF($A$2="Non-municipal","N",IF($A$2="Municiple","Y","error")) -> MiCPPf234N

Sheet Miniflex 16hrs for 25day CPP C (hidden)
G1: Back to menu
A2: Non-municipal | G2: Miniflex - Non-Local Authority
V4: Network capacity charge [R/kVA/m]
H5: Transmission zone
I6: Voltage
A7: Tariff | B7: Tariff nameBillcode | C7: Tx zone | D7: Voltage | E7: Billcode | W7: VAT incl
A8: Miniflex - CPP: 25 days / 16 hours (6:00-22:00) 400 critical peak hours per year CRITICAL PEAK DAY rates for CRITICAL PEAK days | B8: MiCPPf | C8: 0 | D8: 1 | E8: =B8&C8&D8&IF($A$2="Non-municipal","N",IF($A$2="Municiple","Y","error")) -> MiCPPf01N | H8: ≤ 300km | I8: < 500V | V8: 39.04 | W8: =ROUND(V8 * (1 + VAT), 2) -> 44.9
A9: Miniflex - CPP: 25 days / 16 hours (6:00-22:00) 400 critical peak hours per year CRITICAL PEAK DAY rates for CRITICAL PEAK days | B9: MiCPPf | C9: 0 | D9: 2 | E9: =B9&C9&D9&IF($A$2="Non-municipal","N",IF($A$2="Municiple","Y","error")) -> MiCPPf02N | I9: ≥ 500V & < 66kV | V9: 35.79 | W9: 41.16
A10: Miniflex - CPP: 25 days / 16 hours (6:00-22:00) 400 critical peak hours per year CRITICAL PEAK DAY rates for CRITICAL PEAK days | B10: MiCPPf | C10: 0 | D10: 3 | E10: MiCPPf03N | I10: ≥ 66kV & ≤ 132kV | V10: 20.1 | W10: 23.12
A11: Miniflex - CPP: 25 days / 16 hours (6:00-22:00) 400 critical peak hours per year CRITICAL PEAK DAY rates for CRITICAL PEAK days | B11: MiCPPf | C11: 0 | D11: 4 | E11: MiCPPf04N | I11: > 132kV* | V11: 14.65 | W11: 16.85
A12: Miniflex - CPP: 25 days / 16 hours (6:00-22:00) 400 critical peak hours per year CRITICAL PEAK DAY rates for CRITICAL PEAK days | B12: MiCPPf | C12: 1 | D12: 1 | E12: MiCPPf11N | H12: > 300km and ≤ 600km | I12: < 500V | V12: 39.14 | W12: 45.01
A13: Miniflex - CPP: 25 days / 16 hours (6:00-22:00) 400 critical peak hours per year CRITICAL PEAK DAY rates for CRITICAL PEAK days | B13: MiCPPf | C13: 1 | D13: 2 | E13: MiCPPf12N | I13: ≥ 500V & < 66kV | V13: 35.9 | W13: 41.29
A14: Miniflex - CPP: 25 days / 16 hours (6:00-22:00) 400 critical peak hours per year CRITICAL PEAK DAY rates for CRITICAL PEAK days | B14: MiCPPf | C14: 1 | D14: 3 | E14: MiCPPf13N | I14: ≥ 66kV & ≤ 132kV | V14: 20.18 | W14: 23.21
A15: Miniflex - CPP: 25 days / 16 hours (6:00-22:00) 400 critical peak hours per year CRITICAL PEAK DAY rates for CRITICAL PEAK days | B15: MiCPPf | C15: 1 | D15: 4 | E15: MiCPPf14N | I15: > 132kV* | V15: 14.81 | W15: 17.03
A16: Miniflex - CPP: 25 days / 16 hours (6:00-22:00) 400 critical peak hours per year CRITICAL PEAK DAY rates for CRITICAL PEAK days | B16: MiCPPf | C16: 2 | D16: 1 | E16: MiCPPf21N | H16: > 600km and ≤ 900km | I16: < 500V | V16: 39.33 | W16: 45.23
A17: Miniflex - CPP: 25 days / 16 hours (6:00-22:00) 400 critical peak hours per year CRITICAL PEAK DAY rates for CRITICAL PEAK days | B17: MiCPPf | C17: 2 | D17: 2 | E17: MiCPPf22N | I17: ≥ 500V & < 66kV | V17: 36.01 | W17: 41.41
A18: Miniflex - CPP: 25 days / 16 hours (6:00-22:00) 400 critical peak hours per year CRITICAL PEAK DAY rates for CRITICAL PEAK days | B18: MiCPPf | C18: 2 | D18: 3 | E18: MiCPPf23N | I18: ≥ 66kV & ≤ 132kV | V18: 20.3 | W18: 23.35
A19: Miniflex - CPP: 25 days / 16 hours (6:00-22:00) 400 critical peak hours per year CRITICAL PEAK DAY rates for CRITICAL PEAK days | B19: MiCPPf | C19: 2 | D19: 4 | E19: MiCPPf24N | I19: > 132kV* | V19: 15.02 | W19: 17.27
A20: Miniflex - CPP: 25 days / 16 hours (6:00-22:00) 400 critical peak hours per year CRITICAL PEAK DAY rates for CRITICAL PEAK days | B20: MiCPPf | C20: 3 | D20: 1 | E20: MiCPPf31N | H20: > 900km | I20: < 500V | V20: 39.36 | W20: 45.26
A21: Miniflex - CPP: 25 days / 16 hours (6:00-22:00) 400 critical peak hours per year CRITICAL PEAK DAY rates for CRITICAL PEAK days | B21: MiCPPf | C21: 3 | D21: 2 | E21: MiCPPf32N | I21: ≥ 500V & < 66kV | V21: 36.13 | W21: 41.55
A22: Miniflex - CPP: 25 days / 16 hours (6:00-22:00) 400 critical peak hours per year CRITICAL PEAK DAY rates for CRITICAL PEAK days | B22: MiCPPf | C22: 3 | D22: 3 | E22: MiCPPf33N | I22: ≥ 66kV & ≤ 132kV | V22: 20.38 | W22: 23.44
A23: Miniflex - CPP: 25 days / 16 hours (6:00-22:00) 400 critical peak hours per year CRITICAL PEAK DAY rates for CRITICAL PEAK days | B23: MiCPPf | C23: 3 | D23: 4 | E23: MiCPPf34N | I23: > 132kV* | V23: 15.13 | W23: 17.4
I24: * 132 kV or Transmission connected
H26: Customer categories | J26: Service charge [R/account/day] | L26: Administration charge [R/POD/day]
A28: Tariff | B28: Tariff nameBillcode | C28: Tx zone | D28: Voltage | E28: Billcode | K28: VAT incl | M28: VAT incl | P28: Ancillary service charge [c/kWh] | R28: Network demand charge [c/kWh] [Peak & Standard] | U28: Urban low voltage subsidy charge [R/kVA/m]
A29: Miniflex - CPP: 25 days / 16 hours (6:00-22:00) 400 critical peak hours per year CRITICAL PEAK DAY rates for CRITICAL PEAK days | B29: MiCPPf | C29: 0 | D29: 1 | E29: =B29&C29&D29&IF($A$2="Non-municipal","N",IF($A$2="Municiple","Y","error")) -> MiCPPf01N | H29: ≤ 100 kVA | J29: 21.25 | K29: =ROUND(J29 * (1 + VAT), 2) -> 24.44 | L29: 4.67 | M29: =ROUND(L29 * (1 + VAT), 2) -> 5.37 | O29: Voltage | Q29: VAT incl | S29: VAT incl | W29: VAT incl
A30: Miniflex - CPP: 25 days / 16 hours (6:00-22:00) 400 critical peak hours per year CRITICAL PEAK DAY rates for CRITICAL PEAK days | B30: MiCPPf | C30: 0 | D30: 1 | E30: =B30&C30&D30&IF($A$2="Non-municipal","N",IF($A$2="Municiple","Y","error")) -> MiCPPf01N | H30: > 100 kVA & ≤ 500 kVA | J30: 97.04 | K30: =ROUND(J30 * (1 + VAT), 2) -> 111.6 | L30: 27.22 | M30: =ROUND(L30 * (1 + VAT), 2) -> 31.3 | O30: < 500V | P30: 0.57 | Q30: =ROUND(P30 * (1 + VAT), 2) -> 0.66 | R30: 24.17 | S30: =ROUND(R30 * (1 + VAT), 2) -> 27.8 | U30: < 500V | V30: 21.01 | W30: =ROUND(V30 * (1 + VAT), 2) -> 24.16
A31: Miniflex - CPP: 25 days / 16 hours (6:00-22:00) 400 critical peak hours per year CRITICAL PEAK DAY rates for CRITICAL PEAK days | B31: MiCPPf | C31: 0 | D31: 1 | E31: =B31&C31&D31&IF($A$2="Non-municipal","N",IF($A$2="Municiple","Y","error")) -> MiCPPf01N | H31: > 500 kVA & ≤ 1 MVA | J31: 298.57 | K31: =ROUND(J31 * (1 + VAT), 2) -> 343.36 | L31: 54.04 | M31: =ROUND(L31 * (1 + VAT), 2) -> 62.15 | O31: ≥ 500V & < 66kV | P31: 0.53 | Q31: =ROUND(P31 * (1 + VAT), 2) -> 0.61 | R31: 10.13 | S31: =ROUND(R31 * (1 + VAT), 2) -> 11.65 | U31: ≥ 500V & < 66kV | V31: 21.01 | W31: =ROUND(V31 * (1 + VAT), 2) -> 24.16
A32: Miniflex - CPP: 25 days / 16 hours (6:00-22:00) 400 critical peak hours per year CRITICAL PEAK DAY rates for CRITICAL PEAK days | B32: MiCPPf | C32: 0 | D32: 1 | E32: =B32&C32&D32&IF($A$2="Non-municipal","N",IF($A$2="Municiple","Y","error")) -> MiCPPf01N | H32: > 1 MVA | J32: 298.57 | K32: =ROUND(J32 * (1 + VAT), 2) -> 343.36 | L32: 134.56 | M32: =ROUND(L32 * (1 + VAT), 2) -> 154.74 | O32: ≥ 66kV & ≤ 132kV | P32: 0.6 | Q32: =ROUND(P32 * (1 + VAT), 2) -> 0.69 | R32: 3.53 | S32: =ROUND(R32 * (1 + VAT), 2) -> 4.06 | U32: ≥ 66kV & ≤ 132kV | V32: 0 | W32: =ROUND(V32 * (1 + VAT), 2) -> 0
A33: Miniflex - CPP: 25 days / 16 hours (6:00-22:00) 400 critical peak hours per year CRITICAL PEAK DAY rates for CRITICAL PEAK days | B33: MiCPPf | C33: 0 | D33: 1 | E33: =B33&C33&D33&IF($A$2="Non-municipal","N",IF($A$2="Municiple","Y","error")) -> MiCPPf01N | H33: Key customers | J33: 5850.83 | K33: =ROUND(J33 * (1 + VAT), 2) -> 6728.45 | L33: 186.85 | M33: =ROUND(L33 * (1 + VAT), 2) -> 214.88 | O33: > 132kV* | P33: 0.59 | Q33: =ROUND(P33 * (1 + VAT), 2) -> 0.68 | R33: 0 | S33: =ROUND(R33 * (1 + VAT), 2) -> 0 | U33: > 132kV* | V33: 0 | W33: =ROUND(V33 * (1 + VAT), 2) -> 0
O34: * 132 kV or Transmission connected | U34: * 132 kV or Transmission connected
H36: Electrification and rural network subsidy charge [c/kWh] | J36: Affordability subsidy charge [c/kWh] Only payable by non-local authority tariffs | O36: Reactive energy charge [c/kVArh]
O38: High season | Q38: Low season
A39: Tariff | B39: Tariff nameBillcode | C39: Tx zone | D39: Voltage | E39: Billcode | I39: VAT incl | K39: VAT incl | P39: VAT incl | R39: VAT incl
A40: Miniflex - CPP: 25 days / 16 hours (6:00-22:00) 400 critical peak hours per year CRITICAL PEAK DAY rates for CRITICAL PEAK days | B40: MiCPPf | C40: 0 | D40: 1 | E40: =B40&C40&D40&IF($A$2="Non-municipal","N",IF($A$2="Municiple","Y","error")) -> MiCPPf01N | H40: 11.63 | I40: =ROUND(H40 * (1 + VAT), 2) -> 13.37 | J40: 5.69 | K40: =ROUND(J40 * (1 + VAT), 2) -> 6.54 | O40: 9.16 | P40: =ROUND(O40 * (1 + VAT), 2) -> 10.53 | Q40: 0 | R40: =ROUND(Q40 * (1 + VAT), 2) -> 0
A42: Miniflex - CPP: 25 days / 16 hours (6:00-22:00) 400 critical peak hours per year CRITICAL PEAK DAY rates for CRITICAL PEAK days | B42: MiCPPf | C42: 0 | D42: 1 | E42: =B42&C42&D42&IF($A$2="Non-municipal","N",IF($A$2="Municiple","Y","error")) -> MiCPPf01N
A43: Miniflex - CPP: 25 days / 16 hours (6:00-22:00) 400 critical peak hours per year CRITICAL PEAK DAY rates for CRITICAL PEAK days | B43: MiCPPf | C43: 1 | D43: 2 | E43: =B43&C43&D43&IF($A$2="Non-municipal","N",IF($A$2="Municiple","Y","error")) -> MiCPPf12N
A44: Miniflex - CPP: 25 days / 16 hours (6:00-22:00) 400 critical peak hours per year CRITICAL PEAK DAY rates for CRITICAL PEAK days | B44: MiCPPf | C44: 2 | D44: 3 | E44: =B44&C44&D44&IF($A$2="Non-municipal","N",IF($A$2="Municiple","Y","error")) -> MiCPPf23N
A45: Miniflex - CPP: 25 days / 16 hours (6:00-22:00) 400 critical peak hours per year CRITICAL PEAK DAY rates for CRITICAL PEAK days | B45: MiCPPf | C45: 3 | D45: 4 | E45: =B45&C45&D45&IF($A$2="Non-municipal","N",IF($A$2="Municiple","Y","error")) -> MiCPPf34N

Sheet Megaflex 8hrs for 50day CPP C (hidden)
G1: Back to menu
A2: Non-municipal | G2: Megaflex – Non-local Authority | AF2: =SUM(#REF!,V8:V23,#REF!,#REF!,#REF!,#REF!,H26:J26,L26) ->  | AG2: check value
V4: Transmission network charges [R/kVA/m]
H5: Transmission zone
I6: Voltage
A7: Tariff | B7: Tariff nameBillcode | C7: Tx zone | D7: Voltage | E7: Billcode | W7: VAT incl
A8: Megaflex - CPP: 50 days / 8 hours (6:00-14:00) 400 critical peak hours per year CRITICAL PEAK DAY rates for CRITICAL PEAK days | B8: MeCPPf2 | C8: 0 | D8: 1 | E8: =B8&C8&D8&IF($A$2="Non-municipal","N",IF($A$2="Municiple","Y","error")) -> MeCPPf201N | H8: ≤ 300km | I8: < 500V | V8: 13.09 | W8: =ROUND(V8 * (1 + VAT), 2) -> 15.05
A9: Megaflex - CPP: 50 days / 8 hours (6:00-14:00) 400 critical peak hours per year CRITICAL PEAK DAY rates for CRITICAL PEAK days | B9: MeCPPf2 | C9: 0 | D9: 2 | E9: MeCPPf202N | I9: ≥ 500V & < 66kV | V9: 11.96 | W9: 13.75
A10: Megaflex - CPP: 50 days / 8 hours (6:00-14:00) 400 critical peak hours per year CRITICAL PEAK DAY rates for CRITICAL PEAK days | B10: MeCPPf2 | C10: 0 | D10: 3 | E10: MeCPPf203N | I10: ≥ 66kV & ≤ 132kV | V10: 11.64 | W10: 13.39
A11: Megaflex - CPP: 50 days / 8 hours (6:00-14:00) 400 critical peak hours per year CRITICAL PEAK DAY rates for CRITICAL PEAK days | B11: MeCPPf2 | C11: 0 | D11: 4 | E11: MeCPPf204N | I11: > 132kV* | V11: 14.72 | W11: 16.93
A12: Megaflex - CPP: 50 days / 8 hours (6:00-14:00) 400 critical peak hours per year CRITICAL PEAK DAY rates for CRITICAL PEAK days | B12: MeCPPf2 | C12: 1 | D12: 1 | E12: MeCPPf211N | H12: > 300km and ≤ 600km | I12: < 500V | V12: 13.18 | W12: 15.16
A13: Megaflex - CPP: 50 days / 8 hours (6:00-14:00) 400 critical peak hours per year CRITICAL PEAK DAY rates for CRITICAL PEAK days | B13: MeCPPf2 | C13: 1 | D13: 2 | E13: MeCPPf212N | I13: ≥ 500V & < 66kV | V13: 12.07 | W13: 13.88
A14: Megaflex - CPP: 50 days / 8 hours (6:00-14:00) 400 critical peak hours per year CRITICAL PEAK DAY rates for CRITICAL PEAK days | B14: MeCPPf2 | C14: 1 | D14: 3 | E14: MeCPPf213N | I14: ≥ 66kV & ≤ 132kV | V14: 11.73 | W14: 13.49
A15: Megaflex - CPP: 50 days / 8 hours (6:00-14:00) 400 critical peak hours per year CRITICAL PEAK DAY rates for CRITICAL PEAK days | B15: MeCPPf2 | C15: 1 | D15: 4 | E15: MeCPPf214N | I15: > 132kV* | V15: 14.85 | W15: 17.08
A16: Megaflex - CPP: 50 days / 8 hours (6:00-14:00) 400 critical peak hours per year CRITICAL PEAK DAY rates for CRITICAL PEAK days | B16: MeCPPf2 | C16: 2 | D16: 1 | E16: MeCPPf221N | H16: > 600km and ≤ 900km | I16: < 500V | V16: 13.33 | W16: 15.33
A17: Megaflex - CPP: 50 days / 8 hours (6:00-14:00) 400 critical peak hours per year CRITICAL PEAK DAY rates for CRITICAL PEAK days | B17: MeCPPf2 | C17: 2 | D17: 2 | E17: MeCPPf222N | I17: ≥ 500V & < 66kV | V17: 12.18 | W17: 14.01
A18: Megaflex - CPP: 50 days / 8 hours (6:00-14:00) 400 critical peak hours per year CRITICAL PEAK DAY rates for CRITICAL PEAK days | B18: MeCPPf2 | C18: 2 | D18: 3 | E18: MeCPPf223N | I18: ≥ 66kV & ≤ 132kV | V18: 11.8 | W18: 13.57
A19: Megaflex - CPP: 50 days / 8 hours (6:00-14:00) 400 critical peak hours per year CRITICAL PEAK DAY rates for CRITICAL PEAK days | B19: MeCPPf2 | C19: 2 | D19: 4 | E19: MeCPPf224N | I19: > 132kV* | V19: 15.07 | W19: 17.33
A20: Megaflex - CPP: 50 days / 8 hours (6:00-14:00) 400 critical peak hours per year CRITICAL PEAK DAY rates for CRITICAL PEAK days | B20: MeCPPf2 | C20: 3 | D20: 1 | E20: MeCPPf231N | H20: > 900km | I20: < 500V | V20: 13.42 | W20: 15.43
A21: Megaflex - CPP: 50 days / 8 hours (6:00-14:00) 400 critical peak hours per year CRITICAL PEAK DAY rates for CRITICAL PEAK days | B21: MeCPPf2 | C21: 3 | D21: 2 | E21: MeCPPf232N | I21: ≥ 500V & < 66kV | V21: 12.32 | W21: 14.17
A22: Megaflex - CPP: 50 days / 8 hours (6:00-14:00) 400 critical peak hours per year CRITICAL PEAK DAY rates for CRITICAL PEAK days | B22: MeCPPf2 | C22: 3 | D22: 3 | E22: MeCPPf233N | I22: ≥ 66kV & ≤ 132kV | V22: 11.91 | W22: 13.7
A23: Megaflex - CPP: 50 days / 8 hours (6:00-14:00) 400 critical peak hours per year CRITICAL PEAK DAY rates for CRITICAL PEAK days | B23: MeCPPf2 | C23: 3 | D23: 4 | E23: MeCPPf234N | I23: > 132kV* | V23: 15.18 | W23: 17.46
I24: * 132 kV or Transmission connected
H26: Distribution network charges
J27: Network capacity charge [R/kVA/m] | L27: Network demand charge [R/kVA/m] | N27: Urban low voltage subsidy charge [R/kVA/m]
H28: Voltage | Q28: Voltage | S28: Ancillary service charge [c/kWh]
A29: Tariff | B29: Tariff nameBillcode | C29: Tx zone | D29: Voltage | E29: Billcode | K29: VAT incl | M29: VAT incl | O29: VAT incl | T29: VAT incl
A30: Megaflex - CPP: 50 days / 8 hours (6:00-14:00) 400 critical peak hours per year CRITICAL PEAK DAY rates for CRITICAL PEAK days | B30: MeCPPf2 | C30: 0 | D30: 1 | E30: =B30&C30&D30&IF($A$2="Non-municipal","N",IF($A$2="Municiple","Y","error")) -> MeCPPf201N | H30: < 500V | J30: 26.01 | K30: =ROUND(J30 * (1 + VAT), 2) -> 29.91 | L30: 49.31 | M30: =ROUND(L30 * (1 + VAT), 2) -> 56.71 | N30: 0 | O30: =ROUND(N30 * (1 + VAT), 2) -> 0 | Q30: < 500V | S30: 0.6 | T30: =ROUND(S30 * (1 + VAT), 2) -> 0.69
A31: Megaflex - CPP: 50 days / 8 hours (6:00-14:00) 400 critical peak hours per year CRITICAL PEAK DAY rates for CRITICAL PEAK days | B31: MeCPPf2 | C31: 0 | D31: 2 | E31: MeCPPf202N | H31: ≥ 500V & < 66kV | J31: 23.85 | K31: =ROUND(J31 * (1 + VAT), 2) -> 27.43 | L31: 45.24 | M31: =ROUND(L31 * (1 + VAT), 2) -> 52.03 | N31: 0 | O31: =ROUND(N31 * (1 + VAT), 2) -> 0 | Q31: ≥ 500V & < 66kV | S31: 0.59 | T31: =ROUND(S31 * (1 + VAT), 2) -> 0.68
A32: Megaflex - CPP: 50 days / 8 hours (6:00-14:00) 400 critical peak hours per year CRITICAL PEAK DAY rates for CRITICAL PEAK days | B32: MeCPPf2 | C32: 0 | D32: 3 | E32: MeCPPf203N | H32: ≥ 66kV & ≤ 132kV | J32: 8.52 | K32: =ROUND(J32 * (1 + VAT), 2) -> 9.8 | L32: 15.77 | M32: =ROUND(L32 * (1 + VAT), 2) -> 18.14 | N32: 21.01 | O32: =ROUND(N32 * (1 + VAT), 2) -> 24.16 | Q32: ≥ 66kV & ≤ 132kV | S32: 0.57 | T32: =ROUND(S32 * (1 + VAT), 2) -> 0.66
A33: Megaflex - CPP: 50 days / 8 hours (6:00-14:00) 400 critical peak hours per year CRITICAL PEAK DAY rates for CRITICAL PEAK days | B33: MeCPPf2 | C33: 0 | D33: 4 | E33: MeCPPf204N | H33: > 132kV* | J33: 0 | K33: =ROUND(J33 * (1 + VAT), 2) -> 0 | L33: 0 | M33: =ROUND(L33 * (1 + VAT), 2) -> 0 | N33: 21.01 | O33: =ROUND(N33 * (1 + VAT), 2) -> 24.16 | Q33: > 132kV* | S33: 0.53 | T33: =ROUND(S33 * (1 + VAT), 2) -> 0.61
H34: * 132 kV or Transmission connected | Q34: * 132 kV or Transmission connected
H36: Customer categories | J36: Service charge [R/account/day] | L36: Administration charge [R/POD/day] | Q36: Reactive energy charge [c/kVArh]
Q37: High season | S37: Low season
A38: Tariff | B38: Tariff nameBillcode | C38: Tx zone | D38: Voltage | E38: Billcode | K38: VAT incl | M38: VAT incl | R38: VAT incl | T38: VAT incl
A39: Megaflex - CPP: 50 days / 8 hours (6:00-14:00) 400 critical peak hours per year CRITICAL PEAK DAY rates for CRITICAL PEAK days | B39: MeCPPf2 | C39: 0 | D39: 1 | E39: =B39&C39&D39&IF($A$2="Non-municipal","N",IF($A$2="Municiple","Y","error")) -> MeCPPf201N | H39: > 1 MVA | J39: 298.57 | K39: =ROUND(J39 * (1 + VAT), 2) -> 343.36 | L39: 134.56 | M39: =ROUND(L39 * (1 + VAT), 2) -> 154.74 | Q39: 21.03 | R39: =ROUND(Q39 * (1 + VAT), 2) -> 24.18 | S39: 0 | T39: =ROUND(S39 * (1 + VAT), 2) -> 0
A40: Megaflex - CPP: 50 days / 8 hours (6:00-14:00) 400 critical peak hours per year CRITICAL PEAK DAY rates for CRITICAL PEAK days | B40: MeCPPf2 | C40: 0 | D40: 1 | E40: MeCPPf201N | H40: Key customers | J40: 5850.83 | K40: =ROUND(J40 * (1 + VAT), 2) -> 6728.45 | L40: 186.85 | M40: =ROUND(L40 * (1 + VAT), 2) -> 214.88
H42: Electrification and rural network subsidy charge [c/kWh] | J42: Affordability subsidy charge [c/kWh] Only payable by non-local authority tariffs
A45: Tariff | B45: Tariff nameBillcode | C45: Tx zone | D45: Voltage | E45: Billcode | I45: VAT incl | K45: VAT incl
A46: Megaflex - CPP: 50 days / 8 hours (6:00-14:00) 400 critical peak hours per year CRITICAL PEAK DAY rates for CRITICAL PEAK days | B46: MeCPPf2 | C46: 0 | D46: 1 | E46: =B46&C46&D46&IF($A$2="Non-municipal","N",IF($A$2="Municiple","Y","error")) -> MeCPPf201N | H46: 11.63 | I46: =ROUND(H46 * (1 + VAT), 2) -> 13.37 | J46: 5.69 | K46: =ROUND(J46 * (1 + VAT), 2) -> 6.54

Sheet Megaflex 16hrs for 25day CPP C (hidden)
G1: Back to menu
A2: Non-municipal | G2: Megaflex – Non-local Authority | AF2: =SUM(#REF!,V8:V23,#REF!,#REF!,#REF!,#REF!,H26:J26,L26) ->  | AG2: check value
V4: Transmission network charges [R/kVA/m]
H5: Transmission zone
I6: Voltage
A7: Tariff | B7: Tariff nameBillcode | C7: Tx zone | D7: Voltage | E7: Billcode | W7: VAT incl
A8: Megaflex - CPP: 25 days / 16 hours (6:00-22:00) 400 critical peak hours per year CRITICAL PEAK DAY rates for CRITICAL PEAK days | B8: MeCPPf | C8: 0 | D8: 1 | E8: =B8&C8&D8&IF($A$2="Non-municipal","N",IF($A$2="Municiple","Y","error")) -> MeCPPf01N | H8: ≤ 300km | I8: < 500V | V8: 13.09 | W8: =ROUND(V8 * (1 + VAT), 2) -> 15.05
A9: Megaflex - CPP: 25 days / 16 hours (6:00-22:00) 400 critical peak hours per year CRITICAL PEAK DAY rates for CRITICAL PEAK days | B9: MeCPPf | C9: 0 | D9: 2 | E9: =B9&C9&D9&IF($A$2="Non-municipal","N",IF($A$2="Municiple","Y","error")) -> MeCPPf02N | I9: ≥ 500V & < 66kV | V9: 11.96 | W9: 13.75
A10: Megaflex - CPP: 25 days / 16 hours (6:00-22:00) 400 critical peak hours per year CRITICAL PEAK DAY rates for CRITICAL PEAK days | B10: MeCPPf | C10: 0 | D10: 3 | E10: MeCPPf03N | I10: ≥ 66kV & ≤ 132kV | V10: 11.64 | W10: 13.39
A11: Megaflex - CPP: 25 days / 16 hours (6:00-22:00) 400 critical peak hours per year CRITICAL PEAK DAY rates for CRITICAL PEAK days | B11: MeCPPf | C11: 0 | D11: 4 | E11: MeCPPf04N | I11: > 132kV* | V11: 14.72 | W11: 16.93
A12: Megaflex - CPP: 25 days / 16 hours (6:00-22:00) 400 critical peak hours per year CRITICAL PEAK DAY rates for CRITICAL PEAK days | B12: MeCPPf | C12: 1 | D12: 1 | E12: MeCPPf11N | H12: > 300km and ≤ 600km | I12: < 500V | V12: 13.18 | W12: 15.16
A13: Megaflex - CPP: 25 days / 16 hours (6:00-22:00) 400 critical peak hours per year CRITICAL PEAK DAY rates for CRITICAL PEAK days | B13: MeCPPf | C13: 1 | D13: 2 | E13: MeCPPf12N | I13: ≥ 500V & < 66kV | V13: 12.07 | W13: 13.88
A14: Megaflex - CPP: 25 days / 16 hours (6:00-22:00) 400 critical peak hours per year CRITICAL PEAK DAY rates for CRITICAL PEAK days | B14: MeCPPf | C14: 1 | D14: 3 | E14: MeCPPf13N | I14: ≥ 66kV & ≤ 132kV | V14: 11.73 | W14: 13.49
A15: Megaflex - CPP: 25 days / 16 hours (6:00-22:00) 400 critical peak hours per year CRITICAL PEAK DAY rates for CRITICAL PEAK days | B15: MeCPPf | C15: 1 | D15: 4 | E15: MeCPPf14N | I15: > 132kV* | V15: 14.85 | W15: 17.08
A16: Megaflex - CPP: 25 days / 16 hours (6:00-22:00) 400 critical peak hours per year CRITICAL PEAK DAY rates for CRITICAL PEAK days | B16: MeCPPf | C16: 2 | D16: 1 | E16: MeCPPf21N | H16: > 600km and ≤ 900km | I16: < 500V | V16: 13.33 | W16: 15.33
A17: Megaflex - CPP: 25 days / 16 hours (6:00-22:00) 400 critical peak hours per year CRITICAL PEAK DAY rates for CRITICAL PEAK days | B17: MeCPPf | C17: 2 | D17: 2 | E17: MeCPPf22N | I17: ≥ 500V & < 66kV | V17: 12.18 | W17: 14.01
A18: Megaflex - CPP: 25 days / 16 hours (6:00-22:00) 400 critical peak hours per year CRITICAL PEAK DAY rates for CRITICAL PEAK days | B18: MeCPPf | C18: 2 | D18: 3 | E18: MeCPPf23N | I18: ≥ 66kV & ≤ 132kV | V18: 11.8 | W18: 13.57
A19: Megaflex - CPP: 25 days / 16 hours (6:00-22:00) 400 critical peak hours per year CRITICAL PEAK DAY rates for CRITICAL PEAK days | B19: MeCPPf | C19: 2 | D19: 4 | E19: MeCPPf24N | I19: > 132kV* | V19: 15.07 | W19: 17.33
A20: Megaflex - CPP: 25 days / 16 hours (6:00-22:00) 400 critical peak hours per year CRITICAL PEAK DAY rates for CRITICAL PEAK days | B20: MeCPPf | C20: 3 | D20: 1 | E20: MeCPPf31N | H20: > 900km | I20: < 500V | V20: 13.42 | W20: 15.43
A21: Megaflex - CPP: 25 days / 16 hours (6:00-22:00) 400 critical peak hours per year CRITICAL PEAK DAY rates for CRITICAL PEAK days | B21: MeCPPf | C21: 3 | D21: 2 | E21: MeCPPf32N | I21: ≥ 500V & < 66kV | V21: 12.32 | W21: 14.17
A22: Megaflex - CPP: 25 days / 16 hours (6:00-22:00) 400 critical peak hours per year CRITICAL PEAK DAY rates for CRITICAL PEAK days | B22: MeCPPf | C22: 3 | D22: 3 | E22: MeCPPf33N | I22: ≥ 66kV & ≤ 132kV | V22: 11.91 | W22: 13.7
A23: Megaflex - CPP: 25 days / 16 hours (6:00-22:00) 400 critical peak hours per year CRITICAL PEAK DAY rates for CRITICAL PEAK days | B23: MeCPPf | C23: 3 | D23: 4 | E23: MeCPPf34N | I23: > 132kV* | V23: 15.18 | W23: 17.46
I24: * 132 kV or Transmission connected
H26: Distribution network charges
J27: Network capacity charge [R/kVA/m] | L27: Network demand charge [R/kVA/m] | N27: Urban low voltage subsidy charge [R/kVA/m]
H28: Voltage | Q28: Voltage | S28: Ancillary service charge [c/kWh]
A29: Tariff | B29: Tariff nameBillcode | C29: Tx zone | D29: Voltage | E29: Billcode | K29: VAT incl | M29: VAT incl | O29: VAT incl | T29: VAT incl
A30: Megaflex - CPP: 25 days / 16 hours (6:00-22:00) 400 critical peak hours per year CRITICAL PEAK DAY rates for CRITICAL PEAK days | B30: MeCPPf | C30: 0 | D30: 1 | E30: =B30&C30&D30&IF($A$2="Non-municipal","N",IF($A$2="Municiple","Y","error")) -> MeCPPf01N | H30: < 500V | J30: 26.01 | K30: =ROUND(J30 * (1 + VAT), 2) -> 29.91 | L30: 49.31 | M30: =ROUND(L30 * (1 + VAT), 2) -> 56.71 | N30: 0 | O30: =ROUND(N30 * (1 + VAT), 2) -> 0 | Q30: < 500V | S30: 0.6 | T30: =ROUND(S30 * (1 + VAT), 2) -> 0.69
A31: Megaflex - CPP: 25 days / 16 hours (6:00-22:00) 400 critical peak hours per year CRITICAL PEAK DAY rates for CRITICAL PEAK days | B31: MeCPPf | C31: 0 | D31: 2 | E31: MeCPPf02N | H31: ≥ 500V & < 66kV | J31: 23.85 | K31: =ROUND(J31 * (1 + VAT), 2) -> 27.43 | L31: 45.24 | M31: =ROUND(L31 * (1 + VAT), 2) -> 52.03 | N31: 0 | O31: =ROUND(N31 * (1 + VAT), 2) -> 0 | Q31: ≥ 500V & < 66kV | S31: 0.59 | T31: =ROUND(S31 * (1 + VAT), 2) -> 0.68
A32: Megaflex - CPP: 25 days / 16 hours (6:00-22:00) 400 critical peak hours per year CRITICAL PEAK DAY rates for CRITICAL PEAK days | B32: MeCPPf | C32: 0 | D32: 3 | E32: MeCPPf03N | H32: ≥ 66kV & ≤ 132kV | J32: 8.52 | K32: =ROUND(J32 * (1 + VAT), 2) -> 9.8 | L32: 15.77 | M32: =ROUND(L32 * (1 + VAT), 2) -> 18.14 | N32: 21.01 | O32: =ROUND(N32 * (1 + VAT), 2) -> 24.16 | Q32: ≥ 66kV & ≤ 132kV | S32: 0.57 | T32: =ROUND(S32 * (1 + VAT), 2) -> 0.66
A33: Megaflex - CPP: 25 days / 16 hours (6:00-22:00) 400 critical peak hours per year CRITICAL PEAK DAY rates for CRITICAL PEAK days | B33: MeCPPf | C33: 0 | D33: 4 | E33: MeCPPf04N | H33: > 132kV* | J33: 0 | K33: =ROUND(J33 * (1 + VAT), 2) -> 0 | L33: 0 | M33: =ROUND(L33 * (1 + VAT), 2) -> 0 | N33: 21.01 | O33: =ROUND(N33 * (1 + VAT), 2) -> 24.16 | Q33: > 132kV* | S33: 0.53 | T33: =ROUND(S33 * (1 + VAT), 2) -> 0.61
H34: * 132 kV or Transmission connected | Q34: * 132 kV or Transmission connected
H36: Customer categories | J36: Service charge [R/account/day] | L36: Administration charge [R/POD/day] | Q36: Reactive energy charge [c/kVArh]
Q37: High season | S37: Low season
A38: Tariff | B38: Tariff nameBillcode | C38: Tx zone | D38: Voltage | E38: Billcode | K38: VAT incl | M38: VAT incl | R38: VAT incl | T38: VAT incl
